Workbook

Sheet Crédito por Convenio (hidden)

Sheet SIMULADOR CUOTAS
B3: SIMULADOR PRÉSTAMO YA - COMPRA DE DEUDA - SÚPER EFECTIVO
C7: DATOS OFERTA | G7: DATOS SEGURO
C10: PRODUCTO | E10: SÚPER EFECTIVO | G10: TIPO DE SEGURO | H10: SIN RESCATE
C12: MONTO DE OFERTA | E12: 3000 | G12: MONTO SEGURO | H12: =+IF(H10="SIN RESCATE", 0.3%, 0.35%) -> 0.003
C14: TEM | E14: =+(1+E16)^(0.0833333333333333)-1 -> 0.01240148769 | G14: DETALLE DE CUOTA Y TCEA
C16: TEA | E16: 0.1594 | G16: CUOTA | H16: =SIMULADOR!D25 -> 89.27
C18: PLAZO DE OFERTA | E18: 48 | G18: TCEA | H18: =SIMULADOR!D23 -> 0.2036639014
C20: DATOS DESEMBOLSO | G20: 1ERA FECHA DE PAGO | H20: =SIMULADOR!D37 -> 2023-06-23
C22: FECHA DE DESEMBOLSO | E22: 2023-05-23 | G22: ÚLTIMA FECHA DE PAGO | H22: =SIMULADOR!D38 -> 2027-05-23
C24: FECHA DE PAGO | E24: 23 | G24: INTERESES | H24: =SIMULADOR!P42 -> 1037.88
C26: PLAZO ELEGIDO POR EL CLIENTE | E26: 48
C28: PERIODO DE GRACIA | E28: 0
C30: MONTO MÁXIMO A LLEVAR | E30: =+IF(AND(E12>5000,OR(E10="PRÉSTAMO YA",PROPER(E10)="Súper Efectivo",PROPER(E10)="Super Efectivo",PROPER(E10)="Superefectivo",PROPER(E10)="PRÉSTAMO COLABORADOR")),(E12/2)*VLOOKUP(E26,Leyenda!O:P,2,0),IF(AND(E12>5000,E10="PRÉSTAMO YA SENIOR"),(E12/2)*VLOOKUP(E26,Leyenda!R:S,2,0),IF(AND(E12>5000,E10="COMPRA DE DEUDA"),(E12/2)*VLOOKUP(E26,Leyenda!U:V,2,0),E12))) -> 3000
B31: Moneda: Soles
B32: El financiamiento es mensual, según cuotas elegidas por el cliente
B33: El cliente tiene derecho a endosar el seguro de desgravamen a favor de Banco Ripley, sin costo adicional siempre y cuando
B34: este brinde coberturas, condiciones y plazos iguales o mejores al seguro ofrecido por Banco Ripley. Para mayor información
B35: te invitamos a acceder a nuestra pagina web: https://www.bancoripley.com.pe/seguro-tarjetas.html
B36: * La TEM y TEA es tasa fija
B37: **La cuota está calculada con el monto máximo a llevar (celda E30) y al plazo final elegido por el cliente (Celda E26)
C40: PAGO ANTICIPADO
C43: FECHA DE ABONO | G43: MONTO DE PAGO ANTICIPADO
C45: ELEGIR REDUCCIÓN DE PAGO ANTICIPADO
C47: Reducir la cuota implica mantener el plazo original del crédito. Reducir el plazo implica mantener la cuota original del crédito.
C51: CRONOGRAMA DE PAGOS
C54: N° | D54: Fecha de Vencimiento | E54: N° días | F54: Capital | G54: Desgravamen | H54: Amortización | I54: Interés | J54: Cuota | Q54: =+Calculos!BW6 -> 
C55: =+SIMULADOR!C44 -> 1 | D55: =+SIMULADOR!D44 -> 2023-06-23 | E55: =+SIMULADOR!E44 -> 31 | F55: =+IFERROR(IF(C55>$Q$54, VLOOKUP(C55, SIMULADOR_PA!A:P,12,0), SIMULADOR!L44), SIMULADOR!L44) -> 3000 | G55: =+IFERROR(IF(C55>$Q$54, VLOOKUP(C55, SIMULADOR_PA!A:P,14,0), SIMULADOR!N44), SIMULADOR!N44) -> 9 | H55: =+IFERROR(IF(C55>$Q$54, VLOOKUP(C55, SIMULADOR_PA!A:P,15,0), SIMULADOR!O44), SIMULADOR!O44) -> 41.82 | I55: =+IFERROR(IF(C55>$Q$54, VLOOKUP(C55, SIMULADOR_PA!A:P,16,0), SIMULADOR!P44), SIMULADOR!P44) -> 38.45 | J55: =SUM(G55:I55) -> 89.27
C56: =+SIMULADOR!C45 -> 2 | D56: =+SIMULADOR!D45 -> 2023-07-23 | E56: =+SIMULADOR!E45 -> 30 | F56: =+IFERROR(IF(C56>$Q$54, VLOOKUP(C56, SIMULADOR_PA!A:P,12,0), SIMULADOR!L45), SIMULADOR!L45) -> 2958.18 | G56: =+IFERROR(IF(C56>$Q$54, VLOOKUP(C56, SIMULADOR_PA!A:P,14,0), SIMULADOR!N45), SIMULADOR!N45) -> 8.87 | H56: =+IFERROR(IF(C56>$Q$54, VLOOKUP(C56, SIMULADOR_PA!A:P,15,0), SIMULADOR!O45), SIMULADOR!O45) -> 43.71 | I56: =+IFERROR(IF(C56>$Q$54, VLOOKUP(C56, SIMULADOR_PA!A:P,16,0), SIMULADOR!P45), SIMULADOR!P45) -> 36.69 | J56: =SUM(G56:I56) -> 89.27
C57: =+SIMULADOR!C46 -> 3 | D57: =+SIMULADOR!D46 -> 2023-08-23 | E57: =+SIMULADOR!E46 -> 31 | F57: =+IFERROR(IF(C57>$Q$54, VLOOKUP(C57, SIMULADOR_PA!A:P,12,0), SIMULADOR!L46), SIMULADOR!L46) -> 2914.47 | G57: =+IFERROR(IF(C57>$Q$54, VLOOKUP(C57, SIMULADOR_PA!A:P,14,0), SIMULADOR!N46), SIMULADOR!N46) -> 8.74 | H57: =+IFERROR(IF(C57>$Q$54, VLOOKUP(C57, SIMULADOR_PA!A:P,15,0), SIMULADOR!O46), SIMULADOR!O46) -> 43.17 | I57: =+IFERROR(IF(C57>$Q$54, VLOOKUP(C57, SIMULADOR_PA!A:P,16,0), SIMULADOR!P46), SIMULADOR!P46) -> 37.36 | J57: 89.27
C58: =+SIMULADOR!C47 -> 4 | D58: =+SIMULADOR!D47 -> 2023-09-23 | E58: =+SIMULADOR!E47 -> 31 | F58: =+IFERROR(IF(C58>$Q$54, VLOOKUP(C58, SIMULADOR_PA!A:P,12,0), SIMULADOR!L47), SIMULADOR!L47) -> 2871.3 | G58: =+IFERROR(IF(C58>$Q$54, VLOOKUP(C58, SIMULADOR_PA!A:P,14,0), SIMULADOR!N47), SIMULADOR!N47) -> 8.61 | H58: =+IFERROR(IF(C58>$Q$54, VLOOKUP(C58, SIMULADOR_PA!A:P,15,0), SIMULADOR!O47), SIMULADOR!O47) -> 43.86 | I58: =+IFERROR(IF(C58>$Q$54, VLOOKUP(C58, SIMULADOR_PA!A:P,16,0), SIMULADOR!P47), SIMULADOR!P47) -> 36.8 | J58: 89.27
C59: =+SIMULADOR!C48 -> 5 | D59: =+SIMULADOR!D48 -> 2023-10-23 | E59: =+SIMULADOR!E48 -> 30 | F59: =+IFERROR(IF(C59>$Q$54, VLOOKUP(C59, SIMULADOR_PA!A:P,12,0), SIMULADOR!L48), SIMULADOR!L48) -> 2827.44 | G59: =+IFERROR(IF(C59>$Q$54, VLOOKUP(C59, SIMULADOR_PA!A:P,14,0), SIMULADOR!N48), SIMULADOR!N48) -> 8.48 | H59: =+IFERROR(IF(C59>$Q$54, VLOOKUP(C59, SIMULADOR_PA!A:P,15,0), SIMULADOR!O48), SIMULADOR!O48) -> 45.73 | I59: =+IFERROR(IF(C59>$Q$54, VLOOKUP(C59, SIMULADOR_PA!A:P,16,0), SIMULADOR!P48), SIMULADOR!P48) -> 35.06 | J59: 89.27
C60: =+SIMULADOR!C49 -> 6 | D60: =+SIMULADOR!D49 -> 2023-11-23 | E60: =+SIMULADOR!E49 -> 31 | F60: =+IFERROR(IF(C60>$Q$54, VLOOKUP(C60, SIMULADOR_PA!A:P,12,0), SIMULADOR!L49), SIMULADOR!L49) -> 2781.71 | G60: =+IFERROR(IF(C60>$Q$54, VLOOKUP(C60, SIMULADOR_PA!A:P,14,0), SIMULADOR!N49), SIMULADOR!N49) -> 8.35 | H60: =+IFERROR(IF(C60>$Q$54, VLOOKUP(C60, SIMULADOR_PA!A:P,15,0), SIMULADOR!O49), SIMULADOR!O49) -> 45.27 | I60: =+IFERROR(IF(C60>$Q$54, VLOOKUP(C60, SIMULADOR_PA!A:P,16,0), SIMULADOR!P49), SIMULADOR!P49) -> 35.65 | J60: 89.27
C61: =+SIMULADOR!C50 -> 7 | D61: =+SIMULADOR!D50 -> 2023-12-23 | E61: =+SIMULADOR!E50 -> 30 | F61: =+IFERROR(IF(C61>$Q$54, VLOOKUP(C61, SIMULADOR_PA!A:P,12,0), SIMULADOR!L50), SIMULADOR!L50) -> 2736.44 | G61: =+IFERROR(IF(C61>$Q$54, VLOOKUP(C61, SIMULADOR_PA!A:P,14,0), SIMULADOR!N50), SIMULADOR!N50) -> 8.21 | H61: =+IFERROR(IF(C61>$Q$54, VLOOKUP(C61, SIMULADOR_PA!A:P,15,0), SIMULADOR!O50), SIMULADOR!O50) -> 47.12 | I61: =+IFERROR(IF(C61>$Q$54, VLOOKUP(C61, SIMULADOR_PA!A:P,16,0), SIMULADOR!P50), SIMULADOR!P50) -> 33.94 | J61: 89.27
C62: =+SIMULADOR!C51 -> 8 | D62: =+SIMULADOR!D51 -> 2024-01-23 | E62: =+SIMULADOR!E51 -> 31 | F62: =+IFERROR(IF(C62>$Q$54, VLOOKUP(C62, SIMULADOR_PA!A:P,12,0), SIMULADOR!L51), SIMULADOR!L51) -> 2689.32 | G62: =+IFERROR(IF(C62>$Q$54, VLOOKUP(C62, SIMULADOR_PA!A:P,14,0), SIMULADOR!N51), SIMULADOR!N51) -> 8.07 | H62: =+IFERROR(IF(C62>$Q$54, VLOOKUP(C62, SIMULADOR_PA!A:P,15,0), SIMULADOR!O51), SIMULADOR!O51) -> 46.73 | I62: =+IFERROR(IF(C62>$Q$54, VLOOKUP(C62, SIMULADOR_PA!A:P,16,0), SIMULADOR!P51), SIMULADOR!P51) -> 34.47 | J62: 89.27
C63: =+SIMULADOR!C52 -> 9 | D63: =+SIMULADOR!D52 -> 2024-02-23 | E63: =+SIMULADOR!E52 -> 31 | F63: =+IFERROR(IF(C63>$Q$54, VLOOKUP(C63, SIMULADOR_PA!A:P,12,0), SIMULADOR!L52), SIMULADOR!L52) -> 2642.59 | G63: =+IFERROR(IF(C63>$Q$54, VLOOKUP(C63, SIMULADOR_PA!A:P,14,0), SIMULADOR!N52), SIMULADOR!N52) -> 7.93 | H63: =+IFERROR(IF(C63>$Q$54, VLOOKUP(C63, SIMULADOR_PA!A:P,15,0), SIMULADOR!O52), SIMULADOR!O52) -> 47.47 | I63: =+IFERROR(IF(C63>$Q$54, VLOOKUP(C63, SIMULADOR_PA!A:P,16,0), SIMULADOR!P52), SIMULADOR!P52) -> 33.87 | J63: 89.27
C64: =+SIMULADOR!C53 -> 10 | D64: =+SIMULADOR!D53 -> 2024-03-23 | E64: =+SIMULADOR!E53 -> 29 | F64: =+IFERROR(IF(C64>$Q$54, VLOOKUP(C64, SIMULADOR_PA!A:P,12,0), SIMULADOR!L53), SIMULADOR!L53) -> 2595.12 | G64: =+IFERROR(IF(C64>$Q$54, VLOOKUP(C64, SIMULADOR_PA!A:P,14,0), SIMULADOR!N53), SIMULADOR!N53) -> 7.79 | H64: =+IFERROR(IF(C64>$Q$54, VLOOKUP(C64, SIMULADOR_PA!A:P,15,0), SIMULADOR!O53), SIMULADOR!O53) -> 50.38 | I64: =+IFERROR(IF(C64>$Q$54, VLOOKUP(C64, SIMULADOR_PA!A:P,16,0), SIMULADOR!P53), SIMULADOR!P53) -> 31.1 | J64: 89.27
C65: =+SIMULADOR!C54 -> 11 | D65: =+SIMULADOR!D54 -> 2024-04-23 | E65: =+SIMULADOR!E54 -> 31 | F65: =+IFERROR(IF(C65>$Q$54, VLOOKUP(C65, SIMULADOR_PA!A:P,12,0), SIMULADOR!L54), SIMULADOR!L54) -> 2544.74 | G65: =+IFERROR(IF(C65>$Q$54, VLOOKUP(C65, SIMULADOR_PA!A:P,14,0), SIMULADOR!N54), SIMULADOR!N54) -> 7.63 | H65: =+IFERROR(IF(C65>$Q$54, VLOOKUP(C65, SIMULADOR_PA!A:P,15,0), SIMULADOR!O54), SIMULADOR!O54) -> 49.02 | I65: =+IFERROR(IF(C65>$Q$54, VLOOKUP(C65, SIMULADOR_PA!A:P,16,0), SIMULADOR!P54), SIMULADOR!P54) -> 32.62 | J65: 89.27
C66: =+SIMULADOR!C55 -> 12 | D66: =+SIMULADOR!D55 -> 2024-05-23 | E66: =+SIMULADOR!E55 -> 30 | F66: =+IFERROR(IF(C66>$Q$54, VLOOKUP(C66, SIMULADOR_PA!A:P,12,0), SIMULADOR!L55), SIMULADOR!L55) -> 2495.72 | G66: =+IFERROR(IF(C66>$Q$54, VLOOKUP(C66, SIMULADOR_PA!A:P,14,0), SIMULADOR!N55), SIMULADOR!N55) -> 7.49 | H66: =+IFERROR(IF(C66>$Q$54, VLOOKUP(C66, SIMULADOR_PA!A:P,15,0), SIMULADOR!O55), SIMULADOR!O55) -> 50.83 | I66: =+IFERROR(IF(C66>$Q$54, VLOOKUP(C66, SIMULADOR_PA!A:P,16,0), SIMULADOR!P55), SIMULADOR!P55) -> 30.95 | J66: 89.27
C67: =+SIMULADOR!C56 -> 13 | D67: =+SIMULADOR!D56 -> 2024-06-23 | E67: =+SIMULADOR!E56 -> 31 | F67: =+IFERROR(IF(C67>$Q$54, VLOOKUP(C67, SIMULADOR_PA!A:P,12,0), SIMULADOR!L56), SIMULADOR!L56) -> 2444.89 | G67: =+IFERROR(IF(C67>$Q$54, VLOOKUP(C67, SIMULADOR_PA!A:P,14,0), SIMULADOR!N56), SIMULADOR!N56) -> 7.33 | H67: =+IFERROR(IF(C67>$Q$54, VLOOKUP(C67, SIMULADOR_PA!A:P,15,0), SIMULADOR!O56), SIMULADOR!O56) -> 50.6 | I67: =+IFERROR(IF(C67>$Q$54, VLOOKUP(C67, SIMULADOR_PA!A:P,16,0), SIMULADOR!P56), SIMULADOR!P56) -> 31.34 | J67: 89.27
C68: =+SIMULADOR!C57 -> 14 | D68: =+SIMULADOR!D57 -> 2024-07-23 | E68: =+SIMULADOR!E57 -> 30 | F68: =+IFERROR(IF(C68>$Q$54, VLOOKUP(C68, SIMULADOR_PA!A:P,12,0), SIMULADOR!L57), SIMULADOR!L57) -> 2394.29 | G68: =+IFERROR(IF(C68>$Q$54, VLOOKUP(C68, SIMULADOR_PA!A:P,14,0), SIMULADOR!N57), SIMULADOR!N57) -> 7.18 | H68: =+IFERROR(IF(C68>$Q$54, VLOOKUP(C68, SIMULADOR_PA!A:P,15,0), SIMULADOR!O57), SIMULADOR!O57) -> 52.4 | I68: =+IFERROR(IF(C68>$Q$54, VLOOKUP(C68, SIMULADOR_PA!A:P,16,0), SIMULADOR!P57), SIMULADOR!P57) -> 29.69 | J68: 89.27
C69: =+SIMULADOR!C58 -> 15 | D69: =+SIMULADOR!D58 -> 2024-08-23 | E69: =+SIMULADOR!E58 -> 31 | F69: =+IFERROR(IF(C69>$Q$54, VLOOKUP(C69, SIMULADOR_PA!A:P,12,0), SIMULADOR!L58), SIMULADOR!L58) -> 2341.89 | G69: =+IFERROR(IF(C69>$Q$54, VLOOKUP(C69, SIMULADOR_PA!A:P,14,0), SIMULADOR!N58), SIMULADOR!N58) -> 7.03 | H69: =+IFERROR(IF(C69>$Q$54, VLOOKUP(C69, SIMULADOR_PA!A:P,15,0), SIMULADOR!O58), SIMULADOR!O58) -> 52.22 | I69: =+IFERROR(IF(C69>$Q$54, VLOOKUP(C69, SIMULADOR_PA!A:P,16,0), SIMULADOR!P58), SIMULADOR!P58) -> 30.02 | J69: 89.27
C70: =+SIMULADOR!C59 -> 16 | D70: =+SIMULADOR!D59 -> 2024-09-23 | E70: =+SIMULADOR!E59 -> 31 | F70: =+IFERROR(IF(C70>$Q$54, VLOOKUP(C70, SIMULADOR_PA!A:P,12,0), SIMULADOR!L59), SIMULADOR!L59) -> 2289.67 | G70: =+IFERROR(IF(C70>$Q$54, VLOOKUP(C70, SIMULADOR_PA!A:P,14,0), SIMULADOR!N59), SIMULADOR!N59) -> 6.87 | H70: =+IFERROR(IF(C70>$Q$54, VLOOKUP(C70, SIMULADOR_PA!A:P,15,0), SIMULADOR!O59), SIMULADOR!O59) -> 53.05 | I70: =+IFERROR(IF(C70>$Q$54, VLOOKUP(C70, SIMULADOR_PA!A:P,16,0), SIMULADOR!P59), SIMULADOR!P59) -> 29.35 | J70: 89.27
C71: =+SIMULADOR!C60 -> 17 | D71: =+SIMULADOR!D60 -> 2024-10-23 | E71: =+SIMULADOR!E60 -> 30 | F71: =+IFERROR(IF(C71>$Q$54, VLOOKUP(C71, SIMULADOR_PA!A:P,12,0), SIMULADOR!L60), SIMULADOR!L60) -> 2236.62 | G71: =+IFERROR(IF(C71>$Q$54, VLOOKUP(C71, SIMULADOR_PA!A:P,14,0), SIMULADOR!N60), SIMULADOR!N60) -> 6.71 | H71: =+IFERROR(IF(C71>$Q$54, VLOOKUP(C71, SIMULADOR_PA!A:P,15,0), SIMULADOR!O60), SIMULADOR!O60) -> 54.82 | I71: =+IFERROR(IF(C71>$Q$54, VLOOKUP(C71, SIMULADOR_PA!A:P,16,0), SIMULADOR!P60), SIMULADOR!P60) -> 27.74 | J71: 89.27
C72: =+SIMULADOR!C61 -> 18 | D72: =+SIMULADOR!D61 -> 2024-11-23 | E72: =+SIMULADOR!E61 -> 31 | F72: =+IFERROR(IF(C72>$Q$54, VLOOKUP(C72, SIMULADOR_PA!A:P,12,0), SIMULADOR!L61), SIMULADOR!L61) -> 2181.8 | G72: =+IFERROR(IF(C72>$Q$54, VLOOKUP(C72, SIMULADOR_PA!A:P,14,0), SIMULADOR!N61), SIMULADOR!N61) -> 6.55 | H72: =+IFERROR(IF(C72>$Q$54, VLOOKUP(C72, SIMULADOR_PA!A:P,15,0), SIMULADOR!O61), SIMULADOR!O61) -> 54.75 | I72: =+IFERROR(IF(C72>$Q$54, VLOOKUP(C72, SIMULADOR_PA!A:P,16,0), SIMULADOR!P61), SIMULADOR!P61) -> 27.97 | J72: 89.27
C73: =+SIMULADOR!C62 -> 19 | D73: =+SIMULADOR!D62 -> 2024-12-23 | E73: =+SIMULADOR!E62 -> 30 | F73: =+IFERROR(IF(C73>$Q$54, VLOOKUP(C73, SIMULADOR_PA!A:P,12,0), SIMULADOR!L62), SIMULADOR!L62) -> 2127.05 | G73: =+IFERROR(IF(C73>$Q$54, VLOOKUP(C73, SIMULADOR_PA!A:P,14,0), SIMULADOR!N62), SIMULADOR!N62) -> 6.38 | H73: =+IFERROR(IF(C73>$Q$54, VLOOKUP(C73, SIMULADOR_PA!A:P,15,0), SIMULADOR!O62), SIMULADOR!O62) -> 56.51 | I73: =+IFERROR(IF(C73>$Q$54, VLOOKUP(C73, SIMULADOR_PA!A:P,16,0), SIMULADOR!P62), SIMULADOR!P62) -> 26.38 | J73: 89.27
C74: =+SIMULADOR!C63 -> 20 | D74: =+SIMULADOR!D63 -> 2025-01-23 | E74: =+SIMULADOR!E63 -> 31 | F74: =+IFERROR(IF(C74>$Q$54, VLOOKUP(C74, SIMULADOR_PA!A:P,12,0), SIMULADOR!L63), SIMULADOR!L63) -> 2070.54 | G74: =+IFERROR(IF(C74>$Q$54, VLOOKUP(C74, SIMULADOR_PA!A:P,14,0), SIMULADOR!N63), SIMULADOR!N63) -> 6.21 | H74: =+IFERROR(IF(C74>$Q$54, VLOOKUP(C74, SIMULADOR_PA!A:P,15,0), SIMULADOR!O63), SIMULADOR!O63) -> 56.52 | I74: =+IFERROR(IF(C74>$Q$54, VLOOKUP(C74, SIMULADOR_PA!A:P,16,0), SIMULADOR!P63), SIMULADOR!P63) -> 26.54 | J74: 89.27
C75: =+SIMULADOR!C64 -> 21 | D75: =+SIMULADOR!D64 -> 2025-02-23 | E75: =+SIMULADOR!E64 -> 31 | F75: =+IFERROR(IF(C75>$Q$54, VLOOKUP(C75, SIMULADOR_PA!A:P,12,0), SIMULADOR!L64), SIMULADOR!L64) -> 2014.02 | G75: =+IFERROR(IF(C75>$Q$54, VLOOKUP(C75, SIMULADOR_PA!A:P,14,0), SIMULADOR!N64), SIMULADOR!N64) -> 6.04 | H75: =+IFERROR(IF(C75>$Q$54, VLOOKUP(C75, SIMULADOR_PA!A:P,15,0), SIMULADOR!O64), SIMULADOR!O64) -> 57.42 | I75: =+IFERROR(IF(C75>$Q$54, VLOOKUP(C75, SIMULADOR_PA!A:P,16,0), SIMULADOR!P64), SIMULADOR!P64) -> 25.81 | J75: 89.27
C76: =+SIMULADOR!C65 -> 22 | D76: =+SIMULADOR!D65 -> 2025-03-23 | E76: =+SIMULADOR!E65 -> 28 | F76: =+IFERROR(IF(C76>$Q$54, VLOOKUP(C76, SIMULADOR_PA!A:P,12,0), SIMULADOR!L65), SIMULADOR!L65) -> 1956.6 | G76: =+IFERROR(IF(C76>$Q$54, VLOOKUP(C76, SIMULADOR_PA!A:P,14,0), SIMULADOR!N65), SIMULADOR!N65) -> 5.87 | H76: =+IFERROR(IF(C76>$Q$54, VLOOKUP(C76, SIMULADOR_PA!A:P,15,0), SIMULADOR!O65), SIMULADOR!O65) -> 60.76 | I76: =+IFERROR(IF(C76>$Q$54, VLOOKUP(C76, SIMULADOR_PA!A:P,16,0), SIMULADOR!P65), SIMULADOR!P65) -> 22.64 | J76: =SUM(G76:I76) -> 89.27
C77: =+SIMULADOR!C66 -> 23 | D77: =+SIMULADOR!D66 -> 2025-04-23 | E77: =+SIMULADOR!E66 -> 31 | F77: =+IFERROR(IF(C77>$Q$54, VLOOKUP(C77, SIMULADOR_PA!A:P,12,0), SIMULADOR!L66), SIMULADOR!L66) -> 1895.84 | G77: =+IFERROR(IF(C77>$Q$54, VLOOKUP(C77, SIMULADOR_PA!A:P,14,0), SIMULADOR!N66), SIMULADOR!N66) -> 5.69 | H77: =+IFERROR(IF(C77>$Q$54, VLOOKUP(C77, SIMULADOR_PA!A:P,15,0), SIMULADOR!O66), SIMULADOR!O66) -> 59.28 | I77: =+IFERROR(IF(C77>$Q$54, VLOOKUP(C77, SIMULADOR_PA!A:P,16,0), SIMULADOR!P66), SIMULADOR!P66) -> 24.3 | J77: =SUM(G77:I77) -> 89.27
C78: =+SIMULADOR!C67 -> 24 | D78: =+SIMULADOR!D67 -> 2025-05-23 | E78: =+SIMULADOR!E67 -> 30 | F78: =+IFERROR(IF(C78>$Q$54, VLOOKUP(C78, SIMULADOR_PA!A:P,12,0), SIMULADOR!L67), SIMULADOR!L67) -> 1836.56 | G78: =+IFERROR(IF(C78>$Q$54, VLOOKUP(C78, SIMULADOR_PA!A:P,14,0), SIMULADOR!N67), SIMULADOR!N67) -> 5.51 | H78: =+IFERROR(IF(C78>$Q$54, VLOOKUP(C78, SIMULADOR_PA!A:P,15,0), SIMULADOR!O67), SIMULADOR!O67) -> 60.98 | I78: =+IFERROR(IF(C78>$Q$54, VLOOKUP(C78, SIMULADOR_PA!A:P,16,0), SIMULADOR!P67), SIMULADOR!P67) -> 22.78 | J78: 89.27
C79: =+SIMULADOR!C68 -> 25 | D79: =+SIMULADOR!D68 -> 2025-06-23 | E79: =+SIMULADOR!E68 -> 31 | F79: =+IFERROR(IF(C79>$Q$54, VLOOKUP(C79, SIMULADOR_PA!A:P,12,0), SIMULADOR!L68), SIMULADOR!L68) -> 1775.58 | G79: =+IFERROR(IF(C79>$Q$54, VLOOKUP(C79, SIMULADOR_PA!A:P,14,0), SIMULADOR!N68), SIMULADOR!N68) -> 5.33 | H79: =+IFERROR(IF(C79>$Q$54, VLOOKUP(C79, SIMULADOR_PA!A:P,15,0), SIMULADOR!O68), SIMULADOR!O68) -> 61.18 | I79: =+IFERROR(IF(C79>$Q$54, VLOOKUP(C79, SIMULADOR_PA!A:P,16,0), SIMULADOR!P68), SIMULADOR!P68) -> 22.76 | J79: 89.27
C80: =+SIMULADOR!C69 -> 26 | D80: =+SIMULADOR!D69 -> 2025-07-23 | E80: =+SIMULADOR!E69 -> 30 | F80: =+IFERROR(IF(C80>$Q$54, VLOOKUP(C80, SIMULADOR_PA!A:P,12,0), SIMULADOR!L69), SIMULADOR!L69) -> 1714.4 | G80: =+IFERROR(IF(C80>$Q$54, VLOOKUP(C80, SIMULADOR_PA!A:P,14,0), SIMULADOR!N69), SIMULADOR!N69) -> 5.14 | H80: =+IFERROR(IF(C80>$Q$54, VLOOKUP(C80, SIMULADOR_PA!A:P,15,0), SIMULADOR!O69), SIMULADOR!O69) -> 62.87 | I80: =+IFERROR(IF(C80>$Q$54, VLOOKUP(C80, SIMULADOR_PA!A:P,16,0), SIMULADOR!P69), SIMULADOR!P69) -> 21.26 | J80: 89.27
C81: =+SIMULADOR!C70 -> 27 | D81: =+SIMULADOR!D70 -> 2025-08-23 | E81: =+SIMULADOR!E70 -> 31 | F81: =+IFERROR(IF(C81>$Q$54, VLOOKUP(C81, SIMULADOR_PA!A:P,12,0), SIMULADOR!L70), SIMULADOR!L70) -> 1651.53 | G81: =+IFERROR(IF(C81>$Q$54, VLOOKUP(C81, SIMULADOR_PA!A:P,14,0), SIMULADOR!N70), SIMULADOR!N70) -> 4.95 | H81: =+IFERROR(IF(C81>$Q$54, VLOOKUP(C81, SIMULADOR_PA!A:P,15,0), SIMULADOR!O70), SIMULADOR!O70) -> 63.15 | I81: =+IFERROR(IF(C81>$Q$54, VLOOKUP(C81, SIMULADOR_PA!A:P,16,0), SIMULADOR!P70), SIMULADOR!P70) -> 21.17 | J81: 89.27
C82: =+SIMULADOR!C71 -> 28 | D82: =+SIMULADOR!D71 -> 2025-09-23 | E82: =+SIMULADOR!E71 -> 31 | F82: =+IFERROR(IF(C82>$Q$54, VLOOKUP(C82, SIMULADOR_PA!A:P,12,0), SIMULADOR!L71), SIMULADOR!L71) -> 1588.38 | G82: =+IFERROR(IF(C82>$Q$54, VLOOKUP(C82, SIMULADOR_PA!A:P,14,0), SIMULADOR!N71), SIMULADOR!N71) -> 4.77 | H82: =+IFERROR(IF(C82>$Q$54, VLOOKUP(C82, SIMULADOR_PA!A:P,15,0), SIMULADOR!O71), SIMULADOR!O71) -> 64.14 | I82: =+IFERROR(IF(C82>$Q$54, VLOOKUP(C82, SIMULADOR_PA!A:P,16,0), SIMULADOR!P71), SIMULADOR!P71) -> 20.36 | J82: 89.27
C83: =+SIMULADOR!C72 -> 29 | D83: =+SIMULADOR!D72 -> 2025-10-23 | E83: =+SIMULADOR!E72 -> 30 | F83: =+IFERROR(IF(C83>$Q$54, VLOOKUP(C83, SIMULADOR_PA!A:P,12,0), SIMULADOR!L72), SIMULADOR!L72) -> 1524.24 | G83: =+IFERROR(IF(C83>$Q$54, VLOOKUP(C83, SIMULADOR_PA!A:P,14,0), SIMULADOR!N72), SIMULADOR!N72) -> 4.57 | H83: =+IFERROR(IF(C83>$Q$54, VLOOKUP(C83, SIMULADOR_PA!A:P,15,0), SIMULADOR!O72), SIMULADOR!O72) -> 65.8 | I83: =+IFERROR(IF(C83>$Q$54, VLOOKUP(C83, SIMULADOR_PA!A:P,16,0), SIMULADOR!P72), SIMULADOR!P72) -> 18.9 | J83: 89.27
C84: =+SIMULADOR!C73 -> 30 | D84: =+SIMULADOR!D73 -> 2025-11-23 | E84: =+SIMULADOR!E73 -> 31 | F84: =+IFERROR(IF(C84>$Q$54, VLOOKUP(C84, SIMULADOR_PA!A:P,12,0), SIMULADOR!L73), SIMULADOR!L73) -> 1458.44 | G84: =+IFERROR(IF(C84>$Q$54, VLOOKUP(C84, SIMULADOR_PA!A:P,14,0), SIMULADOR!N73), SIMULADOR!N73) -> 4.38 | H84: =+IFERROR(IF(C84>$Q$54, VLOOKUP(C84, SIMULADOR_PA!A:P,15,0), SIMULADOR!O73), SIMULADOR!O73) -> 66.2 | I84: =+IFERROR(IF(C84>$Q$54, VLOOKUP(C84, SIMULADOR_PA!A:P,16,0), SIMULADOR!P73), SIMULADOR!P73) -> 18.69 | J84: 89.27
C85: =+SIMULADOR!C74 -> 31 | D85: =+SIMULADOR!D74 -> 2025-12-23 | E85: =+SIMULADOR!E74 -> 30 | F85: =+IFERROR(IF(C85>$Q$54, VLOOKUP(C85, SIMULADOR_PA!A:P,12,0), SIMULADOR!L74), SIMULADOR!L74) -> 1392.24 | G85: =+IFERROR(IF(C85>$Q$54, VLOOKUP(C85, SIMULADOR_PA!A:P,14,0), SIMULADOR!N74), SIMULADOR!N74) -> 4.18 | H85: =+IFERROR(IF(C85>$Q$54, VLOOKUP(C85, SIMULADOR_PA!A:P,15,0), SIMULADOR!O74), SIMULADOR!O74) -> 67.82 | I85: =+IFERROR(IF(C85>$Q$54, VLOOKUP(C85, SIMULADOR_PA!A:P,16,0), SIMULADOR!P74), SIMULADOR!P74) -> 17.27 | J85: 89.27
C86: =+SIMULADOR!C75 -> 32 | D86: =+SIMULADOR!D75 -> 2026-01-23 | E86: =+SIMULADOR!E75 -> 31 | F86: =+IFERROR(IF(C86>$Q$54, VLOOKUP(C86, SIMULADOR_PA!A:P,12,0), SIMULADOR!L75), SIMULADOR!L75) -> 1324.42 | G86: =+IFERROR(IF(C86>$Q$54, VLOOKUP(C86, SIMULADOR_PA!A:P,14,0), SIMULADOR!N75), SIMULADOR!N75) -> 3.97 | H86: =+IFERROR(IF(C86>$Q$54, VLOOKUP(C86, SIMULADOR_PA!A:P,15,0), SIMULADOR!O75), SIMULADOR!O75) -> 68.32 | I86: =+IFERROR(IF(C86>$Q$54, VLOOKUP(C86, SIMULADOR_PA!A:P,16,0), SIMULADOR!P75), SIMULADOR!P75) -> 16.98 | J86: 89.27
C87: =+SIMULADOR!C76 -> 33 | D87: =+SIMULADOR!D76 -> 2026-02-23 | E87: =+SIMULADOR!E76 -> 31 | F87: =+IFERROR(IF(C87>$Q$54, VLOOKUP(C87, SIMULADOR_PA!A:P,12,0), SIMULADOR!L76), SIMULADOR!L76) -> 1256.1 | G87: =+IFERROR(IF(C87>$Q$54, VLOOKUP(C87, SIMULADOR_PA!A:P,14,0), SIMULADOR!N76), SIMULADOR!N76) -> 3.77 | H87: =+IFERROR(IF(C87>$Q$54, VLOOKUP(C87, SIMULADOR_PA!A:P,15,0), SIMULADOR!O76), SIMULADOR!O76) -> 69.4 | I87: =+IFERROR(IF(C87>$Q$54, VLOOKUP(C87, SIMULADOR_PA!A:P,16,0), SIMULADOR!P76), SIMULADOR!P76) -> 16.1 | J87: 89.27
C88: =+SIMULADOR!C77 -> 34 | D88: =+SIMULADOR!D77 -> 2026-03-23 | E88: =+SIMULADOR!E77 -> 28 | F88: =+IFERROR(IF(C88>$Q$54, VLOOKUP(C88, SIMULADOR_PA!A:P,12,0), SIMULADOR!L77), SIMULADOR!L77) -> 1186.7 | G88: =+IFERROR(IF(C88>$Q$54, VLOOKUP(C88, SIMULADOR_PA!A:P,14,0), SIMULADOR!N77), SIMULADOR!N77) -> 3.56 | H88: =+IFERROR(IF(C88>$Q$54, VLOOKUP(C88, SIMULADOR_PA!A:P,15,0), SIMULADOR!O77), SIMULADOR!O77) -> 71.98 | I88: =+IFERROR(IF(C88>$Q$54, VLOOKUP(C88, SIMULADOR_PA!A:P,16,0), SIMULADOR!P77), SIMULADOR!P77) -> 13.73 | J88: =SUM(G88:I88) -> 89.27
C89: =+SIMULADOR!C78 -> 35 | D89: =+SIMULADOR!D78 -> 2026-04-23 | E89: =+SIMULADOR!E78 -> 31 | F89: =+IFERROR(IF(C89>$Q$54, VLOOKUP(C89, SIMULADOR_PA!A:P,12,0), SIMULADOR!L78), SIMULADOR!L78) -> 1114.72 | G89: =+IFERROR(IF(C89>$Q$54, VLOOKUP(C89, SIMULADOR_PA!A:P,14,0), SIMULADOR!N78), SIMULADOR!N78) -> 3.34 | H89: =+IFERROR(IF(C89>$Q$54, VLOOKUP(C89, SIMULADOR_PA!A:P,15,0), SIMULADOR!O78), SIMULADOR!O78) -> 71.64 | I89: =+IFERROR(IF(C89>$Q$54, VLOOKUP(C89, SIMULADOR_PA!A:P,16,0), SIMULADOR!P78), SIMULADOR!P78) -> 14.29 | J89: =SUM(G89:I89) -> 89.27
C90: =+SIMULADOR!C79 -> 36 | D90: =+SIMULADOR!D79 -> 2026-05-23 | E90: =+SIMULADOR!E79 -> 30 | F90: =+IFERROR(IF(C90>$Q$54, VLOOKUP(C90, SIMULADOR_PA!A:P,12,0), SIMULADOR!L79), SIMULADOR!L79) -> 1043.08 | G90: =+IFERROR(IF(C90>$Q$54, VLOOKUP(C90, SIMULADOR_PA!A:P,14,0), SIMULADOR!N79), SIMULADOR!N79) -> 3.13 | H90: =+IFERROR(IF(C90>$Q$54, VLOOKUP(C90, SIMULADOR_PA!A:P,15,0), SIMULADOR!O79), SIMULADOR!O79) -> 73.2 | I90: =+IFERROR(IF(C90>$Q$54, VLOOKUP(C90, SIMULADOR_PA!A:P,16,0), SIMULADOR!P79), SIMULADOR!P79) -> 12.94 | J90: 89.27
C91: =+SIMULADOR!C80 -> 37 | D91: =+SIMULADOR!D80 -> 2026-06-23 | E91: =+SIMULADOR!E80 -> 31 | F91: =+IFERROR(IF(C91>$Q$54, VLOOKUP(C91, SIMULADOR_PA!A:P,12,0), SIMULADOR!L80), SIMULADOR!L80) -> 969.88 | G91: =+IFERROR(IF(C91>$Q$54, VLOOKUP(C91, SIMULADOR_PA!A:P,14,0), SIMULADOR!N80), SIMULADOR!N80) -> 2.91 | H91: =+IFERROR(IF(C91>$Q$54, VLOOKUP(C91, SIMULADOR_PA!A:P,15,0), SIMULADOR!O80), SIMULADOR!O80) -> 73.93 | I91: =+IFERROR(IF(C91>$Q$54, VLOOKUP(C91, SIMULADOR_PA!A:P,16,0), SIMULADOR!P80), SIMULADOR!P80) -> 12.43 | J91: 89.27
C92: =+SIMULADOR!C81 -> 38 | D92: =+SIMULADOR!D81 -> 2026-07-23 | E92: =+SIMULADOR!E81 -> 30 | F92: =+IFERROR(IF(C92>$Q$54, VLOOKUP(C92, SIMULADOR_PA!A:P,12,0), SIMULADOR!L81), SIMULADOR!L81) -> 895.95 | G92: =+IFERROR(IF(C92>$Q$54, VLOOKUP(C92, SIMULADOR_PA!A:P,14,0), SIMULADOR!N81), SIMULADOR!N81) -> 2.69 | H92: =+IFERROR(IF(C92>$Q$54, VLOOKUP(C92, SIMULADOR_PA!A:P,15,0), SIMULADOR!O81), SIMULADOR!O81) -> 75.47 | I92: =+IFERROR(IF(C92>$Q$54, VLOOKUP(C92, SIMULADOR_PA!A:P,16,0), SIMULADOR!P81), SIMULADOR!P81) -> 11.11 | J92: 89.27
C93: =+SIMULADOR!C82 -> 39 | D93: =+SIMULADOR!D82 -> 2026-08-23 | E93: =+SIMULADOR!E82 -> 31 | F93: =+IFERROR(IF(C93>$Q$54, VLOOKUP(C93, SIMULADOR_PA!A:P,12,0), SIMULADOR!L82), SIMULADOR!L82) -> 820.48 | G93: =+IFERROR(IF(C93>$Q$54, VLOOKUP(C93, SIMULADOR_PA!A:P,14,0), SIMULADOR!N82), SIMULADOR!N82) -> 2.46 | H93: =+IFERROR(IF(C93>$Q$54, VLOOKUP(C93, SIMULADOR_PA!A:P,15,0), SIMULADOR!O82), SIMULADOR!O82) -> 76.29 | I93: =+IFERROR(IF(C93>$Q$54, VLOOKUP(C93, SIMULADOR_PA!A:P,16,0), SIMULADOR!P82), SIMULADOR!P82) -> 10.52 | J93: 89.27
C94: =+SIMULADOR!C83 -> 40 | D94: =+SIMULADOR!D83 -> 2026-09-23 | E94: =+SIMULADOR!E83 -> 31 | F94: =+IFERROR(IF(C94>$Q$54, VLOOKUP(C94, SIMULADOR_PA!A:P,12,0), SIMULADOR!L83), SIMULADOR!L83) -> 744.19 | G94: =+IFERROR(IF(C94>$Q$54, VLOOKUP(C94, SIMULADOR_PA!A:P,14,0), SIMULADOR!N83), SIMULADOR!N83) -> 2.23 | H94: =+IFERROR(IF(C94>$Q$54, VLOOKUP(C94, SIMULADOR_PA!A:P,15,0), SIMULADOR!O83), SIMULADOR!O83) -> 77.5 | I94: =+IFERROR(IF(C94>$Q$54, VLOOKUP(C94, SIMULADOR_PA!A:P,16,0), SIMULADOR!P83), SIMULADOR!P83) -> 9.54 | J94: 89.27
C95: =+SIMULADOR!C84 -> 41 | D95: =+SIMULADOR!D84 -> 2026-10-23 | E95: =+SIMULADOR!E84 -> 30 | F95: =+IFERROR(IF(C95>$Q$54, VLOOKUP(C95, SIMULADOR_PA!A:P,12,0), SIMULADOR!L84), SIMULADOR!L84) -> 666.69 | G95: =+IFERROR(IF(C95>$Q$54, VLOOKUP(C95, SIMULADOR_PA!A:P,14,0), SIMULADOR!N84), SIMULADOR!N84) -> 2 | H95: =+IFERROR(IF(C95>$Q$54, VLOOKUP(C95, SIMULADOR_PA!A:P,15,0), SIMULADOR!O84), SIMULADOR!O84) -> 79 | I95: =+IFERROR(IF(C95>$Q$54, VLOOKUP(C95, SIMULADOR_PA!A:P,16,0), SIMULADOR!P84), SIMULADOR!P84) -> 8.27 | J95: 89.27
C96: =+SIMULADOR!C85 -> 42 | D96: =+SIMULADOR!D85 -> 2026-11-23 | E96: =+SIMULADOR!E85 -> 31 | F96: =+IFERROR(IF(C96>$Q$54, VLOOKUP(C96, SIMULADOR_PA!A:P,12,0), SIMULADOR!L85), SIMULADOR!L85) -> 587.69 | G96: =+IFERROR(IF(C96>$Q$54, VLOOKUP(C96, SIMULADOR_PA!A:P,14,0), SIMULADOR!N85), SIMULADOR!N85) -> 1.76 | H96: =+IFERROR(IF(C96>$Q$54, VLOOKUP(C96, SIMULADOR_PA!A:P,15,0), SIMULADOR!O85), SIMULADOR!O85) -> 79.98 | I96: =+IFERROR(IF(C96>$Q$54, VLOOKUP(C96, SIMULADOR_PA!A:P,16,0), SIMULADOR!P85), SIMULADOR!P85) -> 7.53 | J96: 89.27
C97: =+SIMULADOR!C86 -> 43 | D97: =+SIMULADOR!D86 -> 2026-12-23 | E97: =+SIMULADOR!E86 -> 30 | F97: =+IFERROR(IF(C97>$Q$54, VLOOKUP(C97, SIMULADOR_PA!A:P,12,0), SIMULADOR!L86), SIMULADOR!L86) -> 507.71 | G97: =+IFERROR(IF(C97>$Q$54, VLOOKUP(C97, SIMULADOR_PA!A:P,14,0), SIMULADOR!N86), SIMULADOR!N86) -> 1.52 | H97: =+IFERROR(IF(C97>$Q$54, VLOOKUP(C97, SIMULADOR_PA!A:P,15,0), SIMULADOR!O86), SIMULADOR!O86) -> 81.45 | I97: =+IFERROR(IF(C97>$Q$54, VLOOKUP(C97, SIMULADOR_PA!A:P,16,0), SIMULADOR!P86), SIMULADOR!P86) -> 6.3 | J97: 89.27
C98: =+SIMULADOR!C87 -> 44 | D98: =+SIMULADOR!D87 -> 2027-01-23 | E98: =+SIMULADOR!E87 -> 31 | F98: =+IFERROR(IF(C98>$Q$54, VLOOKUP(C98, SIMULADOR_PA!A:P,12,0), SIMULADOR!L87), SIMULADOR!L87) -> 426.26 | G98: =+IFERROR(IF(C98>$Q$54, VLOOKUP(C98, SIMULADOR_PA!A:P,14,0), SIMULADOR!N87), SIMULADOR!N87) -> 1.28 | H98: =+IFERROR(IF(C98>$Q$54, VLOOKUP(C98, SIMULADOR_PA!A:P,15,0), SIMULADOR!O87), SIMULADOR!O87) -> 82.53 | I98: =+IFERROR(IF(C98>$Q$54, VLOOKUP(C98, SIMULADOR_PA!A:P,16,0), SIMULADOR!P87), SIMULADOR!P87) -> 5.46 | J98: 89.27
C99: =+SIMULADOR!C88 -> 45 | D99: =+SIMULADOR!D88 -> 2027-02-23 | E99: =+SIMULADOR!E88 -> 31 | F99: =+IFERROR(IF(C99>$Q$54, VLOOKUP(C99, SIMULADOR_PA!A:P,12,0), SIMULADOR!L88), SIMULADOR!L88) -> 343.73 | G99: =+IFERROR(IF(C99>$Q$54, VLOOKUP(C99, SIMULADOR_PA!A:P,14,0), SIMULADOR!N88), SIMULADOR!N88) -> 1.03 | H99: =+IFERROR(IF(C99>$Q$54, VLOOKUP(C99, SIMULADOR_PA!A:P,15,0), SIMULADOR!O88), SIMULADOR!O88) -> 83.83 | I99: =+IFERROR(IF(C99>$Q$54, VLOOKUP(C99, SIMULADOR_PA!A:P,16,0), SIMULADOR!P88), SIMULADOR!P88) -> 4.41 | J99: 89.27
C100: =+SIMULADOR!C89 -> 46 | D100: =+SIMULADOR!D89 -> 2027-03-23 | E100: =+SIMULADOR!E89 -> 28 | F100: =+IFERROR(IF(C100>$Q$54, VLOOKUP(C100, SIMULADOR_PA!A:P,12,0), SIMULADOR!L89), SIMULADOR!L89) -> 259.9 | G100: =+IFERROR(IF(C100>$Q$54, VLOOKUP(C100, SIMULADOR_PA!A:P,14,0), SIMULADOR!N89), SIMULADOR!N89) -> 0.78 | H100: =+IFERROR(IF(C100>$Q$54, VLOOKUP(C100, SIMULADOR_PA!A:P,15,0), SIMULADOR!O89), SIMULADOR!O89) -> 85.48 | I100: =+IFERROR(IF(C100>$Q$54, VLOOKUP(C100, SIMULADOR_PA!A:P,16,0), SIMULADOR!P89), SIMULADOR!P89) -> 3.01 | J100: 89.27
C101: =+SIMULADOR!C90 -> 47 | D101: =+SIMULADOR!D90 -> 2027-04-23 | E101: =+SIMULADOR!E90 -> 31 | F101: =+IFERROR(IF(C101>$Q$54, VLOOKUP(C101, SIMULADOR_PA!A:P,12,0), SIMULADOR!L90), SIMULADOR!L90) -> 174.42 | G101: =+IFERROR(IF(C101>$Q$54, VLOOKUP(C101, SIMULADOR_PA!A:P,14,0), SIMULADOR!N90), SIMULADOR!N90) -> 0.52 | H101: =+IFERROR(IF(C101>$Q$54, VLOOKUP(C101, SIMULADOR_PA!A:P,15,0), SIMULADOR!O90), SIMULADOR!O90) -> 86.51 | I101: =+IFERROR(IF(C101>$Q$54, VLOOKUP(C101, SIMULADOR_PA!A:P,16,0), SIMULADOR!P90), SIMULADOR!P90) -> 2.24 | J101: =SUM(G101:I101) -> 89.27
C102: =+SIMULADOR!C91 -> 48 | D102: =+SIMULADOR!D91 -> 2027-05-23 | E102: =+SIMULADOR!E91 -> 30 | F102: =+IFERROR(IF(C102>$Q$54, VLOOKUP(C102, SIMULADOR_PA!A:P,12,0), SIMULADOR!L91), SIMULADOR!L91) -> 87.91 | G102: =+IFERROR(IF(C102>$Q$54, VLOOKUP(C102, SIMULADOR_PA!A:P,14,0), SIMULADOR!N91), SIMULADOR!N91) -> 0.26 | H102: =+IFERROR(IF(C102>$Q$54, VLOOKUP(C102, SIMULADOR_PA!A:P,15,0), SIMULADOR!O91), SIMULADOR!O91) -> 87.91 | I102: =+IFERROR(IF(C102>$Q$54, VLOOKUP(C102, SIMULADOR_PA!A:P,16,0), SIMULADOR!P91), SIMULADOR!P91) -> 1.09 | J102: =SUM(G102:I102) -> 89.26
C103: =+SIMULADOR!C92 -> 49 | D103: =+SIMULADOR!D92 -> 2027-06-23 | E103: =+SIMULADOR!E92 -> 31 | F103: =+IFERROR(IF(C103>$Q$54, VLOOKUP(C103, SIMULADOR_PA!A:P,12,0), SIMULADOR!L92), SIMULADOR!L92) -> 0 | G103: =+IFERROR(IF(C103>$Q$54, VLOOKUP(C103, SIMULADOR_PA!A:P,14,0), SIMULADOR!N92), SIMULADOR!N92) -> 0 | H103: =+IFERROR(IF(C103>$Q$54, VLOOKUP(C103, SIMULADOR_PA!A:P,15,0), SIMULADOR!O92), SIMULADOR!O92) ->  | I103: =+IFERROR(IF(C103>$Q$54, VLOOKUP(C103, SIMULADOR_PA!A:P,16,0), SIMULADOR!P92), SIMULADOR!P92) -> 0 | J103: 0
C104: =+SIMULADOR!C93 -> 50 | D104: =+SIMULADOR!D93 -> 2027-07-23 | E104: =+SIMULADOR!E93 -> 30 | F104: =+IFERROR(IF(C104>$Q$54, VLOOKUP(C104, SIMULADOR_PA!A:P,12,0), SIMULADOR!L93), SIMULADOR!L93) -> 0 | G104: =+IFERROR(IF(C104>$Q$54, VLOOKUP(C104, SIMULADOR_PA!A:P,14,0), SIMULADOR!N93), SIMULADOR!N93) -> 0 | H104: =+IFERROR(IF(C104>$Q$54, VLOOKUP(C104, SIMULADOR_PA!A:P,15,0), SIMULADOR!O93), SIMULADOR!O93) ->  | I104: =+IFERROR(IF(C104>$Q$54, VLOOKUP(C104, SIMULADOR_PA!A:P,16,0), SIMULADOR!P93), SIMULADOR!P93) -> 0 | J104: 0
C105: =+SIMULADOR!C94 -> 51 | D105: =+SIMULADOR!D94 -> 2027-08-23 | E105: =+SIMULADOR!E94 -> 31 | F105: =+IFERROR(IF(C105>$Q$54, VLOOKUP(C105, SIMULADOR_PA!A:P,12,0), SIMULADOR!L94), SIMULADOR!L94) -> 0 | G105: =+IFERROR(IF(C105>$Q$54, VLOOKUP(C105, SIMULADOR_PA!A:P,14,0), SIMULADOR!N94), SIMULADOR!N94) -> 0 | H105: =+IFERROR(IF(C105>$Q$54, VLOOKUP(C105, SIMULADOR_PA!A:P,15,0), SIMULADOR!O94), SIMULADOR!O94) ->  | I105: =+IFERROR(IF(C105>$Q$54, VLOOKUP(C105, SIMULADOR_PA!A:P,16,0), SIMULADOR!P94), SIMULADOR!P94) -> 0 | J105: 0
C106: =+SIMULADOR!C95 -> 52 | D106: =+SIMULADOR!D95 -> 2027-09-23 | E106: =+SIMULADOR!E95 -> 31 | F106: =+IFERROR(IF(C106>$Q$54, VLOOKUP(C106, SIMULADOR_PA!A:P,12,0), SIMULADOR!L95), SIMULADOR!L95) -> 0 | G106: =+IFERROR(IF(C106>$Q$54, VLOOKUP(C106, SIMULADOR_PA!A:P,14,0), SIMULADOR!N95), SIMULADOR!N95) -> 0 | H106: =+IFERROR(IF(C106>$Q$54, VLOOKUP(C106, SIMULADOR_PA!A:P,15,0), SIMULADOR!O95), SIMULADOR!O95) ->  | I106: =+IFERROR(IF(C106>$Q$54, VLOOKUP(C106, SIMULADOR_PA!A:P,16,0), SIMULADOR!P95), SIMULADOR!P95) -> 0 | J106: 0
C107: =+SIMULADOR!C96 -> 53 | D107: =+SIMULADOR!D96 -> 2027-10-23 | E107: =+SIMULADOR!E96 -> 30 | F107: =+IFERROR(IF(C107>$Q$54, VLOOKUP(C107, SIMULADOR_PA!A:P,12,0), SIMULADOR!L96), SIMULADOR!L96) -> 0 | G107: =+IFERROR(IF(C107>$Q$54, VLOOKUP(C107, SIMULADOR_PA!A:P,14,0), SIMULADOR!N96), SIMULADOR!N96) -> 0 | H107: =+IFERROR(IF(C107>$Q$54, VLOOKUP(C107, SIMULADOR_PA!A:P,15,0), SIMULADOR!O96), SIMULADOR!O96) ->  | I107: =+IFERROR(IF(C107>$Q$54, VLOOKUP(C107, SIMULADOR_PA!A:P,16,0), SIMULADOR!P96), SIMULADOR!P96) -> 0 | J107: 0
C108: =+SIMULADOR!C97 -> 54 | D108: =+SIMULADOR!D97 -> 2027-11-23 | E108: =+SIMULADOR!E97 -> 31 | F108: =+IFERROR(IF(C108>$Q$54, VLOOKUP(C108, SIMULADOR_PA!A:P,12,0), SIMULADOR!L97), SIMULADOR!L97) -> 0 | G108: =+IFERROR(IF(C108>$Q$54, VLOOKUP(C108, SIMULADOR_PA!A:P,14,0), SIMULADOR!N97), SIMULADOR!N97) -> 0 | H108: =+IFERROR(IF(C108>$Q$54, VLOOKUP(C108, SIMULADOR_PA!A:P,15,0), SIMULADOR!O97), SIMULADOR!O97) ->  | I108: =+IFERROR(IF(C108>$Q$54, VLOOKUP(C108, SIMULADOR_PA!A:P,16,0), SIMULADOR!P97), SIMULADOR!P97) -> 0 | J108: 0
C109: =+SIMULADOR!C98 -> 55 | D109: =+SIMULADOR!D98 -> 2027-12-23 | E109: =+SIMULADOR!E98 -> 30 | F109: =+IFERROR(IF(C109>$Q$54, VLOOKUP(C109, SIMULADOR_PA!A:P,12,0), SIMULADOR!L98), SIMULADOR!L98) -> 0 | G109: =+IFERROR(IF(C109>$Q$54, VLOOKUP(C109, SIMULADOR_PA!A:P,14,0), SIMULADOR!N98), SIMULADOR!N98) -> 0 | H109: =+IFERROR(IF(C109>$Q$54, VLOOKUP(C109, SIMULADOR_PA!A:P,15,0), SIMULADOR!O98), SIMULADOR!O98) ->  | I109: =+IFERROR(IF(C109>$Q$54, VLOOKUP(C109, SIMULADOR_PA!A:P,16,0), SIMULADOR!P98), SIMULADOR!P98) -> 0 | J109: 0
C110: =+SIMULADOR!C99 -> 56 | D110: =+SIMULADOR!D99 -> 2028-01-23 | E110: =+SIMULADOR!E99 -> 31 | F110: =+IFERROR(IF(C110>$Q$54, VLOOKUP(C110, SIMULADOR_PA!A:P,12,0), SIMULADOR!L99), SIMULADOR!L99) -> 0 | G110: =+IFERROR(IF(C110>$Q$54, VLOOKUP(C110, SIMULADOR_PA!A:P,14,0), SIMULADOR!N99), SIMULADOR!N99) -> 0 | H110: =+IFERROR(IF(C110>$Q$54, VLOOKUP(C110, SIMULADOR_PA!A:P,15,0), SIMULADOR!O99), SIMULADOR!O99) ->  | I110: =+IFERROR(IF(C110>$Q$54, VLOOKUP(C110, SIMULADOR_PA!A:P,16,0), SIMULADOR!P99), SIMULADOR!P99) -> 0 | J110: 0
C111: =+SIMULADOR!C100 -> 57 | D111: =+SIMULADOR!D100 -> 2028-02-23 | E111: =+SIMULADOR!E100 -> 31 | F111: =+IFERROR(IF(C111>$Q$54, VLOOKUP(C111, SIMULADOR_PA!A:P,12,0), SIMULADOR!L100), SIMULADOR!L100) -> 0 | G111: =+IFERROR(IF(C111>$Q$54, VLOOKUP(C111, SIMULADOR_PA!A:P,14,0), SIMULADOR!N100), SIMULADOR!N100) -> 0 | H111: =+IFERROR(IF(C111>$Q$54, VLOOKUP(C111, SIMULADOR_PA!A:P,15,0), SIMULADOR!O100), SIMULADOR!O100) ->  | I111: =+IFERROR(IF(C111>$Q$54, VLOOKUP(C111, SIMULADOR_PA!A:P,16,0), SIMULADOR!P100), SIMULADOR!P100) -> 0 | J111: 0
C112: =+SIMULADOR!C101 -> 58 | D112: =+SIMULADOR!D101 -> 2028-03-23 | E112: =+SIMULADOR!E101 -> 29 | F112: =+IFERROR(IF(C112>$Q$54, VLOOKUP(C112, SIMULADOR_PA!A:P,12,0), SIMULADOR!L101), SIMULADOR!L101) -> 0 | G112: =+IFERROR(IF(C112>$Q$54, VLOOKUP(C112, SIMULADOR_PA!A:P,14,0), SIMULADOR!N101), SIMULADOR!N101) -> 0 | H112: =+IFERROR(IF(C112>$Q$54, VLOOKUP(C112, SIMULADOR_PA!A:P,15,0), SIMULADOR!O101), SIMULADOR!O101) ->  | I112: =+IFERROR(IF(C112>$Q$54, VLOOKUP(C112, SIMULADOR_PA!A:P,16,0), SIMULADOR!P101), SIMULADOR!P101) -> 0 | J112: =SUM(G112:I112) -> 0
C113: =+SIMULADOR!C102 -> 59 | D113: =+SIMULADOR!D102 -> 2028-04-23 | E113: =+SIMULADOR!E102 -> 31 | F113: =+IFERROR(IF(C113>$Q$54, VLOOKUP(C113, SIMULADOR_PA!A:P,12,0), SIMULADOR!L102), SIMULADOR!L102) -> 0 | G113: =+IFERROR(IF(C113>$Q$54, VLOOKUP(C113, SIMULADOR_PA!A:P,14,0), SIMULADOR!N102), SIMULADOR!N102) -> 0 | H113: =+IFERROR(IF(C113>$Q$54, VLOOKUP(C113, SIMULADOR_PA!A:P,15,0), SIMULADOR!O102), SIMULADOR!O102) ->  | I113: =+IFERROR(IF(C113>$Q$54, VLOOKUP(C113, SIMULADOR_PA!A:P,16,0), SIMULADOR!P102), SIMULADOR!P102) -> 0 | J113: =SUM(G113:I113) -> 0
C114: =+SIMULADOR!C103 -> 60 | D114: =+SIMULADOR!D103 -> 2028-05-23 | E114: =+SIMULADOR!E103 -> 30 | F114: =+IFERROR(IF(C114>$Q$54, VLOOKUP(C114, SIMULADOR_PA!A:P,12,0), SIMULADOR!L103), SIMULADOR!L103) -> 0 | G114: =+IFERROR(IF(C114>$Q$54, VLOOKUP(C114, SIMULADOR_PA!A:P,14,0), SIMULADOR!N103), SIMULADOR!N103) -> 0 | H114: =+IFERROR(IF(C114>$Q$54, VLOOKUP(C114, SIMULADOR_PA!A:P,15,0), SIMULADOR!O103), SIMULADOR!O103) ->  | I114: =+IFERROR(IF(C114>$Q$54, VLOOKUP(C114, SIMULADOR_PA!A:P,16,0), SIMULADOR!P103), SIMULADOR!P103) -> 0 | J114: =SUM(G114:I114) -> 0
C115: =+SIMULADOR!C104 -> 61 | D115: =+SIMULADOR!D104 -> 2028-06-23 | E115: =+SIMULADOR!E104 -> 31 | F115: =+IFERROR(IF(C115>$Q$54, VLOOKUP(C115, SIMULADOR_PA!A:P,12,0), SIMULADOR!L104), SIMULADOR!L104) -> 0 | G115: =+IFERROR(IF(C115>$Q$54, VLOOKUP(C115, SIMULADOR_PA!A:P,14,0), SIMULADOR!N104), SIMULADOR!N104) -> 0 | H115: =+IFERROR(IF(C115>$Q$54, VLOOKUP(C115, SIMULADOR_PA!A:P,15,0), SIMULADOR!O104), SIMULADOR!O104) ->  | I115: =+IFERROR(IF(C115>$Q$54, VLOOKUP(C115, SIMULADOR_PA!A:P,16,0), SIMULADOR!P104), SIMULADOR!P104) -> 0 | J115: =SUM(G115:I115) -> 0

Sheet Leyenda (hidden)
B2: PRÉSTAMO YA
B3: PRÉSTAMO YA SENIOR
B4: COMPRA DE DEUDA
B5: SÚPER EFECTIVO
B6: REPROGRAMACIÓN SEF | O6: Plazo | P6: Factor | R6: Plazo | S6: Factor | U6: Plazo | V6: Factor
B7: REPROGRAMACIÓN SEF SENIOR | O7: 12 | P7: 1 | R7: 12 | S7: 1 | U7: 24 | V7: 2
B8: PRÉSTAMO COLABORADOR | O8: 13 | P8: 1.02 | R8: 13 | S8: 1.0834 | U8: =+U7+1 -> 25 | V8: 2
B9: SIN RESCATE | O9: 14 | P9: 1.05 | R9: 14 | S9: 1.1666 | U9: =+U8+1 -> 26 | V9: 2
B10: CON RESCATE | O10: 15 | P10: 1.08 | R10: 15 | S10: 1.25 | U10: 27 | V10: 2
O11: 16 | P11: 1.13 | R11: 16 | S11: 1.3334 | U11: 28 | V11: 2
O12: 17 | P12: 1.19 | R12: 17 | S12: 1.4166 | U12: 29 | V12: 2
B13: 0 | O13: 18 | P13: 1.24 | R13: 18 | S13: 1.5 | U13: 30 | V13: 2
B14: 1 | O14: 19 | P14: 1.3 | R14: 19 | S14: 1.5834 | U14: 31 | V14: 2
B15: 2 | O15: 20 | P15: 1.34 | R15: 20 | S15: 1.6666 | U15: 32 | V15: 2
O16: 21 | P16: 1.4 | R16: 21 | S16: 1.75 | U16: 33 | V16: 2
O17: 22 | P17: 1.44 | R17: 22 | S17: 1.8334 | U17: 34 | V17: 2
O18: 23 | P18: 1.49 | R18: 23 | S18: 1.9166 | U18: 35 | V18: 2
O19: 24 | P19: 1.53 | R19: 24 | S19: 2 | U19: 36 | V19: 2
O20: 25 | P20: 1.58 | U20: 37 | V20: =V19 -> 2
O21: 26 | P21: 1.62 | U21: 38 | V21: =V20 -> 2
O22: 27 | P22: 1.66 | U22: 39 | V22: 2
O23: 28 | P23: 1.7 | U23: 40 | V23: 2
O24: 29 | P24: 1.75 | U24: 41 | V24: 2
O25: 30 | P25: 1.78 | U25: 42 | V25: 2
O26: 31 | P26: 1.8 | U26: 43 | V26: 2
O27: 32 | P27: 1.85 | U27: 44 | V27: 2
O28: 33 | P28: 1.88 | U28: 45 | V28: 2
O29: 34 | P29: 1.9 | U29: 46 | V29: 2
O30: 35 | P30: 1.95 | U30: 47 | V30: 2
O31: 36 | P31: 2 | U31: 48 | V31: 2
O32: 37 | P32: 2 | U32: 49 | V32: 2
O33: 38 | P33: 2 | U33: 50 | V33: 2
O34: 39 | P34: 2 | U34: 51 | V34: 2
O35: 40 | P35: 2 | U35: 52 | V35: 2
O36: 41 | P36: 2 | U36: 53 | V36: 2
O37: 42 | P37: 2 | U37: 54 | V37: 2
O38: 43 | P38: 2 | U38: 55 | V38: 2
O39: 44 | P39: 2 | U39: 56 | V39: 2
O40: 45 | P40: 2 | U40: 57 | V40: 2
O41: 46 | P41: 2 | U41: 58 | V41: 2
O42: 47 | P42: 2 | U42: 59 | V42: 2
O43: 48 | P43: 2 | U43: 60 | V43: 2
O44: 49 | P44: 2
O45: 50 | P45: 2
O46: 51 | P46: 2
O47: 52 | P47: 2
O48: 53 | P48: 2
O49: 54 | P49: 2
O50: 55 | P50: 2
O51: 56 | P51: 2
O52: 57 | P52: 2
O53: 58 | P53: 2
O54: 59 | P54: 2
O55: 60 | P55: 2

Sheet SIMULADOR (hidden)
B1: Banco Ripley
B5: Simulador de Cuotas
B9: SIMULADOR PARA CREDITOS REFINANCIADO
C11: PRODUCTO | D11: Credito por Refinanciado
C13: MONTO | D13: ='SIMULADOR CUOTAS'!E30 -> 3000
K14: Al cambiar plazo, fecha de desembolso o monto, clic en el botón
C15: FECHA DESEMBOLSO | D15: ='SIMULADOR CUOTAS'!E22 -> 2023-05-23
C17: Plazo | D17: ='SIMULADOR CUOTAS'!E26 -> 48
C18: Días de Pago | D18: ='SIMULADOR CUOTAS'!E24 -> 23
C19: Periodo de Gracia (días) | D19: =+'SIMULADOR CUOTAS'!E28 -> 0
C21: TEA | D21: ='SIMULADOR CUOTAS'!E16 -> 0.1594
C23: TCEA* | D23: =+SIMULADOR!D39 -> 0.2036639014
C25: CUOTA | D25: =SIMULADOR!$D$40 -> 89.27
C28: Monto Solicitado | D28: =SIMULADOR!$D$13 -> 3000 | G28: Fecha de pago anticipado | H28: =+IF('SIMULADOR CUOTAS'!E45="", , 'SIMULADOR CUOTAS'!E43) -> 00:00:00 | X28: Financiar | Y28: Duración | Z28: Duración
C29: Fecha de desembolso | D29: =SIMULADOR!$D$15 -> 2023-05-23 | G29: Monto Pago anticipado | H29: =+IF('SIMULADOR CUOTAS'!E45="", , 'SIMULADOR CUOTAS'!I43) -> 0
C30: Periodo de gracia (días) | D30: =SIMULADOR!$D$19 -> 0 | G30: Reducción de | H30: =+IF('SIMULADOR CUOTAS'!E45="", , 'SIMULADOR CUOTAS'!E45) -> 0
C31: Numero de Cuotas | D31: =SIMULADOR!$D$17 -> 48
C32: Tasa de Interes Anual | D32: =SIMULADOR!D21 -> 0.1594
C33: Desgravamen (% Anual) | D33: ='SIMULADOR CUOTAS'!H12:I12*12 -> 0.036 | E33: 0 | S33: Cuota
G34: Fecha de facturación inmediata | K34: =IF(DATE(YEAR(D15),MONTH(D15)+1,D18-25)-D15<=0,DATE(YEAR(D15),MONTH(D15)+2,D18-25),DATE(YEAR(D15),MONTH(D15)+1,D18-25)) -> 2023-05-29 | S34: Plazo
G35: Fecha de Vencimiento | K35: =IF(AND(DAY(M35)<>D18,N35>=29),N36,IF(AND(DAY(M35)=D18,N35>=29),M35,IF(AND(DAY(M35)=D18,N35<29),DATE(YEAR(M35),MONTH(M35)+1,DAY(M35)),M35))) -> 2023-06-23 | M35: =DATE(YEAR('SIMULADOR CUOTAS'!E22),MONTH('SIMULADOR CUOTAS'!E22)+1,'SIMULADOR CUOTAS'!E24) -> 2023-06-23 | N35: =+M35-'SIMULADOR CUOTAS'!E22 -> 31
M36: =DATE(YEAR(D15),MONTH(D15)+1,1) -> 2023-06-01 | N36: =DATE(YEAR(M36),MONTH(M36),DAY(EOMONTH(M36,0))) -> 2023-06-30
C37: Primera Fecha de pago | D37: =+Calculos!B5 -> 2023-06-23
C38: Ultima Fecha de pago | D38: =+EDATE(D37,D31-1) -> 2027-05-23
C39: TCEA | D39: 0.2036639014
C40: Cuota Normal | D40: =+Calculos!$H$6 -> 89.27 | F40: Forma Financiera | L40: Parche para cliente
S41: Control
G42: =SUM(G44:G163) -> 247.07 | H42: =SUM(H44:H163) -> 0 | I42: =SUM(I44:I163) -> 3000 | J42: =SUM(J44:J163) -> 1037.88 | M42: =SUM(M44:M163) -> 0 | N42: =SUM(N44:N163) -> 247.07 | O42: =SUM(O44:O163) -> 3000 | P42: =SUM(P44:P163) -> 1037.88 | Q42: =SUM(Q44:Q163) -> 4284.95 | S42: =SUM(S44:S163) -> 82361.44
C43: N° | D43: Fecha de Vencimiento | E43: N° días | F43: Capital | G43: Desgrav. | H43: Pago Anticipado | I43: Amortiz. | J43: Interés | K43: Cuota | L43: Capital | M43: comision | N43: Desgrav. | O43: Amortiz. | P43: Interés | Q43: Total
C44: 1 | D44: =+IF($H$42=0, Calculos!B5, Calculos!BA6) -> 2023-06-23 | E44: =+D44-D29 -> 31 | F44: =+Calculos!I6 -> 3000 | G44: =+Calculos!BC6 -> 9 | H44: =+Calculos!BE6 -> 0 | I44: =+Calculos!BF6 -> 41.82 | J44: =+Calculos!BG6 -> 38.45 | K44: =+SUM(G44:J44)-H44 -> 89.27 | L44: =IF($D$19>0,IF(F44>=$D$13,$D$13,F44),IF(C44<=$D$17,F44," ")) -> 3000 | N44: =G44 -> 9 | O44: =IF($D$19<>0,IF($D$19>0,(L44-L45),MAX(K44-P44-N44-M44,0)),IF(I44=0,0,IF(SUM(I$44:I44)<0,0,IF(AND(SUM(I$44:I44)>0,O43=0),SUM(I$44:I44),I44)))) -> 41.82 | P44: =IF(C44<=$D$17,K44-O44-N44-M44,0) -> 38.45 | Q44: =SUM(N44:P44) -> 89.27 | S44: =+L44 -> 3000
C45: 2 | D45: =+IF($H$42=0, Calculos!B6, Calculos!BA7) -> 2023-07-23 | E45: =+D45-D44 -> 30 | F45: =+Calculos!I7 -> 2958.18 | G45: =+Calculos!BC7 -> 8.87 | H45: =+Calculos!BE7 -> 0 | I45: =+Calculos!BF7 -> 43.71 | J45: =+Calculos!BG7 -> 36.69 | K45: =+SUM(G45:J45)-H45 -> 89.27 | L45: =IF(C45>$D$17,0,IF($D$19>0,IF(F45>=$D$13,$D$13,F45),IF(AND(L44-O44<0.05,L44-O44>-0.05),0,L44-O44))) -> 2958.18 | N45: =G45 -> 8.87 | O45: =IF($D$19<>0,IF($D$19>0,(L45-L46),MAX(K45-P45-N45-M45,0)),IF(I44=0,0,IF(SUM(I$44:I45)<0,0,IF(AND(SUM(I$44:I45)>0,O44=0),SUM(I$44:I45),I45)))) -> 43.71 | P45: =IF(C45<=$D$17,K45-O45-N45-M45,0) -> 36.69 | Q45: =SUM(N45:P45) -> 89.27 | S45: =+L45 -> 2958.18
C46: 3 | D46: =+IF($H$42=0, Calculos!B7, Calculos!BA8) -> 2023-08-23 | E46: 31 | F46: =+Calculos!I8 -> 2914.47 | G46: =+Calculos!BC8 -> 8.74 | H46: =+Calculos!BE8 -> 0 | I46: =+Calculos!BF8 -> 43.17 | J46: =+Calculos!BG8 -> 37.36 | K46: 89.27 | L46: =IF(C46>$D$17,0,IF($D$19>0,IF(F46>=$D$13,$D$13,F46),IF(AND(L45-O45<0.05,L45-O45>-0.05),0,L45-O45))) -> 2914.47 | N46: 8.74 | O46: =IF($D$19<>0,IF($D$19>0,(L46-L47),MAX(K46-P46-N46-M46,0)),IF(I45=0,0,IF(SUM(I$44:I46)<0,0,IF(AND(SUM(I$44:I46)>0,O45=0),SUM(I$44:I46),I46)))) -> 43.17 | P46: 37.36 | Q46: 89.27 | S46: 2914.47
C47: 4 | D47: =+IF($H$42=0, Calculos!B8, Calculos!BA9) -> 2023-09-23 | E47: 31 | F47: =+Calculos!I9 -> 2871.3 | G47: =+Calculos!BC9 -> 8.61 | H47: =+Calculos!BE9 -> 0 | I47: =+Calculos!BF9 -> 43.86 | J47: =+Calculos!BG9 -> 36.8 | K47: 89.27 | L47: 2871.3 | N47: 8.61 | O47: =IF($D$19<>0,IF($D$19>0,(L47-L48),MAX(K47-P47-N47-M47,0)),IF(I46=0,0,IF(SUM(I$44:I47)<0,0,IF(AND(SUM(I$44:I47)>0,O46=0),SUM(I$44:I47),I47)))) -> 43.86 | P47: 36.8 | Q47: 89.27 | S47: 2871.3
C48: 5 | D48: =+IF($H$42=0, Calculos!B9, Calculos!BA10) -> 2023-10-23 | E48: 30 | F48: =+Calculos!I10 -> 2827.44 | G48: =+Calculos!BC10 -> 8.48 | H48: =+Calculos!BE10 -> 0 | I48: =+Calculos!BF10 -> 45.73 | J48: =+Calculos!BG10 -> 35.06 | K48: 89.27 | L48: 2827.44 | N48: 8.48 | O48: =IF($D$19<>0,IF($D$19>0,(L48-L49),MAX(K48-P48-N48-M48,0)),IF(I47=0,0,IF(SUM(I$44:I48)<0,0,IF(AND(SUM(I$44:I48)>0,O47=0),SUM(I$44:I48),I48)))) -> 45.73 | P48: 35.06 | Q48: 89.27 | S48: 2827.44
C49: 6 | D49: =+IF($H$42=0, Calculos!B10, Calculos!BA11) -> 2023-11-23 | E49: 31 | F49: =+Calculos!I11 -> 2781.71 | G49: =+Calculos!BC11 -> 8.35 | H49: =+Calculos!BE11 -> 0 | I49: =+Calculos!BF11 -> 45.27 | J49: =+Calculos!BG11 -> 35.65 | K49: 89.27 | L49: 2781.71 | N49: 8.35 | O49: =IF($D$19<>0,IF($D$19>0,(L49-L50),MAX(K49-P49-N49-M49,0)),IF(I48=0,0,IF(SUM(I$44:I49)<0,0,IF(AND(SUM(I$44:I49)>0,O48=0),SUM(I$44:I49),I49)))) -> 45.27 | P49: 35.65 | Q49: 89.27 | S49: 2781.71
C50: 7 | D50: =+IF($H$42=0, Calculos!B11, Calculos!BA12) -> 2023-12-23 | E50: 30 | F50: =+Calculos!I12 -> 2736.44 | G50: =+Calculos!BC12 -> 8.21 | H50: =+Calculos!BE12 -> 0 | I50: =+Calculos!BF12 -> 47.12 | J50: =+Calculos!BG12 -> 33.94 | K50: 89.27 | L50: 2736.44 | N50: 8.21 | O50: =IF($D$19<>0,IF($D$19>0,(L50-L51),MAX(K50-P50-N50-M50,0)),IF(I49=0,0,IF(SUM(I$44:I50)<0,0,IF(AND(SUM(I$44:I50)>0,O49=0),SUM(I$44:I50),I50)))) -> 47.12 | P50: 33.94 | Q50: 89.27 | S50: 2736.44
C51: 8 | D51: =+IF($H$42=0, Calculos!B12, Calculos!BA13) -> 2024-01-23 | E51: 31 | F51: =+Calculos!I13 -> 2689.32 | G51: =+Calculos!BC13 -> 8.07 | H51: =+Calculos!BE13 -> 0 | I51: =+Calculos!BF13 -> 46.73 | J51: =+Calculos!BG13 -> 34.47 | K51: 89.27 | L51: 2689.32 | N51: 8.07 | O51: =IF($D$19<>0,IF($D$19>0,(L51-L52),MAX(K51-P51-N51-M51,0)),IF(I50=0,0,IF(SUM(I$44:I51)<0,0,IF(AND(SUM(I$44:I51)>0,O50=0),SUM(I$44:I51),I51)))) -> 46.73 | P51: 34.47 | Q51: 89.27 | S51: 2689.32
C52: 9 | D52: =+IF($H$42=0, Calculos!B13, Calculos!BA14) -> 2024-02-23 | E52: 31 | F52: =+Calculos!I14 -> 2642.59 | G52: =+Calculos!BC14 -> 7.93 | H52: =+Calculos!BE14 -> 0 | I52: =+Calculos!BF14 -> 47.47 | J52: =+Calculos!BG14 -> 33.87 | K52: 89.27 | L52: 2642.59 | N52: 7.93 | O52: =IF($D$19<>0,IF($D$19>0,(L52-L53),MAX(K52-P52-N52-M52,0)),IF(I51=0,0,IF(SUM(I$44:I52)<0,0,IF(AND(SUM(I$44:I52)>0,O51=0),SUM(I$44:I52),I52)))) -> 47.47 | P52: 33.87 | Q52: 89.27 | S52: 2642.59
C53: 10 | D53: =+IF($H$42=0, Calculos!B14, Calculos!BA15) -> 2024-03-23 | E53: 29 | F53: =+Calculos!I15 -> 2595.12 | G53: =+Calculos!BC15 -> 7.79 | H53: =+Calculos!BE15 -> 0 | I53: =+Calculos!BF15 -> 50.38 | J53: =+Calculos!BG15 -> 31.1 | K53: 89.27 | L53: 2595.12 | N53: 7.79 | O53: =IF($D$19<>0,IF($D$19>0,(L53-L54),MAX(K53-P53-N53-M53,0)),IF(I52=0,0,IF(SUM(I$44:I53)<0,0,IF(AND(SUM(I$44:I53)>0,O52=0),SUM(I$44:I53),I53)))) -> 50.38 | P53: 31.1 | Q53: 89.27 | S53: 2595.12
C54: 11 | D54: =+IF($H$42=0, Calculos!B15, Calculos!BA16) -> 2024-04-23 | E54: 31 | F54: =+Calculos!I16 -> 2544.74 | G54: =+Calculos!BC16 -> 7.63 | H54: =+Calculos!BE16 -> 0 | I54: =+Calculos!BF16 -> 49.02 | J54: =+Calculos!BG16 -> 32.62 | K54: 89.27 | L54: 2544.74 | N54: 7.63 | O54: =IF($D$19<>0,IF($D$19>0,(L54-L55),MAX(K54-P54-N54-M54,0)),IF(I53=0,0,IF(SUM(I$44:I54)<0,0,IF(AND(SUM(I$44:I54)>0,O53=0),SUM(I$44:I54),I54)))) -> 49.02 | P54: 32.62 | Q54: 89.27 | S54: 2544.74
C55: 12 | D55: =+IF($H$42=0, Calculos!B16, Calculos!BA17) -> 2024-05-23 | E55: 30 | F55: =+Calculos!I17 -> 2495.72 | G55: =+Calculos!BC17 -> 7.49 | H55: =+Calculos!BE17 -> 0 | I55: =+Calculos!BF17 -> 50.83 | J55: =+Calculos!BG17 -> 30.95 | K55: 89.27 | L55: 2495.72 | N55: 7.49 | O55: =IF($D$19<>0,IF($D$19>0,(L55-L56),MAX(K55-P55-N55-M55,0)),IF(I54=0,0,IF(SUM(I$44:I55)<0,0,IF(AND(SUM(I$44:I55)>0,O54=0),SUM(I$44:I55),I55)))) -> 50.83 | P55: 30.95 | Q55: 89.27 | S55: 2495.72
C56: 13 | D56: =+IF($H$42=0, Calculos!B17, Calculos!BA18) -> 2024-06-23 | E56: 31 | F56: =+Calculos!I18 -> 2444.89 | G56: =+Calculos!BC18 -> 7.33 | H56: =+Calculos!BE18 -> 0 | I56: =+Calculos!BF18 -> 50.6 | J56: =+Calculos!BG18 -> 31.34 | K56: 89.27 | L56: 2444.89 | N56: 7.33 | O56: =IF($D$19<>0,IF($D$19>0,(L56-L57),MAX(K56-P56-N56-M56,0)),IF(I55=0,0,IF(SUM(I$44:I56)<0,0,IF(AND(SUM(I$44:I56)>0,O55=0),SUM(I$44:I56),I56)))) -> 50.6 | P56: 31.34 | Q56: 89.27 | S56: 2444.89
C57: 14 | D57: =+IF($H$42=0, Calculos!B18, Calculos!BA19) -> 2024-07-23 | E57: 30 | F57: =+Calculos!I19 -> 2394.29 | G57: =+Calculos!BC19 -> 7.18 | H57: =+Calculos!BE19 -> 0 | I57: =+Calculos!BF19 -> 52.4 | J57: =+Calculos!BG19 -> 29.69 | K57: 89.27 | L57: 2394.29 | N57: 7.18 | O57: =IF($D$19<>0,IF($D$19>0,(L57-L58),MAX(K57-P57-N57-M57,0)),IF(I56=0,0,IF(SUM(I$44:I57)<0,0,IF(AND(SUM(I$44:I57)>0,O56=0),SUM(I$44:I57),I57)))) -> 52.4 | P57: 29.69 | Q57: 89.27 | S57: 2394.29
C58: 15 | D58: =+IF($H$42=0, Calculos!B19, Calculos!BA20) -> 2024-08-23 | E58: 31 | F58: =+Calculos!I20 -> 2341.89 | G58: =+Calculos!BC20 -> 7.03 | H58: =+Calculos!BE20 -> 0 | I58: =+Calculos!BF20 -> 52.22 | J58: =+Calculos!BG20 -> 30.02 | K58: 89.27 | L58: 2341.89 | N58: 7.03 | O58: =IF($D$19<>0,IF($D$19>0,(L58-L59),MAX(K58-P58-N58-M58,0)),IF(I57=0,0,IF(SUM(I$44:I58)<0,0,IF(AND(SUM(I$44:I58)>0,O57=0),SUM(I$44:I58),I58)))) -> 52.22 | P58: 30.02 | Q58: 89.27 | S58: 2341.89
C59: 16 | D59: =+IF($H$42=0, Calculos!B20, Calculos!BA21) -> 2024-09-23 | E59: 31 | F59: =+Calculos!I21 -> 2289.67 | G59: =+Calculos!BC21 -> 6.87 | H59: =+Calculos!BE21 -> 0 | I59: =+Calculos!BF21 -> 53.05 | J59: =+Calculos!BG21 -> 29.35 | K59: 89.27 | L59: 2289.67 | N59: 6.87 | O59: =IF($D$19<>0,IF($D$19>0,(L59-L60),MAX(K59-P59-N59-M59,0)),IF(I58=0,0,IF(SUM(I$44:I59)<0,0,IF(AND(SUM(I$44:I59)>0,O58=0),SUM(I$44:I59),I59)))) -> 53.05 | P59: 29.35 | Q59: 89.27 | S59: 2289.67
C60: 17 | D60: =+IF($H$42=0, Calculos!B21, Calculos!BA22) -> 2024-10-23 | E60: 30 | F60: =+Calculos!I22 -> 2236.62 | G60: =+Calculos!BC22 -> 6.71 | H60: =+Calculos!BE22 -> 0 | I60: =+Calculos!BF22 -> 54.82 | J60: =+Calculos!BG22 -> 27.74 | K60: 89.27 | L60: 2236.62 | N60: 6.71 | O60: =IF($D$19<>0,IF($D$19>0,(L60-L61),MAX(K60-P60-N60-M60,0)),IF(I59=0,0,IF(SUM(I$44:I60)<0,0,IF(AND(SUM(I$44:I60)>0,O59=0),SUM(I$44:I60),I60)))) -> 54.82 | P60: 27.74 | Q60: 89.27 | S60: 2236.62
C61: 18 | D61: =+IF($H$42=0, Calculos!B22, Calculos!BA23) -> 2024-11-23 | E61: 31 | F61: =+Calculos!I23 -> 2181.8 | G61: =+Calculos!BC23 -> 6.55 | H61: =+Calculos!BE23 -> 0 | I61: =+Calculos!BF23 -> 54.75 | J61: =+Calculos!BG23 -> 27.97 | K61: 89.27 | L61: 2181.8 | N61: 6.55 | O61: =IF($D$19<>0,IF($D$19>0,(L61-L62),MAX(K61-P61-N61-M61,0)),IF(I60=0,0,IF(SUM(I$44:I61)<0,0,IF(AND(SUM(I$44:I61)>0,O60=0),SUM(I$44:I61),I61)))) -> 54.75 | P61: 27.97 | Q61: 89.27 | S61: 2181.8
C62: 19 | D62: =+IF($H$42=0, Calculos!B23, Calculos!BA24) -> 2024-12-23 | E62: 30 | F62: =+Calculos!I24 -> 2127.05 | G62: =+Calculos!BC24 -> 6.38 | H62: =+Calculos!BE24 -> 0 | I62: =+Calculos!BF24 -> 56.51 | J62: =+Calculos!BG24 -> 26.38 | K62: 89.27 | L62: 2127.05 | N62: 6.38 | O62: =IF($D$19<>0,IF($D$19>0,(L62-L63),MAX(K62-P62-N62-M62,0)),IF(I61=0,0,IF(SUM(I$44:I62)<0,0,IF(AND(SUM(I$44:I62)>0,O61=0),SUM(I$44:I62),I62)))) -> 56.51 | P62: 26.38 | Q62: 89.27 | S62: 2127.05
C63: 20 | D63: =+IF($H$42=0, Calculos!B24, Calculos!BA25) -> 2025-01-23 | E63: 31 | F63: =+Calculos!I25 -> 2070.54 | G63: =+Calculos!BC25 -> 6.21 | H63: =+Calculos!BE25 -> 0 | I63: =+Calculos!BF25 -> 56.52 | J63: =+Calculos!BG25 -> 26.54 | K63: 89.27 | L63: 2070.54 | N63: 6.21 | O63: =IF($D$19<>0,IF($D$19>0,(L63-L64),MAX(K63-P63-N63-M63,0)),IF(I62=0,0,IF(SUM(I$44:I63)<0,0,IF(AND(SUM(I$44:I63)>0,O62=0),SUM(I$44:I63),I63)))) -> 56.52 | P63: 26.54 | Q63: 89.27 | S63: 2070.54
C64: 21 | D64: =+IF($H$42=0, Calculos!B25, Calculos!BA26) -> 2025-02-23 | E64: 31 | F64: =+Calculos!I26 -> 2014.02 | G64: =+Calculos!BC26 -> 6.04 | H64: =+Calculos!BE26 -> 0 | I64: =+Calculos!BF26 -> 57.42 | J64: =+Calculos!BG26 -> 25.81 | K64: 89.27 | L64: 2014.02 | N64: 6.04 | O64: =IF($D$19<>0,IF($D$19>0,(L64-L65),MAX(K64-P64-N64-M64,0)),IF(I63=0,0,IF(SUM(I$44:I64)<0,0,IF(AND(SUM(I$44:I64)>0,O63=0),SUM(I$44:I64),I64)))) -> 57.42 | P64: 25.81 | Q64: 89.27 | S64: 2014.02
C65: 22 | D65: =+IF($H$42=0, Calculos!B26, Calculos!BA27) -> 2025-03-23 | E65: 28 | F65: =+Calculos!I27 -> 1956.6 | G65: =+Calculos!BC27 -> 5.87 | H65: =+Calculos!BE27 -> 0 | I65: =+Calculos!BF27 -> 60.76 | J65: =+Calculos!BG27 -> 22.64 | K65: 89.27 | L65: 1956.6 | N65: 5.87 | O65: =IF($D$19<>0,IF($D$19>0,(L65-L66),MAX(K65-P65-N65-M65,0)),IF(I64=0,0,IF(SUM(I$44:I65)<0,0,IF(AND(SUM(I$44:I65)>0,O64=0),SUM(I$44:I65),I65)))) -> 60.76 | P65: 22.64 | Q65: 89.27 | S65: 1956.6
C66: 23 | D66: =+IF($H$42=0, Calculos!B27, Calculos!BA28) -> 2025-04-23 | E66: 31 | F66: =+Calculos!I28 -> 1895.84 | G66: =+Calculos!BC28 -> 5.69 | H66: =+Calculos!BE28 -> 0 | I66: =+Calculos!BF28 -> 59.28 | J66: =+Calculos!BG28 -> 24.3 | K66: 89.27 | L66: 1895.84 | N66: 5.69 | O66: =IF($D$19<>0,IF($D$19>0,(L66-L67),MAX(K66-P66-N66-M66,0)),IF(I65=0,0,IF(SUM(I$44:I66)<0,0,IF(AND(SUM(I$44:I66)>0,O65=0),SUM(I$44:I66),I66)))) -> 59.28 | P66: 24.3 | Q66: 89.27 | S66: 1895.84
C67: 24 | D67: =+IF($H$42=0, Calculos!B28, Calculos!BA29) -> 2025-05-23 | E67: 30 | F67: =+Calculos!I29 -> 1836.56 | G67: =+Calculos!BC29 -> 5.51 | H67: =+Calculos!BE29 -> 0 | I67: =+Calculos!BF29 -> 60.98 | J67: =+Calculos!BG29 -> 22.78 | K67: 89.27 | L67: 1836.56 | N67: 5.51 | O67: =IF($D$19<>0,IF($D$19>0,(L67-L68),MAX(K67-P67-N67-M67,0)),IF(I66=0,0,IF(SUM(I$44:I67)<0,0,IF(AND(SUM(I$44:I67)>0,O66=0),SUM(I$44:I67),I67)))) -> 60.98 | P67: 22.78 | Q67: 89.27 | S67: 1836.56
C68: 25 | D68: =+IF($H$42=0, Calculos!B29, Calculos!BA30) -> 2025-06-23 | E68: 31 | F68: =+Calculos!I30 -> 1775.58 | G68: =+Calculos!BC30 -> 5.33 | H68: =+Calculos!BE30 -> 0 | I68: =+Calculos!BF30 -> 61.18 | J68: =+Calculos!BG30 -> 22.76 | K68: 89.27 | L68: 1775.58 | N68: 5.33 | O68: =IF($D$19<>0,IF($D$19>0,(L68-L69),MAX(K68-P68-N68-M68,0)),IF(I67=0,0,IF(SUM(I$44:I68)<0,0,IF(AND(SUM(I$44:I68)>0,O67=0),SUM(I$44:I68),I68)))) -> 61.18 | P68: 22.76 | Q68: 89.27 | S68: 1775.58
C69: 26 | D69: =+IF($H$42=0, Calculos!B30, Calculos!BA31) -> 2025-07-23 | E69: 30 | F69: =+Calculos!I31 -> 1714.4 | G69: =+Calculos!BC31 -> 5.14 | H69: =+Calculos!BE31 -> 0 | I69: =+Calculos!BF31 -> 62.87 | J69: =+Calculos!BG31 -> 21.26 | K69: 89.27 | L69: 1714.4 | N69: 5.14 | O69: =IF($D$19<>0,IF($D$19>0,(L69-L70),MAX(K69-P69-N69-M69,0)),IF(I68=0,0,IF(SUM(I$44:I69)<0,0,IF(AND(SUM(I$44:I69)>0,O68=0),SUM(I$44:I69),I69)))) -> 62.87 | P69: 21.26 | Q69: 89.27 | S69: 1714.4
C70: 27 | D70: =+IF($H$42=0, Calculos!B31, Calculos!BA32) -> 2025-08-23 | E70: 31 | F70: =+Calculos!I32 -> 1651.53 | G70: =+Calculos!BC32 -> 4.95 | H70: =+Calculos!BE32 -> 0 | I70: =+Calculos!BF32 -> 63.15 | J70: =+Calculos!BG32 -> 21.17 | K70: 89.27 | L70: 1651.53 | N70: 4.95 | O70: =IF($D$19<>0,IF($D$19>0,(L70-L71),MAX(K70-P70-N70-M70,0)),IF(I69=0,0,IF(SUM(I$44:I70)<0,0,IF(AND(SUM(I$44:I70)>0,O69=0),SUM(I$44:I70),I70)))) -> 63.15 | P70: 21.17 | Q70: 89.27 | S70: 1651.53
C71: 28 | D71: =+IF($H$42=0, Calculos!B32, Calculos!BA33) -> 2025-09-23 | E71: 31 | F71: =+Calculos!I33 -> 1588.38 | G71: =+Calculos!BC33 -> 4.77 | H71: =+Calculos!BE33 -> 0 | I71: =+Calculos!BF33 -> 64.14 | J71: =+Calculos!BG33 -> 20.36 | K71: 89.27 | L71: 1588.38 | N71: 4.77 | O71: =IF($D$19<>0,IF($D$19>0,(L71-L72),MAX(K71-P71-N71-M71,0)),IF(I70=0,0,IF(SUM(I$44:I71)<0,0,IF(AND(SUM(I$44:I71)>0,O70=0),SUM(I$44:I71),I71)))) -> 64.14 | P71: 20.36 | Q71: 89.27 | S71: 1588.38
C72: 29 | D72: =+IF($H$42=0, Calculos!B33, Calculos!BA34) -> 2025-10-23 | E72: 30 | F72: =+Calculos!I34 -> 1524.24 | G72: =+Calculos!BC34 -> 4.57 | H72: =+Calculos!BE34 -> 0 | I72: =+Calculos!BF34 -> 65.8 | J72: =+Calculos!BG34 -> 18.9 | K72: 89.27 | L72: 1524.24 | N72: 4.57 | O72: =IF($D$19<>0,IF($D$19>0,(L72-L73),MAX(K72-P72-N72-M72,0)),IF(I71=0,0,IF(SUM(I$44:I72)<0,0,IF(AND(SUM(I$44:I72)>0,O71=0),SUM(I$44:I72),I72)))) -> 65.8 | P72: 18.9 | Q72: 89.27 | S72: 1524.24
C73: 30 | D73: =+IF($H$42=0, Calculos!B34, Calculos!BA35) -> 2025-11-23 | E73: 31 | F73: =+Calculos!I35 -> 1458.44 | G73: =+Calculos!BC35 -> 4.38 | H73: =+Calculos!BE35 -> 0 | I73: =+Calculos!BF35 -> 66.2 | J73: =+Calculos!BG35 -> 18.69 | K73: 89.27 | L73: 1458.44 | N73: 4.38 | O73: =IF($D$19<>0,IF($D$19>0,(L73-L74),MAX(K73-P73-N73-M73,0)),IF(I72=0,0,IF(SUM(I$44:I73)<0,0,IF(AND(SUM(I$44:I73)>0,O72=0),SUM(I$44:I73),I73)))) -> 66.2 | P73: 18.69 | Q73: 89.27 | S73: 1458.44
C74: 31 | D74: =+IF($H$42=0, Calculos!B35, Calculos!BA36) -> 2025-12-23 | E74: 30 | F74: =+Calculos!I36 -> 1392.24 | G74: =+Calculos!BC36 -> 4.18 | H74: =+Calculos!BE36 -> 0 | I74: =+Calculos!BF36 -> 67.82 | J74: =+Calculos!BG36 -> 17.27 | K74: 89.27 | L74: 1392.24 | N74: 4.18 | O74: =IF($D$19<>0,IF($D$19>0,(L74-L75),MAX(K74-P74-N74-M74,0)),IF(I73=0,0,IF(SUM(I$44:I74)<0,0,IF(AND(SUM(I$44:I74)>0,O73=0),SUM(I$44:I74),I74)))) -> 67.82 | P74: 17.27 | Q74: 89.27 | S74: 1392.24
C75: 32 | D75: =+IF($H$42=0, Calculos!B36, Calculos!BA37) -> 2026-01-23 | E75: 31 | F75: =+Calculos!I37 -> 1324.42 | G75: =+Calculos!BC37 -> 3.97 | H75: =+Calculos!BE37 -> 0 | I75: =+Calculos!BF37 -> 68.32 | J75: =+Calculos!BG37 -> 16.98 | K75: 89.27 | L75: 1324.42 | N75: 3.97 | O75: =IF($D$19<>0,IF($D$19>0,(L75-L76),MAX(K75-P75-N75-M75,0)),IF(I74=0,0,IF(SUM(I$44:I75)<0,0,IF(AND(SUM(I$44:I75)>0,O74=0),SUM(I$44:I75),I75)))) -> 68.32 | P75: 16.98 | Q75: 89.27 | S75: 1324.42
C76: 33 | D76: =+IF($H$42=0, Calculos!B37, Calculos!BA38) -> 2026-02-23 | E76: 31 | F76: =+Calculos!I38 -> 1256.1 | G76: =+Calculos!BC38 -> 3.77 | H76: =+Calculos!BE38 -> 0 | I76: =+Calculos!BF38 -> 69.4 | J76: =+Calculos!BG38 -> 16.1 | K76: 89.27 | L76: 1256.1 | N76: 3.77 | O76: =IF($D$19<>0,IF($D$19>0,(L76-L77),MAX(K76-P76-N76-M76,0)),IF(I75=0,0,IF(SUM(I$44:I76)<0,0,IF(AND(SUM(I$44:I76)>0,O75=0),SUM(I$44:I76),I76)))) -> 69.4 | P76: 16.1 | Q76: 89.27 | S76: 1256.1
C77: 34 | D77: =+IF($H$42=0, Calculos!B38, Calculos!BA39) -> 2026-03-23 | E77: =+D77-D76 -> 28 | F77: =+Calculos!I39 -> 1186.7 | G77: =+Calculos!BC39 -> 3.56 | H77: =+Calculos!BE39 -> 0 | I77: =+Calculos!BF39 -> 71.98 | J77: =+Calculos!BG39 -> 13.73 | K77: 89.27 | L77: 1186.7 | N77: 3.56 | O77: =IF($D$19<>0,IF($D$19>0,(L77-L78),MAX(K77-P77-N77-M77,0)),IF(I76=0,0,IF(SUM(I$44:I77)<0,0,IF(AND(SUM(I$44:I77)>0,O76=0),SUM(I$44:I77),I77)))) -> 71.98 | P77: 13.73 | Q77: 89.27 | S77: 1186.7
C78: 35 | D78: =+IF($H$42=0, Calculos!B39, Calculos!BA40) -> 2026-04-23 | E78: 31 | F78: =+Calculos!I40 -> 1114.72 | G78: =+Calculos!BC40 -> 3.34 | H78: =+Calculos!BE40 -> 0 | I78: =+Calculos!BF40 -> 71.64 | J78: =+Calculos!BG40 -> 14.29 | K78: 89.27 | L78: 1114.72 | N78: 3.34 | O78: =IF($D$19<>0,IF($D$19>0,(L78-L79),MAX(K78-P78-N78-M78,0)),IF(I77=0,0,IF(SUM(I$44:I78)<0,0,IF(AND(SUM(I$44:I78)>0,O77=0),SUM(I$44:I78),I78)))) -> 71.64 | P78: 14.29 | Q78: 89.27 | S78: 1114.72
C79: 36 | D79: =+IF($H$42=0, Calculos!B40, Calculos!BA41) -> 2026-05-23 | E79: 30 | F79: =+Calculos!I41 -> 1043.08 | G79: =+Calculos!BC41 -> 3.13 | H79: =+Calculos!BE41 -> 0 | I79: =+Calculos!BF41 -> 73.2 | J79: =+Calculos!BG41 -> 12.94 | K79: 89.27 | L79: 1043.08 | N79: 3.13 | O79: =IF($D$19<>0,IF($D$19>0,(L79-L80),MAX(K79-P79-N79-M79,0)),IF(I78=0,0,IF(SUM(I$44:I79)<0,0,IF(AND(SUM(I$44:I79)>0,O78=0),SUM(I$44:I79),I79)))) -> 73.2 | P79: 12.94 | Q79: 89.27 | S79: 1043.08
C80: 37 | D80: =+IF($H$42=0, Calculos!B41, Calculos!BA42) -> 2026-06-23 | E80: 31 | F80: =+Calculos!I42 -> 969.88 | G80: =+Calculos!BC42 -> 2.91 | H80: =+Calculos!BE42 -> 0 | I80: =+Calculos!BF42 -> 73.93 | J80: =+Calculos!BG42 -> 12.43 | K80: 89.27 | L80: 969.88 | N80: 2.91 | O80: =IF($D$19<>0,IF($D$19>0,(L80-L81),MAX(K80-P80-N80-M80,0)),IF(I79=0,0,IF(SUM(I$44:I80)<0,0,IF(AND(SUM(I$44:I80)>0,O79=0),SUM(I$44:I80),I80)))) -> 73.93 | P80: 12.43 | Q80: 89.27 | S80: 969.88
C81: 38 | D81: =+IF($H$42=0, Calculos!B42, Calculos!BA43) -> 2026-07-23 | E81: 30 | F81: =+Calculos!I43 -> 895.95 | G81: =+Calculos!BC43 -> 2.69 | H81: =+Calculos!BE43 -> 0 | I81: =+Calculos!BF43 -> 75.47 | J81: =+Calculos!BG43 -> 11.11 | K81: 89.27 | L81: 895.95 | N81: 2.69 | O81: =IF($D$19<>0,IF($D$19>0,(L81-L82),MAX(K81-P81-N81-M81,0)),IF(I80=0,0,IF(SUM(I$44:I81)<0,0,IF(AND(SUM(I$44:I81)>0,O80=0),SUM(I$44:I81),I81)))) -> 75.47 | P81: 11.11 | Q81: 89.27 | S81: 895.95
C82: 39 | D82: =+IF($H$42=0, Calculos!B43, Calculos!BA44) -> 2026-08-23 | E82: 31 | F82: =+Calculos!I44 -> 820.48 | G82: =+Calculos!BC44 -> 2.46 | H82: =+Calculos!BE44 -> 0 | I82: =+Calculos!BF44 -> 76.29 | J82: =+Calculos!BG44 -> 10.52 | K82: 89.27 | L82: 820.48 | N82: 2.46 | O82: =IF($D$19<>0,IF($D$19>0,(L82-L83),MAX(K82-P82-N82-M82,0)),IF(I81=0,0,IF(SUM(I$44:I82)<0,0,IF(AND(SUM(I$44:I82)>0,O81=0),SUM(I$44:I82),I82)))) -> 76.29 | P82: 10.52 | Q82: 89.27 | S82: 820.48
C83: 40 | D83: =+IF($H$42=0, Calculos!B44, Calculos!BA45) -> 2026-09-23 | E83: 31 | F83: =+Calculos!I45 -> 744.19 | G83: =+Calculos!BC45 -> 2.23 | H83: =+Calculos!BE45 -> 0 | I83: =+Calculos!BF45 -> 77.5 | J83: =+Calculos!BG45 -> 9.54 | K83: 89.27 | L83: 744.19 | N83: 2.23 | O83: =IF($D$19<>0,IF($D$19>0,(L83-L84),MAX(K83-P83-N83-M83,0)),IF(I82=0,0,IF(SUM(I$44:I83)<0,0,IF(AND(SUM(I$44:I83)>0,O82=0),SUM(I$44:I83),I83)))) -> 77.5 | P83: 9.54 | Q83: 89.27 | S83: 744.19
C84: 41 | D84: =+IF($H$42=0, Calculos!B45, Calculos!BA46) -> 2026-10-23 | E84: 30 | F84: =+Calculos!I46 -> 666.69 | G84: =+Calculos!BC46 -> 2 | H84: =+Calculos!BE46 -> 0 | I84: =+Calculos!BF46 -> 79 | J84: =+Calculos!BG46 -> 8.27 | K84: 89.27 | L84: 666.69 | N84: 2 | O84: =IF($D$19<>0,IF($D$19>0,(L84-L85),MAX(K84-P84-N84-M84,0)),IF(I83=0,0,IF(SUM(I$44:I84)<0,0,IF(AND(SUM(I$44:I84)>0,O83=0),SUM(I$44:I84),I84)))) -> 79 | P84: 8.27 | Q84: 89.27 | S84: 666.69
C85: 42 | D85: =+IF($H$42=0, Calculos!B46, Calculos!BA47) -> 2026-11-23 | E85: 31 | F85: =+Calculos!I47 -> 587.69 | G85: =+Calculos!BC47 -> 1.76 | H85: =+Calculos!BE47 -> 0 | I85: =+Calculos!BF47 -> 79.98 | J85: =+Calculos!BG47 -> 7.53 | K85: 89.27 | L85: 587.69 | N85: 1.76 | O85: =IF($D$19<>0,IF($D$19>0,(L85-L86),MAX(K85-P85-N85-M85,0)),IF(I84=0,0,IF(SUM(I$44:I85)<0,0,IF(AND(SUM(I$44:I85)>0,O84=0),SUM(I$44:I85),I85)))) -> 79.98 | P85: 7.53 | Q85: 89.27 | S85: 587.69
C86: 43 | D86: =+IF($H$42=0, Calculos!B47, Calculos!BA48) -> 2026-12-23 | E86: 30 | F86: =+Calculos!I48 -> 507.71 | G86: =+Calculos!BC48 -> 1.52 | H86: =+Calculos!BE48 -> 0 | I86: =+Calculos!BF48 -> 81.45 | J86: =+Calculos!BG48 -> 6.3 | K86: 89.27 | L86: 507.71 | N86: 1.52 | O86: =IF($D$19<>0,IF($D$19>0,(L86-L87),MAX(K86-P86-N86-M86,0)),IF(I85=0,0,IF(SUM(I$44:I86)<0,0,IF(AND(SUM(I$44:I86)>0,O85=0),SUM(I$44:I86),I86)))) -> 81.45 | P86: 6.3 | Q86: 89.27 | S86: 507.71
C87: 44 | D87: =+IF($H$42=0, Calculos!B48, Calculos!BA49) -> 2027-01-23 | E87: 31 | F87: =+Calculos!I49 -> 426.26 | G87: =+Calculos!BC49 -> 1.28 | H87: =+Calculos!BE49 -> 0 | I87: =+Calculos!BF49 -> 82.53 | J87: =+Calculos!BG49 -> 5.46 | K87: 89.27 | L87: 426.26 | N87: 1.28 | O87: =IF($D$19<>0,IF($D$19>0,(L87-L88),MAX(K87-P87-N87-M87,0)),IF(I86=0,0,IF(SUM(I$44:I87)<0,0,IF(AND(SUM(I$44:I87)>0,O86=0),SUM(I$44:I87),I87)))) -> 82.53 | P87: 5.46 | Q87: 89.27 | S87: 426.26
C88: 45 | D88: =+IF($H$42=0, Calculos!B49, Calculos!BA50) -> 2027-02-23 | E88: 31 | F88: =+Calculos!I50 -> 343.73 | G88: =+Calculos!BC50 -> 1.03 | H88: =+Calculos!BE50 -> 0 | I88: =+Calculos!BF50 -> 83.83 | J88: =+Calculos!BG50 -> 4.41 | K88: 89.27 | L88: 343.73 | N88: 1.03 | O88: =IF($D$19<>0,IF($D$19>0,(L88-L89),MAX(K88-P88-N88-M88,0)),IF(I87=0,0,IF(SUM(I$44:I88)<0,0,IF(AND(SUM(I$44:I88)>0,O87=0),SUM(I$44:I88),I88)))) -> 83.83 | P88: 4.41 | Q88: 89.27 | S88: 343.73
C89: 46 | D89: =+IF($H$42=0, Calculos!B50, Calculos!BA51) -> 2027-03-23 | E89: 28 | F89: =+Calculos!I51 -> 259.9 | G89: =+Calculos!BC51 -> 0.78 | H89: =+Calculos!BE51 -> 0 | I89: =+Calculos!BF51 -> 85.48 | J89: =+Calculos!BG51 -> 3.01 | K89: 89.27 | L89: 259.9 | N89: 0.78 | O89: =IF($D$19<>0,IF($D$19>0,(L89-L90),MAX(K89-P89-N89-M89,0)),IF(I88=0,0,IF(SUM(I$44:I89)<0,0,IF(AND(SUM(I$44:I89)>0,O88=0),SUM(I$44:I89),I89)))) -> 85.48 | P89: 3.01 | Q89: 89.27 | S89: 259.9
C90: 47 | D90: =+IF($H$42=0, Calculos!B51, Calculos!BA52) -> 2027-04-23 | E90: 31 | F90: =+Calculos!I52 -> 174.42 | G90: =+Calculos!BC52 -> 0.52 | H90: =+Calculos!BE52 -> 0 | I90: =+Calculos!BF52 -> 86.51 | J90: =+Calculos!BG52 -> 2.24 | K90: 89.27 | L90: 174.42 | N90: 0.52 | O90: =IF($D$19<>0,IF($D$19>0,(L90-L91),MAX(K90-P90-N90-M90,0)),IF(I89=0,0,IF(SUM(I$44:I90)<0,0,IF(AND(SUM(I$44:I90)>0,O89=0),SUM(I$44:I90),I90)))) -> 86.51 | P90: 2.24 | Q90: 89.27 | S90: 174.42
C91: =+C90+1 -> 48 | D91: =+IF($H$42=0, Calculos!B52, Calculos!BA53) -> 2027-05-23 | E91: 30 | F91: =+Calculos!I53 -> 87.91 | G91: =+Calculos!BC53 -> 0.26 | H91: =+Calculos!BE53 -> 0 | I91: =+Calculos!BF53 -> 87.91 | J91: =+Calculos!BG53 -> 1.09 | K91: 89.26 | L91: 87.91 | N91: 0.26 | O91: =IF($D$19<>0,IF($D$19>0,(L91-L92),MAX(K91-P91-N91-M91,0)),IF(I90=0,0,IF(SUM(I$44:I91)<0,0,IF(AND(SUM(I$44:I91)>0,O90=0),SUM(I$44:I91),I91)))) -> 87.91 | P91: 1.09 | Q91: 89.26 | S91: 87.91
C92: 49 | D92: =+IF($H$42=0, Calculos!B53, Calculos!BA54) -> 2027-06-23 | E92: 31 | F92: =+Calculos!I54 -> 0 | G92: =+Calculos!BC54 -> 0 | H92: =+Calculos!BE54 -> 0 | I92: =+Calculos!BF54 ->  | J92: =+Calculos!BG54 ->  | K92: 0 | L92: 0 | N92: 0 | O92: =IF($D$19<>0,IF($D$19>0,(L92-L93),MAX(K92-P92-N92-M92,0)),IF(I91=0,0,IF(SUM(I$44:I92)<0,0,IF(AND(SUM(I$44:I92)>0,O91=0),SUM(I$44:I92),I92)))) ->  | P92: 0 | Q92: 0 | S92: 0
C93: 50 | D93: =+IF($H$42=0, Calculos!B54, Calculos!BA55) -> 2027-07-23 | E93: 30 | F93: =+Calculos!I55 ->  | G93: =+Calculos!BC55 -> 0 | H93: =+Calculos!BE55 -> 0 | I93: =+Calculos!BF55 ->  | J93: =+Calculos!BG55 ->  | K93: 0 | L93: 0 | N93: 0 | O93: =IF($D$19<>0,IF($D$19>0,(L93-L94),MAX(K93-P93-N93-M93,0)),IF(I92=0,0,IF(SUM(I$44:I93)<0,0,IF(AND(SUM(I$44:I93)>0,O92=0),SUM(I$44:I93),I93)))) ->  | P93: 0 | Q93: 0 | S93: 0
C94: 51 | D94: =+IF($H$42=0, Calculos!B55, Calculos!BA56) -> 2027-08-23 | E94: 31 | F94: =+Calculos!I56 ->  | G94: =+Calculos!BC56 -> 0 | H94: =+Calculos!BE56 -> 0 | I94: =+Calculos!BF56 ->  | J94: =+Calculos!BG56 ->  | K94: 0 | L94: 0 | N94: 0 | O94: =IF($D$19<>0,IF($D$19>0,(L94-L95),MAX(K94-P94-N94-M94,0)),IF(I93=0,0,IF(SUM(I$44:I94)<0,0,IF(AND(SUM(I$44:I94)>0,O93=0),SUM(I$44:I94),I94)))) ->  | P94: 0 | Q94: 0 | S94: 0
C95: 52 | D95: =+IF($H$42=0, Calculos!B56, Calculos!BA57) -> 2027-09-23 | E95: 31 | F95: =+Calculos!I57 ->  | G95: =+Calculos!BC57 -> 0 | H95: =+Calculos!BE57 -> 0 | I95: =+Calculos!BF57 ->  | J95: =+Calculos!BG57 ->  | K95: 0 | L95: 0 | N95: 0 | O95: =IF($D$19<>0,IF($D$19>0,(L95-L96),MAX(K95-P95-N95-M95,0)),IF(I94=0,0,IF(SUM(I$44:I95)<0,0,IF(AND(SUM(I$44:I95)>0,O94=0),SUM(I$44:I95),I95)))) ->  | P95: 0 | Q95: 0 | S95: 0
C96: 53 | D96: =+IF($H$42=0, Calculos!B57, Calculos!BA58) -> 2027-10-23 | E96: 30 | F96: =+Calculos!I58 ->  | G96: =+Calculos!BC58 -> 0 | H96: =+Calculos!BE58 -> 0 | I96: =+Calculos!BF58 ->  | J96: =+Calculos!BG58 ->  | K96: 0 | L96: 0 | N96: 0 | O96: =IF($D$19<>0,IF($D$19>0,(L96-L97),MAX(K96-P96-N96-M96,0)),IF(I95=0,0,IF(SUM(I$44:I96)<0,0,IF(AND(SUM(I$44:I96)>0,O95=0),SUM(I$44:I96),I96)))) ->  | P96: 0 | Q96: 0 | S96: 0
C97: 54 | D97: =+IF($H$42=0, Calculos!B58, Calculos!BA59) -> 2027-11-23 | E97: 31 | F97: =+Calculos!I59 ->  | G97: =+Calculos!BC59 -> 0 | H97: =+Calculos!BE59 -> 0 | I97: =+Calculos!BF59 ->  | J97: =+Calculos!BG59 ->  | K97: 0 | L97: 0 | N97: 0 | O97: =IF($D$19<>0,IF($D$19>0,(L97-L98),MAX(K97-P97-N97-M97,0)),IF(I96=0,0,IF(SUM(I$44:I97)<0,0,IF(AND(SUM(I$44:I97)>0,O96=0),SUM(I$44:I97),I97)))) ->  | P97: 0 | Q97: 0 | S97: 0
C98: 55 | D98: =+IF($H$42=0, Calculos!B59, Calculos!BA60) -> 2027-12-23 | E98: 30 | F98: =+Calculos!I60 ->  | G98: =+Calculos!BC60 -> 0 | H98: =+Calculos!BE60 -> 0 | I98: =+Calculos!BF60 ->  | J98: =+Calculos!BG60 ->  | K98: 0 | L98: 0 | N98: 0 | O98: =IF($D$19<>0,IF($D$19>0,(L98-L99),MAX(K98-P98-N98-M98,0)),IF(I97=0,0,IF(SUM(I$44:I98)<0,0,IF(AND(SUM(I$44:I98)>0,O97=0),SUM(I$44:I98),I98)))) ->  | P98: 0 | Q98: 0 | S98: 0
C99: 56 | D99: =+IF($H$42=0, Calculos!B60, Calculos!BA61) -> 2028-01-23 | E99: 31 | F99: =+Calculos!I61 ->  | G99: =+Calculos!BC61 -> 0 | H99: =+Calculos!BE61 -> 0 | I99: =+Calculos!BF61 ->  | J99: =+Calculos!BG61 ->  | K99: 0 | L99: 0 | N99: 0 | O99: =IF($D$19<>0,IF($D$19>0,(L99-L100),MAX(K99-P99-N99-M99,0)),IF(I98=0,0,IF(SUM(I$44:I99)<0,0,IF(AND(SUM(I$44:I99)>0,O98=0),SUM(I$44:I99),I99)))) ->  | P99: 0 | Q99: 0 | S99: 0
C100: 57 | D100: =+IF($H$42=0, Calculos!B61, Calculos!BA62) -> 2028-02-23 | E100: 31 | F100: =+Calculos!I62 ->  | G100: =+Calculos!BC62 -> 0 | H100: =+Calculos!BE62 -> 0 | I100: =+Calculos!BF62 ->  | J100: =+Calculos!BG62 ->  | K100: 0 | L100: 0 | N100: 0 | O100: =IF($D$19<>0,IF($D$19>0,(L100-L101),MAX(K100-P100-N100-M100,0)),IF(I99=0,0,IF(SUM(I$44:I100)<0,0,IF(AND(SUM(I$44:I100)>0,O99=0),SUM(I$44:I100),I100)))) ->  | P100: 0 | Q100: 0 | S100: 0
C101: 58 | D101: =+IF($H$42=0, Calculos!B62, Calculos!BA63) -> 2028-03-23 | E101: 29 | F101: =+Calculos!I63 ->  | G101: =+Calculos!BC63 -> 0 | H101: =+Calculos!BE63 -> 0 | I101: =+Calculos!BF63 ->  | J101: =+Calculos!BG63 ->  | K101: 0 | L101: 0 | N101: 0 | O101: =IF($D$19<>0,IF($D$19>0,(L101-L102),MAX(K101-P101-N101-M101,0)),IF(I100=0,0,IF(SUM(I$44:I101)<0,0,IF(AND(SUM(I$44:I101)>0,O100=0),SUM(I$44:I101),I101)))) ->  | P101: 0 | Q101: 0 | S101: 0
C102: 59 | D102: =+IF($H$42=0, Calculos!B63, Calculos!BA64) -> 2028-04-23 | E102: 31 | F102: =+Calculos!I64 ->  | G102: =+Calculos!BC64 -> 0 | H102: =+Calculos!BE64 -> 0 | I102: =+Calculos!BF64 ->  | J102: =+Calculos!BG64 ->  | K102: 0 | L102: 0 | N102: 0 | O102: =IF($D$19<>0,IF($D$19>0,(L102-L103),MAX(K102-P102-N102-M102,0)),IF(I101=0,0,IF(SUM(I$44:I102)<0,0,IF(AND(SUM(I$44:I102)>0,O101=0),SUM(I$44:I102),I102)))) ->  | P102: 0 | Q102: 0 | S102: 0
C103: 60 | D103: =+IF($H$42=0, Calculos!B64, Calculos!BA65) -> 2028-05-23 | E103: 30 | F103: =+Calculos!I65 ->  | G103: =+Calculos!BC65 -> 0 | H103: =+Calculos!BE65 -> 0 | I103: =+Calculos!BF65 ->  | J103: =+Calculos!BG65 ->  | K103: 0 | L103: 0 | N103: 0 | O103: =IF($D$19<>0,IF($D$19>0,(L103-L104),MAX(K103-P103-N103-M103,0)),IF(I102=0,0,IF(SUM(I$44:I103)<0,0,IF(AND(SUM(I$44:I103)>0,O102=0),SUM(I$44:I103),I103)))) ->  | P103: 0 | Q103: 0 | S103: 0
C104: 61 | D104: =+IF($H$42=0, Calculos!B65, Calculos!BA66) -> 2028-06-23 | E104: 31 | F104: =+Calculos!I66 ->  | G104: =+Calculos!BC66 -> 0 | H104: =+Calculos!BE66 -> 0 | I104: =+Calculos!BF66 ->  | J104: =+Calculos!BG66 ->  | K104: 0 | L104: 0 | N104: 0 | O104: =IF($D$19<>0,IF($D$19>0,(L104-L105),MAX(K104-P104-N104-M104,0)),IF(I103=0,0,IF(SUM(I$44:I104)<0,0,IF(AND(SUM(I$44:I104)>0,O103=0),SUM(I$44:I104),I104)))) ->  | P104: 0 | Q104: 0 | S104: 0
C105: 62 | D105: =+IF($H$42=0, Calculos!B66, Calculos!BA67) -> 2028-07-23 | E105: 30 | F105: =+Calculos!I67 ->  | G105: =+Calculos!BC67 -> 0 | H105: =+Calculos!BE67 -> 0 | I105: =+Calculos!BF67 ->  | J105: =+Calculos!BG67 ->  | K105: 0 | L105: 0 | N105: 0 | O105: =IF($D$19<>0,IF($D$19>0,(L105-L106),MAX(K105-P105-N105-M105,0)),IF(I104=0,0,IF(SUM(I$44:I105)<0,0,IF(AND(SUM(I$44:I105)>0,O104=0),SUM(I$44:I105),I105)))) ->  | P105: 0 | Q105: 0 | S105: 0
C106: 63 | D106: =+IF($H$42=0, Calculos!B67, Calculos!BA68) -> 2028-08-23 | E106: 31 | F106: =+Calculos!I68 ->  | G106: =+Calculos!BC68 -> 0 | H106: =+Calculos!BE68 -> 0 | I106: =+Calculos!BF68 ->  | J106: =+Calculos!BG68 ->  | K106: 0 | L106: 0 | N106: 0 | O106: =IF($D$19<>0,IF($D$19>0,(L106-L107),MAX(K106-P106-N106-M106,0)),IF(I105=0,0,IF(SUM(I$44:I106)<0,0,IF(AND(SUM(I$44:I106)>0,O105=0),SUM(I$44:I106),I106)))) ->  | P106: 0 | Q106: 0 | S106: 0
C107: 64 | D107: =+IF($H$42=0, Calculos!B68, Calculos!BA69) -> 2028-09-23 | E107: 31 | F107: =+Calculos!I69 ->  | G107: =+Calculos!BC69 -> 0 | H107: =+Calculos!BE69 -> 0 | I107: =+Calculos!BF69 ->  | J107: =+Calculos!BG69 ->  | K107: 0 | L107: 0 | N107: 0 | O107: =IF($D$19<>0,IF($D$19>0,(L107-L108),MAX(K107-P107-N107-M107,0)),IF(I106=0,0,IF(SUM(I$44:I107)<0,0,IF(AND(SUM(I$44:I107)>0,O106=0),SUM(I$44:I107),I107)))) ->  | P107: 0 | Q107: 0 | S107: 0
C108: 65 | D108: =+IF($H$42=0, Calculos!B69, Calculos!BA70) -> 2028-10-23 | E108: 30 | F108: =+Calculos!I70 ->  | G108: =+Calculos!BC70 -> 0 | H108: =+Calculos!BE70 -> 0 | I108: =+Calculos!BF70 ->  | J108: =+Calculos!BG70 ->  | K108: 0 | L108: 0 | N108: 0 | O108: =IF($D$19<>0,IF($D$19>0,(L108-L109),MAX(K108-P108-N108-M108,0)),IF(I107=0,0,IF(SUM(I$44:I108)<0,0,IF(AND(SUM(I$44:I108)>0,O107=0),SUM(I$44:I108),I108)))) ->  | P108: 0 | Q108: 0 | S108: 0
C109: 66 | D109: =+IF($H$42=0, Calculos!B70, Calculos!BA71) -> 2028-11-23 | E109: =+D109-D108 -> 31 | F109: =+Calculos!I71 ->  | G109: =+Calculos!BC71 -> 0 | H109: =+Calculos!BE71 -> 0 | I109: =+Calculos!BF71 ->  | J109: =+Calculos!BG71 ->  | K109: =+SUM(G109:J109)-H109 -> 0 | L109: 0 | N109: =G109 -> 0 | O109: =IF($D$19<>0,IF($D$19>0,(L109-L110),MAX(K109-P109-N109-M109,0)),IF(I108=0,0,IF(SUM(I$44:I109)<0,0,IF(AND(SUM(I$44:I109)>0,O108=0),SUM(I$44:I109),I109)))) ->  | P109: =IF(C109<=$D$17,K109-O109-N109-M109,0) -> 0 | Q109: =SUM(N109:P109) -> 0 | S109: =+L109 -> 0
C110: 67 | D110: =+IF($H$42=0, Calculos!B71, Calculos!BA72) -> 2028-12-23 | E110: 30 | F110: =+Calculos!I72 ->  | G110: =+Calculos!BC72 -> 0 | H110: =+Calculos!BE72 -> 0 | I110: =+Calculos!BF72 ->  | J110: =+Calculos!BG72 ->  | K110: 0 | L110: =IF(C110>$D$17,0,IF($D$19>0,IF(F110>=$D$13,$D$13,F110),IF(AND(L109-O109<0.05,L109-O109>-0.05),0,L109-O109))) -> 0 | N110: 0 | O110: =IF($D$19<>0,IF($D$19>0,(L110-L111),MAX(K110-P110-N110-M110,0)),IF(I109=0,0,IF(SUM(I$44:I110)<0,0,IF(AND(SUM(I$44:I110)>0,O109=0),SUM(I$44:I110),I110)))) ->  | P110: 0 | Q110: 0 | S110: 0
C111: 68 | D111: =+IF($H$42=0, Calculos!B72, Calculos!BA73) -> 2029-01-23 | E111: 31 | F111: =+Calculos!I73 ->  | G111: =+Calculos!BC73 -> 0 | H111: =+Calculos!BE73 -> 0 | I111: =+Calculos!BF73 ->  | J111: =+Calculos!BG73 ->  | K111: 0 | L111: 0 | N111: 0 | O111: =IF($D$19<>0,IF($D$19>0,(L111-L112),MAX(K111-P111-N111-M111,0)),IF(I110=0,0,IF(SUM(I$44:I111)<0,0,IF(AND(SUM(I$44:I111)>0,O110=0),SUM(I$44:I111),I111)))) ->  | P111: 0 | Q111: 0 | S111: 0
C112: 69 | D112: =+IF($H$42=0, Calculos!B73, Calculos!BA74) -> 2029-02-23 | E112: 31 | F112: =+Calculos!I74 ->  | G112: =+Calculos!BC74 -> 0 | H112: =+Calculos!BE74 -> 0 | I112: =+Calculos!BF74 ->  | J112: =+Calculos!BG74 ->  | K112: 0 | L112: 0 | N112: 0 | O112: =IF($D$19<>0,IF($D$19>0,(L112-L113),MAX(K112-P112-N112-M112,0)),IF(I111=0,0,IF(SUM(I$44:I112)<0,0,IF(AND(SUM(I$44:I112)>0,O111=0),SUM(I$44:I112),I112)))) ->  | P112: 0 | Q112: 0 | S112: 0
C113: 70 | D113: =+IF($H$42=0, Calculos!B74, Calculos!BA75) -> 2029-03-23 | E113: 28 | F113: =+Calculos!I75 ->  | G113: =+Calculos!BC75 -> 0 | H113: =+Calculos!BE75 -> 0 | I113: =+Calculos!BF75 ->  | J113: =+Calculos!BG75 ->  | K113: 0 | L113: 0 | N113: 0 | O113: =IF($D$19<>0,IF($D$19>0,(L113-L114),MAX(K113-P113-N113-M113,0)),IF(I112=0,0,IF(SUM(I$44:I113)<0,0,IF(AND(SUM(I$44:I113)>0,O112=0),SUM(I$44:I113),I113)))) ->  | P113: 0 | Q113: 0 | S113: 0
C114: 71 | D114: =+IF($H$42=0, Calculos!B75, Calculos!BA76) -> 2029-04-23 | E114: 31 | F114: =+Calculos!I76 ->  | G114: =+Calculos!BC76 -> 0 | H114: =+Calculos!BE76 -> 0 | I114: =+Calculos!BF76 ->  | J114: =+Calculos!BG76 ->  | K114: 0 | L114: 0 | N114: 0 | O114: =IF($D$19<>0,IF($D$19>0,(L114-L115),MAX(K114-P114-N114-M114,0)),IF(I113=0,0,IF(SUM(I$44:I114)<0,0,IF(AND(SUM(I$44:I114)>0,O113=0),SUM(I$44:I114),I114)))) ->  | P114: 0 | Q114: 0 | S114: 0
C115: 72 | D115: =+IF($H$42=0, Calculos!B76, Calculos!BA77) -> 2029-05-23 | E115: 30 | F115: =+Calculos!I77 ->  | G115: =+Calculos!BC77 -> 0 | H115: =+Calculos!BE77 -> 0 | I115: =+Calculos!BF77 ->  | J115: =+Calculos!BG77 ->  | K115: 0 | L115: 0 | N115: 0 | O115: =IF($D$19<>0,IF($D$19>0,(L115-L116),MAX(K115-P115-N115-M115,0)),IF(I114=0,0,IF(SUM(I$44:I115)<0,0,IF(AND(SUM(I$44:I115)>0,O114=0),SUM(I$44:I115),I115)))) ->  | P115: 0 | Q115: 0 | S115: 0
C116: 73 | D116: =+IF($H$42=0, Calculos!B77, Calculos!BA78) -> 2029-06-23 | E116: 31 | F116: =+Calculos!I78 ->  | G116: =+Calculos!BC78 -> 0 | H116: =+Calculos!BE78 -> 0 | I116: =+Calculos!BF78 ->  | J116: =+Calculos!BG78 ->  | K116: 0 | L116: 0 | N116: 0 | O116: =IF($D$19<>0,IF($D$19>0,(L116-L117),MAX(K116-P116-N116-M116,0)),IF(I115=0,0,IF(SUM(I$44:I116)<0,0,IF(AND(SUM(I$44:I116)>0,O115=0),SUM(I$44:I116),I116)))) ->  | P116: 0 | Q116: 0 | S116: 0
C117: 74 | D117: =+IF($H$42=0, Calculos!B78, Calculos!BA79) -> 2029-07-23 | E117: 30 | F117: =+Calculos!I79 ->  | G117: =+Calculos!BC79 -> 0 | H117: =+Calculos!BE79 -> 0 | I117: =+Calculos!BF79 ->  | J117: =+Calculos!BG79 ->  | K117: 0 | L117: 0 | N117: 0 | O117: =IF($D$19<>0,IF($D$19>0,(L117-L118),MAX(K117-P117-N117-M117,0)),IF(I116=0,0,IF(SUM(I$44:I117)<0,0,IF(AND(SUM(I$44:I117)>0,O116=0),SUM(I$44:I117),I117)))) ->  | P117: 0 | Q117: 0 | S117: 0
C118: 75 | D118: =+IF($H$42=0, Calculos!B79, Calculos!BA80) -> 2029-08-23 | E118: 31 | F118: =+Calculos!I80 ->  | G118: =+Calculos!BC80 -> 0 | H118: =+Calculos!BE80 -> 0 | I118: =+Calculos!BF80 ->  | J118: =+Calculos!BG80 ->  | K118: 0 | L118: 0 | N118: 0 | O118: =IF($D$19<>0,IF($D$19>0,(L118-L119),MAX(K118-P118-N118-M118,0)),IF(I117=0,0,IF(SUM(I$44:I118)<0,0,IF(AND(SUM(I$44:I118)>0,O117=0),SUM(I$44:I118),I118)))) ->  | P118: 0 | Q118: 0 | S118: 0
C119: 76 | D119: =+IF($H$42=0, Calculos!B80, Calculos!BA81) -> 2029-09-23 | E119: 31 | F119: =+Calculos!I81 ->  | G119: =+Calculos!BC81 -> 0 | H119: =+Calculos!BE81 -> 0 | I119: =+Calculos!BF81 ->  | J119: =+Calculos!BG81 ->  | K119: 0 | L119: 0 | N119: 0 | O119: =IF($D$19<>0,IF($D$19>0,(L119-L120),MAX(K119-P119-N119-M119,0)),IF(I118=0,0,IF(SUM(I$44:I119)<0,0,IF(AND(SUM(I$44:I119)>0,O118=0),SUM(I$44:I119),I119)))) ->  | P119: 0 | Q119: 0 | S119: 0
C120: 77 | D120: =+IF($H$42=0, Calculos!B81, Calculos!BA82) -> 2029-10-23 | E120: 30 | F120: =+Calculos!I82 ->  | G120: =+Calculos!BC82 -> 0 | H120: =+Calculos!BE82 -> 0 | I120: =+Calculos!BF82 ->  | J120: =+Calculos!BG82 ->  | K120: 0 | L120: 0 | N120: 0 | O120: =IF($D$19<>0,IF($D$19>0,(L120-L121),MAX(K120-P120-N120-M120,0)),IF(I119=0,0,IF(SUM(I$44:I120)<0,0,IF(AND(SUM(I$44:I120)>0,O119=0),SUM(I$44:I120),I120)))) ->  | P120: 0 | Q120: 0 | S120: 0
C121: 78 | D121: =+IF($H$42=0, Calculos!B82, Calculos!BA83) -> 2029-11-23 | E121: 31 | F121: =+Calculos!I83 ->  | G121: =+Calculos!BC83 -> 0 | H121: =+Calculos!BE83 -> 0 | I121: =+Calculos!BF83 ->  | J121: =+Calculos!BG83 ->  | K121: 0 | L121: 0 | N121: 0 | O121: =IF($D$19<>0,IF($D$19>0,(L121-L122),MAX(K121-P121-N121-M121,0)),IF(I120=0,0,IF(SUM(I$44:I121)<0,0,IF(AND(SUM(I$44:I121)>0,O120=0),SUM(I$44:I121),I121)))) ->  | P121: 0 | Q121: 0 | S121: 0
C122: 79 | D122: =+IF($H$42=0, Calculos!B83, Calculos!BA84) -> 2029-12-23 | E122: 30 | F122: =+Calculos!I84 ->  | G122: =+Calculos!BC84 -> 0 | H122: =+Calculos!BE84 -> 0 | I122: =+Calculos!BF84 ->  | J122: =+Calculos!BG84 ->  | K122: 0 | L122: 0 | N122: 0 | O122: =IF($D$19<>0,IF($D$19>0,(L122-L123),MAX(K122-P122-N122-M122,0)),IF(I121=0,0,IF(SUM(I$44:I122)<0,0,IF(AND(SUM(I$44:I122)>0,O121=0),SUM(I$44:I122),I122)))) ->  | P122: 0 | Q122: 0 | S122: 0
C123: =+C122+1 -> 80 | D123: =+IF($H$42=0, Calculos!B84, Calculos!BA85) -> 2030-01-23 | E123: 31 | F123: =+Calculos!I85 ->  | G123: =+Calculos!BC85 -> 0 | H123: =+Calculos!BE85 -> 0 | I123: =+Calculos!BF85 ->  | J123: =+Calculos!BG85 ->  | K123: 0 | L123: 0 | N123: 0 | O123: =IF($D$19<>0,IF($D$19>0,(L123-L124),MAX(K123-P123-N123-M123,0)),IF(I122=0,0,IF(SUM(I$44:I123)<0,0,IF(AND(SUM(I$44:I123)>0,O122=0),SUM(I$44:I123),I123)))) ->  | P123: 0 | Q123: 0 | S123: 0
C124: 81 | D124: =+IF($H$42=0, Calculos!B85, Calculos!BA86) -> 2030-02-23 | E124: 31 | F124: =+Calculos!I86 ->  | G124: =+Calculos!BC86 -> 0 | H124: =+Calculos!BE86 -> 0 | I124: =+Calculos!BF86 ->  | J124: =+Calculos!BG86 ->  | K124: 0 | L124: 0 | N124: 0 | O124: =IF($D$19<>0,IF($D$19>0,(L124-L125),MAX(K124-P124-N124-M124,0)),IF(I123=0,0,IF(SUM(I$44:I124)<0,0,IF(AND(SUM(I$44:I124)>0,O123=0),SUM(I$44:I124),I124)))) ->  | P124: 0 | Q124: 0 | S124: 0
C125: 82 | D125: =+IF($H$42=0, Calculos!B86, Calculos!BA87) -> 2030-03-23 | E125: 28 | F125: =+Calculos!I87 ->  | G125: =+Calculos!BC87 -> 0 | H125: =+Calculos!BE87 -> 0 | I125: =+Calculos!BF87 ->  | J125: =+Calculos!BG87 ->  | K125: 0 | L125: 0 | N125: 0 | O125: =IF($D$19<>0,IF($D$19>0,(L125-L126),MAX(K125-P125-N125-M125,0)),IF(I124=0,0,IF(SUM(I$44:I125)<0,0,IF(AND(SUM(I$44:I125)>0,O124=0),SUM(I$44:I125),I125)))) ->  | P125: 0 | Q125: 0 | S125: 0
C126: 83 | D126: =+IF($H$42=0, Calculos!B87, Calculos!BA88) -> 2030-04-23 | E126: 31 | F126: =+Calculos!I88 ->  | G126: =+Calculos!BC88 -> 0 | H126: =+Calculos!BE88 -> 0 | I126: =+Calculos!BF88 ->  | J126: =+Calculos!BG88 ->  | K126: 0 | L126: 0 | N126: 0 | O126: =IF($D$19<>0,IF($D$19>0,(L126-L127),MAX(K126-P126-N126-M126,0)),IF(I125=0,0,IF(SUM(I$44:I126)<0,0,IF(AND(SUM(I$44:I126)>0,O125=0),SUM(I$44:I126),I126)))) ->  | P126: 0 | Q126: 0 | S126: 0
C127: 84 | D127: =+IF($H$42=0, Calculos!B88, Calculos!BA89) -> 2030-05-23 | E127: 30 | F127: =+Calculos!I89 ->  | G127: =+Calculos!BC89 -> 0 | H127: =+Calculos!BE89 -> 0 | I127: =+Calculos!BF89 ->  | J127: =+Calculos!BG89 ->  | K127: 0 | L127: 0 | N127: 0 | O127: =IF($D$19<>0,IF($D$19>0,(L127-L128),MAX(K127-P127-N127-M127,0)),IF(I126=0,0,IF(SUM(I$44:I127)<0,0,IF(AND(SUM(I$44:I127)>0,O126=0),SUM(I$44:I127),I127)))) ->  | P127: 0 | Q127: 0 | S127: 0
C128: 85 | D128: =+IF($H$42=0, Calculos!B89, Calculos!BA90) -> 2030-06-23 | E128: 31 | F128: =+Calculos!I90 ->  | G128: =+Calculos!BC90 -> 0 | H128: =+Calculos!BE90 -> 0 | I128: =+Calculos!BF90 ->  | J128: =+Calculos!BG90 ->  | K128: 0 | L128: 0 | N128: 0 | O128: =IF($D$19<>0,IF($D$19>0,(L128-L129),MAX(K128-P128-N128-M128,0)),IF(I127=0,0,IF(SUM(I$44:I128)<0,0,IF(AND(SUM(I$44:I128)>0,O127=0),SUM(I$44:I128),I128)))) ->  | P128: 0 | Q128: 0 | S128: 0
C129: 86 | D129: =+IF($H$42=0, Calculos!B90, Calculos!BA91) -> 2030-07-23 | E129: 30 | F129: =+Calculos!I91 ->  | G129: =+Calculos!BC91 -> 0 | H129: =+Calculos!BE91 -> 0 | I129: =+Calculos!BF91 ->  | J129: =+Calculos!BG91 ->  | K129: 0 | L129: 0 | N129: 0 | O129: =IF($D$19<>0,IF($D$19>0,(L129-L130),MAX(K129-P129-N129-M129,0)),IF(I128=0,0,IF(SUM(I$44:I129)<0,0,IF(AND(SUM(I$44:I129)>0,O128=0),SUM(I$44:I129),I129)))) ->  | P129: 0 | Q129: 0 | S129: 0
C130: 87 | D130: =+IF($H$42=0, Calculos!B91, Calculos!BA92) -> 2030-08-23 | E130: 31 | F130: =+Calculos!I92 ->  | G130: =+Calculos!BC92 -> 0 | H130: =+Calculos!BE92 -> 0 | I130: =+Calculos!BF92 ->  | J130: =+Calculos!BG92 ->  | K130: 0 | L130: 0 | N130: 0 | O130: =IF($D$19<>0,IF($D$19>0,(L130-L131),MAX(K130-P130-N130-M130,0)),IF(I129=0,0,IF(SUM(I$44:I130)<0,0,IF(AND(SUM(I$44:I130)>0,O129=0),SUM(I$44:I130),I130)))) ->  | P130: 0 | Q130: 0 | S130: 0
C131: 88 | D131: =+IF($H$42=0, Calculos!B92, Calculos!BA93) -> 2030-09-23 | E131: 31 | F131: =+Calculos!I93 ->  | G131: =+Calculos!BC93 -> 0 | H131: =+Calculos!BE93 -> 0 | I131: =+Calculos!BF93 ->  | J131: =+Calculos!BG93 ->  | K131: 0 | L131: 0 | N131: 0 | O131: =IF($D$19<>0,IF($D$19>0,(L131-L132),MAX(K131-P131-N131-M131,0)),IF(I130=0,0,IF(SUM(I$44:I131)<0,0,IF(AND(SUM(I$44:I131)>0,O130=0),SUM(I$44:I131),I131)))) ->  | P131: 0 | Q131: 0 | S131: 0
C132: 89 | D132: =+IF($H$42=0, Calculos!B93, Calculos!BA94) -> 2030-10-23 | E132: 30 | F132: =+Calculos!I94 ->  | G132: =+Calculos!BC94 -> 0 | H132: =+Calculos!BE94 -> 0 | I132: =+Calculos!BF94 ->  | J132: =+Calculos!BG94 ->  | K132: 0 | L132: 0 | N132: 0 | O132: =IF($D$19<>0,IF($D$19>0,(L132-L133),MAX(K132-P132-N132-M132,0)),IF(I131=0,0,IF(SUM(I$44:I132)<0,0,IF(AND(SUM(I$44:I132)>0,O131=0),SUM(I$44:I132),I132)))) ->  | P132: 0 | Q132: 0 | S132: 0
C133: 90 | D133: =+IF($H$42=0, Calculos!B94, Calculos!BA95) -> 2030-11-23 | E133: 31 | F133: =+Calculos!I95 ->  | G133: =+Calculos!BC95 -> 0 | H133: =+Calculos!BE95 -> 0 | I133: =+Calculos!BF95 ->  | J133: =+Calculos!BG95 ->  | K133: 0 | L133: 0 | N133: 0 | O133: =IF($D$19<>0,IF($D$19>0,(L133-L134),MAX(K133-P133-N133-M133,0)),IF(I132=0,0,IF(SUM(I$44:I133)<0,0,IF(AND(SUM(I$44:I133)>0,O132=0),SUM(I$44:I133),I133)))) ->  | P133: 0 | Q133: 0 | S133: 0
C134: 91 | D134: =+IF($H$42=0, Calculos!B95, Calculos!BA96) -> 2030-12-23 | E134: 30 | F134: =+Calculos!I96 ->  | G134: =+Calculos!BC96 -> 0 | H134: =+Calculos!BE96 -> 0 | I134: =+Calculos!BF96 ->  | J134: =+Calculos!BG96 ->  | K134: 0 | L134: 0 | N134: 0 | O134: =IF($D$19<>0,IF($D$19>0,(L134-L135),MAX(K134-P134-N134-M134,0)),IF(I133=0,0,IF(SUM(I$44:I134)<0,0,IF(AND(SUM(I$44:I134)>0,O133=0),SUM(I$44:I134),I134)))) ->  | P134: 0 | Q134: 0 | S134: 0
C135: 92 | D135: =+IF($H$42=0, Calculos!B96, Calculos!BA97) -> 2031-01-23 | E135: 31 | F135: =+Calculos!I97 ->  | G135: =+Calculos!BC97 -> 0 | H135: =+Calculos!BE97 -> 0 | I135: =+Calculos!BF97 ->  | J135: =+Calculos!BG97 ->  | K135: 0 | L135: 0 | N135: 0 | O135: =IF($D$19<>0,IF($D$19>0,(L135-L136),MAX(K135-P135-N135-M135,0)),IF(I134=0,0,IF(SUM(I$44:I135)<0,0,IF(AND(SUM(I$44:I135)>0,O134=0),SUM(I$44:I135),I135)))) ->  | P135: 0 | Q135: 0 | S135: 0
C136: 93 | D136: =+IF($H$42=0, Calculos!B97, Calculos!BA98) -> 2031-02-23 | E136: 31 | F136: =+Calculos!I98 ->  | G136: =+Calculos!BC98 -> 0 | H136: =+Calculos!BE98 -> 0 | I136: =+Calculos!BF98 ->  | J136: =+Calculos!BG98 ->  | K136: 0 | L136: 0 | N136: 0 | O136: =IF($D$19<>0,IF($D$19>0,(L136-L137),MAX(K136-P136-N136-M136,0)),IF(I135=0,0,IF(SUM(I$44:I136)<0,0,IF(AND(SUM(I$44:I136)>0,O135=0),SUM(I$44:I136),I136)))) ->  | P136: 0 | Q136: 0 | S136: 0
C137: 94 | D137: =+IF($H$42=0, Calculos!B98, Calculos!BA99) -> 2031-03-23 | E137: 28 | F137: =+Calculos!I99 ->  | G137: =+Calculos!BC99 -> 0 | H137: =+Calculos!BE99 -> 0 | I137: =+Calculos!BF99 ->  | J137: =+Calculos!BG99 ->  | K137: 0 | L137: 0 | N137: 0 | O137: =IF($D$19<>0,IF($D$19>0,(L137-L138),MAX(K137-P137-N137-M137,0)),IF(I136=0,0,IF(SUM(I$44:I137)<0,0,IF(AND(SUM(I$44:I137)>0,O136=0),SUM(I$44:I137),I137)))) ->  | P137: 0 | Q137: 0 | S137: 0
C138: 95 | D138: =+IF($H$42=0, Calculos!B99, Calculos!BA100) -> 2031-04-23 | E138: 31 | F138: =+Calculos!I100 ->  | G138: =+Calculos!BC100 -> 0 | H138: =+Calculos!BE100 -> 0 | I138: =+Calculos!BF100 ->  | J138: =+Calculos!BG100 ->  | K138: 0 | L138: 0 | N138: 0 | O138: =IF($D$19<>0,IF($D$19>0,(L138-L139),MAX(K138-P138-N138-M138,0)),IF(I137=0,0,IF(SUM(I$44:I138)<0,0,IF(AND(SUM(I$44:I138)>0,O137=0),SUM(I$44:I138),I138)))) ->  | P138: 0 | Q138: 0 | S138: 0
C139: 96 | D139: =+IF($H$42=0, Calculos!B100, Calculos!BA101) -> 2031-05-23 | E139: 30 | F139: =+Calculos!I101 ->  | G139: =+Calculos!BC101 -> 0 | H139: =+Calculos!BE101 -> 0 | I139: =+Calculos!BF101 ->  | J139: =+Calculos!BG101 ->  | K139: 0 | L139: 0 | N139: 0 | O139: =IF($D$19<>0,IF($D$19>0,(L139-L140),MAX(K139-P139-N139-M139,0)),IF(I138=0,0,IF(SUM(I$44:I139)<0,0,IF(AND(SUM(I$44:I139)>0,O138=0),SUM(I$44:I139),I139)))) ->  | P139: 0 | Q139: 0 | S139: 0
C140: 97 | D140: =+IF($H$42=0, Calculos!B101, Calculos!BA102) -> 2031-06-23 | E140: 31 | F140: =+Calculos!I102 ->  | G140: =+Calculos!BC102 -> 0 | H140: =+Calculos!BE102 -> 0 | I140: =+Calculos!BF102 ->  | J140: =+Calculos!BG102 ->  | K140: 0 | L140: 0 | N140: 0 | O140: =IF($D$19<>0,IF($D$19>0,(L140-L141),MAX(K140-P140-N140-M140,0)),IF(I139=0,0,IF(SUM(I$44:I140)<0,0,IF(AND(SUM(I$44:I140)>0,O139=0),SUM(I$44:I140),I140)))) ->  | P140: 0 | Q140: 0 | S140: 0
C141: 98 | D141: =+IF($H$42=0, Calculos!B102, Calculos!BA103) -> 2031-07-23 | E141: =+D141-D140 -> 30 | F141: =+Calculos!I103 ->  | G141: =+Calculos!BC103 -> 0 | H141: =+Calculos!BE103 -> 0 | I141: =+Calculos!BF103 ->  | J141: =+Calculos!BG103 ->  | K141: 0 | L141: 0 | N141: 0 | O141: =IF($D$19<>0,IF($D$19>0,(L141-L142),MAX(K141-P141-N141-M141,0)),IF(I140=0,0,IF(SUM(I$44:I141)<0,0,IF(AND(SUM(I$44:I141)>0,O140=0),SUM(I$44:I141),I141)))) ->  | P141: 0 | Q141: 0 | S141: 0
C142: 99 | D142: =+IF($H$42=0, Calculos!B103, Calculos!BA104) -> 2031-08-23 | E142: 31 | F142: =+Calculos!I104 ->  | G142: =+Calculos!BC104 -> 0 | H142: =+Calculos!BE104 -> 0 | I142: =+Calculos!BF104 ->  | J142: =+Calculos!BG104 ->  | K142: 0 | L142: 0 | N142: 0 | O142: =IF($D$19<>0,IF($D$19>0,(L142-L143),MAX(K142-P142-N142-M142,0)),IF(I141=0,0,IF(SUM(I$44:I142)<0,0,IF(AND(SUM(I$44:I142)>0,O141=0),SUM(I$44:I142),I142)))) ->  | P142: 0 | Q142: 0 | S142: 0
C143: 100 | D143: =+IF($H$42=0, Calculos!B104, Calculos!BA105) -> 2031-09-23 | E143: 31 | F143: =+Calculos!I105 ->  | G143: =+Calculos!BC105 -> 0 | H143: =+Calculos!BE105 -> 0 | I143: =+Calculos!BF105 ->  | J143: =+Calculos!BG105 ->  | K143: 0 | L143: 0 | N143: 0 | O143: =IF($D$19<>0,IF($D$19>0,(L143-L144),MAX(K143-P143-N143-M143,0)),IF(I142=0,0,IF(SUM(I$44:I143)<0,0,IF(AND(SUM(I$44:I143)>0,O142=0),SUM(I$44:I143),I143)))) ->  | P143: 0 | Q143: 0 | S143: 0
C144: 101 | D144: =+IF($H$42=0, Calculos!B105, Calculos!BA106) -> 2031-10-23 | E144: 30 | F144: =+Calculos!I106 ->  | G144: =+Calculos!BC106 -> 0 | H144: =+Calculos!BE106 -> 0 | I144: =+Calculos!BF106 ->  | J144: =+Calculos!BG106 ->  | K144: 0 | L144: 0 | N144: 0 | O144: =IF($D$19<>0,IF($D$19>0,(L144-L145),MAX(K144-P144-N144-M144,0)),IF(I143=0,0,IF(SUM(I$44:I144)<0,0,IF(AND(SUM(I$44:I144)>0,O143=0),SUM(I$44:I144),I144)))) ->  | P144: 0 | Q144: 0 | S144: 0
C145: 102 | D145: =+IF($H$42=0, Calculos!B106, Calculos!BA107) -> 2031-11-23 | E145: 31 | F145: =+Calculos!I107 ->  | G145: =+Calculos!BC107 -> 0 | H145: =+Calculos!BE107 -> 0 | I145: =+Calculos!BF107 ->  | J145: =+Calculos!BG107 ->  | K145: 0 | L145: 0 | N145: 0 | O145: =IF($D$19<>0,IF($D$19>0,(L145-L146),MAX(K145-P145-N145-M145,0)),IF(I144=0,0,IF(SUM(I$44:I145)<0,0,IF(AND(SUM(I$44:I145)>0,O144=0),SUM(I$44:I145),I145)))) ->  | P145: 0 | Q145: 0 | S145: 0
C146: 103 | D146: =+IF($H$42=0, Calculos!B107, Calculos!BA108) -> 2031-12-23 | E146: 30 | F146: =+Calculos!I108 ->  | G146: =+Calculos!BC108 -> 0 | H146: =+Calculos!BE108 -> 0 | I146: =+Calculos!BF108 ->  | J146: =+Calculos!BG108 ->  | K146: 0 | L146: 0 | N146: 0 | O146: =IF($D$19<>0,IF($D$19>0,(L146-L147),MAX(K146-P146-N146-M146,0)),IF(I145=0,0,IF(SUM(I$44:I146)<0,0,IF(AND(SUM(I$44:I146)>0,O145=0),SUM(I$44:I146),I146)))) ->  | P146: 0 | Q146: 0 | S146: 0
C147: 104 | D147: =+IF($H$42=0, Calculos!B108, Calculos!BA109) -> 2032-01-23 | E147: 31 | F147: =+Calculos!I109 ->  | G147: =+Calculos!BC109 -> 0 | H147: =+Calculos!BE109 -> 0 | I147: =+Calculos!BF109 ->  | J147: =+Calculos!BG109 ->  | K147: 0 | L147: 0 | N147: 0 | O147: =IF($D$19<>0,IF($D$19>0,(L147-L148),MAX(K147-P147-N147-M147,0)),IF(I146=0,0,IF(SUM(I$44:I147)<0,0,IF(AND(SUM(I$44:I147)>0,O146=0),SUM(I$44:I147),I147)))) ->  | P147: 0 | Q147: 0 | S147: 0
C148: 105 | D148: =+IF($H$42=0, Calculos!B109, Calculos!BA110) -> 2032-02-23 | E148: 31 | F148: =+Calculos!I110 ->  | G148: =+Calculos!BC110 -> 0 | H148: =+Calculos!BE110 -> 0 | I148: =+Calculos!BF110 ->  | J148: =+Calculos!BG110 ->  | K148: 0 | L148: 0 | N148: 0 | O148: =IF($D$19<>0,IF($D$19>0,(L148-L149),MAX(K148-P148-N148-M148,0)),IF(I147=0,0,IF(SUM(I$44:I148)<0,0,IF(AND(SUM(I$44:I148)>0,O147=0),SUM(I$44:I148),I148)))) ->  | P148: 0 | Q148: 0 | S148: 0
C149: 106 | D149: =+IF($H$42=0, Calculos!B110, Calculos!BA111) -> 2032-03-23 | E149: 29 | F149: =+Calculos!I111 ->  | G149: =+Calculos!BC111 -> 0 | H149: =+Calculos!BE111 -> 0 | I149: =+Calculos!BF111 ->  | J149: =+Calculos!BG111 ->  | K149: 0 | L149: 0 | N149: 0 | O149: =IF($D$19<>0,IF($D$19>0,(L149-L150),MAX(K149-P149-N149-M149,0)),IF(I148=0,0,IF(SUM(I$44:I149)<0,0,IF(AND(SUM(I$44:I149)>0,O148=0),SUM(I$44:I149),I149)))) ->  | P149: 0 | Q149: 0 | S149: 0
C150: 107 | D150: =+IF($H$42=0, Calculos!B111, Calculos!BA112) -> 2032-04-23 | E150: 31 | F150: =+Calculos!I112 ->  | G150: =+Calculos!BC112 -> 0 | H150: =+Calculos!BE112 -> 0 | I150: =+Calculos!BF112 ->  | J150: =+Calculos!BG112 ->  | K150: 0 | L150: 0 | N150: 0 | O150: =IF($D$19<>0,IF($D$19>0,(L150-L151),MAX(K150-P150-N150-M150,0)),IF(I149=0,0,IF(SUM(I$44:I150)<0,0,IF(AND(SUM(I$44:I150)>0,O149=0),SUM(I$44:I150),I150)))) ->  | P150: 0 | Q150: 0 | S150: 0
C151: 108 | D151: =+IF($H$42=0, Calculos!B112, Calculos!BA113) -> 2032-05-23 | E151: 30 | F151: =+Calculos!I113 ->  | G151: =+Calculos!BC113 -> 0 | H151: =+Calculos!BE113 -> 0 | I151: =+Calculos!BF113 ->  | J151: =+Calculos!BG113 ->  | K151: 0 | L151: 0 | N151: 0 | O151: =IF($D$19<>0,IF($D$19>0,(L151-L152),MAX(K151-P151-N151-M151,0)),IF(I150=0,0,IF(SUM(I$44:I151)<0,0,IF(AND(SUM(I$44:I151)>0,O150=0),SUM(I$44:I151),I151)))) ->  | P151: 0 | Q151: 0 | S151: 0
C152: 109 | D152: =+IF($H$42=0, Calculos!B113, Calculos!BA114) -> 2032-06-23 | E152: 31 | F152: =+Calculos!I114 ->  | G152: =+Calculos!BC114 -> 0 | H152: =+Calculos!BE114 -> 0 | I152: =+Calculos!BF114 ->  | J152: =+Calculos!BG114 ->  | K152: 0 | L152: 0 | N152: 0 | O152: =IF($D$19<>0,IF($D$19>0,(L152-L153),MAX(K152-P152-N152-M152,0)),IF(I151=0,0,IF(SUM(I$44:I152)<0,0,IF(AND(SUM(I$44:I152)>0,O151=0),SUM(I$44:I152),I152)))) ->  | P152: 0 | Q152: 0 | S152: 0
C153: 110 | D153: =+IF($H$42=0, Calculos!B114, Calculos!BA115) -> 2032-07-23 | E153: 30 | F153: =+Calculos!I115 ->  | G153: =+Calculos!BC115 -> 0 | H153: =+Calculos!BE115 -> 0 | I153: =+Calculos!BF115 ->  | J153: =+Calculos!BG115 ->  | K153: 0 | L153: 0 | N153: 0 | O153: =IF($D$19<>0,IF($D$19>0,(L153-L154),MAX(K153-P153-N153-M153,0)),IF(I152=0,0,IF(SUM(I$44:I153)<0,0,IF(AND(SUM(I$44:I153)>0,O152=0),SUM(I$44:I153),I153)))) ->  | P153: 0 | Q153: 0 | S153: 0
C154: 111 | D154: =+IF($H$42=0, Calculos!B115, Calculos!BA116) -> 2032-08-23 | E154: 31 | F154: =+Calculos!I116 ->  | G154: =+Calculos!BC116 -> 0 | H154: =+Calculos!BE116 -> 0 | I154: =+Calculos!BF116 ->  | J154: =+Calculos!BG116 ->  | K154: 0 | L154: 0 | N154: 0 | O154: =IF($D$19<>0,IF($D$19>0,(L154-L155),MAX(K154-P154-N154-M154,0)),IF(I153=0,0,IF(SUM(I$44:I154)<0,0,IF(AND(SUM(I$44:I154)>0,O153=0),SUM(I$44:I154),I154)))) ->  | P154: 0 | Q154: 0 | S154: 0
C155: 112 | D155: =+IF($H$42=0, Calculos!B116, Calculos!BA117) -> 2032-09-23 | E155: 31 | F155: =+Calculos!I117 ->  | G155: =+Calculos!BC117 -> 0 | H155: =+Calculos!BE117 -> 0 | I155: =+Calculos!BF117 ->  | J155: =+Calculos!BG117 ->  | K155: 0 | L155: 0 | N155: 0 | O155: =IF($D$19<>0,IF($D$19>0,(L155-L156),MAX(K155-P155-N155-M155,0)),IF(I154=0,0,IF(SUM(I$44:I155)<0,0,IF(AND(SUM(I$44:I155)>0,O154=0),SUM(I$44:I155),I155)))) ->  | P155: 0 | Q155: 0 | S155: 0
C156: =+C155+1 -> 113 | D156: =+IF($H$42=0, Calculos!B117, Calculos!BA118) -> 2032-10-23 | E156: 30 | F156: =+Calculos!I118 ->  | G156: =+Calculos!BC118 -> 0 | H156: =+Calculos!BE118 -> 0 | I156: =+Calculos!BF118 ->  | J156: =+Calculos!BG118 ->  | K156: 0 | L156: 0 | N156: 0 | O156: =IF($D$19<>0,IF($D$19>0,(L156-L157),MAX(K156-P156-N156-M156,0)),IF(I155=0,0,IF(SUM(I$44:I156)<0,0,IF(AND(SUM(I$44:I156)>0,O155=0),SUM(I$44:I156),I156)))) ->  | P156: 0 | Q156: 0 | S156: 0
C157: 114 | D157: =+IF($H$42=0, Calculos!B118, Calculos!BA119) -> 2032-11-23 | E157: 31 | F157: =+Calculos!I119 ->  | G157: =+Calculos!BC119 -> 0 | H157: =+Calculos!BE119 -> 0 | I157: =+Calculos!BF119 ->  | J157: =+Calculos!BG119 ->  | K157: 0 | L157: 0 | N157: 0 | O157: =IF($D$19<>0,IF($D$19>0,(L157-L158),MAX(K157-P157-N157-M157,0)),IF(I156=0,0,IF(SUM(I$44:I157)<0,0,IF(AND(SUM(I$44:I157)>0,O156=0),SUM(I$44:I157),I157)))) ->  | P157: 0 | Q157: 0 | S157: 0
C158: 115 | D158: =+IF($H$42=0, Calculos!B119, Calculos!BA120) -> 2032-12-23 | E158: 30 | F158: =+Calculos!I120 ->  | G158: =+Calculos!BC120 -> 0 | H158: =+Calculos!BE120 -> 0 | I158: =+Calculos!BF120 ->  | J158: =+Calculos!BG120 ->  | K158: 0 | L158: 0 | N158: 0 | O158: =IF($D$19<>0,IF($D$19>0,(L158-L159),MAX(K158-P158-N158-M158,0)),IF(I157=0,0,IF(SUM(I$44:I158)<0,0,IF(AND(SUM(I$44:I158)>0,O157=0),SUM(I$44:I158),I158)))) ->  | P158: 0 | Q158: 0 | S158: 0
C159: 116 | D159: =+IF($H$42=0, Calculos!B120, Calculos!BA121) -> 2033-01-23 | E159: 31 | F159: =+Calculos!I121 ->  | G159: =+Calculos!BC121 -> 0 | H159: =+Calculos!BE121 -> 0 | I159: =+Calculos!BF121 ->  | J159: =+Calculos!BG121 ->  | K159: 0 | L159: 0 | N159: 0 | O159: =IF($D$19<>0,IF($D$19>0,(L159-L160),MAX(K159-P159-N159-M159,0)),IF(I158=0,0,IF(SUM(I$44:I159)<0,0,IF(AND(SUM(I$44:I159)>0,O158=0),SUM(I$44:I159),I159)))) ->  | P159: 0 | Q159: 0 | S159: 0
C160: 117 | D160: =+IF($H$42=0, Calculos!B121, Calculos!BA122) -> 2033-02-23 | E160: 31 | F160: =+Calculos!I122 ->  | G160: =+Calculos!BC122 -> 0 | H160: =+Calculos!BE122 -> 0 | I160: =+Calculos!BF122 ->  | J160: =+Calculos!BG122 ->  | K160: 0 | L160: 0 | N160: 0 | O160: =IF($D$19<>0,IF($D$19>0,(L160-L161),MAX(K160-P160-N160-M160,0)),IF(I159=0,0,IF(SUM(I$44:I160)<0,0,IF(AND(SUM(I$44:I160)>0,O159=0),SUM(I$44:I160),I160)))) ->  | P160: 0 | Q160: 0 | S160: 0
C161: 118 | D161: =+IF($H$42=0, Calculos!B122, Calculos!BA123) -> 2033-03-23 | E161: 28 | F161: =+Calculos!I123 ->  | G161: =+Calculos!BC123 -> 0 | H161: =+Calculos!BE123 -> 0 | I161: =+Calculos!BF123 ->  | J161: =+Calculos!BG123 ->  | K161: 0 | L161: 0 | N161: 0 | O161: =IF($D$19<>0,IF($D$19>0,(L161-L162),MAX(K161-P161-N161-M161,0)),IF(I160=0,0,IF(SUM(I$44:I161)<0,0,IF(AND(SUM(I$44:I161)>0,O160=0),SUM(I$44:I161),I161)))) ->  | P161: 0 | Q161: 0 | S161: 0
C162: 119 | D162: =+IF($H$42=0, Calculos!B123, Calculos!BA124) -> 2033-04-23 | E162: 31 | F162: =+Calculos!I124 ->  | G162: =+Calculos!BC124 -> 0 | H162: =+Calculos!BE124 -> 0 | I162: =+Calculos!BF124 ->  | J162: =+Calculos!BG124 ->  | K162: 0 | L162: 0 | N162: 0 | O162: =IF($D$19<>0,IF($D$19>0,(L162-L163),MAX(K162-P162-N162-M162,0)),IF(I161=0,0,IF(SUM(I$44:I162)<0,0,IF(AND(SUM(I$44:I162)>0,O161=0),SUM(I$44:I162),I162)))) ->  | P162: 0 | Q162: 0 | S162: 0
C163: 120 | D163: =+IF($H$42=0, Calculos!B124, Calculos!BA125) -> 2033-05-23 | E163: 30 | F163: =+Calculos!I125 ->  | G163: =+Calculos!BC125 -> 0 | H163: =+Calculos!BE125 -> 0 | I163: =+Calculos!BF125 ->  | J163: =+Calculos!BG125 ->  | K163: 0 | L163: 0 | N163: 0 | O163: =IF($D$19<>0,IF($D$19>0,(L163-L164),MAX(K163-P163-N163-M163,0)),IF(I162=0,0,IF(SUM(I$44:I163)<0,0,IF(AND(SUM(I$44:I163)>0,O162=0),SUM(I$44:I163),I163)))) ->  | P163: 0 | Q163: 0 | S163: 0

Sheet Calculos (hidden)
A1: Sí | B1: 0.003 | C1: Desgravamen | D1: =SIMULADOR!D33 -> 0.036 | E1: 8 | F1: =SIMULADOR!D33/12 -> 0.003 | AB1: Tasa mensual | AG1: =+SUMIF($AZ$6:$AZ$125,AG3,$E$6:$E$125) -> 3653 | AI1: =+AG8-AE8+AI8+AJ9+AK8 -> 0 | AQ1: =+SUMPRODUCT($AG$7:$AG$126,AP7:AP126) -> 0 | AR1: =+AQ1/AQ2+L6 ->  | AS1: =+SUMPRODUCT(AP6:AP126,AQ6:AQ126) -> 0 | BB1: =+SIMULADOR!H30 -> 0 | BE1: Plazo
A2: No | B2: 0.0018 | F2: Normal | S2: T-24 | AB2: =((1+'SIMULADOR CUOTAS'!E14)^(1/12)-1)/30 -> 3.425430821e-05 | AE2: Cuota | AO2: Duración | AQ2: =+SUMIF($D$6:$D$125,"<="&SIMULADOR!D17,$AQ$7:$AQ$126) -> 0 | BE2: Cuota | BI2: =+XIRR($BM$5:$BM$125,$BJ$5:$BJ$125,0) -> 0.1940229541 | BP2: x
E3: =(1+SIMULADOR!D32)^(1/360)-1 -> 0.0004109250453 | F3: =ROUNDUP((1+D1/360)-1,E1) -> 0.0001 | I3: =+H6 -> 89.27 | P3: =XIRR(INDIRECT("P5"):INDIRECT("P"&MATCH(9.9E+307,P:P,1)),INDIRECT("q5"):INDIRECT("q"&MATCH(9.9E+307,P:P,1)),0) -> 0.2036639014 | S3: Date | T3: Amortiz. | U3: Interest | V3: Desgrav. | W3: Comis. | X3: Cuota | Y3: Capital | AB3: =+OFFSET(AB6,COUNTIF($Q$6:$Q$126,0),0) -> 0 | AG3: =120-COUNTIF($BF$6:$BF$125,0) -> 120 | BI3: =(1+IRR(BI5:BI125))^12-1 -> 0.1945593972 | BM3: =+SUM(BM5:BM125) -> 1195.68
A4: Fecha Incial | B4: Fecha Final | E4: Factor 1 | F4: =+SUMIF(Calculos!$D$6:$D$125,"<="&SIMULADOR!D31,$F$6:$F$125) -> 33.54039276 | H4: =IF(D6<=SIMULADOR!$D$31,Calculos!$I$6/Calculos!$F$4,0) -> 89.44439088 | J4: =+SUM(J6:J125) -> 3000 | AB4: días | AC4: Días | AD4: Pago anticipado | AE4: Pago | AG4: Capital | AH4: amortización | AI4: Interés | AJ4: Desgravamen | AK4: Prot de pagos | AQ4: Factor | AR4: Pago | AS4: Pago anticipado | AT4: Capital | AU4: amortización | AV4: Interés | AW4: Desgravamen | AX4: Prot de pagos | BB4: Capital | BC4: Desgrav. | BD4: Prot de pagos | BE4: Pago Anticipado | BF4: Amortiz. | BG4: Interés
A5: =+SIMULADOR!$D$29 -> 2023-05-23 | B5: =+IF(SIMULADOR!$K$34-SIMULADOR!$D$15<=5,IF(SIMULADOR!$D$19>0,EDATE(SIMULADOR!$K$35,SIMULADOR!$D$19),EDATE(SIMULADOR!$K$35,0)),IF(SIMULADOR!$D$19>-3,EDATE(SIMULADOR!$K$35,SIMULADOR!$D$19),SIMULADOR!$K$35)) -> 2023-06-23 | E5: días acum | F5: Factor | G5: días | H5: Cuota | I5: Capital | J5: amortización | K5: Interes Pagado | L5: Desgravamen | M5: Comision | N5: Interes generados | P5: =-Calculos!I6 -> -3000 | Q5: =IF(P5<>"",0,"") -> 0 | T5: 40000 | X5: 0 | BA5: =+A5 -> 2023-05-23 | BI5: =-SIMULADOR!F44 -> -3000 | BJ5: 0 | BM5: =+BI5 -> -3000 | BW5: =+IF(BB1=BE1,COUNTIF(BB6:BB125,">"&H6),COUNTIF(BB6:BB125,">0")) -> 48
A6: =+B5 -> 2023-06-23 | B6: =+IF(AND(SIMULADOR!$D$18=31,DAY(EOMONTH(A6,1))<>31),DATE(YEAR(A6),MONTH(A6)+1,DAY(EOMONTH(A6,1))),IF(MONTH(EDATE(A6,1))=2,EDATE(A6,1),DATE(YEAR(EDATE(A6,1)),MONTH(EDATE(A6,1)),SIMULADOR!$D$18))) -> 2023-07-23 | D6: 1 | E6: =+B5-$A$5 -> 31 | F6: =1/((1+$E$3)^E6*(1+$F$3)^E6) -> 0.9842888239 | G6: =+E6 -> 31 | H6: 89.27 | I6: =SIMULADOR!D28 -> 3000 | J6: =IF(D6<=SIMULADOR!$D$17,H6-L6-K6-M6,"") -> 41.82 | K6: =N6 -> 38.45 | L6: =IF(D6>SIMULADOR!$D$17,0,IF(AND(D6<=SIMULADOR!$D$17,I6<=SIMULADOR!$D$13),ROUND(I6*$F$1,2),IF(I6>SIMULADOR!$D$13,SIMULADOR!$D$13*Calculos!$F$1,""))) -> 9 | M6: =IF(Calculos!D6<=SIMULADOR!$D$17,Calculos!$M$4,"") -> 0 | N6: =IF(D6<=SIMULADOR!$D$17,ROUND(I6*((1+$E$3)^G6-1),2),"") -> 38.45 | P6: =+IF(D6<=SIMULADOR!$D$17,SIMULADOR!Q44,"") -> 89.27 | Q6: =IF(P6<>"",E6,"") -> 31 | R6: =+N6+L6+J6 -> 89.27 | S6: =U6-K6 -> 607.29 | T6: 399.04 | U6: 645.74 | V6: 36 | W6: 3 | X6: =SUM(T6:W6) -> 1083.78 | Y6: =T5-T6 -> 39600.96 | AA6: =+G6-AC7 -> 31 | AB6: 0 | AC6: 0 | AD6: =+IF(AND(AB7<>0,AB6=0),SIMULADOR!$H$29,0) -> 0 | AE6: =IF(AND(AD5<>0,BO5=0),0,IF(AND(AD6=0),MIN($I$3,AJ6+AK6+(AG6)*(((1+$F$3)^(AA6+AC6))+($G$3*(AA6+AC6)))),AD6)) -> 0 | AG6: =IF(AND(IF(AD6<>0,I6,AG5-AE5+AI5+AJ6)<0.05,IF(AD6<>0,I6,AG5-AE5+AI5+AJ6+AK6)>-0.05),0,IF(AD6<>0,I6,AG5-AE5+AI5+AJ6+AK6)) -> 0 | AH6: =+AE6-AI6-AJ6-AK6 -> 0 | AI6: =AG6*((1+$E$3)^(AA6+AC6)-1) -> 0 | AJ6: =IF($BA6=SIMULADOR!$H$28,0,IF(OR(BO5=1,AND(AD6<>0,BO6=0)),L6,IF(AND(AC6+AD6>0,ABS(AG5-AH5)>0.01),L6,0))) -> 0 | AK6: =IF(OR(BO5=1,AND(AD6<>0,BO6=0)),$N$4,IF(AND(AC6+AD6>0,AD5=0,ABS(AG5-AH5)>0.01),$N$4,0)) -> 0 | AP6: =+IF(AND(AQ5=0,AQ6<>0),1,0) -> 0 | AQ6: =IF(AB6=0,0,1/((1+$E$3)^AB6)) -> 0 | AR6: =IF(AS6=0,IF($AR$1<AT5-AU5+AW6+AX6+AV6,$AR$1,((AT5-AU5)*(((1+$E$3)^(AA6+AC6)))+AW6+AX6)),AS6)-IF(AND(AS5<>0,BO6<>0),L6+$N$4,0) ->  | AS6: =+AD6 -> 0 | AT6: =IF(AND(IF(AND(AG5=0,AG6<>0),AG6,AT5-AR5+AV5+AW5+AX5)>-0.05,IF(AND(AG5=0,AG6<>0),AG6,AT5-AR5+AV5+AW5+AX5)<0.05),0,IF(AND(AG5=0,AG6<>0),AG6,AT5-AR5+AV5+AW5+AX5)) -> 0 | AU6: =IF(ABS(AR6-AV6-AW6-AX6)<0.01,0,AR6-AV6-AW6-AX6) ->  | AV6: =IF(BO6=1,AT6*((1+$E$3)^(AA6+AC6)-1),IF(AS6<>0,K6,AT6*((1+$E$3)^(AA6+AC6)-1))) -> 0 | AW6: =+IF(OR(BO5=1,AND($AD5=0,$AT6>0,BO6=0)),L6,0) -> 0 | AX6: 0 | AZ6: 1 | BA6: =+BA5+IF(SIMULADOR!$H$28<>"",AA6+AC6,G6) -> 2023-06-23 | BB6: =+IF(SUM(AE$6:AE6)=0,I6,IF($BB$1=$BE$1,AG6,AT6)) -> 3000 | BC6: =+IF(SUM(AE$6:AE6)=0,L6,IF($BB$1=$BE$1,AJ6,AW6)) -> 9 | BD6: 0 | BE6: =+IF(SUM(AE$6:AE6)=0,0,IF($BB$1=$BE$1,AD6,AS6)) -> 0 | BF6: =+IF(SUM(AE$6:AE6)=0,J6,IF($BB$1=$BE$1,AH6,AU6)) -> 41.82 | BG6: =+IF(SUM(AE$6:AE6)=0,K6,IF($BB$1=$BE$1,AI6,AV6)) -> 38.45 | BI6: =+SIMULADOR!K45 -> 89.27 | BJ6: =IF(BI6=0,0,Q6) -> 31 | BK6: =+BB6-BB7-BF6 -> 1.705302566e-13 | BM6: =+BI6 -> 89.27 | BO6: =+IF(AND(BA6<B5,BA6>A5),1,0) -> 0 | BP6: =+IF(BM6<H6,1,0) -> 0 | BQ6: =+BP6 -> 0 | BR6: =+AZ6 -> 1 | BS6: =+BB6 -> 3000 | BT6: =+BB7 -> 2958.18 | BU6: =+A6 -> 2023-06-23 | BW6: =+VLOOKUP(1, BO6:BR125,4,0) ->  | BX6: =+VLOOKUP(2, BQ6:BR125,2,0) -> 48 | BY6: =+BX6-BW6+1 -> 
A7: 2023-07-23 | B7: =+IF(AND(SIMULADOR!$D$18=31,DAY(EOMONTH(A7,1))<>31),DATE(YEAR(A7),MONTH(A7)+1,DAY(EOMONTH(A7,1))),IF(MONTH(EDATE(A7,1))=2,EDATE(A7,1),DATE(YEAR(EDATE(A7,1)),MONTH(EDATE(A7,1)),SIMULADOR!$D$18))) -> 2023-08-23 | D7: =+D6+1 -> 2 | E7: =+B6-$A$5 -> 61 | F7: =1/((1+$E$3)^E7*(1+$F$3)^E7) -> 0.9693195253 | G7: =+E7-E6 -> 30 | H7: =IF(D7<=SIMULADOR!$D$17,ROUND($H$6,2),"") -> 89.27 | I7: =IF(D7<=SIMULADOR!$D$17+1,I6-J6,"") -> 2958.18 | J7: =IF(D7<=SIMULADOR!$D$17,H7-L7-K7-M7,"") -> 43.71 | K7: =N7 -> 36.69 | L7: =IF(D7>SIMULADOR!$D$17,0,IF(AND(D7<=SIMULADOR!$D$17,I7<=SIMULADOR!$D$13),ROUND(I7*$F$1,2),IF(I7>SIMULADOR!$D$13,SIMULADOR!$D$13*Calculos!$F$1,""))) -> 8.87 | M7: =IF(Calculos!D7<=SIMULADOR!$D$17,Calculos!$M$4,"") -> 0 | N7: =IF(D7<=SIMULADOR!$D$17,ROUND(I7*((1+$E$3)^G7-1),2),"") -> 36.69 | P7: =+IF(D7<=SIMULADOR!$D$17,SIMULADOR!Q45,"") -> 89.27 | Q7: 61 | R7: 89.27 | S7: 398.08 | T7: 610.37 | U7: 434.77 | V7: 35.64 | W7: 3 | X7: =SUM(T7:W7) -> 1083.78 | Y7: =Y6-T7 -> 38990.59 | AA7: =+G7-AC8 -> 30 | AB7: =+IF(OR(Calculos!B5-SIMULADOR!$H$28<0,SIMULADOR!$H$28=0),0,Calculos!B5-SIMULADOR!$H$28) -> 0 | AC7: =+AB7-AB6 -> 0 | AD7: =+IF(AND(AB8<>0,AB7=0),SIMULADOR!$H$29,0) -> 0 | AE7: =IF(AND(AD7=0),MIN($I$3,AJ7+AK7+(AG7)*(((1+$E$3)^(AA7+AC7))+($G$3*(AA7+AC7)))),AD7) -> 0 | AG7: =IF(AND(IF(AD7<>0,I7,AG6-AE6+AI6+AJ6)<0.05,IF(AD7<>0,I7,AG6-AE6+AI6+AJ6+AK6)>-0.05),0,IF(AD7<>0,I7,AG6-AE6+AI6+AJ6+AK6)) -> 0 | AH7: =+IF(ABS(AE7-AI7-AJ7-AK7)<0.01,0,AE7-AI7-AJ7-AK7) -> 0 | AI7: =AG7*((1+$E$3)^(AA7+AC7)-1) -> 0 | AJ7: =IF($BA7=SIMULADOR!$H$28,0,IF(OR(BO6=1,AND(AD7<>0,BO7=0)),L7,IF(AND(AC7+AD7>0,ABS(AG6-AH6)>0.01),L7,0))) -> 0 | AK7: 0 | AP7: =+IF(AND(AQ6=0,AQ7<>0),1,0) -> 0 | AQ7: =IF(AB7=0,0,1/((1+$E$3)^AB7)) -> 0 | AR7: =IF(AS7=0,IF($AR$1<AT6-AU6+AW7+AX7+AV7,$AR$1,((AT6-AU6)*(((1+$E$3)^(AA7+AC7)))+AW7+AX7)),AS7)-IF(AND(AS6<>0,BO7<>0),L7+$N$4,0) ->  | AS7: =+AD7 -> 0 | AT7: =IF(AND(IF(AND(AG6=0,AG7<>0),AG7,AT6-AR6+AV6+AW6+AX6)>-0.05,IF(AND(AG6=0,AG7<>0),AG7,AT6-AR6+AV6+AW6+AX6)<0.05),0,IF(AND(AG6=0,AG7<>0),AG7,AT6-AR6+AV6+AW6+AX6)) ->  | AU7: =IF(ABS(AR7-AV7-AW7-AX7)<0.01,0,AR7-AV7-AW7-AX7) ->  | AV7: =IF(BO7=1,AT7*((1+$E$3)^(AA7+AC7)-1),IF(AS7<>0,K7,AT7*((1+$E$3)^(AA7+AC7)-1))) ->  | AW7: =+IF(OR(BO6=1,AND($AD6=0,$AT7>0,BO7=0)),L7,0) ->  | AX7: 0 | AZ7: =+AZ6+1 -> 2 | BA7: =+BA6+IF(SIMULADOR!$H$28<>"",AA7+AC7,G7) -> 2023-07-23 | BB7: =+IF(SUM(AE$6:AE7)=0,I7,IF($BB$1=$BE$1,AG7,AT7)) -> 2958.18 | BC7: =+IF(SUM(AE$6:AE7)=0,L7,IF($BB$1=$BE$1,AJ7,AW7)) -> 8.87 | BD7: 0 | BE7: =+IF(SUM(AE$6:AE7)=0,0,IF($BB$1=$BE$1,AD7,AS7)) -> 0 | BF7: =+IF(SUM(AE$6:AE7)=0,J7,IF($BB$1=$BE$1,AH7,AU7)) -> 43.71 | BG7: =+IF(SUM(AE$6:AE7)=0,K7,IF($BB$1=$BE$1,AI7,AV7)) -> 36.69 | BI7: =+SIMULADOR!K46 -> 89.27 | BJ7: 61 | BK7: 0 | BM7: 89.27 | BO7: =+IF(AND(BA7<B6,BA7>A6),1,0) -> 0 | BP7: =+IF(BM7<H7,1,0) -> 0 | BQ7: =+BP7+BQ6 -> 0 | BR7: =+AZ7 -> 2 | BS7: =+BB7 -> 2958.18 | BT7: =+BB8 -> 2914.47 | BU7: =+A7 -> 2023-07-23
A8: 2023-08-23 | B8: =+IF(AND(SIMULADOR!$D$18=31,DAY(EOMONTH(A8,1))<>31),DATE(YEAR(A8),MONTH(A8)+1,DAY(EOMONTH(A8,1))),IF(MONTH(EDATE(A8,1))=2,EDATE(A8,1),DATE(YEAR(EDATE(A8,1)),MONTH(EDATE(A8,1)),SIMULADOR!$D$18))) -> 2023-09-23 | D8: 3 | E8: =+B7-$A$5 -> 92 | F8: =1/((1+$E$3)^E8*(1+$F$3)^E8) -> 0.9540903755 | G8: =+E8-E7 -> 31 | H8: =IF(D8<=SIMULADOR!$D$17,ROUND($H$6,2),"") -> 89.27 | I8: =IF(D8<=SIMULADOR!$D$17+1,I7-J7,"") -> 2914.47 | J8: =IF(D8<=SIMULADOR!$D$17,H8-L8-K8-M8,"") -> 43.17 | K8: =N8 -> 37.36 | L8: =IF(D8>SIMULADOR!$D$17,0,IF(AND(D8<=SIMULADOR!$D$17,I8<=SIMULADOR!$D$13),ROUND(I8*$F$1,2),IF(I8>SIMULADOR!$D$13,SIMULADOR!$D$13*Calculos!$F$1,""))) -> 8.74 | M8: =IF(Calculos!D8<=SIMULADOR!$D$17,Calculos!$M$4,"") -> 0 | N8: =IF(D8<=SIMULADOR!$D$17,ROUND(I8*((1+$E$3)^G8-1),2),"") -> 37.36 | P8: =+IF(D8<=SIMULADOR!$D$17,SIMULADOR!Q46,"") -> 89.27 | Q8: 92 | R8: 89.27 | S8: 405.06 | T8: 603.27 | U8: 442.42 | V8: 35.09 | W8: 3 | X8: 1083.78 | Y8: =Y7-T8 -> 38387.32 | AA8: 31 | AB8: =+IF(OR(Calculos!B6-SIMULADOR!$H$28<0,SIMULADOR!$H$28=0),0,Calculos!B6-SIMULADOR!$H$28) -> 0 | AC8: =+AB8-AB7 -> 0 | AD8: =+IF(AND(AB9<>0,AB8=0),SIMULADOR!$H$29,0) -> 0 | AE8: =IF(AND(AD8=0),MIN($I$3,AJ8+AK8+(AG8)*(((1+$E$3)^(AA8+AC8))+($G$3*(AA8+AC8)))),AD8) -> 0 | AG8: =IF(AND(IF(AD8<>0,I8,AG7-AE7+AI7+AJ7)<0.05,IF(AD8<>0,I8,AG7-AE7+AI7+AJ7+AK7)>-0.05),0,IF(AD8<>0,I8,AG7-AE7+AI7+AJ7+AK7)) -> 0 | AH8: =+IF(ABS(AE8-AI8-AJ8-AK8)<0.01,0,AE8-AI8-AJ8-AK8) -> 0 | AI8: 0 | AJ8: =IF($BA8=SIMULADOR!$H$28,0,IF(OR(BO7=1,AND(AD8<>0,BO8=0)),L8,IF(AND(AC8+AD8>0,ABS(AG7-AH7)>0.01),L8,0))) -> 0 | AK8: 0 | AM8: =+AG8+AH7-AG7 -> 0 | AN8: =+SUM(AH8:AK8) -> 0 | AP8: =+IF(AND(AQ7=0,AQ8<>0),1,0) -> 0 | AQ8: 0 | AS8: 0 | AX8: 0 | AZ8: 3 | BA8: =+BA7+IF(SIMULADOR!$H$28<>"",AA8+AC8,G8) -> 2023-08-23 | BB8: =+IF(SUM(AE$6:AE8)=0,I8,IF($BB$1=$BE$1,AG8,AT8)) -> 2914.47 | BC8: =+IF(SUM(AE$6:AE8)=0,L8,IF($BB$1=$BE$1,AJ8,AW8)) -> 8.74 | BD8: 0 | BE8: =+IF(SUM(AE$6:AE8)=0,0,IF($BB$1=$BE$1,AD8,AS8)) -> 0 | BF8: =+IF(SUM(AE$6:AE8)=0,J8,IF($BB$1=$BE$1,AH8,AU8)) -> 43.17 | BG8: =+IF(SUM(AE$6:AE8)=0,K8,IF($BB$1=$BE$1,AI8,AV8)) -> 37.36 | BI8: =+SIMULADOR!K47 -> 89.27 | BJ8: 92 | BK8: 7.105427358e-14 | BM8: 89.27 | BO8: 0 | BP8: 0 | BQ8: =+BP8+BQ7 -> 0 | BR8: 3 | BS8: 2914.47 | BT8: 2871.3 | BU8: 2023-08-23
A9: 2023-09-23 | B9: =+IF(AND(SIMULADOR!$D$18=31,DAY(EOMONTH(A9,1))<>31),DATE(YEAR(A9),MONTH(A9)+1,DAY(EOMONTH(A9,1))),IF(MONTH(EDATE(A9,1))=2,EDATE(A9,1),DATE(YEAR(EDATE(A9,1)),MONTH(EDATE(A9,1)),SIMULADOR!$D$18))) -> 2023-10-23 | D9: 4 | E9: =+B8-$A$5 -> 123 | F9: =1/((1+$E$3)^E9*(1+$F$3)^E9) -> 0.9391004936 | G9: =+E9-E8 -> 31 | H9: =IF(D9<=SIMULADOR!$D$17,ROUND($H$6,2),"") -> 89.27 | I9: =IF(D9<=SIMULADOR!$D$17+1,I8-J8,"") -> 2871.3 | J9: =IF(D9<=SIMULADOR!$D$17,H9-L9-K9-M9,"") -> 43.86 | K9: 36.8 | L9: =IF(D9>SIMULADOR!$D$17,0,IF(AND(D9<=SIMULADOR!$D$17,I9<=SIMULADOR!$D$13),ROUND(I9*$F$1,2),IF(I9>SIMULADOR!$D$13,SIMULADOR!$D$13*Calculos!$F$1,""))) -> 8.61 | M9: =IF(Calculos!D9<=SIMULADOR!$D$17,Calculos!$M$4,"") -> 0 | N9: =IF(D9<=SIMULADOR!$D$17,ROUND(I9*((1+$E$3)^G9-1),2),"") -> 36.8 | P9: =+IF(D9<=SIMULADOR!$D$17,SIMULADOR!Q47,"") -> 89.27 | Q9: 123 | R9: 89.27 | S9: 398.78 | T9: 610.65 | U9: 435.58 | V9: 34.55 | W9: 3 | X9: 1083.78 | Y9: 37776.67 | AA9: 31 | AB9: =+IF(OR(Calculos!B7-SIMULADOR!$H$28<0,SIMULADOR!$H$28=0),0,Calculos!B7-SIMULADOR!$H$28) -> 0 | AC9: =+AB9-AB8 -> 0 | AD9: =+IF(AND(AB10<>0,AB9=0),SIMULADOR!$H$29,0) -> 0 | AE9: 0 | AG9: 0 | AH9: =+IF(ABS(AE9-AI9-AJ9-AK9)<0.01,0,AE9-AI9-AJ9-AK9) -> 0 | AI9: 0 | AJ9: =IF($BA9=SIMULADOR!$H$28,0,IF(OR(BO8=1,AND(AD9<>0,BO9=0)),L9,IF(AND(AC9+AD9>0,ABS(AG8-AH8)>0.01),L9,0))) -> 0 | AK9: 0 | AM9: =+AG9+AH8-AG8 -> 0 | AN9: 0 | AP9: =+IF(AND(AQ8=0,AQ9<>0),1,0) -> 0 | AQ9: 0 | AS9: 0 | AX9: 0 | AZ9: 4 | BA9: =+BA8+IF(SIMULADOR!$H$28<>"",AA9+AC9,G9) -> 2023-09-23 | BB9: =+IF(SUM(AE$6:AE9)=0,I9,IF($BB$1=$BE$1,AG9,AT9)) -> 2871.3 | BC9: =+IF(SUM(AE$6:AE9)=0,L9,IF($BB$1=$BE$1,AJ9,AW9)) -> 8.61 | BD9: 0 | BE9: =+IF(SUM(AE$6:AE9)=0,0,IF($BB$1=$BE$1,AD9,AS9)) -> 0 | BF9: =+IF(SUM(AE$6:AE9)=0,J9,IF($BB$1=$BE$1,AH9,AU9)) -> 43.86 | BG9: =+IF(SUM(AE$6:AE9)=0,K9,IF($BB$1=$BE$1,AI9,AV9)) -> 36.8 | BI9: =+SIMULADOR!K48 -> 89.27 | BJ9: 123 | BK9: 1.278976924e-13 | BM9: 89.27 | BO9: 0 | BP9: 0 | BQ9: 0 | BR9: 4 | BS9: 2871.3 | BT9: 2827.44 | BU9: 2023-09-23
A10: 2023-10-23 | B10: =+IF(AND(SIMULADOR!$D$18=31,DAY(EOMONTH(A10,1))<>31),DATE(YEAR(A10),MONTH(A10)+1,DAY(EOMONTH(A10,1))),IF(MONTH(EDATE(A10,1))=2,EDATE(A10,1),DATE(YEAR(EDATE(A10,1)),MONTH(EDATE(A10,1)),SIMULADOR!$D$18))) -> 2023-11-23 | C10: x | D10: 5 | E10: =+B9-$A$5 -> 153 | F10: =1/((1+$E$3)^E10*(1+$F$3)^E10) -> 0.9248184299 | G10: =+E10-E9 -> 30 | H10: =IF(D10<=SIMULADOR!$D$17,ROUND($H$6,2),"") -> 89.27 | I10: =IF(D10<=SIMULADOR!$D$17+1,I9-J9,"") -> 2827.44 | J10: =IF(D10<=SIMULADOR!$D$17,H10-L10-K10-M10,"") -> 45.73 | K10: 35.06 | L10: =IF(D10>SIMULADOR!$D$17,0,IF(AND(D10<=SIMULADOR!$D$17,I10<=SIMULADOR!$D$13),ROUND(I10*$F$1,2),IF(I10>SIMULADOR!$D$13,SIMULADOR!$D$13*Calculos!$F$1,""))) -> 8.48 | M10: =IF(Calculos!D10<=SIMULADOR!$D$17,Calculos!$M$4,"") -> 0 | N10: =IF(D10<=SIMULADOR!$D$17,ROUND(I10*((1+$E$3)^G10-1),2),"") -> 35.06 | P10: =+IF(D10<=SIMULADOR!$D$17,SIMULADOR!Q48,"") -> 89.27 | Q10: 153 | R10: 89.27 | S10: 379.68 | T10: 632.04 | U10: 414.74 | V10: 34 | W10: 3 | X10: 1083.78 | Y10: 37144.63 | AA10: 30 | AB10: =+IF(OR(Calculos!B8-SIMULADOR!$H$28<0,SIMULADOR!$H$28=0),0,Calculos!B8-SIMULADOR!$H$28) -> 0 | AC10: 0 | AD10: =+IF(AND(AB11<>0,AB10=0),SIMULADOR!$H$29,0) -> 0 | AE10: 0 | AG10: 0 | AH10: =+IF(ABS(AE10-AI10-AJ10-AK10)<0.01,0,AE10-AI10-AJ10-AK10) -> 0 | AI10: 0 | AJ10: =IF($BA10=SIMULADOR!$H$28,0,IF(OR(BO9=1,AND(AD10<>0,BO10=0)),L10,IF(AND(AC10+AD10>0,ABS(AG9-AH9)>0.01),L10,0))) -> 0 | AK10: 0 | AM10: =+AG10+AH9-AG9 -> 0 | AN10: 0 | AP10: =+IF(AND(AQ9=0,AQ10<>0),1,0) -> 0 | AQ10: 0 | AS10: 0 | AX10: 0 | AZ10: 5 | BA10: =+BA9+IF(SIMULADOR!$H$28<>"",AA10+AC10,G10) -> 2023-10-23 | BB10: =+IF(SUM(AE$6:AE10)=0,I10,IF($BB$1=$BE$1,AG10,AT10)) -> 2827.44 | BC10: =+IF(SUM(AE$6:AE10)=0,L10,IF($BB$1=$BE$1,AJ10,AW10)) -> 8.48 | BD10: 0 | BE10: =+IF(SUM(AE$6:AE10)=0,0,IF($BB$1=$BE$1,AD10,AS10)) -> 0 | BF10: =+IF(SUM(AE$6:AE10)=0,J10,IF($BB$1=$BE$1,AH10,AU10)) -> 45.73 | BG10: =+IF(SUM(AE$6:AE10)=0,K10,IF($BB$1=$BE$1,AI10,AV10)) -> 35.06 | BI10: =+SIMULADOR!K49 -> 89.27 | BJ10: 153 | BK10: 0 | BM10: 89.27 | BO10: 0 | BP10: 0 | BQ10: 0 | BR10: 5 | BS10: 2827.44 | BT10: 2781.71 | BU10: 2023-10-23
A11: 2023-11-23 | B11: =+IF(AND(SIMULADOR!$D$18=31,DAY(EOMONTH(A11,1))<>31),DATE(YEAR(A11),MONTH(A11)+1,DAY(EOMONTH(A11,1))),IF(MONTH(EDATE(A11,1))=2,EDATE(A11,1),DATE(YEAR(EDATE(A11,1)),MONTH(EDATE(A11,1)),SIMULADOR!$D$18))) -> 2023-12-23 | D11: 6 | E11: =+B10-$A$5 -> 184 | F11: =1/((1+$E$3)^E11*(1+$F$3)^E11) -> 0.9102884446 | G11: =+E11-E10 -> 31 | H11: =IF(D11<=SIMULADOR!$D$17,ROUND($H$6,2),"") -> 89.27 | I11: =IF(D11<=SIMULADOR!$D$17+1,I10-J10,"") -> 2781.71 | J11: =IF(D11<=SIMULADOR!$D$17,H11-L11-K11-M11,"") -> 45.27 | K11: 35.65 | L11: =IF(D11>SIMULADOR!$D$17,0,IF(AND(D11<=SIMULADOR!$D$17,I11<=SIMULADOR!$D$13),ROUND(I11*$F$1,2),IF(I11>SIMULADOR!$D$13,SIMULADOR!$D$13*Calculos!$F$1,""))) -> 8.35 | M11: =IF(Calculos!D11<=SIMULADOR!$D$17,Calculos!$M$4,"") -> 0 | N11: =IF(D11<=SIMULADOR!$D$17,ROUND(I11*((1+$E$3)^G11-1),2),"") -> 35.65 | P11: =+IF(D11<=SIMULADOR!$D$17,SIMULADOR!Q49,"") -> 89.27 | Q11: 184 | R11: 89.27 | S11: 385.83 | T11: 625.87 | U11: 421.48 | V11: 33.43 | W11: 3 | X11: 1083.78 | Y11: 36518.76 | AA11: 31 | AB11: =+IF(OR(Calculos!B9-SIMULADOR!$H$28<0,SIMULADOR!$H$28=0),0,Calculos!B9-SIMULADOR!$H$28) -> 0 | AC11: 0 | AD11: =+IF(AND(AB12<>0,AB11=0),SIMULADOR!$H$29,0) -> 0 | AE11: 0 | AG11: 0 | AH11: 0 | AI11: 0 | AJ11: =IF($BA11=SIMULADOR!$H$28,0,IF(OR(BO10=1,AND(AD11<>0,BO11=0)),L11,IF(AND(AC11+AD11>0,ABS(AG10-AH10)>0.01),L11,0))) -> 0 | AK11: 0 | AM11: 0 | AN11: 0 | AP11: 0 | AQ11: 0 | AS11: 0 | AX11: 0 | AZ11: 6 | BA11: =+BA10+IF(SIMULADOR!$H$28<>"",AA11+AC11,G11) -> 2023-11-23 | BB11: =+IF(SUM(AE$6:AE11)=0,I11,IF($BB$1=$BE$1,AG11,AT11)) -> 2781.71 | BC11: =+IF(SUM(AE$6:AE11)=0,L11,IF($BB$1=$BE$1,AJ11,AW11)) -> 8.35 | BD11: 0 | BE11: =+IF(SUM(AE$6:AE11)=0,0,IF($BB$1=$BE$1,AD11,AS11)) -> 0 | BF11: =+IF(SUM(AE$6:AE11)=0,J11,IF($BB$1=$BE$1,AH11,AU11)) -> 45.27 | BG11: =+IF(SUM(AE$6:AE11)=0,K11,IF($BB$1=$BE$1,AI11,AV11)) -> 35.65 | BI11: =+SIMULADOR!K50 -> 89.27 | BJ11: 184 | BK11: 0 | BM11: 89.27 | BO11: 0 | BP11: 0 | BQ11: 0 | BR11: 6 | BS11: 2781.71 | BT11: 2736.44 | BU11: 2023-11-23
A12: 2023-12-23 | B12: =+IF(AND(SIMULADOR!$D$18=31,DAY(EOMONTH(A12,1))<>31),DATE(YEAR(A12),MONTH(A12)+1,DAY(EOMONTH(A12,1))),IF(MONTH(EDATE(A12,1))=2,EDATE(A12,1),DATE(YEAR(EDATE(A12,1)),MONTH(EDATE(A12,1)),SIMULADOR!$D$18))) -> 2024-01-23 | D12: 7 | E12: 214 | F12: 0.8964445614 | G12: 30 | H12: =IF(D12<=SIMULADOR!$D$17,ROUND($H$6,2),"") -> 89.27 | I12: =IF(D12<=SIMULADOR!$D$17+1,I11-J11,"") -> 2736.44 | J12: =IF(D12<=SIMULADOR!$D$17,H12-L12-K12-M12,"") -> 47.12 | K12: 33.94 | L12: =IF(D12>SIMULADOR!$D$17,0,IF(AND(D12<=SIMULADOR!$D$17,I12<=SIMULADOR!$D$13),ROUND(I12*$F$1,2),IF(I12>SIMULADOR!$D$13,SIMULADOR!$D$13*Calculos!$F$1,""))) -> 8.21 | M12: =IF(Calculos!D12<=SIMULADOR!$D$17,Calculos!$M$4,"") -> 0 | N12: =IF(D12<=SIMULADOR!$D$17,ROUND(I12*((1+$E$3)^G12-1),2),"") -> 33.94 | P12: =+IF(D12<=SIMULADOR!$D$17,SIMULADOR!Q50,"") -> 89.27 | Q12: 214 | R12: 89.27 | S12: 366.99 | T12: 646.98 | U12: 400.93 | V12: 32.87 | W12: 3 | X12: 1083.78 | Y12: 35871.78 | AA12: 30 | AB12: =+IF(OR(Calculos!B10-SIMULADOR!$H$28<0,SIMULADOR!$H$28=0),0,Calculos!B10-SIMULADOR!$H$28) -> 0 | AC12: 0 | AD12: =+IF(AND(AB13<>0,AB12=0),SIMULADOR!$H$29,0) -> 0 | AE12: 0 | AG12: 0 | AH12: 0 | AI12: 0 | AJ12: =IF($BA12=SIMULADOR!$H$28,0,IF(OR(BO11=1,AND(AD12<>0,BO12=0)),L12,IF(AND(AC12+AD12>0,ABS(AG11-AH11)>0.01),L12,0))) -> 0 | AK12: 0 | AM12: 0 | AN12: 0 | AP12: 0 | AQ12: 0 | AS12: 0 | AX12: 0 | AZ12: 7 | BA12: =+BA11+IF(SIMULADOR!$H$28<>"",AA12+AC12,G12) -> 2023-12-23 | BB12: =+IF(SUM(AE$6:AE12)=0,I12,IF($BB$1=$BE$1,AG12,AT12)) -> 2736.44 | BC12: =+IF(SUM(AE$6:AE12)=0,L12,IF($BB$1=$BE$1,AJ12,AW12)) -> 8.21 | BD12: 0 | BE12: =+IF(SUM(AE$6:AE12)=0,0,IF($BB$1=$BE$1,AD12,AS12)) -> 0 | BF12: =+IF(SUM(AE$6:AE12)=0,J12,IF($BB$1=$BE$1,AH12,AU12)) -> 47.12 | BG12: =+IF(SUM(AE$6:AE12)=0,K12,IF($BB$1=$BE$1,AI12,AV12)) -> 33.94 | BI12: =+SIMULADOR!K51 -> 89.27 | BJ12: 214 | BK12: -1.136868377e-13 | BM12: 89.27 | BO12: 0 | BP12: 0 | BQ12: 0 | BR12: 7 | BS12: 2736.44 | BT12: 2689.32 | BU12: 2023-12-23
A13: 2024-01-23 | B13: =+IF(AND(SIMULADOR!$D$18=31,DAY(EOMONTH(A13,1))<>31),DATE(YEAR(A13),MONTH(A13)+1,DAY(EOMONTH(A13,1))),IF(MONTH(EDATE(A13,1))=2,EDATE(A13,1),DATE(YEAR(EDATE(A13,1)),MONTH(EDATE(A13,1)),SIMULADOR!$D$18))) -> 2024-02-23 | D13: 8 | E13: 245 | F13: 0.882360363 | G13: 31 | H13: =IF(D13<=SIMULADOR!$D$17,ROUND($H$6,2),"") -> 89.27 | I13: =IF(D13<=SIMULADOR!$D$17+1,I12-J12,"") -> 2689.32 | J13: =IF(D13<=SIMULADOR!$D$17,H13-L13-K13-M13,"") -> 46.73 | K13: 34.47 | L13: =IF(D13>SIMULADOR!$D$17,0,IF(AND(D13<=SIMULADOR!$D$17,I13<=SIMULADOR!$D$13),ROUND(I13*$F$1,2),IF(I13>SIMULADOR!$D$13,SIMULADOR!$D$13*Calculos!$F$1,""))) -> 8.07 | M13: =IF(Calculos!D13<=SIMULADOR!$D$17,Calculos!$M$4,"") -> 0 | N13: =IF(D13<=SIMULADOR!$D$17,ROUND(I13*((1+$E$3)^G13-1),2),"") -> 34.47 | P13: =+IF(D13<=SIMULADOR!$D$17,SIMULADOR!Q51,"") -> 89.27 | Q13: 245 | R13: 89.27 | S13: 372.56 | T13: 641.47 | U13: 407.03 | V13: 32.28 | W13: 3 | X13: 1083.78 | Y13: 35230.31 | AA13: 31 | AB13: =+IF(OR(Calculos!B11-SIMULADOR!$H$28<0,SIMULADOR!$H$28=0),0,Calculos!B11-SIMULADOR!$H$28) -> 0 | AC13: 0 | AD13: =+IF(AND(AB14<>0,AB13=0),SIMULADOR!$H$29,0) -> 0 | AE13: 0 | AG13: 0 | AH13: 0 | AI13: 0 | AJ13: =IF($BA13=SIMULADOR!$H$28,0,IF(OR(BO12=1,AND(AD13<>0,BO13=0)),L13,IF(AND(AC13+AD13>0,ABS(AG12-AH12)>0.01),L13,0))) -> 0 | AK13: 0 | AM13: 0 | AN13: 0 | AP13: 0 | AQ13: 0 | AS13: 0 | AX13: 0 | AZ13: 8 | BA13: =+BA12+IF(SIMULADOR!$H$28<>"",AA13+AC13,G13) -> 2024-01-23 | BB13: =+IF(SUM(AE$6:AE13)=0,I13,IF($BB$1=$BE$1,AG13,AT13)) -> 2689.32 | BC13: =+IF(SUM(AE$6:AE13)=0,L13,IF($BB$1=$BE$1,AJ13,AW13)) -> 8.07 | BD13: 0 | BE13: =+IF(SUM(AE$6:AE13)=0,0,IF($BB$1=$BE$1,AD13,AS13)) -> 0 | BF13: =+IF(SUM(AE$6:AE13)=0,J13,IF($BB$1=$BE$1,AH13,AU13)) -> 46.73 | BG13: =+IF(SUM(AE$6:AE13)=0,K13,IF($BB$1=$BE$1,AI13,AV13)) -> 34.47 | BI13: =+SIMULADOR!K52 -> 89.27 | BJ13: 245 | BK13: 0 | BM13: 89.27 | BO13: 0 | BP13: 0 | BQ13: 0 | BR13: 8 | BS13: 2689.32 | BT13: 2642.59 | BU13: 2024-01-23
A14: 2024-02-23 | B14: =+IF(AND(SIMULADOR!$D$18=31,DAY(EOMONTH(A14,1))<>31),DATE(YEAR(A14),MONTH(A14)+1,DAY(EOMONTH(A14,1))),IF(MONTH(EDATE(A14,1))=2,EDATE(A14,1),DATE(YEAR(EDATE(A14,1)),MONTH(EDATE(A14,1)),SIMULADOR!$D$18))) -> 2024-03-23 | D14: 9 | E14: 276 | F14: 0.868497444 | G14: 31 | H14: =IF(D14<=SIMULADOR!$D$17,ROUND($H$6,2),"") -> 89.27 | I14: =IF(D14<=SIMULADOR!$D$17+1,I13-J13,"") -> 2642.59 | J14: =IF(D14<=SIMULADOR!$D$17,H14-L14-K14-M14,"") -> 47.47 | K14: 33.87 | L14: =IF(D14>SIMULADOR!$D$17,0,IF(AND(D14<=SIMULADOR!$D$17,I14<=SIMULADOR!$D$13),ROUND(I14*$F$1,2),IF(I14>SIMULADOR!$D$13,SIMULADOR!$D$13*Calculos!$F$1,""))) -> 7.93 | M14: =IF(Calculos!D14<=SIMULADOR!$D$17,Calculos!$M$4,"") -> 0 | N14: =IF(D14<=SIMULADOR!$D$17,ROUND(I14*((1+$E$3)^G14-1),2),"") -> 33.87 | P14: =+IF(D14<=SIMULADOR!$D$17,SIMULADOR!Q52,"") -> 89.27 | Q14: 276 | R14: 89.27 | S14: 365.88 | T14: 649.32 | U14: 399.75 | V14: 31.71 | W14: 3 | X14: 1083.78 | Y14: 34580.99 | AA14: 31 | AB14: =+IF(OR(Calculos!B12-SIMULADOR!$H$28<0,SIMULADOR!$H$28=0),0,Calculos!B12-SIMULADOR!$H$28) -> 0 | AC14: 0 | AD14: =+IF(AND(AB15<>0,AB14=0),SIMULADOR!$H$29,0) -> 0 | AE14: 0 | AG14: 0 | AH14: 0 | AI14: 0 | AJ14: =IF($BA14=SIMULADOR!$H$28,0,IF(OR(BO13=1,AND(AD14<>0,BO14=0)),L14,IF(AND(AC14+AD14>0,ABS(AG13-AH13)>0.01),L14,0))) -> 0 | AK14: 0 | AM14: 0 | AN14: 0 | AP14: 0 | AQ14: 0 | AS14: 0 | AX14: 0 | AZ14: 9 | BA14: =+BA13+IF(SIMULADOR!$H$28<>"",AA14+AC14,G14) -> 2024-02-23 | BB14: =+IF(SUM(AE$6:AE14)=0,I14,IF($BB$1=$BE$1,AG14,AT14)) -> 2642.59 | BC14: =+IF(SUM(AE$6:AE14)=0,L14,IF($BB$1=$BE$1,AJ14,AW14)) -> 7.93 | BD14: 0 | BE14: =+IF(SUM(AE$6:AE14)=0,0,IF($BB$1=$BE$1,AD14,AS14)) -> 0 | BF14: =+IF(SUM(AE$6:AE14)=0,J14,IF($BB$1=$BE$1,AH14,AU14)) -> 47.47 | BG14: =+IF(SUM(AE$6:AE14)=0,K14,IF($BB$1=$BE$1,AI14,AV14)) -> 33.87 | BI14: =+SIMULADOR!K53 -> 89.27 | BJ14: 276 | BK14: -2.060573934e-13 | BM14: 89.27 | BO14: 0 | BP14: 0 | BQ14: 0 | BR14: 9 | BS14: 2642.59 | BT14: 2595.12 | BU14: 2024-02-23
A15: 2024-03-23 | B15: =+IF(AND(SIMULADOR!$D$18=31,DAY(EOMONTH(A15,1))<>31),DATE(YEAR(A15),MONTH(A15)+1,DAY(EOMONTH(A15,1))),IF(MONTH(EDATE(A15,1))=2,EDATE(A15,1),DATE(YEAR(EDATE(A15,1)),MONTH(EDATE(A15,1)),SIMULADOR!$D$18))) -> 2024-04-23 | D15: 10 | E15: 305 | F15: 0.855726152 | G15: 29 | H15: =IF(D15<=SIMULADOR!$D$17,ROUND($H$6,2),"") -> 89.27 | I15: =IF(D15<=SIMULADOR!$D$17+1,I14-J14,"") -> 2595.12 | J15: =IF(D15<=SIMULADOR!$D$17,H15-L15-K15-M15,"") -> 50.38 | K15: 31.1 | L15: =IF(D15>SIMULADOR!$D$17,0,IF(AND(D15<=SIMULADOR!$D$17,I15<=SIMULADOR!$D$13),ROUND(I15*$F$1,2),IF(I15>SIMULADOR!$D$13,SIMULADOR!$D$13*Calculos!$F$1,""))) -> 7.79 | M15: =IF(Calculos!D15<=SIMULADOR!$D$17,Calculos!$M$4,"") -> 0 | N15: =IF(D15<=SIMULADOR!$D$17,ROUND(I15*((1+$E$3)^G15-1),2),"") -> 31.1 | P15: =+IF(D15<=SIMULADOR!$D$17,SIMULADOR!Q53,"") -> 89.27 | Q15: 305 | R15: 89.27 | S15: 335.84 | T15: 682.72 | U15: 366.94 | V15: 31.12 | W15: 3 | X15: 1083.78 | Y15: 33898.27 | AA15: 29 | AB15: =+IF(OR(Calculos!B13-SIMULADOR!$H$28<0,SIMULADOR!$H$28=0),0,Calculos!B13-SIMULADOR!$H$28) -> 0 | AC15: 0 | AD15: =+IF(AND(AB16<>0,AB15=0),SIMULADOR!$H$29,0) -> 0 | AE15: 0 | AG15: 0 | AH15: 0 | AI15: 0 | AJ15: =IF($BA15=SIMULADOR!$H$28,0,IF(OR(BO14=1,AND(AD15<>0,BO15=0)),L15,IF(AND(AC15+AD15>0,ABS(AG14-AH14)>0.01),L15,0))) -> 0 | AK15: 0 | AM15: 0 | AN15: 0 | AP15: 0 | AQ15: 0 | AS15: 0 | AX15: 0 | AZ15: 10 | BA15: =+BA14+IF(SIMULADOR!$H$28<>"",AA15+AC15,G15) -> 2024-03-23 | BB15: =+IF(SUM(AE$6:AE15)=0,I15,IF($BB$1=$BE$1,AG15,AT15)) -> 2595.12 | BC15: =+IF(SUM(AE$6:AE15)=0,L15,IF($BB$1=$BE$1,AJ15,AW15)) -> 7.79 | BD15: 0 | BE15: =+IF(SUM(AE$6:AE15)=0,0,IF($BB$1=$BE$1,AD15,AS15)) -> 0 | BF15: =+IF(SUM(AE$6:AE15)=0,J15,IF($BB$1=$BE$1,AH15,AU15)) -> 50.38 | BG15: =+IF(SUM(AE$6:AE15)=0,K15,IF($BB$1=$BE$1,AI15,AV15)) -> 31.1 | BI15: =+SIMULADOR!K54 -> 89.27 | BJ15: 305 | BK15: 1.207922651e-13 | BM15: 89.27 | BO15: 0 | BP15: 0 | BQ15: 0 | BR15: 10 | BS15: 2595.12 | BT15: 2544.74 | BU15: 2024-03-23
A16: 2024-04-23 | B16: =+IF(AND(SIMULADOR!$D$18=31,DAY(EOMONTH(A16,1))<>31),DATE(YEAR(A16),MONTH(A16)+1,DAY(EOMONTH(A16,1))),IF(MONTH(EDATE(A16,1))=2,EDATE(A16,1),DATE(YEAR(EDATE(A16,1)),MONTH(EDATE(A16,1)),SIMULADOR!$D$18))) -> 2024-05-23 | D16: 11 | E16: 336 | F16: 0.8422816877 | G16: 31 | H16: =IF(D16<=SIMULADOR!$D$17,ROUND($H$6,2),"") -> 89.27 | I16: =IF(D16<=SIMULADOR!$D$17+1,I15-J15,"") -> 2544.74 | J16: =IF(D16<=SIMULADOR!$D$17,H16-L16-K16-M16,"") -> 49.02 | K16: 32.62 | L16: =IF(D16>SIMULADOR!$D$17,0,IF(AND(D16<=SIMULADOR!$D$17,I16<=SIMULADOR!$D$13),ROUND(I16*$F$1,2),IF(I16>SIMULADOR!$D$13,SIMULADOR!$D$13*Calculos!$F$1,""))) -> 7.63 | M16: =IF(Calculos!D16<=SIMULADOR!$D$17,Calculos!$M$4,"") -> 0 | N16: =IF(D16<=SIMULADOR!$D$17,ROUND(I16*((1+$E$3)^G16-1),2),"") -> 32.62 | P16: =+IF(D16<=SIMULADOR!$D$17,SIMULADOR!Q54,"") -> 89.27 | Q16: 336 | R16: 89.27 | S16: 352.02 | T16: 665.63 | U16: 384.64 | V16: 30.51 | W16: 3 | X16: 1083.78 | Y16: 33232.64 | AA16: 31 | AB16: =+IF(OR(Calculos!B14-SIMULADOR!$H$28<0,SIMULADOR!$H$28=0),0,Calculos!B14-SIMULADOR!$H$28) -> 0 | AC16: 0 | AD16: =+IF(AND(AB17<>0,AB16=0),SIMULADOR!$H$29,0) -> 0 | AE16: 0 | AG16: 0 | AH16: 0 | AI16: 0 | AJ16: =IF($BA16=SIMULADOR!$H$28,0,IF(OR(BO15=1,AND(AD16<>0,BO16=0)),L16,IF(AND(AC16+AD16>0,ABS(AG15-AH15)>0.01),L16,0))) -> 0 | AK16: 0 | AM16: 0 | AN16: 0 | AP16: 0 | AQ16: 0 | AS16: 0 | AX16: 0 | AZ16: 11 | BA16: =+BA15+IF(SIMULADOR!$H$28<>"",AA16+AC16,G16) -> 2024-04-23 | BB16: =+IF(SUM(AE$6:AE16)=0,I16,IF($BB$1=$BE$1,AG16,AT16)) -> 2544.74 | BC16: =+IF(SUM(AE$6:AE16)=0,L16,IF($BB$1=$BE$1,AJ16,AW16)) -> 7.63 | BD16: 0 | BE16: =+IF(SUM(AE$6:AE16)=0,0,IF($BB$1=$BE$1,AD16,AS16)) -> 0 | BF16: =+IF(SUM(AE$6:AE16)=0,J16,IF($BB$1=$BE$1,AH16,AU16)) -> 49.02 | BG16: =+IF(SUM(AE$6:AE16)=0,K16,IF($BB$1=$BE$1,AI16,AV16)) -> 32.62 | BI16: =+SIMULADOR!K55 -> 89.27 | BJ16: 336 | BK16: 0 | BM16: 89.27 | BO16: 0 | BP16: 0 | BQ16: 0 | BR16: 11 | BS16: 2544.74 | BT16: 2495.72 | BU16: 2024-04-23
A17: 2024-05-23 | B17: =+IF(AND(SIMULADOR!$D$18=31,DAY(EOMONTH(A17,1))<>31),DATE(YEAR(A17),MONTH(A17)+1,DAY(EOMONTH(A17,1))),IF(MONTH(EDATE(A17,1))=2,EDATE(A17,1),DATE(YEAR(EDATE(A17,1)),MONTH(EDATE(A17,1)),SIMULADOR!$D$18))) -> 2024-06-23 | D17: 12 | E17: 366 | F17: 0.8294720675 | G17: 30 | H17: =IF(D17<=SIMULADOR!$D$17,ROUND($H$6,2),"") -> 89.27 | I17: =IF(D17<=SIMULADOR!$D$17+1,I16-J16,"") -> 2495.72 | J17: =IF(D17<=SIMULADOR!$D$17,H17-L17-K17-M17,"") -> 50.83 | K17: 30.95 | L17: =IF(D17>SIMULADOR!$D$17,0,IF(AND(D17<=SIMULADOR!$D$17,I17<=SIMULADOR!$D$13),ROUND(I17*$F$1,2),IF(I17>SIMULADOR!$D$13,SIMULADOR!$D$13*Calculos!$F$1,""))) -> 7.49 | M17: =IF(Calculos!D17<=SIMULADOR!$D$17,Calculos!$M$4,"") -> 0 | N17: =IF(D17<=SIMULADOR!$D$17,ROUND(I17*((1+$E$3)^G17-1),2),"") -> 30.95 | P17: =+IF(D17<=SIMULADOR!$D$17,SIMULADOR!Q55,"") -> 89.27 | Q17: 366 | R17: 89.27 | S17: 333.91 | T17: 686.01 | U17: 364.86 | V17: 29.91 | W17: 3 | X17: 1083.78 | Y17: 32546.63 | AA17: 30 | AB17: =+IF(OR(Calculos!B15-SIMULADOR!$H$28<0,SIMULADOR!$H$28=0),0,Calculos!B15-SIMULADOR!$H$28) -> 0 | AC17: 0 | AD17: =+IF(AND(AB18<>0,AB17=0),SIMULADOR!$H$29,0) -> 0 | AE17: 0 | AG17: 0 | AH17: 0 | AI17: 0 | AJ17: =IF($BA17=SIMULADOR!$H$28,0,IF(OR(BO16=1,AND(AD17<>0,BO17=0)),L17,IF(AND(AC17+AD17>0,ABS(AG16-AH16)>0.01),L17,0))) -> 0 | AK17: 0 | AM17: 0 | AN17: 0 | AP17: 0 | AQ17: 0 | AS17: 0 | AX17: 0 | AZ17: 12 | BA17: =+BA16+IF(SIMULADOR!$H$28<>"",AA17+AC17,G17) -> 2024-05-23 | BB17: =+IF(SUM(AE$6:AE17)=0,I17,IF($BB$1=$BE$1,AG17,AT17)) -> 2495.72 | BC17: =+IF(SUM(AE$6:AE17)=0,L17,IF($BB$1=$BE$1,AJ17,AW17)) -> 7.49 | BD17: 0 | BE17: =+IF(SUM(AE$6:AE17)=0,0,IF($BB$1=$BE$1,AD17,AS17)) -> 0 | BF17: =+IF(SUM(AE$6:AE17)=0,J17,IF($BB$1=$BE$1,AH17,AU17)) -> 50.83 | BG17: =+IF(SUM(AE$6:AE17)=0,K17,IF($BB$1=$BE$1,AI17,AV17)) -> 30.95 | BI17: =+SIMULADOR!K56 -> 89.27 | BJ17: 366 | BK17: -7.105427358e-14 | BM17: 89.27 | BO17: 0 | BP17: 0 | BQ17: 0 | BR17: 12 | BS17: 2495.72 | BT17: 2444.89 | BU17: 2024-05-23
A18: 2024-06-23 | B18: =+IF(AND(SIMULADOR!$D$18=31,DAY(EOMONTH(A18,1))<>31),DATE(YEAR(A18),MONTH(A18)+1,DAY(EOMONTH(A18,1))),IF(MONTH(EDATE(A18,1))=2,EDATE(A18,1),DATE(YEAR(EDATE(A18,1)),MONTH(EDATE(A18,1)),SIMULADOR!$D$18))) -> 2024-07-23 | D18: 13 | E18: 397 | F18: 0.8164400857 | G18: 31 | H18: =IF(D18<=SIMULADOR!$D$17,ROUND($H$6,2),"") -> 89.27 | I18: =IF(D18<=SIMULADOR!$D$17+1,I17-J17,"") -> 2444.89 | J18: =IF(D18<=SIMULADOR!$D$17,H18-L18-K18-M18,"") -> 50.6 | K18: 31.34 | L18: =IF(D18>SIMULADOR!$D$17,0,IF(AND(D18<=SIMULADOR!$D$17,I18<=SIMULADOR!$D$13),ROUND(I18*$F$1,2),IF(I18>SIMULADOR!$D$13,SIMULADOR!$D$13*Calculos!$F$1,""))) -> 7.33 | M18: =IF(Calculos!D18<=SIMULADOR!$D$17,Calculos!$M$4,"") -> 0 | N18: =IF(D18<=SIMULADOR!$D$17,ROUND(I18*((1+$E$3)^G18-1),2),"") -> 31.34 | P18: =+IF(D18<=SIMULADOR!$D$17,SIMULADOR!Q56,"") -> 89.27 | Q18: 397 | R18: 89.27 | S18: 337.96 | T18: 682.19 | U18: 369.3 | V18: 29.29 | W18: 3 | X18: 1083.78 | Y18: 31864.44 | AA18: 31 | AB18: =+IF(OR(Calculos!B16-SIMULADOR!$H$28<0,SIMULADOR!$H$28=0),0,Calculos!B16-SIMULADOR!$H$28) -> 0 | AC18: 0 | AD18: =+IF(AND(AB19<>0,AB18=0),SIMULADOR!$H$29,0) -> 0 | AE18: 0 | AG18: 0 | AH18: 0 | AI18: 0 | AJ18: =IF($BA18=SIMULADOR!$H$28,0,IF(OR(BO17=1,AND(AD18<>0,BO18=0)),L18,IF(AND(AC18+AD18>0,ABS(AG17-AH17)>0.01),L18,0))) -> 0 | AK18: 0 | AM18: 0 | AN18: 0 | AP18: 0 | AQ18: 0 | AS18: 0 | AX18: 0 | AZ18: 13 | BA18: =+BA17+IF(SIMULADOR!$H$28<>"",AA18+AC18,G18) -> 2024-06-23 | BB18: =+IF(SUM(AE$6:AE18)=0,I18,IF($BB$1=$BE$1,AG18,AT18)) -> 2444.89 | BC18: =+IF(SUM(AE$6:AE18)=0,L18,IF($BB$1=$BE$1,AJ18,AW18)) -> 7.33 | BD18: 0 | BE18: =+IF(SUM(AE$6:AE18)=0,0,IF($BB$1=$BE$1,AD18,AS18)) -> 0 | BF18: =+IF(SUM(AE$6:AE18)=0,J18,IF($BB$1=$BE$1,AH18,AU18)) -> 50.6 | BG18: =+IF(SUM(AE$6:AE18)=0,K18,IF($BB$1=$BE$1,AI18,AV18)) -> 31.34 | BI18: =+SIMULADOR!K57 -> 89.27 | BJ18: 397 | BK18: -8.526512829e-14 | BM18: 89.27 | BO18: 0 | BP18: 0 | BQ18: 0 | BR18: 13 | BS18: 2444.89 | BT18: 2394.29 | BU18: 2024-06-23
A19: 2024-07-23 | B19: =+IF(AND(SIMULADOR!$D$18=31,DAY(EOMONTH(A19,1))<>31),DATE(YEAR(A19),MONTH(A19)+1,DAY(EOMONTH(A19,1))),IF(MONTH(EDATE(A19,1))=2,EDATE(A19,1),DATE(YEAR(EDATE(A19,1)),MONTH(EDATE(A19,1)),SIMULADOR!$D$18))) -> 2024-08-23 | D19: 14 | E19: 427 | F19: 0.8040234707 | G19: 30 | H19: =IF(D19<=SIMULADOR!$D$17,ROUND($H$6,2),"") -> 89.27 | I19: =IF(D19<=SIMULADOR!$D$17+1,I18-J18,"") -> 2394.29 | J19: =IF(D19<=SIMULADOR!$D$17,H19-L19-K19-M19,"") -> 52.4 | K19: 29.69 | L19: =IF(D19>SIMULADOR!$D$17,0,IF(AND(D19<=SIMULADOR!$D$17,I19<=SIMULADOR!$D$13),ROUND(I19*$F$1,2),IF(I19>SIMULADOR!$D$13,SIMULADOR!$D$13*Calculos!$F$1,""))) -> 7.18 | M19: =IF(Calculos!D19<=SIMULADOR!$D$17,Calculos!$M$4,"") -> 0 | N19: =IF(D19<=SIMULADOR!$D$17,ROUND(I19*((1+$E$3)^G19-1),2),"") -> 29.69 | P19: =+IF(D19<=SIMULADOR!$D$17,SIMULADOR!Q57,"") -> 89.27 | Q19: 427 | R19: 89.27 | S19: 320.14 | T19: 702.27 | U19: 349.83 | V19: 28.68 | W19: 3 | X19: 1083.78 | Y19: 31162.17 | AA19: 30 | AB19: =+IF(OR(Calculos!B17-SIMULADOR!$H$28<0,SIMULADOR!$H$28=0),0,Calculos!B17-SIMULADOR!$H$28) -> 0 | AC19: 0 | AD19: =+IF(AND(AB20<>0,AB19=0),SIMULADOR!$H$29,0) -> 0 | AE19: 0 | AG19: 0 | AH19: 0 | AI19: 0 | AJ19: =IF($BA19=SIMULADOR!$H$28,0,IF(OR(BO18=1,AND(AD19<>0,BO19=0)),L19,IF(AND(AC19+AD19>0,ABS(AG18-AH18)>0.01),L19,0))) -> 0 | AK19: 0 | AM19: 0 | AN19: 0 | AP19: 0 | AQ19: 0 | AS19: 0 | AX19: 0 | AZ19: 14 | BA19: =+BA18+IF(SIMULADOR!$H$28<>"",AA19+AC19,G19) -> 2024-07-23 | BB19: =+IF(SUM(AE$6:AE19)=0,I19,IF($BB$1=$BE$1,AG19,AT19)) -> 2394.29 | BC19: =+IF(SUM(AE$6:AE19)=0,L19,IF($BB$1=$BE$1,AJ19,AW19)) -> 7.18 | BD19: 0 | BE19: =+IF(SUM(AE$6:AE19)=0,0,IF($BB$1=$BE$1,AD19,AS19)) -> 0 | BF19: =+IF(SUM(AE$6:AE19)=0,J19,IF($BB$1=$BE$1,AH19,AU19)) -> 52.4 | BG19: =+IF(SUM(AE$6:AE19)=0,K19,IF($BB$1=$BE$1,AI19,AV19)) -> 29.69 | BI19: =+SIMULADOR!K58 -> 89.27 | BJ19: 427 | BK19: 8.526512829e-14 | BM19: 89.27 | BO19: 0 | BP19: 0 | BQ19: 0 | BR19: 14 | BS19: 2394.29 | BT19: 2341.89 | BU19: 2024-07-23
A20: 2024-08-23 | B20: =+IF(AND(SIMULADOR!$D$18=31,DAY(EOMONTH(A20,1))<>31),DATE(YEAR(A20),MONTH(A20)+1,DAY(EOMONTH(A20,1))),IF(MONTH(EDATE(A20,1))=2,EDATE(A20,1),DATE(YEAR(EDATE(A20,1)),MONTH(EDATE(A20,1)),SIMULADOR!$D$18))) -> 2024-09-23 | D20: 15 | E20: 458 | F20: 0.7913913163 | G20: 31 | H20: =IF(D20<=SIMULADOR!$D$17,ROUND($H$6,2),"") -> 89.27 | I20: =IF(D20<=SIMULADOR!$D$17+1,I19-J19,"") -> 2341.89 | J20: =IF(D20<=SIMULADOR!$D$17,H20-L20-K20-M20,"") -> 52.22 | K20: 30.02 | L20: =IF(D20>SIMULADOR!$D$17,0,IF(AND(D20<=SIMULADOR!$D$17,I20<=SIMULADOR!$D$13),ROUND(I20*$F$1,2),IF(I20>SIMULADOR!$D$13,SIMULADOR!$D$13*Calculos!$F$1,""))) -> 7.03 | M20: =IF(Calculos!D20<=SIMULADOR!$D$17,Calculos!$M$4,"") -> 0 | N20: =IF(D20<=SIMULADOR!$D$17,ROUND(I20*((1+$E$3)^G20-1),2),"") -> 30.02 | P20: =+IF(D20<=SIMULADOR!$D$17,SIMULADOR!Q58,"") -> 89.27 | Q20: 458 | R20: 89.27 | S20: 323.57 | T20: 699.14 | U20: 353.59 | V20: 28.05 | W20: 3 | X20: 1083.78 | Y20: 30463.03 | AA20: 31 | AB20: =+IF(OR(Calculos!B18-SIMULADOR!$H$28<0,SIMULADOR!$H$28=0),0,Calculos!B18-SIMULADOR!$H$28) -> 0 | AC20: 0 | AD20: =+IF(AND(AB21<>0,AB20=0),SIMULADOR!$H$29,0) -> 0 | AE20: 0 | AG20: 0 | AH20: 0 | AI20: 0 | AJ20: =IF($BA20=SIMULADOR!$H$28,0,IF(OR(BO19=1,AND(AD20<>0,BO20=0)),L20,IF(AND(AC20+AD20>0,ABS(AG19-AH19)>0.01),L20,0))) -> 0 | AK20: 0 | AM20: 0 | AN20: 0 | AP20: 0 | AQ20: 0 | AS20: 0 | AX20: 0 | AZ20: 15 | BA20: =+BA19+IF(SIMULADOR!$H$28<>"",AA20+AC20,G20) -> 2024-08-23 | BB20: =+IF(SUM(AE$6:AE20)=0,I20,IF($BB$1=$BE$1,AG20,AT20)) -> 2341.89 | BC20: =+IF(SUM(AE$6:AE20)=0,L20,IF($BB$1=$BE$1,AJ20,AW20)) -> 7.03 | BD20: 0 | BE20: =+IF(SUM(AE$6:AE20)=0,0,IF($BB$1=$BE$1,AD20,AS20)) -> 0 | BF20: =+IF(SUM(AE$6:AE20)=0,J20,IF($BB$1=$BE$1,AH20,AU20)) -> 52.22 | BG20: =+IF(SUM(AE$6:AE20)=0,K20,IF($BB$1=$BE$1,AI20,AV20)) -> 30.02 | BI20: =+SIMULADOR!K59 -> 89.27 | BJ20: 458 | BK20: -1.98951966e-13 | BM20: 89.27 | BO20: 0 | BP20: 0 | BQ20: 0 | BR20: 15 | BS20: 2341.89 | BT20: 2289.67 | BU20: 2024-08-23
A21: 2024-09-23 | B21: =+IF(AND(SIMULADOR!$D$18=31,DAY(EOMONTH(A21,1))<>31),DATE(YEAR(A21),MONTH(A21)+1,DAY(EOMONTH(A21,1))),IF(MONTH(EDATE(A21,1))=2,EDATE(A21,1),DATE(YEAR(EDATE(A21,1)),MONTH(EDATE(A21,1)),SIMULADOR!$D$18))) -> 2024-10-23 | D21: 16 | E21: 489 | F21: 0.7789576279 | G21: 31 | H21: =IF(D21<=SIMULADOR!$D$17,ROUND($H$6,2),"") -> 89.27 | I21: =IF(D21<=SIMULADOR!$D$17+1,I20-J20,"") -> 2289.67 | J21: =IF(D21<=SIMULADOR!$D$17,H21-L21-K21-M21,"") -> 53.05 | K21: 29.35 | L21: =IF(D21>SIMULADOR!$D$17,0,IF(AND(D21<=SIMULADOR!$D$17,I21<=SIMULADOR!$D$13),ROUND(I21*$F$1,2),IF(I21>SIMULADOR!$D$13,SIMULADOR!$D$13*Calculos!$F$1,""))) -> 6.87 | M21: =IF(Calculos!D21<=SIMULADOR!$D$17,Calculos!$M$4,"") -> 0 | N21: =IF(D21<=SIMULADOR!$D$17,ROUND(I21*((1+$E$3)^G21-1),2),"") -> 29.35 | P21: =+IF(D21<=SIMULADOR!$D$17,SIMULADOR!Q59,"") -> 89.27 | Q21: 489 | R21: 89.27 | S21: 316.31 | T21: 707.7 | U21: 345.66 | V21: 27.42 | W21: 3 | X21: 1083.78 | Y21: 29755.33 | AA21: 31 | AB21: =+IF(OR(Calculos!B19-SIMULADOR!$H$28<0,SIMULADOR!$H$28=0),0,Calculos!B19-SIMULADOR!$H$28) -> 0 | AC21: 0 | AD21: =+IF(AND(AB22<>0,AB21=0),SIMULADOR!$H$29,0) -> 0 | AE21: 0 | AG21: 0 | AH21: 0 | AI21: 0 | AJ21: =IF($BA21=SIMULADOR!$H$28,0,IF(OR(BO20=1,AND(AD21<>0,BO21=0)),L21,IF(AND(AC21+AD21>0,ABS(AG20-AH20)>0.01),L21,0))) -> 0 | AK21: 0 | AM21: 0 | AN21: 0 | AP21: 0 | AQ21: 0 | AS21: 0 | AX21: 0 | AZ21: 16 | BA21: =+BA20+IF(SIMULADOR!$H$28<>"",AA21+AC21,G21) -> 2024-09-23 | BB21: =+IF(SUM(AE$6:AE21)=0,I21,IF($BB$1=$BE$1,AG21,AT21)) -> 2289.67 | BC21: =+IF(SUM(AE$6:AE21)=0,L21,IF($BB$1=$BE$1,AJ21,AW21)) -> 6.87 | BD21: 0 | BE21: =+IF(SUM(AE$6:AE21)=0,0,IF($BB$1=$BE$1,AD21,AS21)) -> 0 | BF21: =+IF(SUM(AE$6:AE21)=0,J21,IF($BB$1=$BE$1,AH21,AU21)) -> 53.05 | BG21: =+IF(SUM(AE$6:AE21)=0,K21,IF($BB$1=$BE$1,AI21,AV21)) -> 29.35 | BI21: =+SIMULADOR!K60 -> 89.27 | BJ21: 489 | BK21: 1.918465387e-13 | BM21: 89.27 | BO21: 0 | BP21: 0 | BQ21: 0 | BR21: 16 | BS21: 2289.67 | BT21: 2236.62 | BU21: 2024-09-23
A22: 2024-10-23 | B22: =+IF(AND(SIMULADOR!$D$18=31,DAY(EOMONTH(A22,1))<>31),DATE(YEAR(A22),MONTH(A22)+1,DAY(EOMONTH(A22,1))),IF(MONTH(EDATE(A22,1))=2,EDATE(A22,1),DATE(YEAR(EDATE(A22,1)),MONTH(EDATE(A22,1)),SIMULADOR!$D$18))) -> 2024-11-23 | D22: 17 | E22: 519 | F22: 0.767111055 | G22: 30 | H22: =IF(D22<=SIMULADOR!$D$17,ROUND($H$6,2),"") -> 89.27 | I22: =IF(D22<=SIMULADOR!$D$17+1,I21-J21,"") -> 2236.62 | J22: =IF(D22<=SIMULADOR!$D$17,H22-L22-K22-M22,"") -> 54.82 | K22: 27.74 | L22: =IF(D22>SIMULADOR!$D$17,0,IF(AND(D22<=SIMULADOR!$D$17,I22<=SIMULADOR!$D$13),ROUND(I22*$F$1,2),IF(I22>SIMULADOR!$D$13,SIMULADOR!$D$13*Calculos!$F$1,""))) -> 6.71 | M22: =IF(Calculos!D22<=SIMULADOR!$D$17,Calculos!$M$4,"") -> 0 | N22: =IF(D22<=SIMULADOR!$D$17,ROUND(I22*((1+$E$3)^G22-1),2),"") -> 27.74 | P22: =+IF(D22<=SIMULADOR!$D$17,SIMULADOR!Q60,"") -> 89.27 | Q22: 519 | R22: 89.27 | S22: 298.94 | T22: 727.32 | U22: 326.68 | V22: 26.78 | W22: 3 | X22: 1083.78 | Y22: 29028.01 | AA22: 30 | AB22: =+IF(OR(Calculos!B20-SIMULADOR!$H$28<0,SIMULADOR!$H$28=0),0,Calculos!B20-SIMULADOR!$H$28) -> 0 | AC22: 0 | AD22: =+IF(AND(AB23<>0,AB22=0),SIMULADOR!$H$29,0) -> 0 | AE22: 0 | AG22: 0 | AH22: 0 | AI22: 0 | AJ22: =IF($BA22=SIMULADOR!$H$28,0,IF(OR(BO21=1,AND(AD22<>0,BO22=0)),L22,IF(AND(AC22+AD22>0,ABS(AG21-AH21)>0.01),L22,0))) -> 0 | AK22: 0 | AM22: 0 | AN22: 0 | AP22: 0 | AQ22: 0 | AS22: 0 | AX22: 0 | AZ22: 17 | BA22: =+BA21+IF(SIMULADOR!$H$28<>"",AA22+AC22,G22) -> 2024-10-23 | BB22: =+IF(SUM(AE$6:AE22)=0,I22,IF($BB$1=$BE$1,AG22,AT22)) -> 2236.62 | BC22: =+IF(SUM(AE$6:AE22)=0,L22,IF($BB$1=$BE$1,AJ22,AW22)) -> 6.71 | BD22: 0 | BE22: =+IF(SUM(AE$6:AE22)=0,0,IF($BB$1=$BE$1,AD22,AS22)) -> 0 | BF22: =+IF(SUM(AE$6:AE22)=0,J22,IF($BB$1=$BE$1,AH22,AU22)) -> 54.82 | BG22: =+IF(SUM(AE$6:AE22)=0,K22,IF($BB$1=$BE$1,AI22,AV22)) -> 27.74 | BI22: =+SIMULADOR!K61 -> 89.27 | BJ22: 519 | BK22: 1.563194019e-13 | BM22: 89.27 | BO22: 0 | BP22: 0 | BQ22: 0 | BR22: 17 | BS22: 2236.62 | BT22: 2181.8 | BU22: 2024-10-23
A23: 2024-11-23 | B23: =+IF(AND(SIMULADOR!$D$18=31,DAY(EOMONTH(A23,1))<>31),DATE(YEAR(A23),MONTH(A23)+1,DAY(EOMONTH(A23,1))),IF(MONTH(EDATE(A23,1))=2,EDATE(A23,1),DATE(YEAR(EDATE(A23,1)),MONTH(EDATE(A23,1)),SIMULADOR!$D$18))) -> 2024-12-23 | D23: 18 | E23: 550 | F23: 0.7550588381 | G23: 31 | H23: =IF(D23<=SIMULADOR!$D$17,ROUND($H$6,2),"") -> 89.27 | I23: =IF(D23<=SIMULADOR!$D$17+1,I22-J22,"") -> 2181.8 | J23: =IF(D23<=SIMULADOR!$D$17,H23-L23-K23-M23,"") -> 54.75 | K23: 27.97 | L23: =IF(D23>SIMULADOR!$D$17,0,IF(AND(D23<=SIMULADOR!$D$17,I23<=SIMULADOR!$D$13),ROUND(I23*$F$1,2),IF(I23>SIMULADOR!$D$13,SIMULADOR!$D$13*Calculos!$F$1,""))) -> 6.55 | M23: =IF(Calculos!D23<=SIMULADOR!$D$17,Calculos!$M$4,"") -> 0 | N23: =IF(D23<=SIMULADOR!$D$17,ROUND(I23*((1+$E$3)^G23-1),2),"") -> 27.97 | P23: =+IF(D23<=SIMULADOR!$D$17,SIMULADOR!Q61,"") -> 89.27 | Q23: 550 | R23: 89.27 | S23: 301.41 | T23: 725.27 | U23: 329.38 | V23: 26.13 | W23: 3 | X23: 1083.78 | Y23: 28302.74 | AA23: 31 | AB23: =+IF(OR(Calculos!B21-SIMULADOR!$H$28<0,SIMULADOR!$H$28=0),0,Calculos!B21-SIMULADOR!$H$28) -> 0 | AC23: 0 | AD23: =+IF(AND(AB24<>0,AB23=0),SIMULADOR!$H$29,0) -> 0 | AE23: 0 | AG23: 0 | AH23: 0 | AI23: 0 | AJ23: =IF($BA23=SIMULADOR!$H$28,0,IF(OR(BO22=1,AND(AD23<>0,BO23=0)),L23,IF(AND(AC23+AD23>0,ABS(AG22-AH22)>0.01),L23,0))) -> 0 | AK23: 0 | AM23: 0 | AN23: 0 | AP23: 0 | AQ23: 0 | AS23: 0 | AX23: 0 | AZ23: 18 | BA23: =+BA22+IF(SIMULADOR!$H$28<>"",AA23+AC23,G23) -> 2024-11-23 | BB23: =+IF(SUM(AE$6:AE23)=0,I23,IF($BB$1=$BE$1,AG23,AT23)) -> 2181.8 | BC23: =+IF(SUM(AE$6:AE23)=0,L23,IF($BB$1=$BE$1,AJ23,AW23)) -> 6.55 | BD23: 0 | BE23: =+IF(SUM(AE$6:AE23)=0,0,IF($BB$1=$BE$1,AD23,AS23)) -> 0 | BF23: =+IF(SUM(AE$6:AE23)=0,J23,IF($BB$1=$BE$1,AH23,AU23)) -> 54.75 | BG23: =+IF(SUM(AE$6:AE23)=0,K23,IF($BB$1=$BE$1,AI23,AV23)) -> 27.97 | BI23: =+SIMULADOR!K62 -> 89.27 | BJ23: 550 | BK23: 0 | BM23: 89.27 | BO23: 0 | BP23: 0 | BQ23: 0 | BR23: 18 | BS23: 2181.8 | BT23: 2127.05 | BU23: 2024-11-23
A24: 2024-12-23 | B24: =+IF(AND(SIMULADOR!$D$18=31,DAY(EOMONTH(A24,1))<>31),DATE(YEAR(A24),MONTH(A24)+1,DAY(EOMONTH(A24,1))),IF(MONTH(EDATE(A24,1))=2,EDATE(A24,1),DATE(YEAR(EDATE(A24,1)),MONTH(EDATE(A24,1)),SIMULADOR!$D$18))) -> 2025-01-23 | D24: 19 | E24: 580 | F24: 0.7435757237 | G24: 30 | H24: =IF(D24<=SIMULADOR!$D$17,ROUND($H$6,2),"") -> 89.27 | I24: =IF(D24<=SIMULADOR!$D$17+1,I23-J23,"") -> 2127.05 | J24: =IF(D24<=SIMULADOR!$D$17,H24-L24-K24-M24,"") -> 56.51 | K24: 26.38 | L24: =IF(D24>SIMULADOR!$D$17,0,IF(AND(D24<=SIMULADOR!$D$17,I24<=SIMULADOR!$D$13),ROUND(I24*$F$1,2),IF(I24>SIMULADOR!$D$13,SIMULADOR!$D$13*Calculos!$F$1,""))) -> 6.38 | M24: =IF(Calculos!D24<=SIMULADOR!$D$17,Calculos!$M$4,"") -> 0 | N24: =IF(D24<=SIMULADOR!$D$17,ROUND(I24*((1+$E$3)^G24-1),2),"") -> 26.38 | P24: =+IF(D24<=SIMULADOR!$D$17,SIMULADOR!Q62,"") -> 89.27 | Q24: 580 | R24: 89.27 | S24: 284.35 | T24: 744.58 | U24: 310.73 | V24: 25.47 | W24: 3 | X24: 1083.78 | Y24: 27558.16 | AA24: 30 | AB24: =+IF(OR(Calculos!B22-SIMULADOR!$H$28<0,SIMULADOR!$H$28=0),0,Calculos!B22-SIMULADOR!$H$28) -> 0 | AC24: 0 | AD24: =+IF(AND(AB25<>0,AB24=0),SIMULADOR!$H$29,0) -> 0 | AE24: 0 | AG24: 0 | AH24: 0 | AI24: 0 | AJ24: =IF($BA24=SIMULADOR!$H$28,0,IF(OR(BO23=1,AND(AD24<>0,BO24=0)),L24,IF(AND(AC24+AD24>0,ABS(AG23-AH23)>0.01),L24,0))) -> 0 | AK24: 0 | AM24: 0 | AN24: 0 | AP24: 0 | AQ24: 0 | AS24: 0 | AX24: 0 | AZ24: 19 | BA24: =+BA23+IF(SIMULADOR!$H$28<>"",AA24+AC24,G24) -> 2024-12-23 | BB24: =+IF(SUM(AE$6:AE24)=0,I24,IF($BB$1=$BE$1,AG24,AT24)) -> 2127.05 | BC24: =+IF(SUM(AE$6:AE24)=0,L24,IF($BB$1=$BE$1,AJ24,AW24)) -> 6.38 | BD24: 0 | BE24: =+IF(SUM(AE$6:AE24)=0,0,IF($BB$1=$BE$1,AD24,AS24)) -> 0 | BF24: =+IF(SUM(AE$6:AE24)=0,J24,IF($BB$1=$BE$1,AH24,AU24)) -> 56.51 | BG24: =+IF(SUM(AE$6:AE24)=0,K24,IF($BB$1=$BE$1,AI24,AV24)) -> 26.38 | BI24: =+SIMULADOR!K63 -> 89.27 | BJ24: 580 | BK24: 2.131628207e-13 | BM24: 89.27 | BO24: 0 | BP24: 0 | BQ24: 0 | BR24: 19 | BS24: 2127.05 | BT24: 2070.54 | BU24: 2024-12-23
A25: 2025-01-23 | B25: =+IF(AND(SIMULADOR!$D$18=31,DAY(EOMONTH(A25,1))<>31),DATE(YEAR(A25),MONTH(A25)+1,DAY(EOMONTH(A25,1))),IF(MONTH(EDATE(A25,1))=2,EDATE(A25,1),DATE(YEAR(EDATE(A25,1)),MONTH(EDATE(A25,1)),SIMULADOR!$D$18))) -> 2025-02-23 | D25: 20 | E25: 611 | F25: 0.7318932746 | G25: 31 | H25: =IF(D25<=SIMULADOR!$D$17,ROUND($H$6,2),"") -> 89.27 | I25: =IF(D25<=SIMULADOR!$D$17+1,I24-J24,"") -> 2070.54 | J25: =IF(D25<=SIMULADOR!$D$17,H25-L25-K25-M25,"") -> 56.52 | K25: 26.54 | L25: =IF(D25>SIMULADOR!$D$17,0,IF(AND(D25<=SIMULADOR!$D$17,I25<=SIMULADOR!$D$13),ROUND(I25*$F$1,2),IF(I25>SIMULADOR!$D$13,SIMULADOR!$D$13*Calculos!$F$1,""))) -> 6.21 | M25: =IF(Calculos!D25<=SIMULADOR!$D$17,Calculos!$M$4,"") -> 0 | N25: =IF(D25<=SIMULADOR!$D$17,ROUND(I25*((1+$E$3)^G25-1),2),"") -> 26.54 | P25: =+IF(D25<=SIMULADOR!$D$17,SIMULADOR!Q63,"") -> 89.27 | Q25: 611 | R25: 89.27 | S25: 286.16 | T25: 743.28 | U25: 312.7 | V25: 24.8 | W25: 3 | X25: 1083.78 | Y25: 26814.88 | AA25: 31 | AB25: =+IF(OR(Calculos!B23-SIMULADOR!$H$28<0,SIMULADOR!$H$28=0),0,Calculos!B23-SIMULADOR!$H$28) -> 0 | AC25: 0 | AD25: =+IF(AND(AB26<>0,AB25=0),SIMULADOR!$H$29,0) -> 0 | AE25: 0 | AG25: 0 | AH25: 0 | AI25: 0 | AJ25: =IF($BA25=SIMULADOR!$H$28,0,IF(OR(BO24=1,AND(AD25<>0,BO25=0)),L25,IF(AND(AC25+AD25>0,ABS(AG24-AH24)>0.01),L25,0))) -> 0 | AK25: 0 | AM25: 0 | AN25: 0 | AP25: 0 | AQ25: 0 | AS25: 0 | AX25: 0 | AZ25: 20 | BA25: =+BA24+IF(SIMULADOR!$H$28<>"",AA25+AC25,G25) -> 2025-01-23 | BB25: =+IF(SUM(AE$6:AE25)=0,I25,IF($BB$1=$BE$1,AG25,AT25)) -> 2070.54 | BC25: =+IF(SUM(AE$6:AE25)=0,L25,IF($BB$1=$BE$1,AJ25,AW25)) -> 6.21 | BD25: 0 | BE25: =+IF(SUM(AE$6:AE25)=0,0,IF($BB$1=$BE$1,AD25,AS25)) -> 0 | BF25: =+IF(SUM(AE$6:AE25)=0,J25,IF($BB$1=$BE$1,AH25,AU25)) -> 56.52 | BG25: =+IF(SUM(AE$6:AE25)=0,K25,IF($BB$1=$BE$1,AI25,AV25)) -> 26.54 | BI25: =+SIMULADOR!K64 -> 89.27 | BJ25: 611 | BK25: 0 | BM25: 89.27 | BO25: 0 | BP25: 0 | BQ25: 0 | BR25: 20 | BS25: 2070.54 | BT25: 2014.02 | BU25: 2025-01-23
A26: 2025-02-23 | B26: =+IF(AND(SIMULADOR!$D$18=31,DAY(EOMONTH(A26,1))<>31),DATE(YEAR(A26),MONTH(A26)+1,DAY(EOMONTH(A26,1))),IF(MONTH(EDATE(A26,1))=2,EDATE(A26,1),DATE(YEAR(EDATE(A26,1)),MONTH(EDATE(A26,1)),SIMULADOR!$D$18))) -> 2025-03-23 | D26: 21 | E26: 642 | F26: 0.7203943704 | G26: 31 | H26: =IF(D26<=SIMULADOR!$D$17,ROUND($H$6,2),"") -> 89.27 | I26: =IF(D26<=SIMULADOR!$D$17+1,I25-J25,"") -> 2014.02 | J26: =IF(D26<=SIMULADOR!$D$17,H26-L26-K26-M26,"") -> 57.42 | K26: 25.81 | L26: =IF(D26>SIMULADOR!$D$17,0,IF(AND(D26<=SIMULADOR!$D$17,I26<=SIMULADOR!$D$13),ROUND(I26*$F$1,2),IF(I26>SIMULADOR!$D$13,SIMULADOR!$D$13*Calculos!$F$1,""))) -> 6.04 | M26: =IF(Calculos!D26<=SIMULADOR!$D$17,Calculos!$M$4,"") -> 0 | N26: =IF(D26<=SIMULADOR!$D$17,ROUND(I26*((1+$E$3)^G26-1),2),"") -> 25.81 | P26: =+IF(D26<=SIMULADOR!$D$17,SIMULADOR!Q64,"") -> 89.27 | Q26: 642 | R26: 89.27 | S26: 278.46 | T26: 752.38 | U26: 304.27 | V26: 24.13 | W26: 3 | X26: 1083.78 | Y26: 26062.5 | AA26: 31 | AB26: =+IF(OR(Calculos!B24-SIMULADOR!$H$28<0,SIMULADOR!$H$28=0),0,Calculos!B24-SIMULADOR!$H$28) -> 0 | AC26: 0 | AD26: =+IF(AND(AB27<>0,AB26=0),SIMULADOR!$H$29,0) -> 0 | AE26: 0 | AG26: 0 | AH26: 0 | AI26: 0 | AJ26: =IF($BA26=SIMULADOR!$H$28,0,IF(OR(BO25=1,AND(AD26<>0,BO26=0)),L26,IF(AND(AC26+AD26>0,ABS(AG25-AH25)>0.01),L26,0))) -> 0 | AK26: 0 | AM26: 0 | AN26: 0 | AP26: 0 | AQ26: 0 | AS26: 0 | AX26: 0 | AZ26: 21 | BA26: =+BA25+IF(SIMULADOR!$H$28<>"",AA26+AC26,G26) -> 2025-02-23 | BB26: =+IF(SUM(AE$6:AE26)=0,I26,IF($BB$1=$BE$1,AG26,AT26)) -> 2014.02 | BC26: =+IF(SUM(AE$6:AE26)=0,L26,IF($BB$1=$BE$1,AJ26,AW26)) -> 6.04 | BD26: 0 | BE26: =+IF(SUM(AE$6:AE26)=0,0,IF($BB$1=$BE$1,AD26,AS26)) -> 0 | BF26: =+IF(SUM(AE$6:AE26)=0,J26,IF($BB$1=$BE$1,AH26,AU26)) -> 57.42 | BG26: =+IF(SUM(AE$6:AE26)=0,K26,IF($BB$1=$BE$1,AI26,AV26)) -> 25.81 | BI26: =+SIMULADOR!K65 -> 89.27 | BJ26: 642 | BK26: 8.526512829e-14 | BM26: 89.27 | BO26: 0 | BP26: 0 | BQ26: 0 | BR26: 21 | BS26: 2014.02 | BT26: 1956.6 | BU26: 2025-02-23
A27: 2025-03-23 | B27: =+IF(AND(SIMULADOR!$D$18=31,DAY(EOMONTH(A27,1))<>31),DATE(YEAR(A27),MONTH(A27)+1,DAY(EOMONTH(A27,1))),IF(MONTH(EDATE(A27,1))=2,EDATE(A27,1),DATE(YEAR(EDATE(A27,1)),MONTH(EDATE(A27,1)),SIMULADOR!$D$18))) -> 2025-04-23 | D27: 22 | E27: 670 | F27: 0.7101636247 | G27: 28 | H27: =IF(D27<=SIMULADOR!$D$17,ROUND($H$6,2),"") -> 89.27 | I27: =IF(D27<=SIMULADOR!$D$17+1,I26-J26,"") -> 1956.6 | J27: =IF(D27<=SIMULADOR!$D$17,H27-L27-K27-M27,"") -> 60.76 | K27: 22.64 | L27: =IF(D27>SIMULADOR!$D$17,0,IF(AND(D27<=SIMULADOR!$D$17,I27<=SIMULADOR!$D$13),ROUND(I27*$F$1,2),IF(I27>SIMULADOR!$D$13,SIMULADOR!$D$13*Calculos!$F$1,""))) -> 5.87 | M27: =IF(Calculos!D27<=SIMULADOR!$D$17,Calculos!$M$4,"") -> 0 | N27: =IF(D27<=SIMULADOR!$D$17,ROUND(I27*((1+$E$3)^G27-1),2),"") -> 22.64 | P27: =+IF(D27<=SIMULADOR!$D$17,SIMULADOR!Q65,"") -> 89.27 | Q27: 670 | R27: 89.27 | S27: 244.32 | T27: 790.36 | U27: 266.96 | V27: 23.46 | W27: 3 | X27: 1083.78 | Y27: 25272.14 | AA27: 28 | AB27: =+IF(OR(Calculos!B25-SIMULADOR!$H$28<0,SIMULADOR!$H$28=0),0,Calculos!B25-SIMULADOR!$H$28) -> 0 | AC27: 0 | AD27: =+IF(AND(AB28<>0,AB27=0),SIMULADOR!$H$29,0) -> 0 | AE27: 0 | AG27: 0 | AH27: 0 | AI27: 0 | AJ27: =IF($BA27=SIMULADOR!$H$28,0,IF(OR(BO26=1,AND(AD27<>0,BO27=0)),L27,IF(AND(AC27+AD27>0,ABS(AG26-AH26)>0.01),L27,0))) -> 0 | AK27: 0 | AM27: 0 | AN27: 0 | AP27: 0 | AQ27: 0 | AS27: 0 | AX27: 0 | AZ27: 22 | BA27: =+BA26+IF(SIMULADOR!$H$28<>"",AA27+AC27,G27) -> 2025-03-23 | BB27: =+IF(SUM(AE$6:AE27)=0,I27,IF($BB$1=$BE$1,AG27,AT27)) -> 1956.6 | BC27: =+IF(SUM(AE$6:AE27)=0,L27,IF($BB$1=$BE$1,AJ27,AW27)) -> 5.87 | BD27: 0 | BE27: =+IF(SUM(AE$6:AE27)=0,0,IF($BB$1=$BE$1,AD27,AS27)) -> 0 | BF27: =+IF(SUM(AE$6:AE27)=0,J27,IF($BB$1=$BE$1,AH27,AU27)) -> 60.76 | BG27: =+IF(SUM(AE$6:AE27)=0,K27,IF($BB$1=$BE$1,AI27,AV27)) -> 22.64 | BI27: =+SIMULADOR!K66 -> 89.27 | BJ27: 670 | BK27: 0 | BM27: 89.27 | BO27: 0 | BP27: 0 | BQ27: 0 | BR27: 22 | BS27: 1956.6 | BT27: 1895.84 | BU27: 2025-03-23
A28: 2025-04-23 | B28: =+IF(AND(SIMULADOR!$D$18=31,DAY(EOMONTH(A28,1))<>31),DATE(YEAR(A28),MONTH(A28)+1,DAY(EOMONTH(A28,1))),IF(MONTH(EDATE(A28,1))=2,EDATE(A28,1),DATE(YEAR(EDATE(A28,1)),MONTH(EDATE(A28,1)),SIMULADOR!$D$18))) -> 2025-05-23 | D28: 23 | E28: 701 | F28: 0.6990061189 | G28: 31 | H28: =IF(D28<=SIMULADOR!$D$17,ROUND($H$6,2),"") -> 89.27 | I28: =IF(D28<=SIMULADOR!$D$17+1,I27-J27,"") -> 1895.84 | J28: =IF(D28<=SIMULADOR!$D$17,H28-L28-K28-M28,"") -> 59.28 | K28: 24.3 | L28: =IF(D28>SIMULADOR!$D$17,0,IF(AND(D28<=SIMULADOR!$D$17,I28<=SIMULADOR!$D$13),ROUND(I28*$F$1,2),IF(I28>SIMULADOR!$D$13,SIMULADOR!$D$13*Calculos!$F$1,""))) -> 5.69 | M28: =IF(Calculos!D28<=SIMULADOR!$D$17,Calculos!$M$4,"") -> 0 | N28: =IF(D28<=SIMULADOR!$D$17,ROUND(I28*((1+$E$3)^G28-1),2),"") -> 24.3 | P28: =+IF(D28<=SIMULADOR!$D$17,SIMULADOR!Q66,"") -> 89.27 | Q28: 701 | R28: 89.27 | S28: 262.46 | T28: 771.28 | U28: 286.76 | V28: 22.74 | W28: 3 | X28: 1083.78 | Y28: 24500.86 | AA28: 31 | AB28: =+IF(OR(Calculos!B26-SIMULADOR!$H$28<0,SIMULADOR!$H$28=0),0,Calculos!B26-SIMULADOR!$H$28) -> 0 | AC28: 0 | AD28: =+IF(AND(AB29<>0,AB28=0),SIMULADOR!$H$29,0) -> 0 | AE28: 0 | AG28: 0 | AH28: 0 | AI28: 0 | AJ28: =IF($BA28=SIMULADOR!$H$28,0,IF(OR(BO27=1,AND(AD28<>0,BO28=0)),L28,IF(AND(AC28+AD28>0,ABS(AG27-AH27)>0.01),L28,0))) -> 0 | AK28: 0 | AM28: 0 | AN28: 0 | AP28: 0 | AQ28: 0 | AS28: 0 | AX28: 0 | AZ28: 23 | BA28: =+BA27+IF(SIMULADOR!$H$28<>"",AA28+AC28,G28) -> 2025-04-23 | BB28: =+IF(SUM(AE$6:AE28)=0,I28,IF($BB$1=$BE$1,AG28,AT28)) -> 1895.84 | BC28: =+IF(SUM(AE$6:AE28)=0,L28,IF($BB$1=$BE$1,AJ28,AW28)) -> 5.69 | BD28: 0 | BE28: =+IF(SUM(AE$6:AE28)=0,0,IF($BB$1=$BE$1,AD28,AS28)) -> 0 | BF28: =+IF(SUM(AE$6:AE28)=0,J28,IF($BB$1=$BE$1,AH28,AU28)) -> 59.28 | BG28: =+IF(SUM(AE$6:AE28)=0,K28,IF($BB$1=$BE$1,AI28,AV28)) -> 24.3 | BI28: =+SIMULADOR!K67 -> 89.27 | BJ28: 701 | BK28: 0 | BM28: 89.27 | BO28: 0 | BP28: 0 | BQ28: 0 | BR28: 23 | BS28: 1895.84 | BT28: 1836.56 | BU28: 2025-04-23
A29: 2025-05-23 | B29: =+IF(AND(SIMULADOR!$D$18=31,DAY(EOMONTH(A29,1))<>31),DATE(YEAR(A29),MONTH(A29)+1,DAY(EOMONTH(A29,1))),IF(MONTH(EDATE(A29,1))=2,EDATE(A29,1),DATE(YEAR(EDATE(A29,1)),MONTH(EDATE(A29,1)),SIMULADOR!$D$18))) -> 2025-06-23 | D29: 24 | E29: 731 | F29: 0.6883754676 | G29: 30 | H29: =IF(D29<=SIMULADOR!$D$17,ROUND($H$6,2),"") -> 89.27 | I29: =IF(D29<=SIMULADOR!$D$17+1,I28-J28,"") -> 1836.56 | J29: =IF(D29<=SIMULADOR!$D$17,H29-L29-K29-M29,"") -> 60.98 | K29: 22.78 | L29: =IF(D29>SIMULADOR!$D$17,0,IF(AND(D29<=SIMULADOR!$D$17,I29<=SIMULADOR!$D$13),ROUND(I29*$F$1,2),IF(I29>SIMULADOR!$D$13,SIMULADOR!$D$13*Calculos!$F$1,""))) -> 5.51 | M29: =IF(Calculos!D29<=SIMULADOR!$D$17,Calculos!$M$4,"") -> 0 | N29: =IF(D29<=SIMULADOR!$D$17,ROUND(I29*((1+$E$3)^G29-1),2),"") -> 22.78 | P29: =+IF(D29<=SIMULADOR!$D$17,SIMULADOR!Q67,"") -> 89.27 | Q29: 731 | R29: 89.27 | S29: 246.21 | T29: 789.74 | U29: 268.99 | V29: 22.05 | W29: 3 | X29: 1083.78 | Y29: 23711.12 | AA29: 30 | AB29: =+IF(OR(Calculos!B27-SIMULADOR!$H$28<0,SIMULADOR!$H$28=0),0,Calculos!B27-SIMULADOR!$H$28) -> 0 | AC29: 0 | AD29: =+IF(AND(AB30<>0,AB29=0),SIMULADOR!$H$29,0) -> 0 | AE29: 0 | AG29: 0 | AH29: 0 | AI29: 0 | AJ29: =IF($BA29=SIMULADOR!$H$28,0,IF(OR(BO28=1,AND(AD29<>0,BO29=0)),L29,IF(AND(AC29+AD29>0,ABS(AG28-AH28)>0.01),L29,0))) -> 0 | AK29: 0 | AM29: 0 | AN29: 0 | AP29: 0 | AQ29: 0 | AS29: 0 | AX29: 0 | AZ29: 24 | BA29: =+BA28+IF(SIMULADOR!$H$28<>"",AA29+AC29,G29) -> 2025-05-23 | BB29: =+IF(SUM(AE$6:AE29)=0,I29,IF($BB$1=$BE$1,AG29,AT29)) -> 1836.56 | BC29: =+IF(SUM(AE$6:AE29)=0,L29,IF($BB$1=$BE$1,AJ29,AW29)) -> 5.51 | BD29: 0 | BE29: =+IF(SUM(AE$6:AE29)=0,0,IF($BB$1=$BE$1,AD29,AS29)) -> 0 | BF29: =+IF(SUM(AE$6:AE29)=0,J29,IF($BB$1=$BE$1,AH29,AU29)) -> 60.98 | BG29: =+IF(SUM(AE$6:AE29)=0,K29,IF($BB$1=$BE$1,AI29,AV29)) -> 22.78 | BI29: =+SIMULADOR!K68 -> 89.27 | BJ29: 731 | BK29: 0 | BM29: 89.27 | BO29: 0 | BP29: 0 | BQ29: 0 | BR29: 24 | BS29: 1836.56 | BT29: 1775.58 | BU29: 2025-05-23
A30: 2025-06-23 | B30: =+IF(AND(SIMULADOR!$D$18=31,DAY(EOMONTH(A30,1))<>31),DATE(YEAR(A30),MONTH(A30)+1,DAY(EOMONTH(A30,1))),IF(MONTH(EDATE(A30,1))=2,EDATE(A30,1),DATE(YEAR(EDATE(A30,1)),MONTH(EDATE(A30,1)),SIMULADOR!$D$18))) -> 2025-07-23 | D30: 25 | E30: 762 | F30: 0.6775602794 | G30: 31 | H30: =IF(D30<=SIMULADOR!$D$17,ROUND($H$6,2),"") -> 89.27 | I30: =IF(D30<=SIMULADOR!$D$17+1,I29-J29,"") -> 1775.58 | J30: =IF(D30<=SIMULADOR!$D$17,H30-L30-K30-M30,"") -> 61.18 | K30: 22.76 | L30: =IF(D30>SIMULADOR!$D$17,0,IF(AND(D30<=SIMULADOR!$D$17,I30<=SIMULADOR!$D$13),ROUND(I30*$F$1,2),IF(I30>SIMULADOR!$D$13,SIMULADOR!$D$13*Calculos!$F$1,""))) -> 5.33 | M30: =IF(Calculos!D30<=SIMULADOR!$D$17,Calculos!$M$4,"") -> 0 | N30: =IF(D30<=SIMULADOR!$D$17,ROUND(I30*((1+$E$3)^G30-1),2),"") -> 22.76 | P30: =+IF(D30<=SIMULADOR!$D$17,SIMULADOR!Q68,"") -> 89.27 | Q30: 762 | R30: 89.27 | S30: 246.29 | T30: 790.39 | U30: 269.05 | V30: 21.34 | W30: 3 | X30: 1083.78 | Y30: 22920.73 | AA30: 31 | AB30: =+IF(OR(Calculos!B28-SIMULADOR!$H$28<0,SIMULADOR!$H$28=0),0,Calculos!B28-SIMULADOR!$H$28) -> 0 | AC30: 0 | AD30: =+IF(AND(AB31<>0,AB30=0),SIMULADOR!$H$29,0) -> 0 | AE30: 0 | AG30: 0 | AH30: 0 | AI30: 0 | AJ30: =IF($BA30=SIMULADOR!$H$28,0,IF(OR(BO29=1,AND(AD30<>0,BO30=0)),L30,IF(AND(AC30+AD30>0,ABS(AG29-AH29)>0.01),L30,0))) -> 0 | AK30: 0 | AM30: 0 | AN30: 0 | AP30: 0 | AQ30: 0 | AS30: 0 | AX30: 0 | AZ30: 25 | BA30: =+BA29+IF(SIMULADOR!$H$28<>"",AA30+AC30,G30) -> 2025-06-23 | BB30: =+IF(SUM(AE$6:AE30)=0,I30,IF($BB$1=$BE$1,AG30,AT30)) -> 1775.58 | BC30: =+IF(SUM(AE$6:AE30)=0,L30,IF($BB$1=$BE$1,AJ30,AW30)) -> 5.33 | BD30: 0 | BE30: =+IF(SUM(AE$6:AE30)=0,0,IF($BB$1=$BE$1,AD30,AS30)) -> 0 | BF30: =+IF(SUM(AE$6:AE30)=0,J30,IF($BB$1=$BE$1,AH30,AU30)) -> 61.18 | BG30: =+IF(SUM(AE$6:AE30)=0,K30,IF($BB$1=$BE$1,AI30,AV30)) -> 22.76 | BI30: =+SIMULADOR!K69 -> 89.27 | BJ30: 762 | BK30: 7.105427358e-14 | BM30: 89.27 | BO30: 0 | BP30: 0 | BQ30: 0 | BR30: 25 | BS30: 1775.58 | BT30: 1714.4 | BU30: 2025-06-23
A31: 2025-07-23 | B31: =+IF(AND(SIMULADOR!$D$18=31,DAY(EOMONTH(A31,1))<>31),DATE(YEAR(A31),MONTH(A31)+1,DAY(EOMONTH(A31,1))),IF(MONTH(EDATE(A31,1))=2,EDATE(A31,1),DATE(YEAR(EDATE(A31,1)),MONTH(EDATE(A31,1)),SIMULADOR!$D$18))) -> 2025-08-23 | D31: 26 | E31: 792 | F31: 0.6672557815 | G31: 30 | H31: =IF(D31<=SIMULADOR!$D$17,ROUND($H$6,2),"") -> 89.27 | I31: =IF(D31<=SIMULADOR!$D$17+1,I30-J30,"") -> 1714.4 | J31: =IF(D31<=SIMULADOR!$D$17,H31-L31-K31-M31,"") -> 62.87 | K31: 21.26 | L31: =IF(D31>SIMULADOR!$D$17,0,IF(AND(D31<=SIMULADOR!$D$17,I31<=SIMULADOR!$D$13),ROUND(I31*$F$1,2),IF(I31>SIMULADOR!$D$13,SIMULADOR!$D$13*Calculos!$F$1,""))) -> 5.14 | M31: =IF(Calculos!D31<=SIMULADOR!$D$17,Calculos!$M$4,"") -> 0 | N31: =IF(D31<=SIMULADOR!$D$17,ROUND(I31*((1+$E$3)^G31-1),2),"") -> 21.26 | P31: =+IF(D31<=SIMULADOR!$D$17,SIMULADOR!Q69,"") -> 89.27 | Q31: 792 | R31: 89.27 | S31: 230.38 | T31: 808.51 | U31: 251.64 | V31: 20.63 | W31: 3 | X31: 1083.78 | Y31: 22112.22 | AA31: 30 | AB31: =+IF(OR(Calculos!B29-SIMULADOR!$H$28<0,SIMULADOR!$H$28=0),0,Calculos!B29-SIMULADOR!$H$28) -> 0 | AC31: 0 | AD31: =+IF(AND(AB32<>0,AB31=0),SIMULADOR!$H$29,0) -> 0 | AE31: 0 | AG31: 0 | AH31: 0 | AI31: 0 | AJ31: =IF($BA31=SIMULADOR!$H$28,0,IF(OR(BO30=1,AND(AD31<>0,BO31=0)),L31,IF(AND(AC31+AD31>0,ABS(AG30-AH30)>0.01),L31,0))) -> 0 | AK31: 0 | AM31: 0 | AN31: 0 | AP31: 0 | AQ31: 0 | AS31: 0 | AX31: 0 | AZ31: 26 | BA31: =+BA30+IF(SIMULADOR!$H$28<>"",AA31+AC31,G31) -> 2025-07-23 | BB31: =+IF(SUM(AE$6:AE31)=0,I31,IF($BB$1=$BE$1,AG31,AT31)) -> 1714.4 | BC31: =+IF(SUM(AE$6:AE31)=0,L31,IF($BB$1=$BE$1,AJ31,AW31)) -> 5.14 | BD31: 0 | BE31: =+IF(SUM(AE$6:AE31)=0,0,IF($BB$1=$BE$1,AD31,AS31)) -> 0 | BF31: =+IF(SUM(AE$6:AE31)=0,J31,IF($BB$1=$BE$1,AH31,AU31)) -> 62.87 | BG31: =+IF(SUM(AE$6:AE31)=0,K31,IF($BB$1=$BE$1,AI31,AV31)) -> 21.26 | BI31: =+SIMULADOR!K70 -> 89.27 | BJ31: 792 | BK31: -9.947598301e-14 | BM31: 89.27 | BO31: 0 | BP31: 0 | BQ31: 0 | BR31: 26 | BS31: 1714.4 | BT31: 1651.53 | BU31: 2025-07-23
A32: 2025-08-23 | B32: =+IF(AND(SIMULADOR!$D$18=31,DAY(EOMONTH(A32,1))<>31),DATE(YEAR(A32),MONTH(A32)+1,DAY(EOMONTH(A32,1))),IF(MONTH(EDATE(A32,1))=2,EDATE(A32,1),DATE(YEAR(EDATE(A32,1)),MONTH(EDATE(A32,1)),SIMULADOR!$D$18))) -> 2025-09-23 | D32: 27 | E32: 823 | F32: 0.6567724084 | G32: 31 | H32: =IF(D32<=SIMULADOR!$D$17,ROUND($H$6,2),"") -> 89.27 | I32: =IF(D32<=SIMULADOR!$D$17+1,I31-J31,"") -> 1651.53 | J32: =IF(D32<=SIMULADOR!$D$17,H32-L32-K32-M32,"") -> 63.15 | K32: 21.17 | L32: =IF(D32>SIMULADOR!$D$17,0,IF(AND(D32<=SIMULADOR!$D$17,I32<=SIMULADOR!$D$13),ROUND(I32*$F$1,2),IF(I32>SIMULADOR!$D$13,SIMULADOR!$D$13*Calculos!$F$1,""))) -> 4.95 | M32: =IF(Calculos!D32<=SIMULADOR!$D$17,Calculos!$M$4,"") -> 0 | N32: =IF(D32<=SIMULADOR!$D$17,ROUND(I32*((1+$E$3)^G32-1),2),"") -> 21.17 | P32: =+IF(D32<=SIMULADOR!$D$17,SIMULADOR!Q70,"") -> 89.27 | Q32: 823 | R32: 89.27 | S32: 229.73 | T32: 809.98 | U32: 250.9 | V32: 19.9 | W32: 3 | X32: 1083.78 | Y32: 21302.24 | AA32: 31 | AB32: =+IF(OR(Calculos!B30-SIMULADOR!$H$28<0,SIMULADOR!$H$28=0),0,Calculos!B30-SIMULADOR!$H$28) -> 0 | AC32: 0 | AD32: =+IF(AND(AB33<>0,AB32=0),SIMULADOR!$H$29,0) -> 0 | AE32: 0 | AG32: 0 | AH32: 0 | AI32: 0 | AJ32: =IF($BA32=SIMULADOR!$H$28,0,IF(OR(BO31=1,AND(AD32<>0,BO32=0)),L32,IF(AND(AC32+AD32>0,ABS(AG31-AH31)>0.01),L32,0))) -> 0 | AK32: 0 | AM32: 0 | AN32: 0 | AP32: 0 | AQ32: 0 | AS32: 0 | AX32: 0 | AZ32: 27 | BA32: =+BA31+IF(SIMULADOR!$H$28<>"",AA32+AC32,G32) -> 2025-08-23 | BB32: =+IF(SUM(AE$6:AE32)=0,I32,IF($BB$1=$BE$1,AG32,AT32)) -> 1651.53 | BC32: =+IF(SUM(AE$6:AE32)=0,L32,IF($BB$1=$BE$1,AJ32,AW32)) -> 4.95 | BD32: 0 | BE32: =+IF(SUM(AE$6:AE32)=0,0,IF($BB$1=$BE$1,AD32,AS32)) -> 0 | BF32: =+IF(SUM(AE$6:AE32)=0,J32,IF($BB$1=$BE$1,AH32,AU32)) -> 63.15 | BG32: =+IF(SUM(AE$6:AE32)=0,K32,IF($BB$1=$BE$1,AI32,AV32)) -> 21.17 | BI32: =+SIMULADOR!K71 -> 89.27 | BJ32: 823 | BK32: 9.947598301e-14 | BM32: 89.27 | BO32: 0 | BP32: 0 | BQ32: 0 | BR32: 27 | BS32: 1651.53 | BT32: 1588.38 | BU32: 2025-08-23
A33: 2025-09-23 | B33: =+IF(AND(SIMULADOR!$D$18=31,DAY(EOMONTH(A33,1))<>31),DATE(YEAR(A33),MONTH(A33)+1,DAY(EOMONTH(A33,1))),IF(MONTH(EDATE(A33,1))=2,EDATE(A33,1),DATE(YEAR(EDATE(A33,1)),MONTH(EDATE(A33,1)),SIMULADOR!$D$18))) -> 2025-10-23 | D33: 28 | E33: 854 | F33: 0.6464537414 | G33: 31 | H33: =IF(D33<=SIMULADOR!$D$17,ROUND($H$6,2),"") -> 89.27 | I33: =IF(D33<=SIMULADOR!$D$17+1,I32-J32,"") -> 1588.38 | J33: =IF(D33<=SIMULADOR!$D$17,H33-L33-K33-M33,"") -> 64.14 | K33: 20.36 | L33: =IF(D33>SIMULADOR!$D$17,0,IF(AND(D33<=SIMULADOR!$D$17,I33<=SIMULADOR!$D$13),ROUND(I33*$F$1,2),IF(I33>SIMULADOR!$D$13,SIMULADOR!$D$13*Calculos!$F$1,""))) -> 4.77 | M33: =IF(Calculos!D33<=SIMULADOR!$D$17,Calculos!$M$4,"") -> 0 | N33: =IF(D33<=SIMULADOR!$D$17,ROUND(I33*((1+$E$3)^G33-1),2),"") -> 20.36 | P33: =+IF(D33<=SIMULADOR!$D$17,SIMULADOR!Q71,"") -> 89.27 | Q33: 854 | R33: 89.27 | S33: 221.35 | T33: 819.9 | U33: 241.71 | V33: 19.17 | W33: 3 | X33: 1083.78 | Y33: 20482.34 | AA33: 31 | AB33: =+IF(OR(Calculos!B31-SIMULADOR!$H$28<0,SIMULADOR!$H$28=0),0,Calculos!B31-SIMULADOR!$H$28) -> 0 | AC33: 0 | AD33: =+IF(AND(AB34<>0,AB33=0),SIMULADOR!$H$29,0) -> 0 | AE33: 0 | AG33: 0 | AH33: 0 | AI33: 0 | AJ33: =IF($BA33=SIMULADOR!$H$28,0,IF(OR(BO32=1,AND(AD33<>0,BO33=0)),L33,IF(AND(AC33+AD33>0,ABS(AG32-AH32)>0.01),L33,0))) -> 0 | AK33: 0 | AM33: 0 | AN33: 0 | AP33: 0 | AQ33: 0 | AS33: 0 | AX33: 0 | AZ33: 28 | BA33: =+BA32+IF(SIMULADOR!$H$28<>"",AA33+AC33,G33) -> 2025-09-23 | BB33: =+IF(SUM(AE$6:AE33)=0,I33,IF($BB$1=$BE$1,AG33,AT33)) -> 1588.38 | BC33: =+IF(SUM(AE$6:AE33)=0,L33,IF($BB$1=$BE$1,AJ33,AW33)) -> 4.77 | BD33: 0 | BE33: =+IF(SUM(AE$6:AE33)=0,0,IF($BB$1=$BE$1,AD33,AS33)) -> 0 | BF33: =+IF(SUM(AE$6:AE33)=0,J33,IF($BB$1=$BE$1,AH33,AU33)) -> 64.14 | BG33: =+IF(SUM(AE$6:AE33)=0,K33,IF($BB$1=$BE$1,AI33,AV33)) -> 20.36 | BI33: =+SIMULADOR!K72 -> 89.27 | BJ33: 854 | BK33: 0 | BM33: 89.27 | BO33: 0 | BP33: 0 | BQ33: 0 | BR33: 28 | BS33: 1588.38 | BT33: 1524.24 | BU33: 2025-09-23
A34: 2025-10-23 | B34: =+IF(AND(SIMULADOR!$D$18=31,DAY(EOMONTH(A34,1))<>31),DATE(YEAR(A34),MONTH(A34)+1,DAY(EOMONTH(A34,1))),IF(MONTH(EDATE(A34,1))=2,EDATE(A34,1),DATE(YEAR(EDATE(A34,1)),MONTH(EDATE(A34,1)),SIMULADOR!$D$18))) -> 2025-11-23 | D34: 29 | E34: 884 | F34: 0.6366223191 | G34: 30 | H34: =IF(D34<=SIMULADOR!$D$17,ROUND($H$6,2),"") -> 89.27 | I34: =IF(D34<=SIMULADOR!$D$17+1,I33-J33,"") -> 1524.24 | J34: =IF(D34<=SIMULADOR!$D$17,H34-L34-K34-M34,"") -> 65.8 | K34: 18.9 | L34: =IF(D34>SIMULADOR!$D$17,0,IF(AND(D34<=SIMULADOR!$D$17,I34<=SIMULADOR!$D$13),ROUND(I34*$F$1,2),IF(I34>SIMULADOR!$D$13,SIMULADOR!$D$13*Calculos!$F$1,""))) -> 4.57 | M34: =IF(Calculos!D34<=SIMULADOR!$D$17,Calculos!$M$4,"") -> 0 | N34: =IF(D34<=SIMULADOR!$D$17,ROUND(I34*((1+$E$3)^G34-1),2),"") -> 18.9 | P34: =+IF(D34<=SIMULADOR!$D$17,SIMULADOR!Q72,"") -> 89.27 | Q34: 884 | R34: 89.27 | S34: 205.97 | T34: 837.48 | U34: 224.87 | V34: 18.43 | W34: 3 | X34: 1083.78 | Y34: 19644.86 | AA34: 30 | AB34: =+IF(OR(Calculos!B32-SIMULADOR!$H$28<0,SIMULADOR!$H$28=0),0,Calculos!B32-SIMULADOR!$H$28) -> 0 | AC34: 0 | AD34: =+IF(AND(AB35<>0,AB34=0),SIMULADOR!$H$29,0) -> 0 | AE34: 0 | AG34: 0 | AH34: 0 | AI34: 0 | AJ34: =IF($BA34=SIMULADOR!$H$28,0,IF(OR(BO33=1,AND(AD34<>0,BO34=0)),L34,IF(AND(AC34+AD34>0,ABS(AG33-AH33)>0.01),L34,0))) -> 0 | AK34: 0 | AM34: 0 | AN34: 0 | AP34: 0 | AQ34: 0 | AS34: 0 | AX34: 0 | AZ34: 29 | BA34: =+BA33+IF(SIMULADOR!$H$28<>"",AA34+AC34,G34) -> 2025-10-23 | BB34: =+IF(SUM(AE$6:AE34)=0,I34,IF($BB$1=$BE$1,AG34,AT34)) -> 1524.24 | BC34: =+IF(SUM(AE$6:AE34)=0,L34,IF($BB$1=$BE$1,AJ34,AW34)) -> 4.57 | BD34: 0 | BE34: =+IF(SUM(AE$6:AE34)=0,0,IF($BB$1=$BE$1,AD34,AS34)) -> 0 | BF34: =+IF(SUM(AE$6:AE34)=0,J34,IF($BB$1=$BE$1,AH34,AU34)) -> 65.8 | BG34: =+IF(SUM(AE$6:AE34)=0,K34,IF($BB$1=$BE$1,AI34,AV34)) -> 18.9 | BI34: =+SIMULADOR!K73 -> 89.27 | BJ34: 884 | BK34: 0 | BM34: 89.27 | BO34: 0 | BP34: 0 | BQ34: 0 | BR34: 29 | BS34: 1524.24 | BT34: 1458.44 | BU34: 2025-10-23
A35: 2025-11-23 | B35: =+IF(AND(SIMULADOR!$D$18=31,DAY(EOMONTH(A35,1))<>31),DATE(YEAR(A35),MONTH(A35)+1,DAY(EOMONTH(A35,1))),IF(MONTH(EDATE(A35,1))=2,EDATE(A35,1),DATE(YEAR(EDATE(A35,1)),MONTH(EDATE(A35,1)),SIMULADOR!$D$18))) -> 2025-12-23 | D35: 30 | E35: 915 | F35: 0.6266202337 | G35: 31 | H35: =IF(D35<=SIMULADOR!$D$17,ROUND($H$6,2),"") -> 89.27 | I35: =IF(D35<=SIMULADOR!$D$17+1,I34-J34,"") -> 1458.44 | J35: =IF(D35<=SIMULADOR!$D$17,H35-L35-K35-M35,"") -> 66.2 | K35: 18.69 | L35: =IF(D35>SIMULADOR!$D$17,0,IF(AND(D35<=SIMULADOR!$D$17,I35<=SIMULADOR!$D$13),ROUND(I35*$F$1,2),IF(I35>SIMULADOR!$D$13,SIMULADOR!$D$13*Calculos!$F$1,""))) -> 4.38 | M35: =IF(Calculos!D35<=SIMULADOR!$D$17,Calculos!$M$4,"") -> 0 | N35: =IF(D35<=SIMULADOR!$D$17,ROUND(I35*((1+$E$3)^G35-1),2),"") -> 18.69 | P35: =+IF(D35<=SIMULADOR!$D$17,SIMULADOR!Q73,"") -> 89.27 | Q35: 915 | R35: 89.27 | S35: 233.99 | T35: 810.42 | U35: 252.68 | V35: 17.68 | W35: 3 | X35: 1083.78 | Y35: 18834.44 | AA35: 31 | AB35: =+IF(OR(Calculos!B33-SIMULADOR!$H$28<0,SIMULADOR!$H$28=0),0,Calculos!B33-SIMULADOR!$H$28) -> 0 | AC35: 0 | AD35: =+IF(AND(AB36<>0,AB35=0),SIMULADOR!$H$29,0) -> 0 | AE35: 0 | AG35: 0 | AH35: 0 | AI35: 0 | AJ35: =IF($BA35=SIMULADOR!$H$28,0,IF(OR(BO34=1,AND(AD35<>0,BO35=0)),L35,IF(AND(AC35+AD35>0,ABS(AG34-AH34)>0.01),L35,0))) -> 0 | AK35: 0 | AM35: 0 | AN35: 0 | AP35: 0 | AQ35: 0 | AS35: 0 | AX35: 0 | AZ35: 30 | BA35: =+BA34+IF(SIMULADOR!$H$28<>"",AA35+AC35,G35) -> 2025-11-23 | BB35: =+IF(SUM(AE$6:AE35)=0,I35,IF($BB$1=$BE$1,AG35,AT35)) -> 1458.44 | BC35: =+IF(SUM(AE$6:AE35)=0,L35,IF($BB$1=$BE$1,AJ35,AW35)) -> 4.38 | BD35: 0 | BE35: =+IF(SUM(AE$6:AE35)=0,0,IF($BB$1=$BE$1,AD35,AS35)) -> 0 | BF35: =+IF(SUM(AE$6:AE35)=0,J35,IF($BB$1=$BE$1,AH35,AU35)) -> 66.2 | BG35: =+IF(SUM(AE$6:AE35)=0,K35,IF($BB$1=$BE$1,AI35,AV35)) -> 18.69 | BI35: =+SIMULADOR!K74 -> 89.27 | BJ35: 915 | BK35: 0 | BM35: 89.27 | BO35: 0 | BP35: 0 | BQ35: 0 | BR35: 30 | BS35: 1458.44 | BT35: 1392.24 | BU35: 2025-11-23
A36: 2025-12-23 | B36: =+IF(AND(SIMULADOR!$D$18=31,DAY(EOMONTH(A36,1))<>31),DATE(YEAR(A36),MONTH(A36)+1,DAY(EOMONTH(A36,1))),IF(MONTH(EDATE(A36,1))=2,EDATE(A36,1),DATE(YEAR(EDATE(A36,1)),MONTH(EDATE(A36,1)),SIMULADOR!$D$18))) -> 2026-01-23 | D36: 31 | E36: 945 | F36: 0.6170904442 | G36: 30 | H36: =IF(D36<=SIMULADOR!$D$17,ROUND($H$6,2),"") -> 89.27 | I36: =IF(D36<=SIMULADOR!$D$17+1,I35-J35,"") -> 1392.24 | J36: =IF(D36<=SIMULADOR!$D$17,H36-L36-K36-M36,"") -> 67.82 | K36: 17.27 | L36: =IF(D36>SIMULADOR!$D$17,0,IF(AND(D36<=SIMULADOR!$D$17,I36<=SIMULADOR!$D$13),ROUND(I36*$F$1,2),IF(I36>SIMULADOR!$D$13,SIMULADOR!$D$13*Calculos!$F$1,""))) -> 4.18 | M36: =IF(Calculos!D36<=SIMULADOR!$D$17,Calculos!$M$4,"") -> 0 | N36: =IF(D36<=SIMULADOR!$D$17,ROUND(I36*((1+$E$3)^G36-1),2),"") -> 17.27 | P36: =+IF(D36<=SIMULADOR!$D$17,SIMULADOR!Q74,"") -> 89.27 | Q36: 945 | R36: 89.27 | S36: 217.13 | T36: 829.43 | U36: 234.4 | V36: 16.95 | W36: 3 | X36: 1083.78 | Y36: 18005.01 | AA36: 30 | AB36: =+IF(OR(Calculos!B34-SIMULADOR!$H$28<0,SIMULADOR!$H$28=0),0,Calculos!B34-SIMULADOR!$H$28) -> 0 | AC36: 0 | AD36: =+IF(AND(AB37<>0,AB36=0),SIMULADOR!$H$29,0) -> 0 | AE36: 0 | AG36: 0 | AH36: 0 | AI36: 0 | AJ36: =IF($BA36=SIMULADOR!$H$28,0,IF(OR(BO35=1,AND(AD36<>0,BO36=0)),L36,IF(AND(AC36+AD36>0,ABS(AG35-AH35)>0.01),L36,0))) -> 0 | AK36: 0 | AM36: 0 | AN36: 0 | AP36: 0 | AQ36: 0 | AS36: 0 | AX36: 0 | AZ36: 31 | BA36: =+BA35+IF(SIMULADOR!$H$28<>"",AA36+AC36,G36) -> 2025-12-23 | BB36: =+IF(SUM(AE$6:AE36)=0,I36,IF($BB$1=$BE$1,AG36,AT36)) -> 1392.24 | BC36: =+IF(SUM(AE$6:AE36)=0,L36,IF($BB$1=$BE$1,AJ36,AW36)) -> 4.18 | BD36: 0 | BE36: =+IF(SUM(AE$6:AE36)=0,0,IF($BB$1=$BE$1,AD36,AS36)) -> 0 | BF36: =+IF(SUM(AE$6:AE36)=0,J36,IF($BB$1=$BE$1,AH36,AU36)) -> 67.82 | BG36: =+IF(SUM(AE$6:AE36)=0,K36,IF($BB$1=$BE$1,AI36,AV36)) -> 17.27 | BI36: =+SIMULADOR!K75 -> 89.27 | BJ36: 945 | BK36: 0 | BM36: 89.27 | BO36: 0 | BP36: 0 | BQ36: 0 | BR36: 31 | BS36: 1392.24 | BT36: 1324.42 | BU36: 2025-12-23
A37: 2026-01-23 | B37: =+IF(AND(SIMULADOR!$D$18=31,DAY(EOMONTH(A37,1))<>31),DATE(YEAR(A37),MONTH(A37)+1,DAY(EOMONTH(A37,1))),IF(MONTH(EDATE(A37,1))=2,EDATE(A37,1),DATE(YEAR(EDATE(A37,1)),MONTH(EDATE(A37,1)),SIMULADOR!$D$18))) -> 2026-02-23 | D37: 32 | E37: 976 | F37: 0.6073952275 | G37: 31 | H37: =IF(D37<=SIMULADOR!$D$17,ROUND($H$6,2),"") -> 89.27 | I37: =IF(D37<=SIMULADOR!$D$17+1,I36-J36,"") -> 1324.42 | J37: =IF(D37<=SIMULADOR!$D$17,H37-L37-K37-M37,"") -> 68.32 | K37: 16.98 | L37: =IF(D37>SIMULADOR!$D$17,0,IF(AND(D37<=SIMULADOR!$D$17,I37<=SIMULADOR!$D$13),ROUND(I37*$F$1,2),IF(I37>SIMULADOR!$D$13,SIMULADOR!$D$13*Calculos!$F$1,""))) -> 3.97 | M37: =IF(Calculos!D37<=SIMULADOR!$D$17,Calculos!$M$4,"") -> 0 | N37: =IF(D37<=SIMULADOR!$D$17,ROUND(I37*((1+$E$3)^G37-1),2),"") -> 16.98 | P37: =+IF(D37<=SIMULADOR!$D$17,SIMULADOR!Q75,"") -> 89.27 | Q37: 976 | R37: 89.27 | S37: 214.61 | T37: 832.99 | U37: 231.59 | V37: 16.2 | W37: 3 | X37: 1083.78 | Y37: 17172.02 | AA37: 31 | AB37: =+IF(OR(Calculos!B35-SIMULADOR!$H$28<0,SIMULADOR!$H$28=0),0,Calculos!B35-SIMULADOR!$H$28) -> 0 | AC37: 0 | AD37: =+IF(AND(AB38<>0,AB37=0),SIMULADOR!$H$29,0) -> 0 | AE37: 0 | AG37: 0 | AH37: 0 | AI37: 0 | AJ37: =IF($BA37=SIMULADOR!$H$28,0,IF(OR(BO36=1,AND(AD37<>0,BO37=0)),L37,IF(AND(AC37+AD37>0,ABS(AG36-AH36)>0.01),L37,0))) -> 0 | AK37: 0 | AM37: 0 | AN37: 0 | AP37: 0 | AQ37: 0 | AS37: 0 | AX37: 0 | AZ37: 32 | BA37: =+BA36+IF(SIMULADOR!$H$28<>"",AA37+AC37,G37) -> 2026-01-23 | BB37: =+IF(SUM(AE$6:AE37)=0,I37,IF($BB$1=$BE$1,AG37,AT37)) -> 1324.42 | BC37: =+IF(SUM(AE$6:AE37)=0,L37,IF($BB$1=$BE$1,AJ37,AW37)) -> 3.97 | BD37: 0 | BE37: =+IF(SUM(AE$6:AE37)=0,0,IF($BB$1=$BE$1,AD37,AS37)) -> 0 | BF37: =+IF(SUM(AE$6:AE37)=0,J37,IF($BB$1=$BE$1,AH37,AU37)) -> 68.32 | BG37: =+IF(SUM(AE$6:AE37)=0,K37,IF($BB$1=$BE$1,AI37,AV37)) -> 16.98 | BI37: =+SIMULADOR!K76 -> 89.27 | BJ37: 976 | BK37: 0 | BM37: 89.27 | BO37: 0 | BP37: 0 | BQ37: 0 | BR37: 32 | BS37: 1324.42 | BT37: 1256.1 | BU37: 2026-01-23
A38: =+B37 -> 2026-02-23 | B38: =+IF(AND(SIMULADOR!$D$18=31,DAY(EOMONTH(A38,1))<>31),DATE(YEAR(A38),MONTH(A38)+1,DAY(EOMONTH(A38,1))),IF(MONTH(EDATE(A38,1))=2,EDATE(A38,1),DATE(YEAR(EDATE(A38,1)),MONTH(EDATE(A38,1)),SIMULADOR!$D$18))) -> 2026-03-23 | D38: 33 | E38: 1007 | F38: 0.5978523341 | G38: 31 | H38: =IF(D38<=SIMULADOR!$D$17,ROUND($H$6,2),"") -> 89.27 | I38: =IF(D38<=SIMULADOR!$D$17+1,I37-J37,"") -> 1256.1 | J38: =IF(D38<=SIMULADOR!$D$17,H38-L38-K38-M38,"") -> 69.4 | K38: 16.1 | L38: =IF(D38>SIMULADOR!$D$17,0,IF(AND(D38<=SIMULADOR!$D$17,I38<=SIMULADOR!$D$13),ROUND(I38*$F$1,2),IF(I38>SIMULADOR!$D$13,SIMULADOR!$D$13*Calculos!$F$1,""))) -> 3.77 | M38: =IF(Calculos!D38<=SIMULADOR!$D$17,Calculos!$M$4,"") -> 0 | N38: =IF(D38<=SIMULADOR!$D$17,ROUND(I38*((1+$E$3)^G38-1),2),"") -> 16.1 | P38: =+IF(D38<=SIMULADOR!$D$17,SIMULADOR!Q76,"") -> 89.27 | Q38: =IF(P38<>"",E38,"") -> 1007 | R38: =+N38+L38+J38 -> 89.27 | S38: 204.78 | T38: 844.45 | U38: 220.88 | V38: 15.45 | W38: 3 | X38: 1083.78 | Y38: 16327.57 | AA38: 31 | AB38: =+IF(OR(Calculos!B36-SIMULADOR!$H$28<0,SIMULADOR!$H$28=0),0,Calculos!B36-SIMULADOR!$H$28) -> 0 | AC38: 0 | AD38: =+IF(AND(AB39<>0,AB38=0),SIMULADOR!$H$29,0) -> 0 | AE38: 0 | AG38: 0 | AH38: 0 | AI38: 0 | AJ38: =IF($BA38=SIMULADOR!$H$28,0,IF(OR(BO37=1,AND(AD38<>0,BO38=0)),L38,IF(AND(AC38+AD38>0,ABS(AG37-AH37)>0.01),L38,0))) -> 0 | AK38: 0 | AM38: 0 | AN38: 0 | AP38: 0 | AQ38: 0 | AS38: 0 | AX38: 0 | AZ38: 33 | BA38: =+BA37+IF(SIMULADOR!$H$28<>"",AA38+AC38,G38) -> 2026-02-23 | BB38: =+IF(SUM(AE$6:AE38)=0,I38,IF($BB$1=$BE$1,AG38,AT38)) -> 1256.1 | BC38: =+IF(SUM(AE$6:AE38)=0,L38,IF($BB$1=$BE$1,AJ38,AW38)) -> 3.77 | BD38: 0 | BE38: =+IF(SUM(AE$6:AE38)=0,0,IF($BB$1=$BE$1,AD38,AS38)) -> 0 | BF38: =+IF(SUM(AE$6:AE38)=0,J38,IF($BB$1=$BE$1,AH38,AU38)) -> 69.4 | BG38: =+IF(SUM(AE$6:AE38)=0,K38,IF($BB$1=$BE$1,AI38,AV38)) -> 16.1 | BI38: =+SIMULADOR!K77 -> 89.27 | BJ38: 1007 | BK38: 0 | BM38: 89.27 | BO38: 0 | BP38: 0 | BQ38: 0 | BR38: 33 | BS38: 1256.1 | BT38: 1186.7 | BU38: 2026-02-23
A39: 2026-03-23 | B39: =+IF(AND(SIMULADOR!$D$18=31,DAY(EOMONTH(A39,1))<>31),DATE(YEAR(A39),MONTH(A39)+1,DAY(EOMONTH(A39,1))),IF(MONTH(EDATE(A39,1))=2,EDATE(A39,1),DATE(YEAR(EDATE(A39,1)),MONTH(EDATE(A39,1)),SIMULADOR!$D$18))) -> 2026-04-23 | D39: 34 | E39: 1035 | F39: 0.5893618802 | G39: 28 | H39: =IF(D39<=SIMULADOR!$D$17,ROUND($H$6,2),"") -> 89.27 | I39: =IF(D39<=SIMULADOR!$D$17+1,I38-J38,"") -> 1186.7 | J39: =IF(D39<=SIMULADOR!$D$17,H39-L39-K39-M39,"") -> 71.98 | K39: 13.73 | L39: =IF(D39>SIMULADOR!$D$17,0,IF(AND(D39<=SIMULADOR!$D$17,I39<=SIMULADOR!$D$13),ROUND(I39*$F$1,2),IF(I39>SIMULADOR!$D$13,SIMULADOR!$D$13*Calculos!$F$1,""))) -> 3.56 | M39: =IF(Calculos!D39<=SIMULADOR!$D$17,Calculos!$M$4,"") -> 0 | N39: =IF(D39<=SIMULADOR!$D$17,ROUND(I39*((1+$E$3)^G39-1),2),"") -> 13.73 | P39: =+IF(D39<=SIMULADOR!$D$17,SIMULADOR!Q77,"") -> 89.27 | Q39: 1035 | R39: 89.27 | S39: 175.84 | T39: 876.52 | U39: 189.57 | V39: 14.69 | W39: 3 | X39: 1083.78 | Y39: 15451.05 | AA39: 28 | AB39: =+IF(OR(Calculos!B37-SIMULADOR!$H$28<0,SIMULADOR!$H$28=0),0,Calculos!B37-SIMULADOR!$H$28) -> 0 | AC39: 0 | AD39: =+IF(AND(AB40<>0,AB39=0),SIMULADOR!$H$29,0) -> 0 | AE39: 0 | AG39: 0 | AH39: 0 | AI39: 0 | AJ39: =IF($BA39=SIMULADOR!$H$28,0,IF(OR(BO38=1,AND(AD39<>0,BO39=0)),L39,IF(AND(AC39+AD39>0,ABS(AG38-AH38)>0.01),L39,0))) -> 0 | AK39: 0 | AM39: 0 | AN39: 0 | AP39: 0 | AQ39: 0 | AS39: 0 | AX39: 0 | AZ39: 34 | BA39: =+BA38+IF(SIMULADOR!$H$28<>"",AA39+AC39,G39) -> 2026-03-23 | BB39: =+IF(SUM(AE$6:AE39)=0,I39,IF($BB$1=$BE$1,AG39,AT39)) -> 1186.7 | BC39: =+IF(SUM(AE$6:AE39)=0,L39,IF($BB$1=$BE$1,AJ39,AW39)) -> 3.56 | BD39: 0 | BE39: =+IF(SUM(AE$6:AE39)=0,0,IF($BB$1=$BE$1,AD39,AS39)) -> 0 | BF39: =+IF(SUM(AE$6:AE39)=0,J39,IF($BB$1=$BE$1,AH39,AU39)) -> 71.98 | BG39: =+IF(SUM(AE$6:AE39)=0,K39,IF($BB$1=$BE$1,AI39,AV39)) -> 13.73 | BI39: =+SIMULADOR!K78 -> 89.27 | BJ39: 1035 | BK39: 0 | BM39: 89.27 | BO39: 0 | BP39: 0 | BQ39: 0 | BR39: 34 | BS39: =+BB39 -> 1186.7 | BT39: 1114.72 | BU39: 2026-03-23
A40: 2026-04-23 | B40: =+IF(AND(SIMULADOR!$D$18=31,DAY(EOMONTH(A40,1))<>31),DATE(YEAR(A40),MONTH(A40)+1,DAY(EOMONTH(A40,1))),IF(MONTH(EDATE(A40,1))=2,EDATE(A40,1),DATE(YEAR(EDATE(A40,1)),MONTH(EDATE(A40,1)),SIMULADOR!$D$18))) -> 2026-05-23 | D40: 35 | E40: 1066 | F40: 0.5801023119 | G40: 31 | H40: =IF(D40<=SIMULADOR!$D$17,ROUND($H$6,2),"") -> 89.27 | I40: =IF(D40<=SIMULADOR!$D$17+1,I39-J39,"") -> 1114.72 | J40: =IF(D40<=SIMULADOR!$D$17,H40-L40-K40-M40,"") -> 71.64 | K40: 14.29 | L40: =IF(D40>SIMULADOR!$D$17,0,IF(AND(D40<=SIMULADOR!$D$17,I40<=SIMULADOR!$D$13),ROUND(I40*$F$1,2),IF(I40>SIMULADOR!$D$13,SIMULADOR!$D$13*Calculos!$F$1,""))) -> 3.34 | M40: =IF(Calculos!D40<=SIMULADOR!$D$17,Calculos!$M$4,"") -> 0 | N40: =IF(D40<=SIMULADOR!$D$17,ROUND(I40*((1+$E$3)^G40-1),2),"") -> 14.29 | P40: =+IF(D40<=SIMULADOR!$D$17,SIMULADOR!Q78,"") -> 89.27 | Q40: 1066 | R40: 89.27 | S40: 184.45 | T40: 868.13 | U40: 198.74 | V40: 13.91 | W40: 3 | X40: 1083.78 | Y40: 14582.92 | AA40: 31 | AB40: =+IF(OR(Calculos!B38-SIMULADOR!$H$28<0,SIMULADOR!$H$28=0),0,Calculos!B38-SIMULADOR!$H$28) -> 0 | AC40: 0 | AD40: =+IF(AND(AB41<>0,AB40=0),SIMULADOR!$H$29,0) -> 0 | AE40: 0 | AG40: 0 | AH40: 0 | AI40: 0 | AJ40: =IF($BA40=SIMULADOR!$H$28,0,IF(OR(BO39=1,AND(AD40<>0,BO40=0)),L40,IF(AND(AC40+AD40>0,ABS(AG39-AH39)>0.01),L40,0))) -> 0 | AK40: 0 | AM40: 0 | AN40: 0 | AP40: 0 | AQ40: 0 | AS40: 0 | AX40: 0 | AZ40: 35 | BA40: =+BA39+IF(SIMULADOR!$H$28<>"",AA40+AC40,G40) -> 2026-04-23 | BB40: =+IF(SUM(AE$6:AE40)=0,I40,IF($BB$1=$BE$1,AG40,AT40)) -> 1114.72 | BC40: =+IF(SUM(AE$6:AE40)=0,L40,IF($BB$1=$BE$1,AJ40,AW40)) -> 3.34 | BD40: 0 | BE40: =+IF(SUM(AE$6:AE40)=0,0,IF($BB$1=$BE$1,AD40,AS40)) -> 0 | BF40: =+IF(SUM(AE$6:AE40)=0,J40,IF($BB$1=$BE$1,AH40,AU40)) -> 71.64 | BG40: =+IF(SUM(AE$6:AE40)=0,K40,IF($BB$1=$BE$1,AI40,AV40)) -> 14.29 | BI40: =+SIMULADOR!K79 -> 89.27 | BJ40: 1066 | BK40: -1.136868377e-13 | BM40: 89.27 | BO40: 0 | BP40: 0 | BQ40: 0 | BR40: 35 | BS40: 1114.72 | BT40: 1043.08 | BU40: 2026-04-23
A41: 2026-05-23 | B41: =+IF(AND(SIMULADOR!$D$18=31,DAY(EOMONTH(A41,1))<>31),DATE(YEAR(A41),MONTH(A41)+1,DAY(EOMONTH(A41,1))),IF(MONTH(EDATE(A41,1))=2,EDATE(A41,1),DATE(YEAR(EDATE(A41,1)),MONTH(EDATE(A41,1)),SIMULADOR!$D$18))) -> 2026-06-23 | D41: 36 | E41: 1096 | F41: 0.5712799779 | G41: 30 | H41: =IF(D41<=SIMULADOR!$D$17,ROUND($H$6,2),"") -> 89.27 | I41: =IF(D41<=SIMULADOR!$D$17+1,I40-J40,"") -> 1043.08 | J41: =IF(D41<=SIMULADOR!$D$17,H41-L41-K41-M41,"") -> 73.2 | K41: 12.94 | L41: =IF(D41>SIMULADOR!$D$17,0,IF(AND(D41<=SIMULADOR!$D$17,I41<=SIMULADOR!$D$13),ROUND(I41*$F$1,2),IF(I41>SIMULADOR!$D$13,SIMULADOR!$D$13*Calculos!$F$1,""))) -> 3.13 | M41: =IF(Calculos!D41<=SIMULADOR!$D$17,Calculos!$M$4,"") -> 0 | N41: =IF(D41<=SIMULADOR!$D$17,ROUND(I41*((1+$E$3)^G41-1),2),"") -> 12.94 | P41: =+IF(D41<=SIMULADOR!$D$17,SIMULADOR!Q79,"") -> 89.27 | Q41: 1096 | R41: 89.27 | S41: 168.55 | T41: 886.17 | U41: 181.49 | V41: 13.12 | W41: 3 | X41: 1083.78 | Y41: 13696.75 | AA41: 30 | AB41: =+IF(OR(Calculos!B39-SIMULADOR!$H$28<0,SIMULADOR!$H$28=0),0,Calculos!B39-SIMULADOR!$H$28) -> 0 | AC41: 0 | AD41: =+IF(AND(AB42<>0,AB41=0),SIMULADOR!$H$29,0) -> 0 | AE41: 0 | AG41: 0 | AH41: 0 | AI41: 0 | AJ41: =IF($BA41=SIMULADOR!$H$28,0,IF(OR(BO40=1,AND(AD41<>0,BO41=0)),L41,IF(AND(AC41+AD41>0,ABS(AG40-AH40)>0.01),L41,0))) -> 0 | AK41: 0 | AM41: 0 | AN41: 0 | AP41: 0 | AQ41: 0 | AS41: 0 | AX41: 0 | AZ41: 36 | BA41: =+BA40+IF(SIMULADOR!$H$28<>"",AA41+AC41,G41) -> 2026-05-23 | BB41: =+IF(SUM(AE$6:AE41)=0,I41,IF($BB$1=$BE$1,AG41,AT41)) -> 1043.08 | BC41: =+IF(SUM(AE$6:AE41)=0,L41,IF($BB$1=$BE$1,AJ41,AW41)) -> 3.13 | BD41: 0 | BE41: =+IF(SUM(AE$6:AE41)=0,0,IF($BB$1=$BE$1,AD41,AS41)) -> 0 | BF41: =+IF(SUM(AE$6:AE41)=0,J41,IF($BB$1=$BE$1,AH41,AU41)) -> 73.2 | BG41: =+IF(SUM(AE$6:AE41)=0,K41,IF($BB$1=$BE$1,AI41,AV41)) -> 12.94 | BI41: =+SIMULADOR!K80 -> 89.27 | BJ41: 1096 | BK41: 0 | BM41: 89.27 | BO41: 0 | BP41: 0 | BQ41: 0 | BR41: 36 | BS41: 1043.08 | BT41: 969.88 | BU41: 2026-05-23
A42: 2026-06-23 | B42: =+IF(AND(SIMULADOR!$D$18=31,DAY(EOMONTH(A42,1))<>31),DATE(YEAR(A42),MONTH(A42)+1,DAY(EOMONTH(A42,1))),IF(MONTH(EDATE(A42,1))=2,EDATE(A42,1),DATE(YEAR(EDATE(A42,1)),MONTH(EDATE(A42,1)),SIMULADOR!$D$18))) -> 2026-07-23 | D42: 37 | E42: 1127 | F42: 0.5623044976 | G42: 31 | H42: =IF(D42<=SIMULADOR!$D$17,ROUND($H$6,2),"") -> 89.27 | I42: =IF(D42<=SIMULADOR!$D$17+1,I41-J41,"") -> 969.88 | J42: =IF(D42<=SIMULADOR!$D$17,H42-L42-K42-M42,"") -> 73.93 | K42: 12.43 | L42: =IF(D42>SIMULADOR!$D$17,0,IF(AND(D42<=SIMULADOR!$D$17,I42<=SIMULADOR!$D$13),ROUND(I42*$F$1,2),IF(I42>SIMULADOR!$D$13,SIMULADOR!$D$13*Calculos!$F$1,""))) -> 2.91 | M42: =IF(Calculos!D42<=SIMULADOR!$D$17,Calculos!$M$4,"") -> 0 | N42: =IF(D42<=SIMULADOR!$D$17,ROUND(I42*((1+$E$3)^G42-1),2),"") -> 12.43 | P42: =+IF(D42<=SIMULADOR!$D$17,SIMULADOR!Q80,"") -> 89.27 | Q42: 1127 | R42: 89.27 | S42: 163.75 | T42: 892.27 | U42: 176.18 | V42: 12.33 | W42: 3 | X42: 1083.78 | Y42: 12804.48 | AA42: 31 | AB42: =+IF(OR(Calculos!B40-SIMULADOR!$H$28<0,SIMULADOR!$H$28=0),0,Calculos!B40-SIMULADOR!$H$28) -> 0 | AC42: 0 | AD42: =+IF(AND(AB43<>0,AB42=0),SIMULADOR!$H$29,0) -> 0 | AE42: 0 | AG42: 0 | AH42: 0 | AI42: 0 | AJ42: =IF($BA42=SIMULADOR!$H$28,0,IF(OR(BO41=1,AND(AD42<>0,BO42=0)),L42,IF(AND(AC42+AD42>0,ABS(AG41-AH41)>0.01),L42,0))) -> 0 | AK42: 0 | AM42: 0 | AN42: 0 | AP42: 0 | AQ42: 0 | AS42: 0 | AX42: 0 | AZ42: 37 | BA42: =+BA41+IF(SIMULADOR!$H$28<>"",AA42+AC42,G42) -> 2026-06-23 | BB42: =+IF(SUM(AE$6:AE42)=0,I42,IF($BB$1=$BE$1,AG42,AT42)) -> 969.88 | BC42: =+IF(SUM(AE$6:AE42)=0,L42,IF($BB$1=$BE$1,AJ42,AW42)) -> 2.91 | BD42: 0 | BE42: =+IF(SUM(AE$6:AE42)=0,0,IF($BB$1=$BE$1,AD42,AS42)) -> 0 | BF42: =+IF(SUM(AE$6:AE42)=0,J42,IF($BB$1=$BE$1,AH42,AU42)) -> 73.93 | BG42: =+IF(SUM(AE$6:AE42)=0,K42,IF($BB$1=$BE$1,AI42,AV42)) -> 12.43 | BI42: =+SIMULADOR!K81 -> 89.27 | BJ42: 1127 | BK42: 0 | BM42: 89.27 | BO42: 0 | BP42: 0 | BQ42: 0 | BR42: 37 | BS42: 969.88 | BT42: 895.95 | BU42: 2026-06-23
A43: 2026-07-23 | B43: =+IF(AND(SIMULADOR!$D$18=31,DAY(EOMONTH(A43,1))<>31),DATE(YEAR(A43),MONTH(A43)+1,DAY(EOMONTH(A43,1))),IF(MONTH(EDATE(A43,1))=2,EDATE(A43,1),DATE(YEAR(EDATE(A43,1)),MONTH(EDATE(A43,1)),SIMULADOR!$D$18))) -> 2026-08-23 | D43: 38 | E43: 1157 | F43: 0.553752837 | G43: 30 | H43: =IF(D43<=SIMULADOR!$D$17,ROUND($H$6,2),"") -> 89.27 | I43: =IF(D43<=SIMULADOR!$D$17+1,I42-J42,"") -> 895.95 | J43: =IF(D43<=SIMULADOR!$D$17,H43-L43-K43-M43,"") -> 75.47 | K43: 11.11 | L43: =IF(D43>SIMULADOR!$D$17,0,IF(AND(D43<=SIMULADOR!$D$17,I43<=SIMULADOR!$D$13),ROUND(I43*$F$1,2),IF(I43>SIMULADOR!$D$13,SIMULADOR!$D$13*Calculos!$F$1,""))) -> 2.69 | M43: =IF(Calculos!D43<=SIMULADOR!$D$17,Calculos!$M$4,"") -> 0 | N43: =IF(D43<=SIMULADOR!$D$17,ROUND(I43*((1+$E$3)^G43-1),2),"") -> 11.11 | P43: =+IF(D43<=SIMULADOR!$D$17,SIMULADOR!Q81,"") -> 89.27 | Q43: 1157 | R43: 89.27 | S43: 148.24 | T43: 909.91 | U43: 159.35 | V43: 11.52 | W43: 3 | X43: 1083.78 | Y43: 11894.57 | AA43: 30 | AB43: =+IF(OR(Calculos!B41-SIMULADOR!$H$28<0,SIMULADOR!$H$28=0),0,Calculos!B41-SIMULADOR!$H$28) -> 0 | AC43: 0 | AD43: =+IF(AND(AB44<>0,AB43=0),SIMULADOR!$H$29,0) -> 0 | AE43: 0 | AG43: 0 | AH43: 0 | AI43: 0 | AJ43: =IF($BA43=SIMULADOR!$H$28,0,IF(OR(BO42=1,AND(AD43<>0,BO43=0)),L43,IF(AND(AC43+AD43>0,ABS(AG42-AH42)>0.01),L43,0))) -> 0 | AK43: 0 | AM43: 0 | AN43: 0 | AP43: 0 | AQ43: 0 | AS43: 0 | AX43: 0 | AZ43: 38 | BA43: =+BA42+IF(SIMULADOR!$H$28<>"",AA43+AC43,G43) -> 2026-07-23 | BB43: =+IF(SUM(AE$6:AE43)=0,I43,IF($BB$1=$BE$1,AG43,AT43)) -> 895.95 | BC43: =+IF(SUM(AE$6:AE43)=0,L43,IF($BB$1=$BE$1,AJ43,AW43)) -> 2.69 | BD43: 0 | BE43: =+IF(SUM(AE$6:AE43)=0,0,IF($BB$1=$BE$1,AD43,AS43)) -> 0 | BF43: =+IF(SUM(AE$6:AE43)=0,J43,IF($BB$1=$BE$1,AH43,AU43)) -> 75.47 | BG43: =+IF(SUM(AE$6:AE43)=0,K43,IF($BB$1=$BE$1,AI43,AV43)) -> 11.11 | BI43: =+SIMULADOR!K82 -> 89.27 | BJ43: 1157 | BK43: 0 | BM43: 89.27 | BO43: 0 | BP43: 0 | BQ43: 0 | BR43: 38 | BS43: 895.95 | BT43: 820.48 | BU43: 2026-07-23
A44: 2026-08-23 | B44: =+IF(AND(SIMULADOR!$D$18=31,DAY(EOMONTH(A44,1))<>31),DATE(YEAR(A44),MONTH(A44)+1,DAY(EOMONTH(A44,1))),IF(MONTH(EDATE(A44,1))=2,EDATE(A44,1),DATE(YEAR(EDATE(A44,1)),MONTH(EDATE(A44,1)),SIMULADOR!$D$18))) -> 2026-09-23 | D44: 39 | E44: 1188 | F44: 0.5450527287 | G44: 31 | H44: =IF(D44<=SIMULADOR!$D$17,ROUND($H$6,2),"") -> 89.27 | I44: =IF(D44<=SIMULADOR!$D$17+1,I43-J43,"") -> 820.48 | J44: =IF(D44<=SIMULADOR!$D$17,H44-L44-K44-M44,"") -> 76.29 | K44: 10.52 | L44: =IF(D44>SIMULADOR!$D$17,0,IF(AND(D44<=SIMULADOR!$D$17,I44<=SIMULADOR!$D$13),ROUND(I44*$F$1,2),IF(I44>SIMULADOR!$D$13,SIMULADOR!$D$13*Calculos!$F$1,""))) -> 2.46 | M44: =IF(Calculos!D44<=SIMULADOR!$D$17,Calculos!$M$4,"") -> 0 | N44: =IF(D44<=SIMULADOR!$D$17,ROUND(I44*((1+$E$3)^G44-1),2),"") -> 10.52 | P44: =+IF(D44<=SIMULADOR!$D$17,SIMULADOR!Q82,"") -> 89.27 | Q44: 1188 | R44: 89.27 | S44: 142.48 | T44: 917.07 | U44: 153 | V44: 10.71 | W44: 3 | X44: 1083.78 | Y44: 10977.5 | AA44: 31 | AB44: =+IF(OR(Calculos!B42-SIMULADOR!$H$28<0,SIMULADOR!$H$28=0),0,Calculos!B42-SIMULADOR!$H$28) -> 0 | AC44: 0 | AD44: =+IF(AND(AB45<>0,AB44=0),SIMULADOR!$H$29,0) -> 0 | AE44: 0 | AG44: 0 | AH44: 0 | AI44: 0 | AJ44: =IF($BA44=SIMULADOR!$H$28,0,IF(OR(BO43=1,AND(AD44<>0,BO44=0)),L44,IF(AND(AC44+AD44>0,ABS(AG43-AH43)>0.01),L44,0))) -> 0 | AK44: 0 | AM44: 0 | AN44: 0 | AP44: 0 | AQ44: 0 | AS44: 0 | AX44: 0 | AZ44: 39 | BA44: =+BA43+IF(SIMULADOR!$H$28<>"",AA44+AC44,G44) -> 2026-08-23 | BB44: =+IF(SUM(AE$6:AE44)=0,I44,IF($BB$1=$BE$1,AG44,AT44)) -> 820.48 | BC44: =+IF(SUM(AE$6:AE44)=0,L44,IF($BB$1=$BE$1,AJ44,AW44)) -> 2.46 | BD44: 0 | BE44: =+IF(SUM(AE$6:AE44)=0,0,IF($BB$1=$BE$1,AD44,AS44)) -> 0 | BF44: =+IF(SUM(AE$6:AE44)=0,J44,IF($BB$1=$BE$1,AH44,AU44)) -> 76.29 | BG44: =+IF(SUM(AE$6:AE44)=0,K44,IF($BB$1=$BE$1,AI44,AV44)) -> 10.52 | BI44: =+SIMULADOR!K83 -> 89.27 | BJ44: 1188 | BK44: 0 | BM44: 89.27 | BO44: 0 | BP44: 0 | BQ44: 0 | BR44: 39 | BS44: 820.48 | BT44: 744.19 | BU44: 2026-08-23
A45: 2026-09-23 | B45: =+IF(AND(SIMULADOR!$D$18=31,DAY(EOMONTH(A45,1))<>31),DATE(YEAR(A45),MONTH(A45)+1,DAY(EOMONTH(A45,1))),IF(MONTH(EDATE(A45,1))=2,EDATE(A45,1),DATE(YEAR(EDATE(A45,1)),MONTH(EDATE(A45,1)),SIMULADOR!$D$18))) -> 2026-10-23 | D45: 40 | E45: 1219 | F45: 0.5364893092 | G45: 31 | H45: =IF(D45<=SIMULADOR!$D$17,ROUND($H$6,2),"") -> 89.27 | I45: =IF(D45<=SIMULADOR!$D$17+1,I44-J44,"") -> 744.19 | J45: =IF(D45<=SIMULADOR!$D$17,H45-L45-K45-M45,"") -> 77.5 | K45: 9.54 | L45: =IF(D45>SIMULADOR!$D$17,0,IF(AND(D45<=SIMULADOR!$D$17,I45<=SIMULADOR!$D$13),ROUND(I45*$F$1,2),IF(I45>SIMULADOR!$D$13,SIMULADOR!$D$13*Calculos!$F$1,""))) -> 2.23 | M45: =IF(Calculos!D45<=SIMULADOR!$D$17,Calculos!$M$4,"") -> 0 | N45: =IF(D45<=SIMULADOR!$D$17,ROUND(I45*((1+$E$3)^G45-1),2),"") -> 9.54 | P45: =+IF(D45<=SIMULADOR!$D$17,SIMULADOR!Q83,"") -> 89.27 | Q45: 1219 | R45: 89.27 | S45: 131.66 | T45: 929.7 | U45: 141.2 | V45: 9.88 | W45: 3 | X45: 1083.78 | Y45: 10047.8 | AA45: 31 | AB45: =+IF(OR(Calculos!B43-SIMULADOR!$H$28<0,SIMULADOR!$H$28=0),0,Calculos!B43-SIMULADOR!$H$28) -> 0 | AC45: 0 | AD45: =+IF(AND(AB46<>0,AB45=0),SIMULADOR!$H$29,0) -> 0 | AE45: 0 | AG45: 0 | AH45: 0 | AI45: 0 | AJ45: =IF($BA45=SIMULADOR!$H$28,0,IF(OR(BO44=1,AND(AD45<>0,BO45=0)),L45,IF(AND(AC45+AD45>0,ABS(AG44-AH44)>0.01),L45,0))) -> 0 | AK45: 0 | AM45: 0 | AN45: 0 | AP45: 0 | AQ45: 0 | AS45: 0 | AX45: 0 | AZ45: 40 | BA45: =+BA44+IF(SIMULADOR!$H$28<>"",AA45+AC45,G45) -> 2026-09-23 | BB45: =+IF(SUM(AE$6:AE45)=0,I45,IF($BB$1=$BE$1,AG45,AT45)) -> 744.19 | BC45: =+IF(SUM(AE$6:AE45)=0,L45,IF($BB$1=$BE$1,AJ45,AW45)) -> 2.23 | BD45: 0 | BE45: =+IF(SUM(AE$6:AE45)=0,0,IF($BB$1=$BE$1,AD45,AS45)) -> 0 | BF45: =+IF(SUM(AE$6:AE45)=0,J45,IF($BB$1=$BE$1,AH45,AU45)) -> 77.5 | BG45: =+IF(SUM(AE$6:AE45)=0,K45,IF($BB$1=$BE$1,AI45,AV45)) -> 9.54 | BI45: =+SIMULADOR!K84 -> 89.27 | BJ45: 1219 | BK45: 0 | BM45: 89.27 | BO45: 0 | BP45: 0 | BQ45: 0 | BR45: 40 | BS45: 744.19 | BT45: 666.69 | BU45: 2026-09-23
A46: 2026-10-23 | B46: =+IF(AND(SIMULADOR!$D$18=31,DAY(EOMONTH(A46,1))<>31),DATE(YEAR(A46),MONTH(A46)+1,DAY(EOMONTH(A46,1))),IF(MONTH(EDATE(A46,1))=2,EDATE(A46,1),DATE(YEAR(EDATE(A46,1)),MONTH(EDATE(A46,1)),SIMULADOR!$D$18))) -> 2026-11-23 | D46: 41 | E46: 1249 | F46: 0.5283302522 | G46: 30 | H46: =IF(D46<=SIMULADOR!$D$17,ROUND($H$6,2),"") -> 89.27 | I46: =IF(D46<=SIMULADOR!$D$17+1,I45-J45,"") -> 666.69 | J46: =IF(D46<=SIMULADOR!$D$17,H46-L46-K46-M46,"") -> 79 | K46: 8.27 | L46: =IF(D46>SIMULADOR!$D$17,0,IF(AND(D46<=SIMULADOR!$D$17,I46<=SIMULADOR!$D$13),ROUND(I46*$F$1,2),IF(I46>SIMULADOR!$D$13,SIMULADOR!$D$13*Calculos!$F$1,""))) -> 2 | M46: =IF(Calculos!D46<=SIMULADOR!$D$17,Calculos!$M$4,"") -> 0 | N46: =IF(D46<=SIMULADOR!$D$17,ROUND(I46*((1+$E$3)^G46-1),2),"") -> 8.27 | P46: =+IF(D46<=SIMULADOR!$D$17,SIMULADOR!Q84,"") -> 89.27 | Q46: 1249 | R46: 89.27 | S46: 116.78 | T46: 946.69 | U46: 125.05 | V46: 9.04 | W46: 3 | X46: 1083.78 | Y46: 9101.11 | AA46: 30 | AB46: =+IF(OR(Calculos!B44-SIMULADOR!$H$28<0,SIMULADOR!$H$28=0),0,Calculos!B44-SIMULADOR!$H$28) -> 0 | AC46: 0 | AD46: =+IF(AND(AB47<>0,AB46=0),SIMULADOR!$H$29,0) -> 0 | AE46: 0 | AG46: 0 | AH46: 0 | AI46: 0 | AJ46: =IF($BA46=SIMULADOR!$H$28,0,IF(OR(BO45=1,AND(AD46<>0,BO46=0)),L46,IF(AND(AC46+AD46>0,ABS(AG45-AH45)>0.01),L46,0))) -> 0 | AK46: 0 | AM46: 0 | AN46: 0 | AP46: 0 | AQ46: 0 | AS46: 0 | AX46: 0 | AZ46: 41 | BA46: =+BA45+IF(SIMULADOR!$H$28<>"",AA46+AC46,G46) -> 2026-10-23 | BB46: =+IF(SUM(AE$6:AE46)=0,I46,IF($BB$1=$BE$1,AG46,AT46)) -> 666.69 | BC46: =+IF(SUM(AE$6:AE46)=0,L46,IF($BB$1=$BE$1,AJ46,AW46)) -> 2 | BD46: 0 | BE46: =+IF(SUM(AE$6:AE46)=0,0,IF($BB$1=$BE$1,AD46,AS46)) -> 0 | BF46: =+IF(SUM(AE$6:AE46)=0,J46,IF($BB$1=$BE$1,AH46,AU46)) -> 79 | BG46: =+IF(SUM(AE$6:AE46)=0,K46,IF($BB$1=$BE$1,AI46,AV46)) -> 8.27 | BI46: =+SIMULADOR!K85 -> 89.27 | BJ46: 1249 | BK46: 0 | BM46: 89.27 | BO46: 0 | BP46: 0 | BQ46: 0 | BR46: 41 | BS46: 666.69 | BT46: 587.69 | BU46: 2026-10-23
A47: 2026-11-23 | B47: =+IF(AND(SIMULADOR!$D$18=31,DAY(EOMONTH(A47,1))<>31),DATE(YEAR(A47),MONTH(A47)+1,DAY(EOMONTH(A47,1))),IF(MONTH(EDATE(A47,1))=2,EDATE(A47,1),DATE(YEAR(EDATE(A47,1)),MONTH(EDATE(A47,1)),SIMULADOR!$D$18))) -> 2026-12-23 | D47: 42 | E47: 1280 | F47: 0.5200295626 | G47: 31 | H47: =IF(D47<=SIMULADOR!$D$17,ROUND($H$6,2),"") -> 89.27 | I47: =IF(D47<=SIMULADOR!$D$17+1,I46-J46,"") -> 587.69 | J47: =IF(D47<=SIMULADOR!$D$17,H47-L47-K47-M47,"") -> 79.98 | K47: 7.53 | L47: =IF(D47>SIMULADOR!$D$17,0,IF(AND(D47<=SIMULADOR!$D$17,I47<=SIMULADOR!$D$13),ROUND(I47*$F$1,2),IF(I47>SIMULADOR!$D$13,SIMULADOR!$D$13*Calculos!$F$1,""))) -> 1.76 | M47: =IF(Calculos!D47<=SIMULADOR!$D$17,Calculos!$M$4,"") -> 0 | N47: =IF(D47<=SIMULADOR!$D$17,ROUND(I47*((1+$E$3)^G47-1),2),"") -> 7.53 | P47: =+IF(D47<=SIMULADOR!$D$17,SIMULADOR!Q85,"") -> 89.27 | Q47: 1280 | R47: 89.27 | S47: 109.53 | T47: 955.53 | U47: 117.06 | V47: 8.19 | W47: 3 | X47: 1083.78 | Y47: 8145.58 | AA47: 31 | AB47: =+IF(OR(Calculos!B45-SIMULADOR!$H$28<0,SIMULADOR!$H$28=0),0,Calculos!B45-SIMULADOR!$H$28) -> 0 | AC47: 0 | AD47: =+IF(AND(AB48<>0,AB47=0),SIMULADOR!$H$29,0) -> 0 | AE47: 0 | AG47: 0 | AH47: 0 | AI47: 0 | AJ47: =IF($BA47=SIMULADOR!$H$28,0,IF(OR(BO46=1,AND(AD47<>0,BO47=0)),L47,IF(AND(AC47+AD47>0,ABS(AG46-AH46)>0.01),L47,0))) -> 0 | AK47: 0 | AM47: 0 | AN47: 0 | AP47: 0 | AQ47: 0 | AS47: 0 | AX47: 0 | AZ47: 42 | BA47: =+BA46+IF(SIMULADOR!$H$28<>"",AA47+AC47,G47) -> 2026-11-23 | BB47: =+IF(SUM(AE$6:AE47)=0,I47,IF($BB$1=$BE$1,AG47,AT47)) -> 587.69 | BC47: =+IF(SUM(AE$6:AE47)=0,L47,IF($BB$1=$BE$1,AJ47,AW47)) -> 1.76 | BD47: 0 | BE47: =+IF(SUM(AE$6:AE47)=0,0,IF($BB$1=$BE$1,AD47,AS47)) -> 0 | BF47: =+IF(SUM(AE$6:AE47)=0,J47,IF($BB$1=$BE$1,AH47,AU47)) -> 79.98 | BG47: =+IF(SUM(AE$6:AE47)=0,K47,IF($BB$1=$BE$1,AI47,AV47)) -> 7.53 | BI47: =+SIMULADOR!K86 -> 89.27 | BJ47: 1280 | BK47: 0 | BM47: 89.27 | BO47: 0 | BP47: 0 | BQ47: 0 | BR47: 42 | BS47: 587.69 | BT47: 507.71 | BU47: 2026-11-23
A48: 2026-12-23 | B48: =+IF(AND(SIMULADOR!$D$18=31,DAY(EOMONTH(A48,1))<>31),DATE(YEAR(A48),MONTH(A48)+1,DAY(EOMONTH(A48,1))),IF(MONTH(EDATE(A48,1))=2,EDATE(A48,1),DATE(YEAR(EDATE(A48,1)),MONTH(EDATE(A48,1)),SIMULADOR!$D$18))) -> 2027-01-23 | D48: 43 | E48: 1310 | F48: 0.5121208293 | G48: 30 | H48: =IF(D48<=SIMULADOR!$D$17,ROUND($H$6,2),"") -> 89.27 | I48: =IF(D48<=SIMULADOR!$D$17+1,I47-J47,"") -> 507.71 | J48: =IF(D48<=SIMULADOR!$D$17,H48-L48-K48-M48,"") -> 81.45 | K48: 6.3 | L48: =IF(D48>SIMULADOR!$D$17,0,IF(AND(D48<=SIMULADOR!$D$17,I48<=SIMULADOR!$D$13),ROUND(I48*$F$1,2),IF(I48>SIMULADOR!$D$13,SIMULADOR!$D$13*Calculos!$F$1,""))) -> 1.52 | M48: =IF(Calculos!D48<=SIMULADOR!$D$17,Calculos!$M$4,"") -> 0 | N48: =IF(D48<=SIMULADOR!$D$17,ROUND(I48*((1+$E$3)^G48-1),2),"") -> 6.3 | P48: =+IF(D48<=SIMULADOR!$D$17,SIMULADOR!Q86,"") -> 89.27 | Q48: 1310 | R48: 89.27 | S48: 95.07 | T48: 972.08 | U48: 101.37 | V48: 7.33 | W48: 3 | X48: 1083.78 | Y48: 7173.5 | AA48: 30 | AB48: =+IF(OR(Calculos!B46-SIMULADOR!$H$28<0,SIMULADOR!$H$28=0),0,Calculos!B46-SIMULADOR!$H$28) -> 0 | AC48: 0 | AD48: =+IF(AND(AB49<>0,AB48=0),SIMULADOR!$H$29,0) -> 0 | AE48: 0 | AG48: 0 | AH48: 0 | AI48: 0 | AJ48: =IF($BA48=SIMULADOR!$H$28,0,IF(OR(BO47=1,AND(AD48<>0,BO48=0)),L48,IF(AND(AC48+AD48>0,ABS(AG47-AH47)>0.01),L48,0))) -> 0 | AK48: 0 | AM48: 0 | AN48: 0 | AP48: 0 | AQ48: 0 | AS48: 0 | AX48: 0 | AZ48: 43 | BA48: =+BA47+IF(SIMULADOR!$H$28<>"",AA48+AC48,G48) -> 2026-12-23 | BB48: =+IF(SUM(AE$6:AE48)=0,I48,IF($BB$1=$BE$1,AG48,AT48)) -> 507.71 | BC48: =+IF(SUM(AE$6:AE48)=0,L48,IF($BB$1=$BE$1,AJ48,AW48)) -> 1.52 | BD48: 0 | BE48: =+IF(SUM(AE$6:AE48)=0,0,IF($BB$1=$BE$1,AD48,AS48)) -> 0 | BF48: =+IF(SUM(AE$6:AE48)=0,J48,IF($BB$1=$BE$1,AH48,AU48)) -> 81.45 | BG48: =+IF(SUM(AE$6:AE48)=0,K48,IF($BB$1=$BE$1,AI48,AV48)) -> 6.3 | BI48: =+SIMULADOR!K87 -> 89.27 | BJ48: 1310 | BK48: 0 | BM48: 89.27 | BO48: 0 | BP48: 0 | BQ48: 0 | BR48: 43 | BS48: 507.71 | BT48: 426.26 | BU48: 2026-12-23
A49: 2027-01-23 | B49: =+IF(AND(SIMULADOR!$D$18=31,DAY(EOMONTH(A49,1))<>31),DATE(YEAR(A49),MONTH(A49)+1,DAY(EOMONTH(A49,1))),IF(MONTH(EDATE(A49,1))=2,EDATE(A49,1),DATE(YEAR(EDATE(A49,1)),MONTH(EDATE(A49,1)),SIMULADOR!$D$18))) -> 2027-02-23 | D49: 44 | E49: 1341 | F49: 0.5040748087 | G49: 31 | H49: =IF(D49<=SIMULADOR!$D$17,ROUND($H$6,2),"") -> 89.27 | I49: =IF(D49<=SIMULADOR!$D$17+1,I48-J48,"") -> 426.26 | J49: =IF(D49<=SIMULADOR!$D$17,H49-L49-K49-M49,"") -> 82.53 | K49: 5.46 | L49: =IF(D49>SIMULADOR!$D$17,0,IF(AND(D49<=SIMULADOR!$D$17,I49<=SIMULADOR!$D$13),ROUND(I49*$F$1,2),IF(I49>SIMULADOR!$D$13,SIMULADOR!$D$13*Calculos!$F$1,""))) -> 1.28 | M49: =IF(Calculos!D49<=SIMULADOR!$D$17,Calculos!$M$4,"") -> 0 | N49: =IF(D49<=SIMULADOR!$D$17,ROUND(I49*((1+$E$3)^G49-1),2),"") -> 5.46 | P49: =+IF(D49<=SIMULADOR!$D$17,SIMULADOR!Q87,"") -> 89.27 | Q49: 1341 | R49: 89.27 | S49: 86.81 | T49: 982.05 | U49: 92.27 | V49: 6.46 | W49: 3 | X49: 1083.78 | Y49: 6191.45 | AA49: 31 | AB49: =+IF(OR(Calculos!B47-SIMULADOR!$H$28<0,SIMULADOR!$H$28=0),0,Calculos!B47-SIMULADOR!$H$28) -> 0 | AC49: 0 | AD49: =+IF(AND(AB50<>0,AB49=0),SIMULADOR!$H$29,0) -> 0 | AE49: 0 | AG49: 0 | AH49: 0 | AI49: 0 | AJ49: =IF($BA49=SIMULADOR!$H$28,0,IF(OR(BO48=1,AND(AD49<>0,BO49=0)),L49,IF(AND(AC49+AD49>0,ABS(AG48-AH48)>0.01),L49,0))) -> 0 | AK49: 0 | AM49: 0 | AN49: 0 | AP49: 0 | AQ49: 0 | AS49: 0 | AX49: 0 | AZ49: 44 | BA49: =+BA48+IF(SIMULADOR!$H$28<>"",AA49+AC49,G49) -> 2027-01-23 | BB49: =+IF(SUM(AE$6:AE49)=0,I49,IF($BB$1=$BE$1,AG49,AT49)) -> 426.26 | BC49: =+IF(SUM(AE$6:AE49)=0,L49,IF($BB$1=$BE$1,AJ49,AW49)) -> 1.28 | BD49: 0 | BE49: =+IF(SUM(AE$6:AE49)=0,0,IF($BB$1=$BE$1,AD49,AS49)) -> 0 | BF49: =+IF(SUM(AE$6:AE49)=0,J49,IF($BB$1=$BE$1,AH49,AU49)) -> 82.53 | BG49: =+IF(SUM(AE$6:AE49)=0,K49,IF($BB$1=$BE$1,AI49,AV49)) -> 5.46 | BI49: =+SIMULADOR!K88 -> 89.27 | BJ49: 1341 | BK49: 0 | BM49: 89.27 | BO49: 0 | BP49: 0 | BQ49: 0 | BR49: 44 | BS49: 426.26 | BT49: 343.73 | BU49: 2027-01-23
A50: 2027-02-23 | B50: =+IF(AND(SIMULADOR!$D$18=31,DAY(EOMONTH(A50,1))<>31),DATE(YEAR(A50),MONTH(A50)+1,DAY(EOMONTH(A50,1))),IF(MONTH(EDATE(A50,1))=2,EDATE(A50,1),DATE(YEAR(EDATE(A50,1)),MONTH(EDATE(A50,1)),SIMULADOR!$D$18))) -> 2027-03-23 | D50: 45 | E50: 1372 | F50: 0.4961552006 | G50: 31 | H50: =IF(D50<=SIMULADOR!$D$17,ROUND($H$6,2),"") -> 89.27 | I50: =IF(D50<=SIMULADOR!$D$17+1,I49-J49,"") -> 343.73 | J50: =IF(D50<=SIMULADOR!$D$17,H50-L50-K50-M50,"") -> 83.83 | K50: 4.41 | L50: =IF(D50>SIMULADOR!$D$17,0,IF(AND(D50<=SIMULADOR!$D$17,I50<=SIMULADOR!$D$13),ROUND(I50*$F$1,2),IF(I50>SIMULADOR!$D$13,SIMULADOR!$D$13*Calculos!$F$1,""))) -> 1.03 | M50: =IF(Calculos!D50<=SIMULADOR!$D$17,Calculos!$M$4,"") -> 0 | N50: =IF(D50<=SIMULADOR!$D$17,ROUND(I50*((1+$E$3)^G50-1),2),"") -> 4.41 | P50: =+IF(D50<=SIMULADOR!$D$17,SIMULADOR!Q88,"") -> 89.27 | Q50: 1372 | R50: 89.27 | S50: 75.23 | T50: 995.57 | U50: 79.64 | V50: 5.57 | W50: 3 | X50: 1083.78 | Y50: 5195.88 | AA50: 31 | AB50: =+IF(OR(Calculos!B48-SIMULADOR!$H$28<0,SIMULADOR!$H$28=0),0,Calculos!B48-SIMULADOR!$H$28) -> 0 | AC50: 0 | AD50: =+IF(AND(AB51<>0,AB50=0),SIMULADOR!$H$29,0) -> 0 | AE50: 0 | AG50: 0 | AH50: 0 | AI50: 0 | AJ50: =IF($BA50=SIMULADOR!$H$28,0,IF(OR(BO49=1,AND(AD50<>0,BO50=0)),L50,IF(AND(AC50+AD50>0,ABS(AG49-AH49)>0.01),L50,0))) -> 0 | AK50: 0 | AM50: 0 | AN50: 0 | AP50: 0 | AQ50: 0 | AS50: 0 | AX50: 0 | AZ50: 45 | BA50: =+BA49+IF(SIMULADOR!$H$28<>"",AA50+AC50,G50) -> 2027-02-23 | BB50: =+IF(SUM(AE$6:AE50)=0,I50,IF($BB$1=$BE$1,AG50,AT50)) -> 343.73 | BC50: =+IF(SUM(AE$6:AE50)=0,L50,IF($BB$1=$BE$1,AJ50,AW50)) -> 1.03 | BD50: 0 | BE50: =+IF(SUM(AE$6:AE50)=0,0,IF($BB$1=$BE$1,AD50,AS50)) -> 0 | BF50: =+IF(SUM(AE$6:AE50)=0,J50,IF($BB$1=$BE$1,AH50,AU50)) -> 83.83 | BG50: =+IF(SUM(AE$6:AE50)=0,K50,IF($BB$1=$BE$1,AI50,AV50)) -> 4.41 | BI50: =+SIMULADOR!K89 -> 89.27 | BJ50: 1372 | BK50: 0 | BM50: 89.27 | BO50: 0 | BP50: 0 | BQ50: 0 | BR50: 45 | BS50: 343.73 | BT50: 259.9 | BU50: 2027-02-23
A51: 2027-03-23 | B51: =+IF(AND(SIMULADOR!$D$18=31,DAY(EOMONTH(A51,1))<>31),DATE(YEAR(A51),MONTH(A51)+1,DAY(EOMONTH(A51,1))),IF(MONTH(EDATE(A51,1))=2,EDATE(A51,1),DATE(YEAR(EDATE(A51,1)),MONTH(EDATE(A51,1)),SIMULADOR!$D$18))) -> 2027-04-23 | D51: 46 | E51: 1400 | F51: 0.4891090078 | G51: 28 | H51: =IF(D51<=SIMULADOR!$D$17,ROUND($H$6,2),"") -> 89.27 | I51: =IF(D51<=SIMULADOR!$D$17+1,I50-J50,"") -> 259.9 | J51: =IF(D51<=SIMULADOR!$D$17,H51-L51-K51-M51,"") -> 85.48 | K51: 3.01 | L51: =IF(D51>SIMULADOR!$D$17,0,IF(AND(D51<=SIMULADOR!$D$17,I51<=SIMULADOR!$D$13),ROUND(I51*$F$1,2),IF(I51>SIMULADOR!$D$13,SIMULADOR!$D$13*Calculos!$F$1,""))) -> 0.78 | M51: =IF(Calculos!D51<=SIMULADOR!$D$17,Calculos!$M$4,"") -> 0 | N51: =IF(D51<=SIMULADOR!$D$17,ROUND(I51*((1+$E$3)^G51-1),2),"") -> 3.01 | P51: =+IF(D51<=SIMULADOR!$D$17,SIMULADOR!Q89,"") -> 89.27 | Q51: 1400 | R51: 89.27 | S51: 57.32 | T51: 1015.77 | U51: 60.33 | V51: 4.68 | W51: 3 | X51: 1083.78 | Y51: 4180.11 | AA51: 28 | AB51: =+IF(OR(Calculos!B49-SIMULADOR!$H$28<0,SIMULADOR!$H$28=0),0,Calculos!B49-SIMULADOR!$H$28) -> 0 | AC51: 0 | AD51: =+IF(AND(AB52<>0,AB51=0),SIMULADOR!$H$29,0) -> 0 | AE51: 0 | AG51: 0 | AH51: 0 | AI51: 0 | AJ51: =IF($BA51=SIMULADOR!$H$28,0,IF(OR(BO50=1,AND(AD51<>0,BO51=0)),L51,IF(AND(AC51+AD51>0,ABS(AG50-AH50)>0.01),L51,0))) -> 0 | AK51: 0 | AM51: 0 | AN51: =+SUM(AH51:AK51) -> 0 | AP51: 0 | AQ51: 0 | AS51: 0 | AX51: 0 | AZ51: 46 | BA51: =+BA50+IF(SIMULADOR!$H$28<>"",AA51+AC51,G51) -> 2027-03-23 | BB51: =+IF(SUM(AE$6:AE51)=0,I51,IF($BB$1=$BE$1,AG51,AT51)) -> 259.9 | BC51: =+IF(SUM(AE$6:AE51)=0,L51,IF($BB$1=$BE$1,AJ51,AW51)) -> 0.78 | BD51: 0 | BE51: =+IF(SUM(AE$6:AE51)=0,0,IF($BB$1=$BE$1,AD51,AS51)) -> 0 | BF51: =+IF(SUM(AE$6:AE51)=0,J51,IF($BB$1=$BE$1,AH51,AU51)) -> 85.48 | BG51: =+IF(SUM(AE$6:AE51)=0,K51,IF($BB$1=$BE$1,AI51,AV51)) -> 3.01 | BI51: =+SIMULADOR!K90 -> 89.27 | BJ51: 1400 | BK51: 0 | BM51: 89.27 | BO51: 0 | BP51: 0 | BQ51: 0 | BR51: 46 | BS51: 259.9 | BT51: 174.42 | BU51: 2027-03-23
A52: 2027-04-23 | B52: =+IF(AND(SIMULADOR!$D$18=31,DAY(EOMONTH(A52,1))<>31),DATE(YEAR(A52),MONTH(A52)+1,DAY(EOMONTH(A52,1))),IF(MONTH(EDATE(A52,1))=2,EDATE(A52,1),DATE(YEAR(EDATE(A52,1)),MONTH(EDATE(A52,1)),SIMULADOR!$D$18))) -> 2027-05-23 | D52: 47 | E52: 1431 | F52: 0.48142453 | G52: 31 | H52: =IF(D52<=SIMULADOR!$D$17,ROUND($H$6,2),"") -> 89.27 | I52: =IF(D52<=SIMULADOR!$D$17+1,I51-J51,"") -> 174.42 | J52: =IF(D52<=SIMULADOR!$D$17,H52-L52-K52-M52,"") -> 86.51 | K52: 2.24 | L52: =IF(D52>SIMULADOR!$D$17,0,IF(AND(D52<=SIMULADOR!$D$17,I52<=SIMULADOR!$D$13),ROUND(I52*$F$1,2),IF(I52>SIMULADOR!$D$13,SIMULADOR!$D$13*Calculos!$F$1,""))) -> 0.52 | M52: =IF(Calculos!D52<=SIMULADOR!$D$17,Calculos!$M$4,"") -> 0 | N52: =IF(D52<=SIMULADOR!$D$17,ROUND(I52*((1+$E$3)^G52-1),2),"") -> 2.24 | P52: =+IF(D52<=SIMULADOR!$D$17,SIMULADOR!Q90,"") -> 89.27 | Q52: 1431 | R52: 89.27 | S52: 51.53 | T52: 1023.25 | U52: 53.77 | V52: 3.76 | W52: 3 | X52: 1083.78 | Y52: 3156.86 | AA52: 31 | AB52: =+IF(OR(Calculos!B50-SIMULADOR!$H$28<0,SIMULADOR!$H$28=0),0,Calculos!B50-SIMULADOR!$H$28) -> 0 | AC52: 0 | AD52: =+IF(AND(AB53<>0,AB52=0),SIMULADOR!$H$29,0) -> 0 | AE52: 0 | AG52: 0 | AH52: 0 | AI52: 0 | AJ52: =IF($BA52=SIMULADOR!$H$28,0,IF(OR(BO51=1,AND(AD52<>0,BO52=0)),L52,IF(AND(AC52+AD52>0,ABS(AG51-AH51)>0.01),L52,0))) -> 0 | AK52: 0 | AM52: 0 | AN52: 0 | AP52: 0 | AQ52: 0 | AS52: 0 | AX52: 0 | AZ52: 47 | BA52: =+BA51+IF(SIMULADOR!$H$28<>"",AA52+AC52,G52) -> 2027-04-23 | BB52: =+IF(SUM(AE$6:AE52)=0,I52,IF($BB$1=$BE$1,AG52,AT52)) -> 174.42 | BC52: =+IF(SUM(AE$6:AE52)=0,L52,IF($BB$1=$BE$1,AJ52,AW52)) -> 0.52 | BD52: 0 | BE52: =+IF(SUM(AE$6:AE52)=0,0,IF($BB$1=$BE$1,AD52,AS52)) -> 0 | BF52: =+IF(SUM(AE$6:AE52)=0,J52,IF($BB$1=$BE$1,AH52,AU52)) -> 86.51 | BG52: =+IF(SUM(AE$6:AE52)=0,K52,IF($BB$1=$BE$1,AI52,AV52)) -> 2.24 | BI52: =+SIMULADOR!K91 -> 89.26 | BJ52: 1431 | BK52: 0 | BM52: 89.26 | BO52: 0 | BP52: 1 | BQ52: 1 | BR52: 47 | BS52: 174.42 | BT52: 87.91 | BU52: 2027-04-23
A53: 2027-05-23 | B53: =+IF(AND(SIMULADOR!$D$18=31,DAY(EOMONTH(A53,1))<>31),DATE(YEAR(A53),MONTH(A53)+1,DAY(EOMONTH(A53,1))),IF(MONTH(EDATE(A53,1))=2,EDATE(A53,1),DATE(YEAR(EDATE(A53,1)),MONTH(EDATE(A53,1)),SIMULADOR!$D$18))) -> 2027-06-23 | D53: 48 | E53: 1461 | F53: 0.4741029112 | G53: 30 | H53: 89.26 | I53: =IF(D53<=SIMULADOR!$D$17+1,I52-J52,"") -> 87.91 | J53: 87.91 | K53: 1.09 | L53: =IF(D53>SIMULADOR!$D$17,0,IF(AND(D53<=SIMULADOR!$D$17,I53<=SIMULADOR!$D$13),ROUND(I53*$F$1,2),IF(I53>SIMULADOR!$D$13,SIMULADOR!$D$13*Calculos!$F$1,""))) -> 0.26 | M53: =IF(Calculos!D53<=SIMULADOR!$D$17,Calculos!$M$4,"") -> 0 | N53: =IF(D53<=SIMULADOR!$D$17,ROUND(I53*((1+$E$3)^G53-1),2),"") -> 1.09 | P53: =+IF(D53<=SIMULADOR!$D$17,SIMULADOR!Q91,"") -> 89.26 | Q53: 1461 | R53: 89.26 | S53: 38.2 | T53: 1038.65 | U53: 39.29 | V53: 2.84 | W53: 3 | X53: 1083.78 | Y53: 2118.21 | AA53: 30 | AB53: =+IF(OR(Calculos!B51-SIMULADOR!$H$28<0,SIMULADOR!$H$28=0),0,Calculos!B51-SIMULADOR!$H$28) -> 0 | AC53: 0 | AD53: =+IF(AND(AB54<>0,AB53=0),SIMULADOR!$H$29,0) -> 0 | AE53: 0 | AG53: 0 | AH53: 0 | AI53: 0 | AJ53: =IF($BA53=SIMULADOR!$H$28,0,IF(OR(BO52=1,AND(AD53<>0,BO53=0)),L53,IF(AND(AC53+AD53>0,ABS(AG52-AH52)>0.01),L53,0))) -> 0 | AK53: 0 | AM53: 0 | AN53: 0 | AP53: 0 | AQ53: 0 | AS53: 0 | AX53: 0 | AZ53: 48 | BA53: =+BA52+IF(SIMULADOR!$H$28<>"",AA53+AC53,G53) -> 2027-05-23 | BB53: =+IF(SUM(AE$6:AE53)=0,I53,IF($BB$1=$BE$1,AG53,AT53)) -> 87.91 | BC53: =+IF(SUM(AE$6:AE53)=0,L53,IF($BB$1=$BE$1,AJ53,AW53)) -> 0.26 | BD53: 0 | BE53: =+IF(SUM(AE$6:AE53)=0,0,IF($BB$1=$BE$1,AD53,AS53)) -> 0 | BF53: =+IF(SUM(AE$6:AE53)=0,J53,IF($BB$1=$BE$1,AH53,AU53)) -> 87.91 | BG53: =+IF(SUM(AE$6:AE53)=0,K53,IF($BB$1=$BE$1,AI53,AV53)) -> 1.09 | BI53: =+SIMULADOR!K92 -> 0 | BJ53: 0 | BK53: 0 | BM53: 0 | BO53: 0 | BP53: 1 | BQ53: 2 | BR53: 48 | BS53: 87.91 | BT53: 0 | BU53: 2027-05-23
A54: 2027-06-23 | B54: =+IF(AND(SIMULADOR!$D$18=31,DAY(EOMONTH(A54,1))<>31),DATE(YEAR(A54),MONTH(A54)+1,DAY(EOMONTH(A54,1))),IF(MONTH(EDATE(A54,1))=2,EDATE(A54,1),DATE(YEAR(EDATE(A54,1)),MONTH(EDATE(A54,1)),SIMULADOR!$D$18))) -> 2027-07-23 | D54: 49 | E54: 1492 | F54: 0.4666541969 | G54: 31 | H54: =IF(D54<=SIMULADOR!$D$17,ROUND($H$6,2),"") ->  | I54: =IF(D54<=SIMULADOR!$D$17+1,I53-J53,"") -> 0 | J54: =IF(D54<=SIMULADOR!$D$17,H54-L54-K54-M54,"") ->  | L54: =IF(D54>SIMULADOR!$D$17,0,IF(AND(D54<=SIMULADOR!$D$17,I54<=SIMULADOR!$D$13),ROUND(I54*$F$1,2),IF(I54>SIMULADOR!$D$13,SIMULADOR!$D$13*Calculos!$F$1,""))) -> 0 | M54: =IF(Calculos!D54<=SIMULADOR!$D$17,Calculos!$M$4,"") ->  | N54: =IF(D54<=SIMULADOR!$D$17,ROUND(I54*((1+$E$3)^G54-1),2),"") ->  | P54: =+IF(D54<=SIMULADOR!$D$17,SIMULADOR!Q92,"") ->  | T54: 1051.62 | U54: 27.25 | V54: 1.91 | W54: 3 | X54: 1083.78 | Y54: 1066.59 | AA54: 31 | AB54: =+IF(OR(Calculos!B52-SIMULADOR!$H$28<0,SIMULADOR!$H$28=0),0,Calculos!B52-SIMULADOR!$H$28) -> 0 | AC54: 0 | AD54: =+IF(AND(AB55<>0,AB54=0),SIMULADOR!$H$29,0) -> 0 | AE54: 0 | AG54: 0 | AH54: 0 | AI54: 0 | AJ54: =IF($BA54=SIMULADOR!$H$28,0,IF(OR(BO53=1,AND(AD54<>0,BO54=0)),L54,IF(AND(AC54+AD54>0,ABS(AG53-AH53)>0.01),L54,0))) -> 0 | AK54: 0 | AM54: 0 | AN54: 0 | AP54: 0 | AQ54: 0 | AS54: 0 | AX54: 0 | AZ54: 49 | BA54: =+BA53+IF(SIMULADOR!$H$28<>"",AA54+AC54,G54) -> 2027-06-23 | BB54: =+IF(SUM(AE$6:AE54)=0,I54,IF($BB$1=$BE$1,AG54,AT54)) -> 0 | BC54: =+IF(SUM(AE$6:AE54)=0,L54,IF($BB$1=$BE$1,AJ54,AW54)) -> 0 | BD54: 0 | BE54: =+IF(SUM(AE$6:AE54)=0,0,IF($BB$1=$BE$1,AD54,AS54)) -> 0 | BF54: =+IF(SUM(AE$6:AE54)=0,J54,IF($BB$1=$BE$1,AH54,AU54)) ->  | BG54: =+IF(SUM(AE$6:AE54)=0,K54,IF($BB$1=$BE$1,AI54,AV54)) ->  | BI54: =+SIMULADOR!K93 -> 0 | BJ54: 0 | BM54: 0 | BO54: 0 | BP54: 1 | BQ54: 3 | BR54: 49 | BS54: 0 | BU54: 2027-06-23
A55: 2027-07-23 | B55: =+IF(AND(SIMULADOR!$D$18=31,DAY(EOMONTH(A55,1))<>31),DATE(YEAR(A55),MONTH(A55)+1,DAY(EOMONTH(A55,1))),IF(MONTH(EDATE(A55,1))=2,EDATE(A55,1),DATE(YEAR(EDATE(A55,1)),MONTH(EDATE(A55,1)),SIMULADOR!$D$18))) -> 2027-08-23 | D55: 50 | E55: 1522 | F55: 0.4595572088 | G55: 30 | H55: =IF(D55<=SIMULADOR!$D$17,ROUND($H$6,2),"") ->  | I55: =IF(D55<=SIMULADOR!$D$17+1,I54-J54,"") ->  | J55: =IF(D55<=SIMULADOR!$D$17,H55-L55-K55-M55,"") ->  | L55: =IF(D55>SIMULADOR!$D$17,0,IF(AND(D55<=SIMULADOR!$D$17,I55<=SIMULADOR!$D$13),ROUND(I55*$F$1,2),IF(I55>SIMULADOR!$D$13,SIMULADOR!$D$13*Calculos!$F$1,""))) -> 0 | M55: =IF(Calculos!D55<=SIMULADOR!$D$17,Calculos!$M$4,"") ->  | N55: =IF(D55<=SIMULADOR!$D$17,ROUND(I55*((1+$E$3)^G55-1),2),"") ->  | P55: =+IF(D55<=SIMULADOR!$D$17,SIMULADOR!Q93,"") ->  | T55: 1066.59 | U55: 13.27 | V55: 0.96 | W55: 3 | X55: 1083.82 | Y55: -8.412825991e-12 | AA55: 30 | AB55: =+IF(OR(Calculos!B53-SIMULADOR!$H$28<0,SIMULADOR!$H$28=0),0,Calculos!B53-SIMULADOR!$H$28) -> 0 | AC55: 0 | AD55: =+IF(AND(AB56<>0,AB55=0),SIMULADOR!$H$29,0) -> 0 | AE55: 0 | AG55: 0 | AH55: 0 | AI55: 0 | AJ55: =IF($BA55=SIMULADOR!$H$28,0,IF(OR(BO54=1,AND(AD55<>0,BO55=0)),L55,IF(AND(AC55+AD55>0,ABS(AG54-AH54)>0.01),L55,0))) -> 0 | AK55: 0 | AM55: 0 | AN55: 0 | AP55: 0 | AQ55: 0 | AS55: 0 | AX55: 0 | AZ55: 50 | BA55: =+BA54+IF(SIMULADOR!$H$28<>"",AA55+AC55,G55) -> 2027-07-23 | BB55: =+IF(SUM(AE$6:AE55)=0,I55,IF($BB$1=$BE$1,AG55,AT55)) ->  | BC55: =+IF(SUM(AE$6:AE55)=0,L55,IF($BB$1=$BE$1,AJ55,AW55)) -> 0 | BD55: 0 | BE55: =+IF(SUM(AE$6:AE55)=0,0,IF($BB$1=$BE$1,AD55,AS55)) -> 0 | BF55: =+IF(SUM(AE$6:AE55)=0,J55,IF($BB$1=$BE$1,AH55,AU55)) ->  | BG55: =+IF(SUM(AE$6:AE55)=0,K55,IF($BB$1=$BE$1,AI55,AV55)) ->  | BI55: =+SIMULADOR!K94 -> 0 | BJ55: 0 | BM55: 0 | BO55: 0 | BP55: 1 | BQ55: 4 | BR55: 50 | BU55: 2027-07-23
A56: 2027-08-23 | B56: =+IF(AND(SIMULADOR!$D$18=31,DAY(EOMONTH(A56,1))<>31),DATE(YEAR(A56),MONTH(A56)+1,DAY(EOMONTH(A56,1))),IF(MONTH(EDATE(A56,1))=2,EDATE(A56,1),DATE(YEAR(EDATE(A56,1)),MONTH(EDATE(A56,1)),SIMULADOR!$D$18))) -> 2027-09-23 | D56: 51 | E56: =+B55-$A$5 -> 1553 | F56: =1/((1+$E$3)^E56*(1+$F$3)^E56) -> 0.4523370246 | G56: =+E56-E55 -> 31 | H56: =IF(D56<=SIMULADOR!$D$17,ROUND($H$6,2),"") ->  | I56: =IF(D56<=SIMULADOR!$D$17+1,I55-J55,"") ->  | J56: =IF(D56<=SIMULADOR!$D$17,H56-L56-K56-M56,"") ->  | L56: =IF(D56>SIMULADOR!$D$17,0,IF(AND(D56<=SIMULADOR!$D$17,I56<=SIMULADOR!$D$13),ROUND(I56*$F$1,2),IF(I56>SIMULADOR!$D$13,SIMULADOR!$D$13*Calculos!$F$1,""))) -> 0 | M56: =IF(Calculos!D56<=SIMULADOR!$D$17,Calculos!$M$4,"") ->  | N56: =IF(D56<=SIMULADOR!$D$17,ROUND(I56*((1+$E$3)^G56-1),2),"") ->  | P56: =+IF(D56<=SIMULADOR!$D$17,SIMULADOR!Q94,"") ->  | AA56: 31 | AB56: =+IF(OR(Calculos!B54-SIMULADOR!$H$28<0,SIMULADOR!$H$28=0),0,Calculos!B54-SIMULADOR!$H$28) -> 0 | AC56: 0 | AD56: =+IF(AND(AB57<>0,AB56=0),SIMULADOR!$H$29,0) -> 0 | AE56: 0 | AG56: 0 | AH56: 0 | AI56: 0 | AJ56: =IF($BA56=SIMULADOR!$H$28,0,IF(OR(BO55=1,AND(AD56<>0,BO56=0)),L56,IF(AND(AC56+AD56>0,ABS(AG55-AH55)>0.01),L56,0))) -> 0 | AK56: 0 | AM56: 0 | AN56: 0 | AP56: 0 | AQ56: 0 | AS56: 0 | AX56: 0 | AZ56: 51 | BA56: =+BA55+IF(SIMULADOR!$H$28<>"",AA56+AC56,G56) -> 2027-08-23 | BB56: =+IF(SUM(AE$6:AE56)=0,I56,IF($BB$1=$BE$1,AG56,AT56)) ->  | BC56: =+IF(SUM(AE$6:AE56)=0,L56,IF($BB$1=$BE$1,AJ56,AW56)) -> 0 | BD56: 0 | BE56: =+IF(SUM(AE$6:AE56)=0,0,IF($BB$1=$BE$1,AD56,AS56)) -> 0 | BF56: =+IF(SUM(AE$6:AE56)=0,J56,IF($BB$1=$BE$1,AH56,AU56)) ->  | BG56: =+IF(SUM(AE$6:AE56)=0,K56,IF($BB$1=$BE$1,AI56,AV56)) ->  | BI56: =+SIMULADOR!K95 -> 0 | BJ56: 0 | BM56: 0 | BO56: 0 | BP56: 1 | BQ56: 5 | BR56: 51 | BU56: 2027-08-23
A57: 2027-09-23 | B57: =+IF(AND(SIMULADOR!$D$18=31,DAY(EOMONTH(A57,1))<>31),DATE(YEAR(A57),MONTH(A57)+1,DAY(EOMONTH(A57,1))),IF(MONTH(EDATE(A57,1))=2,EDATE(A57,1),DATE(YEAR(EDATE(A57,1)),MONTH(EDATE(A57,1)),SIMULADOR!$D$18))) -> 2027-10-23 | D57: 52 | E57: 1584 | F57: 0.4452302779 | G57: 31 | H57: =IF(D57<=SIMULADOR!$D$17,ROUND($H$6,2),"") ->  | I57: =IF(D57<=SIMULADOR!$D$17+1,I56-J56,"") ->  | J57: =IF(D57<=SIMULADOR!$D$17,H57-L57-K57-M57,"") ->  | L57: =IF(D57>SIMULADOR!$D$17,0,IF(AND(D57<=SIMULADOR!$D$17,I57<=SIMULADOR!$D$13),ROUND(I57*$F$1,2),IF(I57>SIMULADOR!$D$13,SIMULADOR!$D$13*Calculos!$F$1,""))) -> 0 | M57: =IF(Calculos!D57<=SIMULADOR!$D$17,Calculos!$M$4,"") ->  | N57: =IF(D57<=SIMULADOR!$D$17,ROUND(I57*((1+$E$3)^G57-1),2),"") ->  | P57: =+IF(D57<=SIMULADOR!$D$17,SIMULADOR!Q95,"") ->  | AA57: 31 | AB57: =+IF(OR(Calculos!B55-SIMULADOR!$H$28<0,SIMULADOR!$H$28=0),0,Calculos!B55-SIMULADOR!$H$28) -> 0 | AC57: 0 | AD57: =+IF(AND(AB58<>0,AB57=0),SIMULADOR!$H$29,0) -> 0 | AE57: 0 | AG57: 0 | AH57: 0 | AI57: 0 | AJ57: =IF($BA57=SIMULADOR!$H$28,0,IF(OR(BO56=1,AND(AD57<>0,BO57=0)),L57,IF(AND(AC57+AD57>0,ABS(AG56-AH56)>0.01),L57,0))) -> 0 | AK57: 0 | AM57: 0 | AN57: 0 | AP57: 0 | AQ57: 0 | AS57: 0 | AX57: 0 | AZ57: 52 | BA57: =+BA56+IF(SIMULADOR!$H$28<>"",AA57+AC57,G57) -> 2027-09-23 | BB57: =+IF(SUM(AE$6:AE57)=0,I57,IF($BB$1=$BE$1,AG57,AT57)) ->  | BC57: =+IF(SUM(AE$6:AE57)=0,L57,IF($BB$1=$BE$1,AJ57,AW57)) -> 0 | BD57: 0 | BE57: =+IF(SUM(AE$6:AE57)=0,0,IF($BB$1=$BE$1,AD57,AS57)) -> 0 | BF57: =+IF(SUM(AE$6:AE57)=0,J57,IF($BB$1=$BE$1,AH57,AU57)) ->  | BG57: =+IF(SUM(AE$6:AE57)=0,K57,IF($BB$1=$BE$1,AI57,AV57)) ->  | BI57: =+SIMULADOR!K96 -> 0 | BJ57: 0 | BM57: 0 | BO57: 0 | BP57: 1 | BQ57: 6 | BR57: 52 | BU57: 2027-09-23
A58: 2027-10-23 | B58: =+IF(AND(SIMULADOR!$D$18=31,DAY(EOMONTH(A58,1))<>31),DATE(YEAR(A58),MONTH(A58)+1,DAY(EOMONTH(A58,1))),IF(MONTH(EDATE(A58,1))=2,EDATE(A58,1),DATE(YEAR(EDATE(A58,1)),MONTH(EDATE(A58,1)),SIMULADOR!$D$18))) -> 2027-11-23 | D58: 53 | E58: 1614 | F58: 0.4384591099 | G58: 30 | H58: =IF(D58<=SIMULADOR!$D$17,ROUND($H$6,2),"") ->  | I58: =IF(D58<=SIMULADOR!$D$17+1,I57-J57,"") ->  | J58: =IF(D58<=SIMULADOR!$D$17,H58-L58-K58-M58,"") ->  | L58: =IF(D58>SIMULADOR!$D$17,0,IF(AND(D58<=SIMULADOR!$D$17,I58<=SIMULADOR!$D$13),ROUND(I58*$F$1,2),IF(I58>SIMULADOR!$D$13,SIMULADOR!$D$13*Calculos!$F$1,""))) -> 0 | M58: =IF(Calculos!D58<=SIMULADOR!$D$17,Calculos!$M$4,"") ->  | N58: =IF(D58<=SIMULADOR!$D$17,ROUND(I58*((1+$E$3)^G58-1),2),"") ->  | P58: =+IF(D58<=SIMULADOR!$D$17,SIMULADOR!Q96,"") ->  | AA58: 30 | AB58: =+IF(OR(Calculos!B56-SIMULADOR!$H$28<0,SIMULADOR!$H$28=0),0,Calculos!B56-SIMULADOR!$H$28) -> 0 | AC58: 0 | AD58: =+IF(AND(AB59<>0,AB58=0),SIMULADOR!$H$29,0) -> 0 | AE58: 0 | AG58: 0 | AH58: 0 | AI58: 0 | AJ58: =IF($BA58=SIMULADOR!$H$28,0,IF(OR(BO57=1,AND(AD58<>0,BO58=0)),L58,IF(AND(AC58+AD58>0,ABS(AG57-AH57)>0.01),L58,0))) -> 0 | AK58: 0 | AM58: 0 | AN58: 0 | AP58: 0 | AQ58: 0 | AS58: 0 | AX58: 0 | AZ58: 53 | BA58: =+BA57+IF(SIMULADOR!$H$28<>"",AA58+AC58,G58) -> 2027-10-23 | BB58: =+IF(SUM(AE$6:AE58)=0,I58,IF($BB$1=$BE$1,AG58,AT58)) ->  | BC58: =+IF(SUM(AE$6:AE58)=0,L58,IF($BB$1=$BE$1,AJ58,AW58)) -> 0 | BD58: 0 | BE58: =+IF(SUM(AE$6:AE58)=0,0,IF($BB$1=$BE$1,AD58,AS58)) -> 0 | BF58: =+IF(SUM(AE$6:AE58)=0,J58,IF($BB$1=$BE$1,AH58,AU58)) ->  | BG58: =+IF(SUM(AE$6:AE58)=0,K58,IF($BB$1=$BE$1,AI58,AV58)) ->  | BI58: =+SIMULADOR!K97 -> 0 | BJ58: 0 | BM58: 0 | BO58: 0 | BP58: 1 | BQ58: 7 | BR58: 53 | BU58: 2027-10-23
A59: 2027-11-23 | B59: =+IF(AND(SIMULADOR!$D$18=31,DAY(EOMONTH(A59,1))<>31),DATE(YEAR(A59),MONTH(A59)+1,DAY(EOMONTH(A59,1))),IF(MONTH(EDATE(A59,1))=2,EDATE(A59,1),DATE(YEAR(EDATE(A59,1)),MONTH(EDATE(A59,1)),SIMULADOR!$D$18))) -> 2027-12-23 | D59: 54 | E59: 1645 | F59: 0.4315704016 | G59: 31 | H59: =IF(D59<=SIMULADOR!$D$17,ROUND($H$6,2),"") ->  | I59: =IF(D59<=SIMULADOR!$D$17+1,I58-J58,"") ->  | J59: =IF(D59<=SIMULADOR!$D$17,H59-L59-K59-M59,"") ->  | L59: =IF(D59>SIMULADOR!$D$17,0,IF(AND(D59<=SIMULADOR!$D$17,I59<=SIMULADOR!$D$13),ROUND(I59*$F$1,2),IF(I59>SIMULADOR!$D$13,SIMULADOR!$D$13*Calculos!$F$1,""))) -> 0 | M59: =IF(Calculos!D59<=SIMULADOR!$D$17,Calculos!$M$4,"") ->  | N59: =IF(D59<=SIMULADOR!$D$17,ROUND(I59*((1+$E$3)^G59-1),2),"") ->  | P59: =+IF(D59<=SIMULADOR!$D$17,SIMULADOR!Q97,"") ->  | AA59: 31 | AB59: =+IF(OR(Calculos!B57-SIMULADOR!$H$28<0,SIMULADOR!$H$28=0),0,Calculos!B57-SIMULADOR!$H$28) -> 0 | AC59: 0 | AD59: =+IF(AND(AB60<>0,AB59=0),SIMULADOR!$H$29,0) -> 0 | AE59: 0 | AG59: 0 | AH59: 0 | AI59: 0 | AJ59: =IF($BA59=SIMULADOR!$H$28,0,IF(OR(BO58=1,AND(AD59<>0,BO59=0)),L59,IF(AND(AC59+AD59>0,ABS(AG58-AH58)>0.01),L59,0))) -> 0 | AK59: 0 | AM59: 0 | AN59: 0 | AP59: 0 | AQ59: 0 | AS59: 0 | AX59: 0 | AZ59: 54 | BA59: =+BA58+IF(SIMULADOR!$H$28<>"",AA59+AC59,G59) -> 2027-11-23 | BB59: =+IF(SUM(AE$6:AE59)=0,I59,IF($BB$1=$BE$1,AG59,AT59)) ->  | BC59: =+IF(SUM(AE$6:AE59)=0,L59,IF($BB$1=$BE$1,AJ59,AW59)) -> 0 | BD59: 0 | BE59: =+IF(SUM(AE$6:AE59)=0,0,IF($BB$1=$BE$1,AD59,AS59)) -> 0 | BF59: =+IF(SUM(AE$6:AE59)=0,J59,IF($BB$1=$BE$1,AH59,AU59)) ->  | BG59: =+IF(SUM(AE$6:AE59)=0,K59,IF($BB$1=$BE$1,AI59,AV59)) ->  | BI59: =+SIMULADOR!K98 -> 0 | BJ59: 0 | BM59: 0 | BO59: 0 | BP59: 1 | BQ59: 8 | BR59: 54 | BU59: 2027-11-23
A60: 2027-12-23 | B60: =+IF(AND(SIMULADOR!$D$18=31,DAY(EOMONTH(A60,1))<>31),DATE(YEAR(A60),MONTH(A60)+1,DAY(EOMONTH(A60,1))),IF(MONTH(EDATE(A60,1))=2,EDATE(A60,1),DATE(YEAR(EDATE(A60,1)),MONTH(EDATE(A60,1)),SIMULADOR!$D$18))) -> 2028-01-23 | D60: 55 | E60: 1675 | F60: 0.4250069763 | G60: 30 | H60: =IF(D60<=SIMULADOR!$D$17,ROUND($H$6,2),"") ->  | I60: =IF(D60<=SIMULADOR!$D$17+1,I59-J59,"") ->  | J60: =IF(D60<=SIMULADOR!$D$17,H60-L60-K60-M60,"") ->  | L60: =IF(D60>SIMULADOR!$D$17,0,IF(AND(D60<=SIMULADOR!$D$17,I60<=SIMULADOR!$D$13),ROUND(I60*$F$1,2),IF(I60>SIMULADOR!$D$13,SIMULADOR!$D$13*Calculos!$F$1,""))) -> 0 | M60: =IF(Calculos!D60<=SIMULADOR!$D$17,Calculos!$M$4,"") ->  | N60: =IF(D60<=SIMULADOR!$D$17,ROUND(I60*((1+$E$3)^G60-1),2),"") ->  | P60: =+IF(D60<=SIMULADOR!$D$17,SIMULADOR!Q98,"") ->  | AA60: 30 | AB60: =+IF(OR(Calculos!B58-SIMULADOR!$H$28<0,SIMULADOR!$H$28=0),0,Calculos!B58-SIMULADOR!$H$28) -> 0 | AC60: 0 | AD60: =+IF(AND(AB61<>0,AB60=0),SIMULADOR!$H$29,0) -> 0 | AE60: 0 | AG60: 0 | AH60: 0 | AI60: 0 | AJ60: =IF($BA60=SIMULADOR!$H$28,0,IF(OR(BO59=1,AND(AD60<>0,BO60=0)),L60,IF(AND(AC60+AD60>0,ABS(AG59-AH59)>0.01),L60,0))) -> 0 | AK60: 0 | AM60: 0 | AN60: 0 | AP60: 0 | AQ60: 0 | AS60: 0 | AX60: 0 | AZ60: 55 | BA60: =+BA59+IF(SIMULADOR!$H$28<>"",AA60+AC60,G60) -> 2027-12-23 | BB60: =+IF(SUM(AE$6:AE60)=0,I60,IF($BB$1=$BE$1,AG60,AT60)) ->  | BC60: =+IF(SUM(AE$6:AE60)=0,L60,IF($BB$1=$BE$1,AJ60,AW60)) -> 0 | BD60: 0 | BE60: =+IF(SUM(AE$6:AE60)=0,0,IF($BB$1=$BE$1,AD60,AS60)) -> 0 | BF60: =+IF(SUM(AE$6:AE60)=0,J60,IF($BB$1=$BE$1,AH60,AU60)) ->  | BG60: =+IF(SUM(AE$6:AE60)=0,K60,IF($BB$1=$BE$1,AI60,AV60)) ->  | BI60: =+SIMULADOR!K99 -> 0 | BJ60: 0 | BM60: 0 | BO60: 0 | BP60: 1 | BQ60: 9 | BR60: 55 | BU60: 2027-12-23
A61: 2028-01-23 | B61: =+IF(AND(SIMULADOR!$D$18=31,DAY(EOMONTH(A61,1))<>31),DATE(YEAR(A61),MONTH(A61)+1,DAY(EOMONTH(A61,1))),IF(MONTH(EDATE(A61,1))=2,EDATE(A61,1),DATE(YEAR(EDATE(A61,1)),MONTH(EDATE(A61,1)),SIMULADOR!$D$18))) -> 2028-02-23 | D61: 56 | E61: 1706 | F61: 0.4183296168 | G61: 31 | H61: =IF(D61<=SIMULADOR!$D$17,ROUND($H$6,2),"") ->  | I61: =IF(D61<=SIMULADOR!$D$17+1,I60-J60,"") ->  | J61: =IF(D61<=SIMULADOR!$D$17,H61-L61-K61-M61,"") ->  | L61: =IF(D61>SIMULADOR!$D$17,0,IF(AND(D61<=SIMULADOR!$D$17,I61<=SIMULADOR!$D$13),ROUND(I61*$F$1,2),IF(I61>SIMULADOR!$D$13,SIMULADOR!$D$13*Calculos!$F$1,""))) -> 0 | M61: =IF(Calculos!D61<=SIMULADOR!$D$17,Calculos!$M$4,"") ->  | N61: =IF(D61<=SIMULADOR!$D$17,ROUND(I61*((1+$E$3)^G61-1),2),"") ->  | P61: =+IF(D61<=SIMULADOR!$D$17,SIMULADOR!Q99,"") ->  | AA61: 31 | AB61: =+IF(OR(Calculos!B59-SIMULADOR!$H$28<0,SIMULADOR!$H$28=0),0,Calculos!B59-SIMULADOR!$H$28) -> 0 | AC61: 0 | AD61: =+IF(AND(AB62<>0,AB61=0),SIMULADOR!$H$29,0) -> 0 | AE61: 0 | AG61: 0 | AH61: 0 | AI61: 0 | AJ61: =IF($BA61=SIMULADOR!$H$28,0,IF(OR(BO60=1,AND(AD61<>0,BO61=0)),L61,IF(AND(AC61+AD61>0,ABS(AG60-AH60)>0.01),L61,0))) -> 0 | AK61: 0 | AM61: 0 | AN61: 0 | AP61: 0 | AQ61: 0 | AS61: 0 | AX61: 0 | AZ61: 56 | BA61: =+BA60+IF(SIMULADOR!$H$28<>"",AA61+AC61,G61) -> 2028-01-23 | BB61: =+IF(SUM(AE$6:AE61)=0,I61,IF($BB$1=$BE$1,AG61,AT61)) ->  | BC61: =+IF(SUM(AE$6:AE61)=0,L61,IF($BB$1=$BE$1,AJ61,AW61)) -> 0 | BD61: 0 | BE61: =+IF(SUM(AE$6:AE61)=0,0,IF($BB$1=$BE$1,AD61,AS61)) -> 0 | BF61: =+IF(SUM(AE$6:AE61)=0,J61,IF($BB$1=$BE$1,AH61,AU61)) ->  | BG61: =+IF(SUM(AE$6:AE61)=0,K61,IF($BB$1=$BE$1,AI61,AV61)) ->  | BI61: =+SIMULADOR!K100 -> 0 | BJ61: 0 | BM61: 0 | BO61: 0 | BP61: 1 | BQ61: 10 | BR61: 56 | BU61: 2028-01-23
A62: 2028-02-23 | B62: =+IF(AND(SIMULADOR!$D$18=31,DAY(EOMONTH(A62,1))<>31),DATE(YEAR(A62),MONTH(A62)+1,DAY(EOMONTH(A62,1))),IF(MONTH(EDATE(A62,1))=2,EDATE(A62,1),DATE(YEAR(EDATE(A62,1)),MONTH(EDATE(A62,1)),SIMULADOR!$D$18))) -> 2028-03-23 | D62: 57 | E62: 1737 | F62: 0.4117571666 | G62: 31 | H62: =IF(D62<=SIMULADOR!$D$17,ROUND($H$6,2),"") ->  | I62: =IF(D62<=SIMULADOR!$D$17+1,I61-J61,"") ->  | J62: =IF(D62<=SIMULADOR!$D$17,H62-L62-K62-M62,"") ->  | L62: =IF(D62>SIMULADOR!$D$17,0,IF(AND(D62<=SIMULADOR!$D$17,I62<=SIMULADOR!$D$13),ROUND(I62*$F$1,2),IF(I62>SIMULADOR!$D$13,SIMULADOR!$D$13*Calculos!$F$1,""))) -> 0 | M62: =IF(Calculos!D62<=SIMULADOR!$D$17,Calculos!$M$4,"") ->  | N62: =IF(D62<=SIMULADOR!$D$17,ROUND(I62*((1+$E$3)^G62-1),2),"") ->  | P62: =+IF(D62<=SIMULADOR!$D$17,SIMULADOR!Q100,"") ->  | AA62: 31 | AB62: =+IF(OR(Calculos!B60-SIMULADOR!$H$28<0,SIMULADOR!$H$28=0),0,Calculos!B60-SIMULADOR!$H$28) -> 0 | AC62: 0 | AD62: =+IF(AND(AB63<>0,AB62=0),SIMULADOR!$H$29,0) -> 0 | AE62: 0 | AG62: 0 | AH62: 0 | AI62: 0 | AJ62: =IF($BA62=SIMULADOR!$H$28,0,IF(OR(BO61=1,AND(AD62<>0,BO62=0)),L62,IF(AND(AC62+AD62>0,ABS(AG61-AH61)>0.01),L62,0))) -> 0 | AK62: 0 | AM62: 0 | AN62: 0 | AP62: 0 | AQ62: 0 | AS62: 0 | AX62: 0 | AZ62: 57 | BA62: =+BA61+IF(SIMULADOR!$H$28<>"",AA62+AC62,G62) -> 2028-02-23 | BB62: =+IF(SUM(AE$6:AE62)=0,I62,IF($BB$1=$BE$1,AG62,AT62)) ->  | BC62: =+IF(SUM(AE$6:AE62)=0,L62,IF($BB$1=$BE$1,AJ62,AW62)) -> 0 | BD62: 0 | BE62: =+IF(SUM(AE$6:AE62)=0,0,IF($BB$1=$BE$1,AD62,AS62)) -> 0 | BF62: =+IF(SUM(AE$6:AE62)=0,J62,IF($BB$1=$BE$1,AH62,AU62)) ->  | BG62: =+IF(SUM(AE$6:AE62)=0,K62,IF($BB$1=$BE$1,AI62,AV62)) ->  | BI62: =+SIMULADOR!K101 -> 0 | BJ62: 0 | BM62: 0 | BO62: 0 | BP62: 1 | BQ62: 11 | BR62: 57 | BU62: 2028-02-23
A63: 2028-03-23 | B63: =+IF(AND(SIMULADOR!$D$18=31,DAY(EOMONTH(A63,1))<>31),DATE(YEAR(A63),MONTH(A63)+1,DAY(EOMONTH(A63,1))),IF(MONTH(EDATE(A63,1))=2,EDATE(A63,1),DATE(YEAR(EDATE(A63,1)),MONTH(EDATE(A63,1)),SIMULADOR!$D$18))) -> 2028-04-23 | D63: 58 | E63: 1766 | F63: 0.4057022599 | G63: 29 | H63: =IF(D63<=SIMULADOR!$D$17,ROUND($H$6,2),"") ->  | I63: =IF(D63<=SIMULADOR!$D$17+1,I62-J62,"") ->  | J63: =IF(D63<=SIMULADOR!$D$17,H63-L63-K63-M63,"") ->  | L63: =IF(D63>SIMULADOR!$D$17,0,IF(AND(D63<=SIMULADOR!$D$17,I63<=SIMULADOR!$D$13),ROUND(I63*$F$1,2),IF(I63>SIMULADOR!$D$13,SIMULADOR!$D$13*Calculos!$F$1,""))) -> 0 | M63: =IF(Calculos!D63<=SIMULADOR!$D$17,Calculos!$M$4,"") ->  | N63: =IF(D63<=SIMULADOR!$D$17,ROUND(I63*((1+$E$3)^G63-1),2),"") ->  | P63: =+IF(D63<=SIMULADOR!$D$17,SIMULADOR!Q101,"") ->  | AA63: 29 | AB63: =+IF(OR(Calculos!B61-SIMULADOR!$H$28<0,SIMULADOR!$H$28=0),0,Calculos!B61-SIMULADOR!$H$28) -> 0 | AC63: 0 | AD63: =+IF(AND(AB64<>0,AB63=0),SIMULADOR!$H$29,0) -> 0 | AE63: 0 | AG63: 0 | AH63: 0 | AI63: 0 | AJ63: =IF($BA63=SIMULADOR!$H$28,0,IF(OR(BO62=1,AND(AD63<>0,BO63=0)),L63,IF(AND(AC63+AD63>0,ABS(AG62-AH62)>0.01),L63,0))) -> 0 | AK63: 0 | AM63: 0 | AN63: 0 | AP63: 0 | AQ63: 0 | AS63: 0 | AX63: 0 | AZ63: 58 | BA63: =+BA62+IF(SIMULADOR!$H$28<>"",AA63+AC63,G63) -> 2028-03-23 | BB63: =+IF(SUM(AE$6:AE63)=0,I63,IF($BB$1=$BE$1,AG63,AT63)) ->  | BC63: =+IF(SUM(AE$6:AE63)=0,L63,IF($BB$1=$BE$1,AJ63,AW63)) -> 0 | BD63: 0 | BE63: =+IF(SUM(AE$6:AE63)=0,0,IF($BB$1=$BE$1,AD63,AS63)) -> 0 | BF63: =+IF(SUM(AE$6:AE63)=0,J63,IF($BB$1=$BE$1,AH63,AU63)) ->  | BG63: =+IF(SUM(AE$6:AE63)=0,K63,IF($BB$1=$BE$1,AI63,AV63)) ->  | BI63: =+SIMULADOR!K102 -> 0 | BJ63: 0 | BM63: 0 | BO63: 0 | BP63: 1 | BQ63: 12 | BR63: 58 | BU63: 2028-03-23
A64: 2028-04-23 | B64: =+IF(AND(SIMULADOR!$D$18=31,DAY(EOMONTH(A64,1))<>31),DATE(YEAR(A64),MONTH(A64)+1,DAY(EOMONTH(A64,1))),IF(MONTH(EDATE(A64,1))=2,EDATE(A64,1),DATE(YEAR(EDATE(A64,1)),MONTH(EDATE(A64,1)),SIMULADOR!$D$18))) -> 2028-05-23 | D64: 59 | E64: 1797 | F64: 0.3993282002 | G64: 31 | H64: =IF(D64<=SIMULADOR!$D$17,ROUND($H$6,2),"") ->  | I64: =IF(D64<=SIMULADOR!$D$17+1,I63-J63,"") ->  | J64: =IF(D64<=SIMULADOR!$D$17,H64-L64-K64-M64,"") ->  | L64: =IF(D64>SIMULADOR!$D$17,0,IF(AND(D64<=SIMULADOR!$D$17,I64<=SIMULADOR!$D$13),ROUND(I64*$F$1,2),IF(I64>SIMULADOR!$D$13,SIMULADOR!$D$13*Calculos!$F$1,""))) -> 0 | M64: =IF(Calculos!D64<=SIMULADOR!$D$17,Calculos!$M$4,"") ->  | N64: =IF(D64<=SIMULADOR!$D$17,ROUND(I64*((1+$E$3)^G64-1),2),"") ->  | P64: =+IF(D64<=SIMULADOR!$D$17,SIMULADOR!Q102,"") ->  | AA64: 31 | AB64: =+IF(OR(Calculos!B62-SIMULADOR!$H$28<0,SIMULADOR!$H$28=0),0,Calculos!B62-SIMULADOR!$H$28) -> 0 | AC64: 0 | AD64: =+IF(AND(AB65<>0,AB64=0),SIMULADOR!$H$29,0) -> 0 | AE64: 0 | AG64: 0 | AH64: 0 | AI64: 0 | AJ64: =IF($BA64=SIMULADOR!$H$28,0,IF(OR(BO63=1,AND(AD64<>0,BO64=0)),L64,IF(AND(AC64+AD64>0,ABS(AG63-AH63)>0.01),L64,0))) -> 0 | AK64: 0 | AM64: 0 | AN64: 0 | AP64: 0 | AQ64: 0 | AS64: 0 | AX64: 0 | AZ64: 59 | BA64: =+BA63+IF(SIMULADOR!$H$28<>"",AA64+AC64,G64) -> 2028-04-23 | BB64: =+IF(SUM(AE$6:AE64)=0,I64,IF($BB$1=$BE$1,AG64,AT64)) ->  | BC64: =+IF(SUM(AE$6:AE64)=0,L64,IF($BB$1=$BE$1,AJ64,AW64)) -> 0 | BD64: 0 | BE64: =+IF(SUM(AE$6:AE64)=0,0,IF($BB$1=$BE$1,AD64,AS64)) -> 0 | BF64: =+IF(SUM(AE$6:AE64)=0,J64,IF($BB$1=$BE$1,AH64,AU64)) ->  | BG64: =+IF(SUM(AE$6:AE64)=0,K64,IF($BB$1=$BE$1,AI64,AV64)) ->  | BI64: =+SIMULADOR!K103 -> 0 | BJ64: 0 | BM64: 0 | BO64: 0 | BP64: 1 | BQ64: 13 | BR64: 59 | BU64: 2028-04-23
A65: 2028-05-23 | B65: =+IF(AND(SIMULADOR!$D$18=31,DAY(EOMONTH(A65,1))<>31),DATE(YEAR(A65),MONTH(A65)+1,DAY(EOMONTH(A65,1))),IF(MONTH(EDATE(A65,1))=2,EDATE(A65,1),DATE(YEAR(EDATE(A65,1)),MONTH(EDATE(A65,1)),SIMULADOR!$D$18))) -> 2028-06-23 | D65: 60 | E65: 1827 | F65: 0.3932551219 | G65: 30 | H65: =IF(D65<=SIMULADOR!$D$17,ROUND($H$6,2),"") ->  | I65: =IF(D65<=SIMULADOR!$D$17+1,I64-J64,"") ->  | J65: =IF(D65<=SIMULADOR!$D$17,H65-L65-K65-M65,"") ->  | L65: =IF(D65>SIMULADOR!$D$17,0,IF(AND(D65<=SIMULADOR!$D$17,I65<=SIMULADOR!$D$13),ROUND(I65*$F$1,2),IF(I65>SIMULADOR!$D$13,SIMULADOR!$D$13*Calculos!$F$1,""))) -> 0 | M65: =IF(Calculos!D65<=SIMULADOR!$D$17,Calculos!$M$4,"") ->  | N65: =IF(D65<=SIMULADOR!$D$17,ROUND(I65*((1+$E$3)^G65-1),2),"") ->  | P65: =+IF(D65<=SIMULADOR!$D$17,SIMULADOR!Q103,"") ->  | AA65: 30 | AB65: =+IF(OR(Calculos!B63-SIMULADOR!$H$28<0,SIMULADOR!$H$28=0),0,Calculos!B63-SIMULADOR!$H$28) -> 0 | AC65: 0 | AD65: =+IF(AND(AB66<>0,AB65=0),SIMULADOR!$H$29,0) -> 0 | AE65: 0 | AG65: 0 | AH65: 0 | AI65: 0 | AJ65: =IF($BA65=SIMULADOR!$H$28,0,IF(OR(BO64=1,AND(AD65<>0,BO65=0)),L65,IF(AND(AC65+AD65>0,ABS(AG64-AH64)>0.01),L65,0))) -> 0 | AK65: 0 | AM65: 0 | AN65: 0 | AP65: 0 | AQ65: 0 | AS65: 0 | AX65: 0 | AZ65: 60 | BA65: =+BA64+IF(SIMULADOR!$H$28<>"",AA65+AC65,G65) -> 2028-05-23 | BB65: =+IF(SUM(AE$6:AE65)=0,I65,IF($BB$1=$BE$1,AG65,AT65)) ->  | BC65: =+IF(SUM(AE$6:AE65)=0,L65,IF($BB$1=$BE$1,AJ65,AW65)) -> 0 | BD65: 0 | BE65: =+IF(SUM(AE$6:AE65)=0,0,IF($BB$1=$BE$1,AD65,AS65)) -> 0 | BF65: =+IF(SUM(AE$6:AE65)=0,J65,IF($BB$1=$BE$1,AH65,AU65)) ->  | BG65: =+IF(SUM(AE$6:AE65)=0,K65,IF($BB$1=$BE$1,AI65,AV65)) ->  | BI65: =+SIMULADOR!K104 -> 0 | BJ65: 0 | BM65: 0 | BO65: 0 | BP65: 1 | BQ65: 14 | BR65: 60 | BU65: 2028-05-23
A66: 2028-06-23 | B66: =+IF(AND(SIMULADOR!$D$18=31,DAY(EOMONTH(A66,1))<>31),DATE(YEAR(A66),MONTH(A66)+1,DAY(EOMONTH(A66,1))),IF(MONTH(EDATE(A66,1))=2,EDATE(A66,1),DATE(YEAR(EDATE(A66,1)),MONTH(EDATE(A66,1)),SIMULADOR!$D$18))) -> 2028-07-23 | D66: 61 | E66: 1858 | F66: 0.3870766215 | G66: 31 | H66: =IF(D66<=SIMULADOR!$D$17,ROUND($H$6,2),"") ->  | I66: =IF(D66<=SIMULADOR!$D$17+1,I65-J65,"") ->  | J66: =IF(D66<=SIMULADOR!$D$17,H66-L66-K66-M66,"") ->  | L66: =IF(D66>SIMULADOR!$D$17,0,IF(AND(D66<=SIMULADOR!$D$17,I66<=SIMULADOR!$D$13),ROUND(I66*$F$1,2),IF(I66>SIMULADOR!$D$13,SIMULADOR!$D$13*Calculos!$F$1,""))) -> 0 | M66: =IF(Calculos!D66<=SIMULADOR!$D$17,Calculos!$M$4,"") ->  | N66: =IF(D66<=SIMULADOR!$D$17,ROUND(I66*((1+$E$3)^G66-1),2),"") ->  | P66: =+IF(D66<=SIMULADOR!$D$17,SIMULADOR!Q104,"") ->  | AA66: 31 | AB66: =+IF(OR(Calculos!B64-SIMULADOR!$H$28<0,SIMULADOR!$H$28=0),0,Calculos!B64-SIMULADOR!$H$28) -> 0 | AC66: 0 | AD66: =+IF(AND(AB67<>0,AB66=0),SIMULADOR!$H$29,0) -> 0 | AE66: 0 | AG66: 0 | AH66: 0 | AI66: 0 | AJ66: =IF($BA66=SIMULADOR!$H$28,0,IF(OR(BO65=1,AND(AD66<>0,BO66=0)),L66,IF(AND(AC66+AD66>0,ABS(AG65-AH65)>0.01),L66,0))) -> 0 | AK66: 0 | AM66: 0 | AN66: 0 | AP66: 0 | AQ66: 0 | AS66: 0 | AX66: 0 | AZ66: 61 | BA66: =+BA65+IF(SIMULADOR!$H$28<>"",AA66+AC66,G66) -> 2028-06-23 | BB66: =+IF(SUM(AE$6:AE66)=0,I66,IF($BB$1=$BE$1,AG66,AT66)) ->  | BC66: =+IF(SUM(AE$6:AE66)=0,L66,IF($BB$1=$BE$1,AJ66,AW66)) -> 0 | BD66: 0 | BE66: =+IF(SUM(AE$6:AE66)=0,0,IF($BB$1=$BE$1,AD66,AS66)) -> 0 | BF66: =+IF(SUM(AE$6:AE66)=0,J66,IF($BB$1=$BE$1,AH66,AU66)) ->  | BG66: =+IF(SUM(AE$6:AE66)=0,K66,IF($BB$1=$BE$1,AI66,AV66)) ->  | BI66: =+SIMULADOR!K105 -> 0 | BJ66: 0 | BM66: 0 | BO66: 0 | BP66: 1 | BQ66: 15 | BR66: 61 | BU66: 2028-06-23
A67: 2028-07-23 | B67: =+IF(AND(SIMULADOR!$D$18=31,DAY(EOMONTH(A67,1))<>31),DATE(YEAR(A67),MONTH(A67)+1,DAY(EOMONTH(A67,1))),IF(MONTH(EDATE(A67,1))=2,EDATE(A67,1),DATE(YEAR(EDATE(A67,1)),MONTH(EDATE(A67,1)),SIMULADOR!$D$18))) -> 2028-08-23 | D67: 62 | E67: 1888 | F67: 0.3811898681 | G67: 30 | H67: =IF(D67<=SIMULADOR!$D$17,ROUND($H$6,2),"") ->  | I67: =IF(D67<=SIMULADOR!$D$17+1,I66-J66,"") ->  | J67: =IF(D67<=SIMULADOR!$D$17,H67-L67-K67-M67,"") ->  | L67: =IF(D67>SIMULADOR!$D$17,0,IF(AND(D67<=SIMULADOR!$D$17,I67<=SIMULADOR!$D$13),ROUND(I67*$F$1,2),IF(I67>SIMULADOR!$D$13,SIMULADOR!$D$13*Calculos!$F$1,""))) -> 0 | M67: =IF(Calculos!D67<=SIMULADOR!$D$17,Calculos!$M$4,"") ->  | N67: =IF(D67<=SIMULADOR!$D$17,ROUND(I67*((1+$E$3)^G67-1),2),"") ->  | P67: =+IF(D67<=SIMULADOR!$D$17,SIMULADOR!Q105,"") ->  | AA67: 30 | AB67: =+IF(OR(Calculos!B65-SIMULADOR!$H$28<0,SIMULADOR!$H$28=0),0,Calculos!B65-SIMULADOR!$H$28) -> 0 | AC67: 0 | AD67: =+IF(AND(AB68<>0,AB67=0),SIMULADOR!$H$29,0) -> 0 | AE67: 0 | AG67: 0 | AH67: 0 | AI67: 0 | AJ67: =IF($BA67=SIMULADOR!$H$28,0,IF(OR(BO66=1,AND(AD67<>0,BO67=0)),L67,IF(AND(AC67+AD67>0,ABS(AG66-AH66)>0.01),L67,0))) -> 0 | AK67: 0 | AM67: 0 | AN67: 0 | AP67: 0 | AQ67: 0 | AS67: 0 | AX67: 0 | AZ67: 62 | BA67: =+BA66+IF(SIMULADOR!$H$28<>"",AA67+AC67,G67) -> 2028-07-23 | BB67: =+IF(SUM(AE$6:AE67)=0,I67,IF($BB$1=$BE$1,AG67,AT67)) ->  | BC67: =+IF(SUM(AE$6:AE67)=0,L67,IF($BB$1=$BE$1,AJ67,AW67)) -> 0 | BD67: 0 | BE67: =+IF(SUM(AE$6:AE67)=0,0,IF($BB$1=$BE$1,AD67,AS67)) -> 0 | BF67: =+IF(SUM(AE$6:AE67)=0,J67,IF($BB$1=$BE$1,AH67,AU67)) ->  | BG67: =+IF(SUM(AE$6:AE67)=0,K67,IF($BB$1=$BE$1,AI67,AV67)) ->  | BI67: =+SIMULADOR!K106 -> 0 | BJ67: 0 | BM67: 0 | BO67: 0 | BP67: 1 | BQ67: 16 | BR67: 62 | BU67: 2028-07-23
A68: 2028-08-23 | B68: =+IF(AND(SIMULADOR!$D$18=31,DAY(EOMONTH(A68,1))<>31),DATE(YEAR(A68),MONTH(A68)+1,DAY(EOMONTH(A68,1))),IF(MONTH(EDATE(A68,1))=2,EDATE(A68,1),DATE(YEAR(EDATE(A68,1)),MONTH(EDATE(A68,1)),SIMULADOR!$D$18))) -> 2028-09-23 | D68: 63 | E68: 1919 | F68: 0.375200927 | G68: 31 | H68: =IF(D68<=SIMULADOR!$D$17,ROUND($H$6,2),"") ->  | I68: =IF(D68<=SIMULADOR!$D$17+1,I67-J67,"") ->  | J68: =IF(D68<=SIMULADOR!$D$17,H68-L68-K68-M68,"") ->  | L68: =IF(D68>SIMULADOR!$D$17,0,IF(AND(D68<=SIMULADOR!$D$17,I68<=SIMULADOR!$D$13),ROUND(I68*$F$1,2),IF(I68>SIMULADOR!$D$13,SIMULADOR!$D$13*Calculos!$F$1,""))) -> 0 | M68: =IF(Calculos!D68<=SIMULADOR!$D$17,Calculos!$M$4,"") ->  | N68: =IF(D68<=SIMULADOR!$D$17,ROUND(I68*((1+$E$3)^G68-1),2),"") ->  | P68: =+IF(D68<=SIMULADOR!$D$17,SIMULADOR!Q106,"") ->  | AA68: 31 | AB68: =+IF(OR(Calculos!B66-SIMULADOR!$H$28<0,SIMULADOR!$H$28=0),0,Calculos!B66-SIMULADOR!$H$28) -> 0 | AC68: 0 | AD68: =+IF(AND(AB69<>0,AB68=0),SIMULADOR!$H$29,0) -> 0 | AE68: 0 | AG68: 0 | AH68: 0 | AI68: 0 | AJ68: =IF($BA68=SIMULADOR!$H$28,0,IF(OR(BO67=1,AND(AD68<>0,BO68=0)),L68,IF(AND(AC68+AD68>0,ABS(AG67-AH67)>0.01),L68,0))) -> 0 | AK68: 0 | AM68: 0 | AN68: 0 | AP68: 0 | AQ68: 0 | AS68: 0 | AX68: 0 | AZ68: 63 | BA68: =+BA67+IF(SIMULADOR!$H$28<>"",AA68+AC68,G68) -> 2028-08-23 | BB68: =+IF(SUM(AE$6:AE68)=0,I68,IF($BB$1=$BE$1,AG68,AT68)) ->  | BC68: =+IF(SUM(AE$6:AE68)=0,L68,IF($BB$1=$BE$1,AJ68,AW68)) -> 0 | BD68: 0 | BE68: =+IF(SUM(AE$6:AE68)=0,0,IF($BB$1=$BE$1,AD68,AS68)) -> 0 | BF68: =+IF(SUM(AE$6:AE68)=0,J68,IF($BB$1=$BE$1,AH68,AU68)) ->  | BG68: =+IF(SUM(AE$6:AE68)=0,K68,IF($BB$1=$BE$1,AI68,AV68)) ->  | BI68: =+SIMULADOR!K107 -> 0 | BJ68: 0 | BM68: 0 | BO68: 0 | BP68: 1 | BQ68: 17 | BR68: 63 | BU68: 2028-08-23
A69: 2028-09-23 | B69: =+IF(AND(SIMULADOR!$D$18=31,DAY(EOMONTH(A69,1))<>31),DATE(YEAR(A69),MONTH(A69)+1,DAY(EOMONTH(A69,1))),IF(MONTH(EDATE(A69,1))=2,EDATE(A69,1),DATE(YEAR(EDATE(A69,1)),MONTH(EDATE(A69,1)),SIMULADOR!$D$18))) -> 2028-10-23 | D69: 64 | E69: 1950 | F69: 0.3693060791 | G69: 31 | H69: =IF(D69<=SIMULADOR!$D$17,ROUND($H$6,2),"") ->  | I69: =IF(D69<=SIMULADOR!$D$17+1,I68-J68,"") ->  | J69: =IF(D69<=SIMULADOR!$D$17,H69-L69-K69-M69,"") ->  | L69: =IF(D69>SIMULADOR!$D$17,0,IF(AND(D69<=SIMULADOR!$D$17,I69<=SIMULADOR!$D$13),ROUND(I69*$F$1,2),IF(I69>SIMULADOR!$D$13,SIMULADOR!$D$13*Calculos!$F$1,""))) -> 0 | M69: =IF(Calculos!D69<=SIMULADOR!$D$17,Calculos!$M$4,"") ->  | N69: =IF(D69<=SIMULADOR!$D$17,ROUND(I69*((1+$E$3)^G69-1),2),"") ->  | P69: =+IF(D69<=SIMULADOR!$D$17,SIMULADOR!Q107,"") ->  | AA69: 31 | AB69: =+IF(OR(Calculos!B67-SIMULADOR!$H$28<0,SIMULADOR!$H$28=0),0,Calculos!B67-SIMULADOR!$H$28) -> 0 | AC69: 0 | AD69: =+IF(AND(AB70<>0,AB69=0),SIMULADOR!$H$29,0) -> 0 | AE69: 0 | AG69: 0 | AH69: 0 | AI69: 0 | AJ69: =IF($BA69=SIMULADOR!$H$28,0,IF(OR(BO68=1,AND(AD69<>0,BO69=0)),L69,IF(AND(AC69+AD69>0,ABS(AG68-AH68)>0.01),L69,0))) -> 0 | AK69: 0 | AM69: 0 | AN69: 0 | AP69: 0 | AQ69: 0 | AS69: 0 | AX69: 0 | AZ69: 64 | BA69: =+BA68+IF(SIMULADOR!$H$28<>"",AA69+AC69,G69) -> 2028-09-23 | BB69: =+IF(SUM(AE$6:AE69)=0,I69,IF($BB$1=$BE$1,AG69,AT69)) ->  | BC69: =+IF(SUM(AE$6:AE69)=0,L69,IF($BB$1=$BE$1,AJ69,AW69)) -> 0 | BD69: 0 | BE69: =+IF(SUM(AE$6:AE69)=0,0,IF($BB$1=$BE$1,AD69,AS69)) -> 0 | BF69: =+IF(SUM(AE$6:AE69)=0,J69,IF($BB$1=$BE$1,AH69,AU69)) ->  | BG69: =+IF(SUM(AE$6:AE69)=0,K69,IF($BB$1=$BE$1,AI69,AV69)) ->  | BI69: =+SIMULADOR!K108 -> 0 | BJ69: 0 | BM69: 0 | BO69: 0 | BP69: 1 | BQ69: 18 | BR69: 64 | BU69: 2028-09-23
A70: =+B69 -> 2028-10-23 | B70: =+IF(AND(SIMULADOR!$D$18=31,DAY(EOMONTH(A70,1))<>31),DATE(YEAR(A70),MONTH(A70)+1,DAY(EOMONTH(A70,1))),IF(MONTH(EDATE(A70,1))=2,EDATE(A70,1),DATE(YEAR(EDATE(A70,1)),MONTH(EDATE(A70,1)),SIMULADOR!$D$18))) -> 2028-11-23 | D70: 65 | E70: =+B69-$A$5 -> 1980 | F70: =1/((1+$E$3)^E70*(1+$F$3)^E70) -> 0.3636895844 | G70: 30 | H70: =IF(D70<=SIMULADOR!$D$17,ROUND($H$6,2),"") ->  | I70: =IF(D70<=SIMULADOR!$D$17+1,I69-J69,"") ->  | J70: =IF(D70<=SIMULADOR!$D$17,H70-L70-K70-M70,"") ->  | L70: =IF(D70>SIMULADOR!$D$17,0,IF(AND(D70<=SIMULADOR!$D$17,I70<=SIMULADOR!$D$13),ROUND(I70*$F$1,2),IF(I70>SIMULADOR!$D$13,SIMULADOR!$D$13*Calculos!$F$1,""))) -> 0 | M70: =IF(Calculos!D70<=SIMULADOR!$D$17,Calculos!$M$4,"") ->  | N70: =IF(D70<=SIMULADOR!$D$17,ROUND(I70*((1+$E$3)^G70-1),2),"") ->  | P70: =+IF(D70<=SIMULADOR!$D$17,SIMULADOR!Q108,"") ->  | Q70: =IF(P70<>"",E70,"") ->  | AA70: 30 | AB70: =+IF(OR(Calculos!B68-SIMULADOR!$H$28<0,SIMULADOR!$H$28=0),0,Calculos!B68-SIMULADOR!$H$28) -> 0 | AC70: 0 | AD70: =+IF(AND(AB71<>0,AB70=0),SIMULADOR!$H$29,0) -> 0 | AE70: 0 | AG70: 0 | AH70: 0 | AI70: 0 | AJ70: =IF($BA70=SIMULADOR!$H$28,0,IF(OR(BO69=1,AND(AD70<>0,BO70=0)),L70,IF(AND(AC70+AD70>0,ABS(AG69-AH69)>0.01),L70,0))) -> 0 | AK70: =IF(OR(BO69=1,AND(AD70<>0,BO70=0)),$N$4,IF(AND(AC70+AD70>0,AD69=0,ABS(AG69-AH69)>0.01),$N$4,0)) -> 0 | AM70: 0 | AN70: 0 | AP70: 0 | AQ70: 0 | AS70: 0 | AX70: 0 | AZ70: 65 | BA70: =+BA69+IF(SIMULADOR!$H$28<>"",AA70+AC70,G70) -> 2028-10-23 | BB70: =+IF(SUM(AE$6:AE70)=0,I70,IF($BB$1=$BE$1,AG70,AT70)) ->  | BC70: =+IF(SUM(AE$6:AE70)=0,L70,IF($BB$1=$BE$1,AJ70,AW70)) -> 0 | BD70: 0 | BE70: =+IF(SUM(AE$6:AE70)=0,0,IF($BB$1=$BE$1,AD70,AS70)) -> 0 | BF70: =+IF(SUM(AE$6:AE70)=0,J70,IF($BB$1=$BE$1,AH70,AU70)) ->  | BG70: =+IF(SUM(AE$6:AE70)=0,K70,IF($BB$1=$BE$1,AI70,AV70)) ->  | BI70: =+SIMULADOR!K109 -> 0 | BJ70: =IF(BI70=0,0,Q70) -> 0 | BK70: =+BB70-BB71-BF70 ->  | BM70: =+BI70 -> 0 | BO70: 0 | BP70: 1 | BQ70: 19 | BR70: 65 | BU70: 2028-10-23
A71: 2028-11-23 | B71: =+IF(AND(SIMULADOR!$D$18=31,DAY(EOMONTH(A71,1))<>31),DATE(YEAR(A71),MONTH(A71)+1,DAY(EOMONTH(A71,1))),IF(MONTH(EDATE(A71,1))=2,EDATE(A71,1),DATE(YEAR(EDATE(A71,1)),MONTH(EDATE(A71,1)),SIMULADOR!$D$18))) -> 2028-12-23 | D71: =+D70+1 -> 66 | E71: 2011 | F71: 0.3579755933 | G71: =+E71-E70 -> 31 | H71: =IF(D71<=SIMULADOR!$D$17,ROUND($H$6,2),"") ->  | I71: =IF(D71<=SIMULADOR!$D$17+1,I70-J70,"") ->  | J71: =IF(D71<=SIMULADOR!$D$17,H71-L71-K71-M71,"") ->  | L71: =IF(D71>SIMULADOR!$D$17,0,IF(AND(D71<=SIMULADOR!$D$17,I71<=SIMULADOR!$D$13),ROUND(I71*$F$1,2),IF(I71>SIMULADOR!$D$13,SIMULADOR!$D$13*Calculos!$F$1,""))) -> 0 | M71: =IF(Calculos!D71<=SIMULADOR!$D$17,Calculos!$M$4,"") ->  | N71: =IF(D71<=SIMULADOR!$D$17,ROUND(I71*((1+$E$3)^G71-1),2),"") ->  | P71: =+IF(D71<=SIMULADOR!$D$17,SIMULADOR!Q109,"") ->  | AA71: =+G71-AC72 -> 31 | AB71: =+IF(OR(Calculos!B69-SIMULADOR!$H$28<0,SIMULADOR!$H$28=0),0,Calculos!B69-SIMULADOR!$H$28) -> 0 | AC71: 0 | AD71: =+IF(AND(AB72<>0,AB71=0),SIMULADOR!$H$29,0) -> 0 | AE71: 0 | AG71: 0 | AH71: 0 | AI71: =AG71*((1+$E$3)^(AA71+AC71)-1) -> 0 | AJ71: =IF($BA71=SIMULADOR!$H$28,0,IF(OR(BO70=1,AND(AD71<>0,BO71=0)),L71,IF(AND(AC71+AD71>0,ABS(AG70-AH70)>0.01),L71,0))) -> 0 | AK71: 0 | AM71: 0 | AN71: 0 | AP71: 0 | AQ71: =IF(AB71=0,0,1/((1+$E$3)^AB71)) -> 0 | AR71: =IF(AS71=0,IF($AR$1<AT70-AU70+AW71+AX71+AV71,$AR$1,((AT70-AU70)*(((1+$E$3)^(AA71+AC71)))+AW71+AX71)),AS71)-IF(AND(AS70<>0,BO71<>0),L71+$N$4,0) ->  | AS71: =+AD71 -> 0 | AT71: =IF(AND(IF(AND(AG70=0,AG71<>0),AG71,AT70-AR70+AV70+AW70+AX70)>-0.05,IF(AND(AG70=0,AG71<>0),AG71,AT70-AR70+AV70+AW70+AX70)<0.05),0,IF(AND(AG70=0,AG71<>0),AG71,AT70-AR70+AV70+AW70+AX70)) ->  | AU71: =IF(ABS(AR71-AV71-AW71-AX71)<0.01,0,AR71-AV71-AW71-AX71) ->  | AV71: =IF(BO71=1,AT71*((1+$E$3)^(AA71+AC71)-1),IF(AS71<>0,K71,AT71*((1+$E$3)^(AA71+AC71)-1))) ->  | AW71: =+IF(OR(BO70=1,AND($AD70=0,$AT71>0,BO71=0)),L71,0) ->  | AX71: 0 | AZ71: =+AZ70+1 -> 66 | BA71: =+BA70+IF(SIMULADOR!$H$28<>"",AA71+AC71,G71) -> 2028-11-23 | BB71: =+IF(SUM(AE$6:AE71)=0,I71,IF($BB$1=$BE$1,AG71,AT71)) ->  | BC71: =+IF(SUM(AE$6:AE71)=0,L71,IF($BB$1=$BE$1,AJ71,AW71)) -> 0 | BD71: 0 | BE71: =+IF(SUM(AE$6:AE71)=0,0,IF($BB$1=$BE$1,AD71,AS71)) -> 0 | BF71: =+IF(SUM(AE$6:AE71)=0,J71,IF($BB$1=$BE$1,AH71,AU71)) ->  | BG71: =+IF(SUM(AE$6:AE71)=0,K71,IF($BB$1=$BE$1,AI71,AV71)) ->  | BI71: =+SIMULADOR!K110 -> 0 | BJ71: 0 | BM71: 0 | BO71: =+IF(AND(BA71<B70,BA71>A70),1,0) -> 0 | BP71: =+IF(BM71<H71,1,0) -> 1 | BQ71: 20 | BR71: =+AZ71 -> 66 | BS71: =+BB71 ->  | BT71: =+BB72 ->  | BU71: =+A71 -> 2028-11-23
A72: 2028-12-23 | B72: =+IF(AND(SIMULADOR!$D$18=31,DAY(EOMONTH(A72,1))<>31),DATE(YEAR(A72),MONTH(A72)+1,DAY(EOMONTH(A72,1))),IF(MONTH(EDATE(A72,1))=2,EDATE(A72,1),DATE(YEAR(EDATE(A72,1)),MONTH(EDATE(A72,1)),SIMULADOR!$D$18))) -> 2029-01-23 | D72: 67 | E72: 2041 | F72: 0.3525314153 | G72: 30 | H72: =IF(D72<=SIMULADOR!$D$17,ROUND($H$6,2),"") ->  | I72: =IF(D72<=SIMULADOR!$D$17+1,I71-J71,"") ->  | J72: =IF(D72<=SIMULADOR!$D$17,H72-L72-K72-M72,"") ->  | K72: =N72 ->  | L72: =IF(D72>SIMULADOR!$D$17,0,IF(AND(D72<=SIMULADOR!$D$17,I72<=SIMULADOR!$D$13),ROUND(I72*$F$1,2),IF(I72>SIMULADOR!$D$13,SIMULADOR!$D$13*Calculos!$F$1,""))) -> 0 | M72: =IF(Calculos!D72<=SIMULADOR!$D$17,Calculos!$M$4,"") ->  | N72: =IF(D72<=SIMULADOR!$D$17,ROUND(I72*((1+$E$3)^G72-1),2),"") ->  | P72: =+IF(D72<=SIMULADOR!$D$17,SIMULADOR!Q110,"") ->  | AA72: 30 | AB72: =+IF(OR(Calculos!B70-SIMULADOR!$H$28<0,SIMULADOR!$H$28=0),0,Calculos!B70-SIMULADOR!$H$28) -> 0 | AC72: 0 | AD72: =+IF(AND(AB73<>0,AB72=0),SIMULADOR!$H$29,0) -> 0 | AE72: =IF(AND(AD72=0),MIN($I$3,AJ72+AK72+(AG72)*(((1+$E$3)^(AA72+AC72))+($G$3*(AA72+AC72)))),AD72) -> 0 | AG72: =IF(AND(IF(AD72<>0,I72,AG71-AE71+AI71+AJ71)<0.05,IF(AD72<>0,I72,AG71-AE71+AI71+AJ71+AK71)>-0.05),0,IF(AD72<>0,I72,AG71-AE71+AI71+AJ71+AK71)) -> 0 | AH72: 0 | AI72: 0 | AJ72: =IF($BA72=SIMULADOR!$H$28,0,IF(OR(BO71=1,AND(AD72<>0,BO72=0)),L72,IF(AND(AC72+AD72>0,ABS(AG71-AH71)>0.01),L72,0))) -> 0 | AK72: 0 | AM72: =+AG72+AH71-AG71 -> 0 | AN72: 0 | AP72: 0 | AQ72: 0 | AS72: 0 | AX72: 0 | AZ72: 67 | BA72: =+BA71+IF(SIMULADOR!$H$28<>"",AA72+AC72,G72) -> 2028-12-23 | BB72: =+IF(SUM(AE$6:AE72)=0,I72,IF($BB$1=$BE$1,AG72,AT72)) ->  | BC72: =+IF(SUM(AE$6:AE72)=0,L72,IF($BB$1=$BE$1,AJ72,AW72)) -> 0 | BD72: 0 | BE72: =+IF(SUM(AE$6:AE72)=0,0,IF($BB$1=$BE$1,AD72,AS72)) -> 0 | BF72: =+IF(SUM(AE$6:AE72)=0,J72,IF($BB$1=$BE$1,AH72,AU72)) ->  | BG72: =+IF(SUM(AE$6:AE72)=0,K72,IF($BB$1=$BE$1,AI72,AV72)) ->  | BI72: =+SIMULADOR!K111 -> 0 | BJ72: 0 | BM72: 0 | BO72: 0 | BP72: 1 | BQ72: =+BP72+BQ71 -> 21 | BR72: 67 | BU72: 2028-12-23
A73: 2029-01-23 | B73: =+IF(AND(SIMULADOR!$D$18=31,DAY(EOMONTH(A73,1))<>31),DATE(YEAR(A73),MONTH(A73)+1,DAY(EOMONTH(A73,1))),IF(MONTH(EDATE(A73,1))=2,EDATE(A73,1),DATE(YEAR(EDATE(A73,1)),MONTH(EDATE(A73,1)),SIMULADOR!$D$18))) -> 2029-02-23 | D73: 68 | E73: 2072 | F73: 0.3469927322 | G73: 31 | H73: =IF(D73<=SIMULADOR!$D$17,ROUND($H$6,2),"") ->  | I73: =IF(D73<=SIMULADOR!$D$17+1,I72-J72,"") ->  | J73: =IF(D73<=SIMULADOR!$D$17,H73-L73-K73-M73,"") ->  | L73: =IF(D73>SIMULADOR!$D$17,0,IF(AND(D73<=SIMULADOR!$D$17,I73<=SIMULADOR!$D$13),ROUND(I73*$F$1,2),IF(I73>SIMULADOR!$D$13,SIMULADOR!$D$13*Calculos!$F$1,""))) -> 0 | M73: =IF(Calculos!D73<=SIMULADOR!$D$17,Calculos!$M$4,"") ->  | N73: =IF(D73<=SIMULADOR!$D$17,ROUND(I73*((1+$E$3)^G73-1),2),"") ->  | P73: =+IF(D73<=SIMULADOR!$D$17,SIMULADOR!Q111,"") ->  | AA73: 31 | AB73: =+IF(OR(Calculos!B71-SIMULADOR!$H$28<0,SIMULADOR!$H$28=0),0,Calculos!B71-SIMULADOR!$H$28) -> 0 | AC73: =+AB73-AB72 -> 0 | AD73: =+IF(AND(AB74<>0,AB73=0),SIMULADOR!$H$29,0) -> 0 | AE73: 0 | AG73: 0 | AH73: 0 | AI73: 0 | AJ73: =IF($BA73=SIMULADOR!$H$28,0,IF(OR(BO72=1,AND(AD73<>0,BO73=0)),L73,IF(AND(AC73+AD73>0,ABS(AG72-AH72)>0.01),L73,0))) -> 0 | AK73: 0 | AM73: 0 | AN73: 0 | AP73: 0 | AQ73: 0 | AS73: 0 | AX73: 0 | AZ73: 68 | BA73: =+BA72+IF(SIMULADOR!$H$28<>"",AA73+AC73,G73) -> 2029-01-23 | BB73: =+IF(SUM(AE$6:AE73)=0,I73,IF($BB$1=$BE$1,AG73,AT73)) ->  | BC73: =+IF(SUM(AE$6:AE73)=0,L73,IF($BB$1=$BE$1,AJ73,AW73)) -> 0 | BD73: 0 | BE73: =+IF(SUM(AE$6:AE73)=0,0,IF($BB$1=$BE$1,AD73,AS73)) -> 0 | BF73: =+IF(SUM(AE$6:AE73)=0,J73,IF($BB$1=$BE$1,AH73,AU73)) ->  | BG73: =+IF(SUM(AE$6:AE73)=0,K73,IF($BB$1=$BE$1,AI73,AV73)) ->  | BI73: =+SIMULADOR!K112 -> 0 | BJ73: 0 | BM73: 0 | BO73: 0 | BP73: 1 | BQ73: 22 | BR73: 68 | BU73: 2029-01-23
A74: 2029-02-23 | B74: =+IF(AND(SIMULADOR!$D$18=31,DAY(EOMONTH(A74,1))<>31),DATE(YEAR(A74),MONTH(A74)+1,DAY(EOMONTH(A74,1))),IF(MONTH(EDATE(A74,1))=2,EDATE(A74,1),DATE(YEAR(EDATE(A74,1)),MONTH(EDATE(A74,1)),SIMULADOR!$D$18))) -> 2029-03-23 | D74: 69 | E74: 2103 | F74: 0.3415410682 | G74: 31 | H74: =IF(D74<=SIMULADOR!$D$17,ROUND($H$6,2),"") ->  | I74: =IF(D74<=SIMULADOR!$D$17+1,I73-J73,"") ->  | J74: =IF(D74<=SIMULADOR!$D$17,H74-L74-K74-M74,"") ->  | L74: =IF(D74>SIMULADOR!$D$17,0,IF(AND(D74<=SIMULADOR!$D$17,I74<=SIMULADOR!$D$13),ROUND(I74*$F$1,2),IF(I74>SIMULADOR!$D$13,SIMULADOR!$D$13*Calculos!$F$1,""))) -> 0 | M74: =IF(Calculos!D74<=SIMULADOR!$D$17,Calculos!$M$4,"") ->  | N74: =IF(D74<=SIMULADOR!$D$17,ROUND(I74*((1+$E$3)^G74-1),2),"") ->  | P74: =+IF(D74<=SIMULADOR!$D$17,SIMULADOR!Q112,"") ->  | AA74: 31 | AB74: =+IF(OR(Calculos!B72-SIMULADOR!$H$28<0,SIMULADOR!$H$28=0),0,Calculos!B72-SIMULADOR!$H$28) -> 0 | AC74: 0 | AD74: =+IF(AND(AB75<>0,AB74=0),SIMULADOR!$H$29,0) -> 0 | AE74: 0 | AG74: 0 | AH74: =+IF(ABS(AE74-AI74-AJ74-AK74)<0.01,0,AE74-AI74-AJ74-AK74) -> 0 | AI74: 0 | AJ74: =IF($BA74=SIMULADOR!$H$28,0,IF(OR(BO73=1,AND(AD74<>0,BO74=0)),L74,IF(AND(AC74+AD74>0,ABS(AG73-AH73)>0.01),L74,0))) -> 0 | AK74: 0 | AM74: 0 | AN74: 0 | AP74: =+IF(AND(AQ73=0,AQ74<>0),1,0) -> 0 | AQ74: 0 | AS74: 0 | AX74: 0 | AZ74: 69 | BA74: =+BA73+IF(SIMULADOR!$H$28<>"",AA74+AC74,G74) -> 2029-02-23 | BB74: =+IF(SUM(AE$6:AE74)=0,I74,IF($BB$1=$BE$1,AG74,AT74)) ->  | BC74: =+IF(SUM(AE$6:AE74)=0,L74,IF($BB$1=$BE$1,AJ74,AW74)) -> 0 | BD74: 0 | BE74: =+IF(SUM(AE$6:AE74)=0,0,IF($BB$1=$BE$1,AD74,AS74)) -> 0 | BF74: =+IF(SUM(AE$6:AE74)=0,J74,IF($BB$1=$BE$1,AH74,AU74)) ->  | BG74: =+IF(SUM(AE$6:AE74)=0,K74,IF($BB$1=$BE$1,AI74,AV74)) ->  | BI74: =+SIMULADOR!K113 -> 0 | BJ74: 0 | BM74: 0 | BO74: 0 | BP74: 1 | BQ74: 23 | BR74: 69 | BU74: 2029-02-23
A75: 2029-03-23 | B75: =+IF(AND(SIMULADOR!$D$18=31,DAY(EOMONTH(A75,1))<>31),DATE(YEAR(A75),MONTH(A75)+1,DAY(EOMONTH(A75,1))),IF(MONTH(EDATE(A75,1))=2,EDATE(A75,1),DATE(YEAR(EDATE(A75,1)),MONTH(EDATE(A75,1)),SIMULADOR!$D$18))) -> 2029-04-23 | D75: 70 | E75: 2131 | F75: 0.3366906419 | G75: 28 | H75: =IF(D75<=SIMULADOR!$D$17,ROUND($H$6,2),"") ->  | I75: =IF(D75<=SIMULADOR!$D$17+1,I74-J74,"") ->  | J75: =IF(D75<=SIMULADOR!$D$17,H75-L75-K75-M75,"") ->  | L75: =IF(D75>SIMULADOR!$D$17,0,IF(AND(D75<=SIMULADOR!$D$17,I75<=SIMULADOR!$D$13),ROUND(I75*$F$1,2),IF(I75>SIMULADOR!$D$13,SIMULADOR!$D$13*Calculos!$F$1,""))) -> 0 | M75: =IF(Calculos!D75<=SIMULADOR!$D$17,Calculos!$M$4,"") ->  | N75: =IF(D75<=SIMULADOR!$D$17,ROUND(I75*((1+$E$3)^G75-1),2),"") ->  | P75: =+IF(D75<=SIMULADOR!$D$17,SIMULADOR!Q113,"") ->  | AA75: 28 | AB75: =+IF(OR(Calculos!B73-SIMULADOR!$H$28<0,SIMULADOR!$H$28=0),0,Calculos!B73-SIMULADOR!$H$28) -> 0 | AC75: 0 | AD75: =+IF(AND(AB76<>0,AB75=0),SIMULADOR!$H$29,0) -> 0 | AE75: 0 | AG75: 0 | AH75: 0 | AI75: 0 | AJ75: =IF($BA75=SIMULADOR!$H$28,0,IF(OR(BO74=1,AND(AD75<>0,BO75=0)),L75,IF(AND(AC75+AD75>0,ABS(AG74-AH74)>0.01),L75,0))) -> 0 | AK75: 0 | AM75: 0 | AN75: 0 | AP75: 0 | AQ75: 0 | AS75: 0 | AX75: 0 | AZ75: 70 | BA75: =+BA74+IF(SIMULADOR!$H$28<>"",AA75+AC75,G75) -> 2029-03-23 | BB75: =+IF(SUM(AE$6:AE75)=0,I75,IF($BB$1=$BE$1,AG75,AT75)) ->  | BC75: =+IF(SUM(AE$6:AE75)=0,L75,IF($BB$1=$BE$1,AJ75,AW75)) -> 0 | BD75: 0 | BE75: =+IF(SUM(AE$6:AE75)=0,0,IF($BB$1=$BE$1,AD75,AS75)) -> 0 | BF75: =+IF(SUM(AE$6:AE75)=0,J75,IF($BB$1=$BE$1,AH75,AU75)) ->  | BG75: =+IF(SUM(AE$6:AE75)=0,K75,IF($BB$1=$BE$1,AI75,AV75)) ->  | BI75: =+SIMULADOR!K114 -> 0 | BJ75: 0 | BM75: 0 | BO75: 0 | BP75: 1 | BQ75: 24 | BR75: 70 | BU75: 2029-03-23
A76: 2029-04-23 | B76: =+IF(AND(SIMULADOR!$D$18=31,DAY(EOMONTH(A76,1))<>31),DATE(YEAR(A76),MONTH(A76)+1,DAY(EOMONTH(A76,1))),IF(MONTH(EDATE(A76,1))=2,EDATE(A76,1),DATE(YEAR(EDATE(A76,1)),MONTH(EDATE(A76,1)),SIMULADOR!$D$18))) -> 2029-05-23 | D76: 71 | E76: 2162 | F76: 0.3314008359 | G76: 31 | H76: =IF(D76<=SIMULADOR!$D$17,ROUND($H$6,2),"") ->  | I76: =IF(D76<=SIMULADOR!$D$17+1,I75-J75,"") ->  | J76: =IF(D76<=SIMULADOR!$D$17,H76-L76-K76-M76,"") ->  | L76: =IF(D76>SIMULADOR!$D$17,0,IF(AND(D76<=SIMULADOR!$D$17,I76<=SIMULADOR!$D$13),ROUND(I76*$F$1,2),IF(I76>SIMULADOR!$D$13,SIMULADOR!$D$13*Calculos!$F$1,""))) -> 0 | M76: =IF(Calculos!D76<=SIMULADOR!$D$17,Calculos!$M$4,"") ->  | N76: =IF(D76<=SIMULADOR!$D$17,ROUND(I76*((1+$E$3)^G76-1),2),"") ->  | P76: =+IF(D76<=SIMULADOR!$D$17,SIMULADOR!Q114,"") ->  | AA76: 31 | AB76: =+IF(OR(Calculos!B74-SIMULADOR!$H$28<0,SIMULADOR!$H$28=0),0,Calculos!B74-SIMULADOR!$H$28) -> 0 | AC76: 0 | AD76: =+IF(AND(AB77<>0,AB76=0),SIMULADOR!$H$29,0) -> 0 | AE76: 0 | AG76: 0 | AH76: 0 | AI76: 0 | AJ76: =IF($BA76=SIMULADOR!$H$28,0,IF(OR(BO75=1,AND(AD76<>0,BO76=0)),L76,IF(AND(AC76+AD76>0,ABS(AG75-AH75)>0.01),L76,0))) -> 0 | AK76: 0 | AM76: 0 | AN76: 0 | AP76: 0 | AQ76: 0 | AS76: 0 | AX76: 0 | AZ76: 71 | BA76: =+BA75+IF(SIMULADOR!$H$28<>"",AA76+AC76,G76) -> 2029-04-23 | BB76: =+IF(SUM(AE$6:AE76)=0,I76,IF($BB$1=$BE$1,AG76,AT76)) ->  | BC76: =+IF(SUM(AE$6:AE76)=0,L76,IF($BB$1=$BE$1,AJ76,AW76)) -> 0 | BD76: 0 | BE76: =+IF(SUM(AE$6:AE76)=0,0,IF($BB$1=$BE$1,AD76,AS76)) -> 0 | BF76: =+IF(SUM(AE$6:AE76)=0,J76,IF($BB$1=$BE$1,AH76,AU76)) ->  | BG76: =+IF(SUM(AE$6:AE76)=0,K76,IF($BB$1=$BE$1,AI76,AV76)) ->  | BI76: =+SIMULADOR!K115 -> 0 | BJ76: 0 | BM76: 0 | BO76: 0 | BP76: 1 | BQ76: 25 | BR76: 71 | BU76: 2029-04-23
A77: 2029-05-23 | B77: =+IF(AND(SIMULADOR!$D$18=31,DAY(EOMONTH(A77,1))<>31),DATE(YEAR(A77),MONTH(A77)+1,DAY(EOMONTH(A77,1))),IF(MONTH(EDATE(A77,1))=2,EDATE(A77,1),DATE(YEAR(EDATE(A77,1)),MONTH(EDATE(A77,1)),SIMULADOR!$D$18))) -> 2029-06-23 | D77: 72 | E77: 2192 | F77: 0.3263608132 | G77: 30 | H77: =IF(D77<=SIMULADOR!$D$17,ROUND($H$6,2),"") ->  | I77: =IF(D77<=SIMULADOR!$D$17+1,I76-J76,"") ->  | J77: =IF(D77<=SIMULADOR!$D$17,H77-L77-K77-M77,"") ->  | L77: =IF(D77>SIMULADOR!$D$17,0,IF(AND(D77<=SIMULADOR!$D$17,I77<=SIMULADOR!$D$13),ROUND(I77*$F$1,2),IF(I77>SIMULADOR!$D$13,SIMULADOR!$D$13*Calculos!$F$1,""))) -> 0 | M77: =IF(Calculos!D77<=SIMULADOR!$D$17,Calculos!$M$4,"") ->  | N77: =IF(D77<=SIMULADOR!$D$17,ROUND(I77*((1+$E$3)^G77-1),2),"") ->  | P77: =+IF(D77<=SIMULADOR!$D$17,SIMULADOR!Q115,"") ->  | AA77: 30 | AB77: =+IF(OR(Calculos!B75-SIMULADOR!$H$28<0,SIMULADOR!$H$28=0),0,Calculos!B75-SIMULADOR!$H$28) -> 0 | AC77: 0 | AD77: =+IF(AND(AB78<>0,AB77=0),SIMULADOR!$H$29,0) -> 0 | AE77: 0 | AG77: 0 | AH77: 0 | AI77: 0 | AJ77: =IF($BA77=SIMULADOR!$H$28,0,IF(OR(BO76=1,AND(AD77<>0,BO77=0)),L77,IF(AND(AC77+AD77>0,ABS(AG76-AH76)>0.01),L77,0))) -> 0 | AK77: 0 | AM77: 0 | AN77: 0 | AP77: 0 | AQ77: 0 | AS77: 0 | AX77: 0 | AZ77: 72 | BA77: =+BA76+IF(SIMULADOR!$H$28<>"",AA77+AC77,G77) -> 2029-05-23 | BB77: =+IF(SUM(AE$6:AE77)=0,I77,IF($BB$1=$BE$1,AG77,AT77)) ->  | BC77: =+IF(SUM(AE$6:AE77)=0,L77,IF($BB$1=$BE$1,AJ77,AW77)) -> 0 | BD77: 0 | BE77: =+IF(SUM(AE$6:AE77)=0,0,IF($BB$1=$BE$1,AD77,AS77)) -> 0 | BF77: =+IF(SUM(AE$6:AE77)=0,J77,IF($BB$1=$BE$1,AH77,AU77)) ->  | BG77: =+IF(SUM(AE$6:AE77)=0,K77,IF($BB$1=$BE$1,AI77,AV77)) ->  | BI77: =+SIMULADOR!K116 -> 0 | BJ77: 0 | BM77: 0 | BO77: 0 | BP77: 1 | BQ77: 26 | BR77: 72 | BU77: 2029-05-23
A78: 2029-06-23 | B78: =+IF(AND(SIMULADOR!$D$18=31,DAY(EOMONTH(A78,1))<>31),DATE(YEAR(A78),MONTH(A78)+1,DAY(EOMONTH(A78,1))),IF(MONTH(EDATE(A78,1))=2,EDATE(A78,1),DATE(YEAR(EDATE(A78,1)),MONTH(EDATE(A78,1)),SIMULADOR!$D$18))) -> 2029-07-23 | D78: 73 | E78: 2223 | F78: 0.321233301 | G78: 31 | H78: =IF(D78<=SIMULADOR!$D$17,ROUND($H$6,2),"") ->  | I78: =IF(D78<=SIMULADOR!$D$17+1,I77-J77,"") ->  | J78: =IF(D78<=SIMULADOR!$D$17,H78-L78-K78-M78,"") ->  | L78: =IF(D78>SIMULADOR!$D$17,0,IF(AND(D78<=SIMULADOR!$D$17,I78<=SIMULADOR!$D$13),ROUND(I78*$F$1,2),IF(I78>SIMULADOR!$D$13,SIMULADOR!$D$13*Calculos!$F$1,""))) -> 0 | M78: =IF(Calculos!D78<=SIMULADOR!$D$17,Calculos!$M$4,"") ->  | N78: =IF(D78<=SIMULADOR!$D$17,ROUND(I78*((1+$E$3)^G78-1),2),"") ->  | P78: =+IF(D78<=SIMULADOR!$D$17,SIMULADOR!Q116,"") ->  | AA78: 31 | AB78: =+IF(OR(Calculos!B76-SIMULADOR!$H$28<0,SIMULADOR!$H$28=0),0,Calculos!B76-SIMULADOR!$H$28) -> 0 | AC78: 0 | AD78: =+IF(AND(AB79<>0,AB78=0),SIMULADOR!$H$29,0) -> 0 | AE78: 0 | AG78: 0 | AH78: 0 | AI78: 0 | AJ78: =IF($BA78=SIMULADOR!$H$28,0,IF(OR(BO77=1,AND(AD78<>0,BO78=0)),L78,IF(AND(AC78+AD78>0,ABS(AG77-AH77)>0.01),L78,0))) -> 0 | AK78: 0 | AM78: 0 | AN78: 0 | AP78: 0 | AQ78: 0 | AS78: 0 | AX78: 0 | AZ78: 73 | BA78: =+BA77+IF(SIMULADOR!$H$28<>"",AA78+AC78,G78) -> 2029-06-23 | BB78: =+IF(SUM(AE$6:AE78)=0,I78,IF($BB$1=$BE$1,AG78,AT78)) ->  | BC78: =+IF(SUM(AE$6:AE78)=0,L78,IF($BB$1=$BE$1,AJ78,AW78)) -> 0 | BD78: 0 | BE78: =+IF(SUM(AE$6:AE78)=0,0,IF($BB$1=$BE$1,AD78,AS78)) -> 0 | BF78: =+IF(SUM(AE$6:AE78)=0,J78,IF($BB$1=$BE$1,AH78,AU78)) ->  | BG78: =+IF(SUM(AE$6:AE78)=0,K78,IF($BB$1=$BE$1,AI78,AV78)) ->  | BI78: =+SIMULADOR!K117 -> 0 | BJ78: 0 | BM78: 0 | BO78: 0 | BP78: 1 | BQ78: 27 | BR78: 73 | BU78: 2029-06-23
A79: 2029-07-23 | B79: =+IF(AND(SIMULADOR!$D$18=31,DAY(EOMONTH(A79,1))<>31),DATE(YEAR(A79),MONTH(A79)+1,DAY(EOMONTH(A79,1))),IF(MONTH(EDATE(A79,1))=2,EDATE(A79,1),DATE(YEAR(EDATE(A79,1)),MONTH(EDATE(A79,1)),SIMULADOR!$D$18))) -> 2029-08-23 | D79: 74 | E79: 2253 | F79: 0.3163479085 | G79: 30 | H79: =IF(D79<=SIMULADOR!$D$17,ROUND($H$6,2),"") ->  | I79: =IF(D79<=SIMULADOR!$D$17+1,I78-J78,"") ->  | J79: =IF(D79<=SIMULADOR!$D$17,H79-L79-K79-M79,"") ->  | L79: =IF(D79>SIMULADOR!$D$17,0,IF(AND(D79<=SIMULADOR!$D$17,I79<=SIMULADOR!$D$13),ROUND(I79*$F$1,2),IF(I79>SIMULADOR!$D$13,SIMULADOR!$D$13*Calculos!$F$1,""))) -> 0 | M79: =IF(Calculos!D79<=SIMULADOR!$D$17,Calculos!$M$4,"") ->  | N79: =IF(D79<=SIMULADOR!$D$17,ROUND(I79*((1+$E$3)^G79-1),2),"") ->  | P79: =+IF(D79<=SIMULADOR!$D$17,SIMULADOR!Q117,"") ->  | AA79: 30 | AB79: =+IF(OR(Calculos!B77-SIMULADOR!$H$28<0,SIMULADOR!$H$28=0),0,Calculos!B77-SIMULADOR!$H$28) -> 0 | AC79: 0 | AD79: =+IF(AND(AB80<>0,AB79=0),SIMULADOR!$H$29,0) -> 0 | AE79: 0 | AG79: 0 | AH79: 0 | AI79: 0 | AJ79: =IF($BA79=SIMULADOR!$H$28,0,IF(OR(BO78=1,AND(AD79<>0,BO79=0)),L79,IF(AND(AC79+AD79>0,ABS(AG78-AH78)>0.01),L79,0))) -> 0 | AK79: 0 | AM79: 0 | AN79: 0 | AP79: 0 | AQ79: 0 | AS79: 0 | AX79: 0 | AZ79: 74 | BA79: =+BA78+IF(SIMULADOR!$H$28<>"",AA79+AC79,G79) -> 2029-07-23 | BB79: =+IF(SUM(AE$6:AE79)=0,I79,IF($BB$1=$BE$1,AG79,AT79)) ->  | BC79: =+IF(SUM(AE$6:AE79)=0,L79,IF($BB$1=$BE$1,AJ79,AW79)) -> 0 | BD79: 0 | BE79: =+IF(SUM(AE$6:AE79)=0,0,IF($BB$1=$BE$1,AD79,AS79)) -> 0 | BF79: =+IF(SUM(AE$6:AE79)=0,J79,IF($BB$1=$BE$1,AH79,AU79)) ->  | BG79: =+IF(SUM(AE$6:AE79)=0,K79,IF($BB$1=$BE$1,AI79,AV79)) ->  | BI79: =+SIMULADOR!K118 -> 0 | BJ79: 0 | BM79: 0 | BO79: 0 | BP79: 1 | BQ79: 28 | BR79: 74 | BU79: 2029-07-23
A80: 2029-08-23 | B80: =+IF(AND(SIMULADOR!$D$18=31,DAY(EOMONTH(A80,1))<>31),DATE(YEAR(A80),MONTH(A80)+1,DAY(EOMONTH(A80,1))),IF(MONTH(EDATE(A80,1))=2,EDATE(A80,1),DATE(YEAR(EDATE(A80,1)),MONTH(EDATE(A80,1)),SIMULADOR!$D$18))) -> 2029-09-23 | D80: 75 | E80: 2284 | F80: 0.3113777108 | G80: 31 | H80: =IF(D80<=SIMULADOR!$D$17,ROUND($H$6,2),"") ->  | I80: =IF(D80<=SIMULADOR!$D$17+1,I79-J79,"") ->  | J80: =IF(D80<=SIMULADOR!$D$17,H80-L80-K80-M80,"") ->  | L80: =IF(D80>SIMULADOR!$D$17,0,IF(AND(D80<=SIMULADOR!$D$17,I80<=SIMULADOR!$D$13),ROUND(I80*$F$1,2),IF(I80>SIMULADOR!$D$13,SIMULADOR!$D$13*Calculos!$F$1,""))) -> 0 | M80: =IF(Calculos!D80<=SIMULADOR!$D$17,Calculos!$M$4,"") ->  | N80: =IF(D80<=SIMULADOR!$D$17,ROUND(I80*((1+$E$3)^G80-1),2),"") ->  | P80: =+IF(D80<=SIMULADOR!$D$17,SIMULADOR!Q118,"") ->  | AA80: 31 | AB80: =+IF(OR(Calculos!B78-SIMULADOR!$H$28<0,SIMULADOR!$H$28=0),0,Calculos!B78-SIMULADOR!$H$28) -> 0 | AC80: 0 | AD80: =+IF(AND(AB81<>0,AB80=0),SIMULADOR!$H$29,0) -> 0 | AE80: 0 | AG80: 0 | AH80: 0 | AI80: 0 | AJ80: =IF($BA80=SIMULADOR!$H$28,0,IF(OR(BO79=1,AND(AD80<>0,BO80=0)),L80,IF(AND(AC80+AD80>0,ABS(AG79-AH79)>0.01),L80,0))) -> 0 | AK80: 0 | AM80: 0 | AN80: 0 | AP80: 0 | AQ80: 0 | AS80: 0 | AX80: 0 | AZ80: 75 | BA80: =+BA79+IF(SIMULADOR!$H$28<>"",AA80+AC80,G80) -> 2029-08-23 | BB80: =+IF(SUM(AE$6:AE80)=0,I80,IF($BB$1=$BE$1,AG80,AT80)) ->  | BC80: =+IF(SUM(AE$6:AE80)=0,L80,IF($BB$1=$BE$1,AJ80,AW80)) -> 0 | BD80: 0 | BE80: =+IF(SUM(AE$6:AE80)=0,0,IF($BB$1=$BE$1,AD80,AS80)) -> 0 | BF80: =+IF(SUM(AE$6:AE80)=0,J80,IF($BB$1=$BE$1,AH80,AU80)) ->  | BG80: =+IF(SUM(AE$6:AE80)=0,K80,IF($BB$1=$BE$1,AI80,AV80)) ->  | BI80: =+SIMULADOR!K119 -> 0 | BJ80: 0 | BM80: 0 | BO80: 0 | BP80: 1 | BQ80: 29 | BR80: 75 | BU80: 2029-08-23
A81: 2029-09-23 | B81: =+IF(AND(SIMULADOR!$D$18=31,DAY(EOMONTH(A81,1))<>31),DATE(YEAR(A81),MONTH(A81)+1,DAY(EOMONTH(A81,1))),IF(MONTH(EDATE(A81,1))=2,EDATE(A81,1),DATE(YEAR(EDATE(A81,1)),MONTH(EDATE(A81,1)),SIMULADOR!$D$18))) -> 2029-10-23 | D81: 76 | E81: 2315 | F81: 0.3064856008 | G81: 31 | H81: =IF(D81<=SIMULADOR!$D$17,ROUND($H$6,2),"") ->  | I81: =IF(D81<=SIMULADOR!$D$17+1,I80-J80,"") ->  | J81: =IF(D81<=SIMULADOR!$D$17,H81-L81-K81-M81,"") ->  | L81: =IF(D81>SIMULADOR!$D$17,0,IF(AND(D81<=SIMULADOR!$D$17,I81<=SIMULADOR!$D$13),ROUND(I81*$F$1,2),IF(I81>SIMULADOR!$D$13,SIMULADOR!$D$13*Calculos!$F$1,""))) -> 0 | M81: =IF(Calculos!D81<=SIMULADOR!$D$17,Calculos!$M$4,"") ->  | N81: =IF(D81<=SIMULADOR!$D$17,ROUND(I81*((1+$E$3)^G81-1),2),"") ->  | P81: =+IF(D81<=SIMULADOR!$D$17,SIMULADOR!Q119,"") ->  | AA81: 31 | AB81: =+IF(OR(Calculos!B79-SIMULADOR!$H$28<0,SIMULADOR!$H$28=0),0,Calculos!B79-SIMULADOR!$H$28) -> 0 | AC81: 0 | AD81: =+IF(AND(AB82<>0,AB81=0),SIMULADOR!$H$29,0) -> 0 | AE81: 0 | AG81: 0 | AH81: 0 | AI81: 0 | AJ81: =IF($BA81=SIMULADOR!$H$28,0,IF(OR(BO80=1,AND(AD81<>0,BO81=0)),L81,IF(AND(AC81+AD81>0,ABS(AG80-AH80)>0.01),L81,0))) -> 0 | AK81: 0 | AM81: 0 | AN81: 0 | AP81: 0 | AQ81: 0 | AS81: 0 | AX81: 0 | AZ81: 76 | BA81: =+BA80+IF(SIMULADOR!$H$28<>"",AA81+AC81,G81) -> 2029-09-23 | BB81: =+IF(SUM(AE$6:AE81)=0,I81,IF($BB$1=$BE$1,AG81,AT81)) ->  | BC81: =+IF(SUM(AE$6:AE81)=0,L81,IF($BB$1=$BE$1,AJ81,AW81)) -> 0 | BD81: 0 | BE81: =+IF(SUM(AE$6:AE81)=0,0,IF($BB$1=$BE$1,AD81,AS81)) -> 0 | BF81: =+IF(SUM(AE$6:AE81)=0,J81,IF($BB$1=$BE$1,AH81,AU81)) ->  | BG81: =+IF(SUM(AE$6:AE81)=0,K81,IF($BB$1=$BE$1,AI81,AV81)) ->  | BI81: =+SIMULADOR!K120 -> 0 | BJ81: 0 | BM81: 0 | BO81: 0 | BP81: 1 | BQ81: 30 | BR81: 76 | BU81: 2029-09-23
A82: 2029-10-23 | B82: =+IF(AND(SIMULADOR!$D$18=31,DAY(EOMONTH(A82,1))<>31),DATE(YEAR(A82),MONTH(A82)+1,DAY(EOMONTH(A82,1))),IF(MONTH(EDATE(A82,1))=2,EDATE(A82,1),DATE(YEAR(EDATE(A82,1)),MONTH(EDATE(A82,1)),SIMULADOR!$D$18))) -> 2029-11-23 | D82: 77 | E82: 2345 | F82: 0.3018244948 | G82: 30 | H82: =IF(D82<=SIMULADOR!$D$17,ROUND($H$6,2),"") ->  | I82: =IF(D82<=SIMULADOR!$D$17+1,I81-J81,"") ->  | J82: =IF(D82<=SIMULADOR!$D$17,H82-L82-K82-M82,"") ->  | L82: =IF(D82>SIMULADOR!$D$17,0,IF(AND(D82<=SIMULADOR!$D$17,I82<=SIMULADOR!$D$13),ROUND(I82*$F$1,2),IF(I82>SIMULADOR!$D$13,SIMULADOR!$D$13*Calculos!$F$1,""))) -> 0 | M82: =IF(Calculos!D82<=SIMULADOR!$D$17,Calculos!$M$4,"") ->  | N82: =IF(D82<=SIMULADOR!$D$17,ROUND(I82*((1+$E$3)^G82-1),2),"") ->  | P82: =+IF(D82<=SIMULADOR!$D$17,SIMULADOR!Q120,"") ->  | AA82: 30 | AB82: =+IF(OR(Calculos!B80-SIMULADOR!$H$28<0,SIMULADOR!$H$28=0),0,Calculos!B80-SIMULADOR!$H$28) -> 0 | AC82: 0 | AD82: =+IF(AND(AB83<>0,AB82=0),SIMULADOR!$H$29,0) -> 0 | AE82: 0 | AG82: 0 | AH82: 0 | AI82: 0 | AJ82: =IF($BA82=SIMULADOR!$H$28,0,IF(OR(BO81=1,AND(AD82<>0,BO82=0)),L82,IF(AND(AC82+AD82>0,ABS(AG81-AH81)>0.01),L82,0))) -> 0 | AK82: 0 | AM82: 0 | AN82: 0 | AP82: 0 | AQ82: 0 | AS82: 0 | AX82: 0 | AZ82: 77 | BA82: =+BA81+IF(SIMULADOR!$H$28<>"",AA82+AC82,G82) -> 2029-10-23 | BB82: =+IF(SUM(AE$6:AE82)=0,I82,IF($BB$1=$BE$1,AG82,AT82)) ->  | BC82: =+IF(SUM(AE$6:AE82)=0,L82,IF($BB$1=$BE$1,AJ82,AW82)) -> 0 | BD82: 0 | BE82: =+IF(SUM(AE$6:AE82)=0,0,IF($BB$1=$BE$1,AD82,AS82)) -> 0 | BF82: =+IF(SUM(AE$6:AE82)=0,J82,IF($BB$1=$BE$1,AH82,AU82)) ->  | BG82: =+IF(SUM(AE$6:AE82)=0,K82,IF($BB$1=$BE$1,AI82,AV82)) ->  | BI82: =+SIMULADOR!K121 -> 0 | BJ82: 0 | BM82: 0 | BO82: 0 | BP82: 1 | BQ82: 31 | BR82: 77 | BU82: 2029-10-23
A83: 2029-11-23 | B83: =+IF(AND(SIMULADOR!$D$18=31,DAY(EOMONTH(A83,1))<>31),DATE(YEAR(A83),MONTH(A83)+1,DAY(EOMONTH(A83,1))),IF(MONTH(EDATE(A83,1))=2,EDATE(A83,1),DATE(YEAR(EDATE(A83,1)),MONTH(EDATE(A83,1)),SIMULADOR!$D$18))) -> 2029-12-23 | D83: 78 | E83: 2376 | F83: 0.297082477 | G83: 31 | H83: =IF(D83<=SIMULADOR!$D$17,ROUND($H$6,2),"") ->  | I83: =IF(D83<=SIMULADOR!$D$17+1,I82-J82,"") ->  | J83: =IF(D83<=SIMULADOR!$D$17,H83-L83-K83-M83,"") ->  | L83: =IF(D83>SIMULADOR!$D$17,0,IF(AND(D83<=SIMULADOR!$D$17,I83<=SIMULADOR!$D$13),ROUND(I83*$F$1,2),IF(I83>SIMULADOR!$D$13,SIMULADOR!$D$13*Calculos!$F$1,""))) -> 0 | M83: =IF(Calculos!D83<=SIMULADOR!$D$17,Calculos!$M$4,"") ->  | N83: =IF(D83<=SIMULADOR!$D$17,ROUND(I83*((1+$E$3)^G83-1),2),"") ->  | P83: =+IF(D83<=SIMULADOR!$D$17,SIMULADOR!Q121,"") ->  | AA83: 31 | AB83: =+IF(OR(Calculos!B81-SIMULADOR!$H$28<0,SIMULADOR!$H$28=0),0,Calculos!B81-SIMULADOR!$H$28) -> 0 | AC83: 0 | AD83: =+IF(AND(AB84<>0,AB83=0),SIMULADOR!$H$29,0) -> 0 | AE83: 0 | AG83: 0 | AH83: 0 | AI83: 0 | AJ83: =IF($BA83=SIMULADOR!$H$28,0,IF(OR(BO82=1,AND(AD83<>0,BO83=0)),L83,IF(AND(AC83+AD83>0,ABS(AG82-AH82)>0.01),L83,0))) -> 0 | AK83: 0 | AM83: 0 | AN83: 0 | AP83: 0 | AQ83: 0 | AS83: 0 | AX83: 0 | AZ83: 78 | BA83: =+BA82+IF(SIMULADOR!$H$28<>"",AA83+AC83,G83) -> 2029-11-23 | BB83: =+IF(SUM(AE$6:AE83)=0,I83,IF($BB$1=$BE$1,AG83,AT83)) ->  | BC83: =+IF(SUM(AE$6:AE83)=0,L83,IF($BB$1=$BE$1,AJ83,AW83)) -> 0 | BD83: 0 | BE83: =+IF(SUM(AE$6:AE83)=0,0,IF($BB$1=$BE$1,AD83,AS83)) -> 0 | BF83: =+IF(SUM(AE$6:AE83)=0,J83,IF($BB$1=$BE$1,AH83,AU83)) ->  | BG83: =+IF(SUM(AE$6:AE83)=0,K83,IF($BB$1=$BE$1,AI83,AV83)) ->  | BI83: =+SIMULADOR!K122 -> 0 | BJ83: 0 | BM83: 0 | BO83: 0 | BP83: 1 | BQ83: 32 | BR83: 78 | BU83: 2029-11-23
A84: 2029-12-23 | B84: =+IF(AND(SIMULADOR!$D$18=31,DAY(EOMONTH(A84,1))<>31),DATE(YEAR(A84),MONTH(A84)+1,DAY(EOMONTH(A84,1))),IF(MONTH(EDATE(A84,1))=2,EDATE(A84,1),DATE(YEAR(EDATE(A84,1)),MONTH(EDATE(A84,1)),SIMULADOR!$D$18))) -> 2030-01-23 | D84: 79 | E84: 2406 | F84: 0.2925643761 | G84: 30 | H84: =IF(D84<=SIMULADOR!$D$17,ROUND($H$6,2),"") ->  | I84: =IF(D84<=SIMULADOR!$D$17+1,I83-J83,"") ->  | J84: =IF(D84<=SIMULADOR!$D$17,H84-L84-K84-M84,"") ->  | L84: =IF(D84>SIMULADOR!$D$17,0,IF(AND(D84<=SIMULADOR!$D$17,I84<=SIMULADOR!$D$13),ROUND(I84*$F$1,2),IF(I84>SIMULADOR!$D$13,SIMULADOR!$D$13*Calculos!$F$1,""))) -> 0 | M84: =IF(Calculos!D84<=SIMULADOR!$D$17,Calculos!$M$4,"") ->  | N84: =IF(D84<=SIMULADOR!$D$17,ROUND(I84*((1+$E$3)^G84-1),2),"") ->  | P84: =+IF(D84<=SIMULADOR!$D$17,SIMULADOR!Q122,"") ->  | AA84: 30 | AB84: =+IF(OR(Calculos!B82-SIMULADOR!$H$28<0,SIMULADOR!$H$28=0),0,Calculos!B82-SIMULADOR!$H$28) -> 0 | AC84: 0 | AD84: =+IF(AND(AB85<>0,AB84=0),SIMULADOR!$H$29,0) -> 0 | AE84: 0 | AG84: 0 | AH84: 0 | AI84: 0 | AJ84: =IF($BA84=SIMULADOR!$H$28,0,IF(OR(BO83=1,AND(AD84<>0,BO84=0)),L84,IF(AND(AC84+AD84>0,ABS(AG83-AH83)>0.01),L84,0))) -> 0 | AK84: 0 | AM84: 0 | AN84: 0 | AP84: 0 | AQ84: 0 | AS84: 0 | AX84: 0 | AZ84: 79 | BA84: =+BA83+IF(SIMULADOR!$H$28<>"",AA84+AC84,G84) -> 2029-12-23 | BB84: =+IF(SUM(AE$6:AE84)=0,I84,IF($BB$1=$BE$1,AG84,AT84)) ->  | BC84: =+IF(SUM(AE$6:AE84)=0,L84,IF($BB$1=$BE$1,AJ84,AW84)) -> 0 | BD84: 0 | BE84: =+IF(SUM(AE$6:AE84)=0,0,IF($BB$1=$BE$1,AD84,AS84)) -> 0 | BF84: =+IF(SUM(AE$6:AE84)=0,J84,IF($BB$1=$BE$1,AH84,AU84)) ->  | BG84: =+IF(SUM(AE$6:AE84)=0,K84,IF($BB$1=$BE$1,AI84,AV84)) ->  | BI84: =+SIMULADOR!K123 -> 0 | BJ84: 0 | BM84: 0 | BO84: 0 | BP84: 1 | BQ84: 33 | BR84: 79 | BU84: 2029-12-23
A85: 2030-01-23 | B85: =+IF(AND(SIMULADOR!$D$18=31,DAY(EOMONTH(A85,1))<>31),DATE(YEAR(A85),MONTH(A85)+1,DAY(EOMONTH(A85,1))),IF(MONTH(EDATE(A85,1))=2,EDATE(A85,1),DATE(YEAR(EDATE(A85,1)),MONTH(EDATE(A85,1)),SIMULADOR!$D$18))) -> 2030-02-23 | D85: 80 | E85: 2437 | F85: 0.2879678456 | G85: 31 | H85: =IF(D85<=SIMULADOR!$D$17,ROUND($H$6,2),"") ->  | I85: =IF(D85<=SIMULADOR!$D$17+1,I84-J84,"") ->  | J85: =IF(D85<=SIMULADOR!$D$17,H85-L85-K85-M85,"") ->  | L85: =IF(D85>SIMULADOR!$D$17,0,IF(AND(D85<=SIMULADOR!$D$17,I85<=SIMULADOR!$D$13),ROUND(I85*$F$1,2),IF(I85>SIMULADOR!$D$13,SIMULADOR!$D$13*Calculos!$F$1,""))) -> 0 | M85: =IF(Calculos!D85<=SIMULADOR!$D$17,Calculos!$M$4,"") ->  | N85: =IF(D85<=SIMULADOR!$D$17,ROUND(I85*((1+$E$3)^G85-1),2),"") ->  | P85: =+IF(D85<=SIMULADOR!$D$17,SIMULADOR!Q123,"") ->  | AA85: 31 | AB85: =+IF(OR(Calculos!B83-SIMULADOR!$H$28<0,SIMULADOR!$H$28=0),0,Calculos!B83-SIMULADOR!$H$28) -> 0 | AC85: 0 | AD85: =+IF(AND(AB86<>0,AB85=0),SIMULADOR!$H$29,0) -> 0 | AE85: 0 | AG85: 0 | AH85: 0 | AI85: 0 | AJ85: =IF($BA85=SIMULADOR!$H$28,0,IF(OR(BO84=1,AND(AD85<>0,BO85=0)),L85,IF(AND(AC85+AD85>0,ABS(AG84-AH84)>0.01),L85,0))) -> 0 | AK85: 0 | AM85: 0 | AN85: 0 | AP85: 0 | AQ85: 0 | AS85: 0 | AX85: 0 | AZ85: 80 | BA85: =+BA84+IF(SIMULADOR!$H$28<>"",AA85+AC85,G85) -> 2030-01-23 | BB85: =+IF(SUM(AE$6:AE85)=0,I85,IF($BB$1=$BE$1,AG85,AT85)) ->  | BC85: =+IF(SUM(AE$6:AE85)=0,L85,IF($BB$1=$BE$1,AJ85,AW85)) -> 0 | BD85: 0 | BE85: =+IF(SUM(AE$6:AE85)=0,0,IF($BB$1=$BE$1,AD85,AS85)) -> 0 | BF85: =+IF(SUM(AE$6:AE85)=0,J85,IF($BB$1=$BE$1,AH85,AU85)) ->  | BG85: =+IF(SUM(AE$6:AE85)=0,K85,IF($BB$1=$BE$1,AI85,AV85)) ->  | BI85: =+SIMULADOR!K124 -> 0 | BJ85: 0 | BM85: 0 | BO85: 0 | BP85: 1 | BQ85: 34 | BR85: 80 | BU85: 2030-01-23
A86: 2030-02-23 | B86: =+IF(AND(SIMULADOR!$D$18=31,DAY(EOMONTH(A86,1))<>31),DATE(YEAR(A86),MONTH(A86)+1,DAY(EOMONTH(A86,1))),IF(MONTH(EDATE(A86,1))=2,EDATE(A86,1),DATE(YEAR(EDATE(A86,1)),MONTH(EDATE(A86,1)),SIMULADOR!$D$18))) -> 2030-03-23 | D86: 81 | E86: 2468 | F86: 0.2834435321 | G86: 31 | H86: =IF(D86<=SIMULADOR!$D$17,ROUND($H$6,2),"") ->  | I86: =IF(D86<=SIMULADOR!$D$17+1,I85-J85,"") ->  | J86: =IF(D86<=SIMULADOR!$D$17,H86-L86-K86-M86,"") ->  | L86: =IF(D86>SIMULADOR!$D$17,0,IF(AND(D86<=SIMULADOR!$D$17,I86<=SIMULADOR!$D$13),ROUND(I86*$F$1,2),IF(I86>SIMULADOR!$D$13,SIMULADOR!$D$13*Calculos!$F$1,""))) -> 0 | M86: =IF(Calculos!D86<=SIMULADOR!$D$17,Calculos!$M$4,"") ->  | N86: =IF(D86<=SIMULADOR!$D$17,ROUND(I86*((1+$E$3)^G86-1),2),"") ->  | P86: =+IF(D86<=SIMULADOR!$D$17,SIMULADOR!Q124,"") ->  | AA86: 31 | AB86: =+IF(OR(Calculos!B84-SIMULADOR!$H$28<0,SIMULADOR!$H$28=0),0,Calculos!B84-SIMULADOR!$H$28) -> 0 | AC86: 0 | AD86: =+IF(AND(AB87<>0,AB86=0),SIMULADOR!$H$29,0) -> 0 | AE86: 0 | AG86: 0 | AH86: 0 | AI86: 0 | AJ86: =IF($BA86=SIMULADOR!$H$28,0,IF(OR(BO85=1,AND(AD86<>0,BO86=0)),L86,IF(AND(AC86+AD86>0,ABS(AG85-AH85)>0.01),L86,0))) -> 0 | AK86: 0 | AM86: 0 | AN86: 0 | AP86: 0 | AQ86: 0 | AS86: 0 | AX86: 0 | AZ86: 81 | BA86: =+BA85+IF(SIMULADOR!$H$28<>"",AA86+AC86,G86) -> 2030-02-23 | BB86: =+IF(SUM(AE$6:AE86)=0,I86,IF($BB$1=$BE$1,AG86,AT86)) ->  | BC86: =+IF(SUM(AE$6:AE86)=0,L86,IF($BB$1=$BE$1,AJ86,AW86)) -> 0 | BD86: 0 | BE86: =+IF(SUM(AE$6:AE86)=0,0,IF($BB$1=$BE$1,AD86,AS86)) -> 0 | BF86: =+IF(SUM(AE$6:AE86)=0,J86,IF($BB$1=$BE$1,AH86,AU86)) ->  | BG86: =+IF(SUM(AE$6:AE86)=0,K86,IF($BB$1=$BE$1,AI86,AV86)) ->  | BI86: =+SIMULADOR!K125 -> 0 | BJ86: 0 | BM86: 0 | BO86: 0 | BP86: 1 | BQ86: 35 | BR86: 81 | BU86: 2030-02-23
A87: 2030-03-23 | B87: =+IF(AND(SIMULADOR!$D$18=31,DAY(EOMONTH(A87,1))<>31),DATE(YEAR(A87),MONTH(A87)+1,DAY(EOMONTH(A87,1))),IF(MONTH(EDATE(A87,1))=2,EDATE(A87,1),DATE(YEAR(EDATE(A87,1)),MONTH(EDATE(A87,1)),SIMULADOR!$D$18))) -> 2030-04-23 | D87: 82 | E87: 2496 | F87: 0.2794181832 | G87: 28 | H87: =IF(D87<=SIMULADOR!$D$17,ROUND($H$6,2),"") ->  | I87: =IF(D87<=SIMULADOR!$D$17+1,I86-J86,"") ->  | J87: =IF(D87<=SIMULADOR!$D$17,H87-L87-K87-M87,"") ->  | L87: =IF(D87>SIMULADOR!$D$17,0,IF(AND(D87<=SIMULADOR!$D$17,I87<=SIMULADOR!$D$13),ROUND(I87*$F$1,2),IF(I87>SIMULADOR!$D$13,SIMULADOR!$D$13*Calculos!$F$1,""))) -> 0 | M87: =IF(Calculos!D87<=SIMULADOR!$D$17,Calculos!$M$4,"") ->  | N87: =IF(D87<=SIMULADOR!$D$17,ROUND(I87*((1+$E$3)^G87-1),2),"") ->  | P87: =+IF(D87<=SIMULADOR!$D$17,SIMULADOR!Q125,"") ->  | AA87: 28 | AB87: =+IF(OR(Calculos!B85-SIMULADOR!$H$28<0,SIMULADOR!$H$28=0),0,Calculos!B85-SIMULADOR!$H$28) -> 0 | AC87: 0 | AD87: =+IF(AND(AB88<>0,AB87=0),SIMULADOR!$H$29,0) -> 0 | AE87: 0 | AG87: 0 | AH87: 0 | AI87: 0 | AJ87: =IF($BA87=SIMULADOR!$H$28,0,IF(OR(BO86=1,AND(AD87<>0,BO87=0)),L87,IF(AND(AC87+AD87>0,ABS(AG86-AH86)>0.01),L87,0))) -> 0 | AK87: 0 | AM87: 0 | AN87: 0 | AP87: 0 | AQ87: 0 | AS87: 0 | AX87: 0 | AZ87: 82 | BA87: =+BA86+IF(SIMULADOR!$H$28<>"",AA87+AC87,G87) -> 2030-03-23 | BB87: =+IF(SUM(AE$6:AE87)=0,I87,IF($BB$1=$BE$1,AG87,AT87)) ->  | BC87: =+IF(SUM(AE$6:AE87)=0,L87,IF($BB$1=$BE$1,AJ87,AW87)) -> 0 | BD87: 0 | BE87: =+IF(SUM(AE$6:AE87)=0,0,IF($BB$1=$BE$1,AD87,AS87)) -> 0 | BF87: =+IF(SUM(AE$6:AE87)=0,J87,IF($BB$1=$BE$1,AH87,AU87)) ->  | BG87: =+IF(SUM(AE$6:AE87)=0,K87,IF($BB$1=$BE$1,AI87,AV87)) ->  | BI87: =+SIMULADOR!K126 -> 0 | BJ87: 0 | BM87: 0 | BO87: 0 | BP87: 1 | BQ87: 36 | BR87: 82 | BU87: 2030-03-23
A88: 2030-04-23 | B88: =+IF(AND(SIMULADOR!$D$18=31,DAY(EOMONTH(A88,1))<>31),DATE(YEAR(A88),MONTH(A88)+1,DAY(EOMONTH(A88,1))),IF(MONTH(EDATE(A88,1))=2,EDATE(A88,1),DATE(YEAR(EDATE(A88,1)),MONTH(EDATE(A88,1)),SIMULADOR!$D$18))) -> 2030-05-23 | D88: 83 | E88: 2527 | F88: 0.2750281949 | G88: 31 | H88: =IF(D88<=SIMULADOR!$D$17,ROUND($H$6,2),"") ->  | I88: =IF(D88<=SIMULADOR!$D$17+1,I87-J87,"") ->  | J88: =IF(D88<=SIMULADOR!$D$17,H88-L88-K88-M88,"") ->  | L88: =IF(D88>SIMULADOR!$D$17,0,IF(AND(D88<=SIMULADOR!$D$17,I88<=SIMULADOR!$D$13),ROUND(I88*$F$1,2),IF(I88>SIMULADOR!$D$13,SIMULADOR!$D$13*Calculos!$F$1,""))) -> 0 | M88: =IF(Calculos!D88<=SIMULADOR!$D$17,Calculos!$M$4,"") ->  | N88: =IF(D88<=SIMULADOR!$D$17,ROUND(I88*((1+$E$3)^G88-1),2),"") ->  | P88: =+IF(D88<=SIMULADOR!$D$17,SIMULADOR!Q126,"") ->  | AA88: 31 | AB88: =+IF(OR(Calculos!B86-SIMULADOR!$H$28<0,SIMULADOR!$H$28=0),0,Calculos!B86-SIMULADOR!$H$28) -> 0 | AC88: 0 | AD88: =+IF(AND(AB89<>0,AB88=0),SIMULADOR!$H$29,0) -> 0 | AE88: 0 | AG88: 0 | AH88: 0 | AI88: 0 | AJ88: =IF($BA88=SIMULADOR!$H$28,0,IF(OR(BO87=1,AND(AD88<>0,BO88=0)),L88,IF(AND(AC88+AD88>0,ABS(AG87-AH87)>0.01),L88,0))) -> 0 | AK88: 0 | AM88: 0 | AN88: 0 | AP88: 0 | AQ88: 0 | AS88: 0 | AX88: 0 | AZ88: 83 | BA88: =+BA87+IF(SIMULADOR!$H$28<>"",AA88+AC88,G88) -> 2030-04-23 | BB88: =+IF(SUM(AE$6:AE88)=0,I88,IF($BB$1=$BE$1,AG88,AT88)) ->  | BC88: =+IF(SUM(AE$6:AE88)=0,L88,IF($BB$1=$BE$1,AJ88,AW88)) -> 0 | BD88: 0 | BE88: =+IF(SUM(AE$6:AE88)=0,0,IF($BB$1=$BE$1,AD88,AS88)) -> 0 | BF88: =+IF(SUM(AE$6:AE88)=0,J88,IF($BB$1=$BE$1,AH88,AU88)) ->  | BG88: =+IF(SUM(AE$6:AE88)=0,K88,IF($BB$1=$BE$1,AI88,AV88)) ->  | BI88: =+SIMULADOR!K127 -> 0 | BJ88: 0 | BM88: 0 | BO88: 0 | BP88: 1 | BQ88: 37 | BR88: 83 | BU88: 2030-04-23
A89: 2030-05-23 | B89: =+IF(AND(SIMULADOR!$D$18=31,DAY(EOMONTH(A89,1))<>31),DATE(YEAR(A89),MONTH(A89)+1,DAY(EOMONTH(A89,1))),IF(MONTH(EDATE(A89,1))=2,EDATE(A89,1),DATE(YEAR(EDATE(A89,1)),MONTH(EDATE(A89,1)),SIMULADOR!$D$18))) -> 2030-06-23 | D89: 84 | E89: 2557 | F89: 0.2708455007 | G89: 30 | H89: =IF(D89<=SIMULADOR!$D$17,ROUND($H$6,2),"") ->  | I89: =IF(D89<=SIMULADOR!$D$17+1,I88-J88,"") ->  | J89: =IF(D89<=SIMULADOR!$D$17,H89-L89-K89-M89,"") ->  | L89: =IF(D89>SIMULADOR!$D$17,0,IF(AND(D89<=SIMULADOR!$D$17,I89<=SIMULADOR!$D$13),ROUND(I89*$F$1,2),IF(I89>SIMULADOR!$D$13,SIMULADOR!$D$13*Calculos!$F$1,""))) -> 0 | M89: =IF(Calculos!D89<=SIMULADOR!$D$17,Calculos!$M$4,"") ->  | N89: =IF(D89<=SIMULADOR!$D$17,ROUND(I89*((1+$E$3)^G89-1),2),"") ->  | P89: =+IF(D89<=SIMULADOR!$D$17,SIMULADOR!Q127,"") ->  | AA89: 30 | AB89: =+IF(OR(Calculos!B87-SIMULADOR!$H$28<0,SIMULADOR!$H$28=0),0,Calculos!B87-SIMULADOR!$H$28) -> 0 | AC89: 0 | AD89: =+IF(AND(AB90<>0,AB89=0),SIMULADOR!$H$29,0) -> 0 | AE89: 0 | AG89: 0 | AH89: 0 | AI89: 0 | AJ89: =IF($BA89=SIMULADOR!$H$28,0,IF(OR(BO88=1,AND(AD89<>0,BO89=0)),L89,IF(AND(AC89+AD89>0,ABS(AG88-AH88)>0.01),L89,0))) -> 0 | AK89: 0 | AM89: 0 | AN89: 0 | AP89: 0 | AQ89: 0 | AS89: 0 | AX89: 0 | AZ89: 84 | BA89: =+BA88+IF(SIMULADOR!$H$28<>"",AA89+AC89,G89) -> 2030-05-23 | BB89: =+IF(SUM(AE$6:AE89)=0,I89,IF($BB$1=$BE$1,AG89,AT89)) ->  | BC89: =+IF(SUM(AE$6:AE89)=0,L89,IF($BB$1=$BE$1,AJ89,AW89)) -> 0 | BD89: 0 | BE89: =+IF(SUM(AE$6:AE89)=0,0,IF($BB$1=$BE$1,AD89,AS89)) -> 0 | BF89: =+IF(SUM(AE$6:AE89)=0,J89,IF($BB$1=$BE$1,AH89,AU89)) ->  | BG89: =+IF(SUM(AE$6:AE89)=0,K89,IF($BB$1=$BE$1,AI89,AV89)) ->  | BI89: =+SIMULADOR!K128 -> 0 | BJ89: 0 | BM89: 0 | BO89: 0 | BP89: 1 | BQ89: 38 | BR89: 84 | BU89: 2030-05-23
A90: 2030-06-23 | B90: =+IF(AND(SIMULADOR!$D$18=31,DAY(EOMONTH(A90,1))<>31),DATE(YEAR(A90),MONTH(A90)+1,DAY(EOMONTH(A90,1))),IF(MONTH(EDATE(A90,1))=2,EDATE(A90,1),DATE(YEAR(EDATE(A90,1)),MONTH(EDATE(A90,1)),SIMULADOR!$D$18))) -> 2030-07-23 | D90: 85 | E90: 2588 | F90: 0.2665901993 | G90: 31 | H90: =IF(D90<=SIMULADOR!$D$17,ROUND($H$6,2),"") ->  | I90: =IF(D90<=SIMULADOR!$D$17+1,I89-J89,"") ->  | J90: =IF(D90<=SIMULADOR!$D$17,H90-L90-K90-M90,"") ->  | L90: =IF(D90>SIMULADOR!$D$17,0,IF(AND(D90<=SIMULADOR!$D$17,I90<=SIMULADOR!$D$13),ROUND(I90*$F$1,2),IF(I90>SIMULADOR!$D$13,SIMULADOR!$D$13*Calculos!$F$1,""))) -> 0 | M90: =IF(Calculos!D90<=SIMULADOR!$D$17,Calculos!$M$4,"") ->  | N90: =IF(D90<=SIMULADOR!$D$17,ROUND(I90*((1+$E$3)^G90-1),2),"") ->  | P90: =+IF(D90<=SIMULADOR!$D$17,SIMULADOR!Q128,"") ->  | AA90: 31 | AB90: =+IF(OR(Calculos!B88-SIMULADOR!$H$28<0,SIMULADOR!$H$28=0),0,Calculos!B88-SIMULADOR!$H$28) -> 0 | AC90: 0 | AD90: =+IF(AND(AB91<>0,AB90=0),SIMULADOR!$H$29,0) -> 0 | AE90: 0 | AG90: 0 | AH90: 0 | AI90: 0 | AJ90: =IF($BA90=SIMULADOR!$H$28,0,IF(OR(BO89=1,AND(AD90<>0,BO90=0)),L90,IF(AND(AC90+AD90>0,ABS(AG89-AH89)>0.01),L90,0))) -> 0 | AK90: 0 | AM90: 0 | AN90: 0 | AP90: 0 | AQ90: 0 | AS90: 0 | AX90: 0 | AZ90: 85 | BA90: =+BA89+IF(SIMULADOR!$H$28<>"",AA90+AC90,G90) -> 2030-06-23 | BB90: =+IF(SUM(AE$6:AE90)=0,I90,IF($BB$1=$BE$1,AG90,AT90)) ->  | BC90: =+IF(SUM(AE$6:AE90)=0,L90,IF($BB$1=$BE$1,AJ90,AW90)) -> 0 | BD90: 0 | BE90: =+IF(SUM(AE$6:AE90)=0,0,IF($BB$1=$BE$1,AD90,AS90)) -> 0 | BF90: =+IF(SUM(AE$6:AE90)=0,J90,IF($BB$1=$BE$1,AH90,AU90)) ->  | BG90: =+IF(SUM(AE$6:AE90)=0,K90,IF($BB$1=$BE$1,AI90,AV90)) ->  | BI90: =+SIMULADOR!K129 -> 0 | BJ90: 0 | BM90: 0 | BO90: 0 | BP90: 1 | BQ90: 39 | BR90: 85 | BU90: 2030-06-23
A91: 2030-07-23 | B91: =+IF(AND(SIMULADOR!$D$18=31,DAY(EOMONTH(A91,1))<>31),DATE(YEAR(A91),MONTH(A91)+1,DAY(EOMONTH(A91,1))),IF(MONTH(EDATE(A91,1))=2,EDATE(A91,1),DATE(YEAR(EDATE(A91,1)),MONTH(EDATE(A91,1)),SIMULADOR!$D$18))) -> 2030-08-23 | D91: 86 | E91: 2618 | F91: 0.2625358321 | G91: 30 | H91: =IF(D91<=SIMULADOR!$D$17,ROUND($H$6,2),"") ->  | I91: =IF(D91<=SIMULADOR!$D$17+1,I90-J90,"") ->  | J91: =IF(D91<=SIMULADOR!$D$17,H91-L91-K91-M91,"") ->  | L91: =IF(D91>SIMULADOR!$D$17,0,IF(AND(D91<=SIMULADOR!$D$17,I91<=SIMULADOR!$D$13),ROUND(I91*$F$1,2),IF(I91>SIMULADOR!$D$13,SIMULADOR!$D$13*Calculos!$F$1,""))) -> 0 | M91: =IF(Calculos!D91<=SIMULADOR!$D$17,Calculos!$M$4,"") ->  | N91: =IF(D91<=SIMULADOR!$D$17,ROUND(I91*((1+$E$3)^G91-1),2),"") ->  | P91: =+IF(D91<=SIMULADOR!$D$17,SIMULADOR!Q129,"") ->  | AA91: 30 | AB91: =+IF(OR(Calculos!B89-SIMULADOR!$H$28<0,SIMULADOR!$H$28=0),0,Calculos!B89-SIMULADOR!$H$28) -> 0 | AC91: 0 | AD91: =+IF(AND(AB92<>0,AB91=0),SIMULADOR!$H$29,0) -> 0 | AE91: 0 | AG91: 0 | AH91: 0 | AI91: 0 | AJ91: =IF($BA91=SIMULADOR!$H$28,0,IF(OR(BO90=1,AND(AD91<>0,BO91=0)),L91,IF(AND(AC91+AD91>0,ABS(AG90-AH90)>0.01),L91,0))) -> 0 | AK91: 0 | AM91: 0 | AN91: 0 | AP91: 0 | AQ91: 0 | AS91: 0 | AX91: 0 | AZ91: 86 | BA91: =+BA90+IF(SIMULADOR!$H$28<>"",AA91+AC91,G91) -> 2030-07-23 | BB91: =+IF(SUM(AE$6:AE91)=0,I91,IF($BB$1=$BE$1,AG91,AT91)) ->  | BC91: =+IF(SUM(AE$6:AE91)=0,L91,IF($BB$1=$BE$1,AJ91,AW91)) -> 0 | BD91: 0 | BE91: =+IF(SUM(AE$6:AE91)=0,0,IF($BB$1=$BE$1,AD91,AS91)) -> 0 | BF91: =+IF(SUM(AE$6:AE91)=0,J91,IF($BB$1=$BE$1,AH91,AU91)) ->  | BG91: =+IF(SUM(AE$6:AE91)=0,K91,IF($BB$1=$BE$1,AI91,AV91)) ->  | BI91: =+SIMULADOR!K130 -> 0 | BJ91: 0 | BM91: 0 | BO91: 0 | BP91: 1 | BQ91: 40 | BR91: 86 | BU91: 2030-07-23
A92: 2030-08-23 | B92: =+IF(AND(SIMULADOR!$D$18=31,DAY(EOMONTH(A92,1))<>31),DATE(YEAR(A92),MONTH(A92)+1,DAY(EOMONTH(A92,1))),IF(MONTH(EDATE(A92,1))=2,EDATE(A92,1),DATE(YEAR(EDATE(A92,1)),MONTH(EDATE(A92,1)),SIMULADOR!$D$18))) -> 2030-09-23 | D92: 87 | E92: 2649 | F92: 0.2584110854 | G92: 31 | H92: =IF(D92<=SIMULADOR!$D$17,ROUND($H$6,2),"") ->  | I92: =IF(D92<=SIMULADOR!$D$17+1,I91-J91,"") ->  | J92: =IF(D92<=SIMULADOR!$D$17,H92-L92-K92-M92,"") ->  | L92: =IF(D92>SIMULADOR!$D$17,0,IF(AND(D92<=SIMULADOR!$D$17,I92<=SIMULADOR!$D$13),ROUND(I92*$F$1,2),IF(I92>SIMULADOR!$D$13,SIMULADOR!$D$13*Calculos!$F$1,""))) -> 0 | M92: =IF(Calculos!D92<=SIMULADOR!$D$17,Calculos!$M$4,"") ->  | N92: =IF(D92<=SIMULADOR!$D$17,ROUND(I92*((1+$E$3)^G92-1),2),"") ->  | P92: =+IF(D92<=SIMULADOR!$D$17,SIMULADOR!Q130,"") ->  | AA92: 31 | AB92: =+IF(OR(Calculos!B90-SIMULADOR!$H$28<0,SIMULADOR!$H$28=0),0,Calculos!B90-SIMULADOR!$H$28) -> 0 | AC92: 0 | AD92: =+IF(AND(AB93<>0,AB92=0),SIMULADOR!$H$29,0) -> 0 | AE92: 0 | AG92: 0 | AH92: 0 | AI92: 0 | AJ92: =IF($BA92=SIMULADOR!$H$28,0,IF(OR(BO91=1,AND(AD92<>0,BO92=0)),L92,IF(AND(AC92+AD92>0,ABS(AG91-AH91)>0.01),L92,0))) -> 0 | AK92: 0 | AM92: 0 | AN92: 0 | AP92: 0 | AQ92: 0 | AS92: 0 | AX92: 0 | AZ92: 87 | BA92: =+BA91+IF(SIMULADOR!$H$28<>"",AA92+AC92,G92) -> 2030-08-23 | BB92: =+IF(SUM(AE$6:AE92)=0,I92,IF($BB$1=$BE$1,AG92,AT92)) ->  | BC92: =+IF(SUM(AE$6:AE92)=0,L92,IF($BB$1=$BE$1,AJ92,AW92)) -> 0 | BD92: 0 | BE92: =+IF(SUM(AE$6:AE92)=0,0,IF($BB$1=$BE$1,AD92,AS92)) -> 0 | BF92: =+IF(SUM(AE$6:AE92)=0,J92,IF($BB$1=$BE$1,AH92,AU92)) ->  | BG92: =+IF(SUM(AE$6:AE92)=0,K92,IF($BB$1=$BE$1,AI92,AV92)) ->  | BI92: =+SIMULADOR!K131 -> 0 | BJ92: 0 | BM92: 0 | BO92: 0 | BP92: 1 | BQ92: 41 | BR92: 87 | BU92: 2030-08-23
A93: 2030-09-23 | B93: =+IF(AND(SIMULADOR!$D$18=31,DAY(EOMONTH(A93,1))<>31),DATE(YEAR(A93),MONTH(A93)+1,DAY(EOMONTH(A93,1))),IF(MONTH(EDATE(A93,1))=2,EDATE(A93,1),DATE(YEAR(EDATE(A93,1)),MONTH(EDATE(A93,1)),SIMULADOR!$D$18))) -> 2030-10-23 | D93: 88 | E93: 2680 | F93: 0.2543511433 | G93: 31 | H93: =IF(D93<=SIMULADOR!$D$17,ROUND($H$6,2),"") ->  | I93: =IF(D93<=SIMULADOR!$D$17+1,I92-J92,"") ->  | J93: =IF(D93<=SIMULADOR!$D$17,H93-L93-K93-M93,"") ->  | L93: =IF(D93>SIMULADOR!$D$17,0,IF(AND(D93<=SIMULADOR!$D$17,I93<=SIMULADOR!$D$13),ROUND(I93*$F$1,2),IF(I93>SIMULADOR!$D$13,SIMULADOR!$D$13*Calculos!$F$1,""))) -> 0 | M93: =IF(Calculos!D93<=SIMULADOR!$D$17,Calculos!$M$4,"") ->  | N93: =IF(D93<=SIMULADOR!$D$17,ROUND(I93*((1+$E$3)^G93-1),2),"") ->  | P93: =+IF(D93<=SIMULADOR!$D$17,SIMULADOR!Q131,"") ->  | AA93: 31 | AB93: =+IF(OR(Calculos!B91-SIMULADOR!$H$28<0,SIMULADOR!$H$28=0),0,Calculos!B91-SIMULADOR!$H$28) -> 0 | AC93: 0 | AD93: =+IF(AND(AB94<>0,AB93=0),SIMULADOR!$H$29,0) -> 0 | AE93: 0 | AG93: 0 | AH93: 0 | AI93: 0 | AJ93: =IF($BA93=SIMULADOR!$H$28,0,IF(OR(BO92=1,AND(AD93<>0,BO93=0)),L93,IF(AND(AC93+AD93>0,ABS(AG92-AH92)>0.01),L93,0))) -> 0 | AK93: 0 | AM93: 0 | AN93: 0 | AP93: 0 | AQ93: 0 | AS93: 0 | AX93: 0 | AZ93: 88 | BA93: =+BA92+IF(SIMULADOR!$H$28<>"",AA93+AC93,G93) -> 2030-09-23 | BB93: =+IF(SUM(AE$6:AE93)=0,I93,IF($BB$1=$BE$1,AG93,AT93)) ->  | BC93: =+IF(SUM(AE$6:AE93)=0,L93,IF($BB$1=$BE$1,AJ93,AW93)) -> 0 | BD93: 0 | BE93: =+IF(SUM(AE$6:AE93)=0,0,IF($BB$1=$BE$1,AD93,AS93)) -> 0 | BF93: =+IF(SUM(AE$6:AE93)=0,J93,IF($BB$1=$BE$1,AH93,AU93)) ->  | BG93: =+IF(SUM(AE$6:AE93)=0,K93,IF($BB$1=$BE$1,AI93,AV93)) ->  | BI93: =+SIMULADOR!K132 -> 0 | BJ93: 0 | BM93: 0 | BO93: 0 | BP93: 1 | BQ93: 42 | BR93: 88 | BU93: 2030-09-23
A94: 2030-10-23 | B94: =+IF(AND(SIMULADOR!$D$18=31,DAY(EOMONTH(A94,1))<>31),DATE(YEAR(A94),MONTH(A94)+1,DAY(EOMONTH(A94,1))),IF(MONTH(EDATE(A94,1))=2,EDATE(A94,1),DATE(YEAR(EDATE(A94,1)),MONTH(EDATE(A94,1)),SIMULADOR!$D$18))) -> 2030-11-23 | D94: 89 | E94: 2710 | F94: 0.2504829107 | G94: 30 | H94: =IF(D94<=SIMULADOR!$D$17,ROUND($H$6,2),"") ->  | I94: =IF(D94<=SIMULADOR!$D$17+1,I93-J93,"") ->  | J94: =IF(D94<=SIMULADOR!$D$17,H94-L94-K94-M94,"") ->  | L94: =IF(D94>SIMULADOR!$D$17,0,IF(AND(D94<=SIMULADOR!$D$17,I94<=SIMULADOR!$D$13),ROUND(I94*$F$1,2),IF(I94>SIMULADOR!$D$13,SIMULADOR!$D$13*Calculos!$F$1,""))) -> 0 | M94: =IF(Calculos!D94<=SIMULADOR!$D$17,Calculos!$M$4,"") ->  | N94: =IF(D94<=SIMULADOR!$D$17,ROUND(I94*((1+$E$3)^G94-1),2),"") ->  | P94: =+IF(D94<=SIMULADOR!$D$17,SIMULADOR!Q132,"") ->  | AA94: 30 | AB94: =+IF(OR(Calculos!B92-SIMULADOR!$H$28<0,SIMULADOR!$H$28=0),0,Calculos!B92-SIMULADOR!$H$28) -> 0 | AC94: 0 | AD94: =+IF(AND(AB95<>0,AB94=0),SIMULADOR!$H$29,0) -> 0 | AE94: 0 | AG94: 0 | AH94: 0 | AI94: 0 | AJ94: =IF($BA94=SIMULADOR!$H$28,0,IF(OR(BO93=1,AND(AD94<>0,BO94=0)),L94,IF(AND(AC94+AD94>0,ABS(AG93-AH93)>0.01),L94,0))) -> 0 | AK94: 0 | AM94: 0 | AN94: 0 | AP94: 0 | AQ94: 0 | AS94: 0 | AX94: 0 | AZ94: 89 | BA94: =+BA93+IF(SIMULADOR!$H$28<>"",AA94+AC94,G94) -> 2030-10-23 | BB94: =+IF(SUM(AE$6:AE94)=0,I94,IF($BB$1=$BE$1,AG94,AT94)) ->  | BC94: =+IF(SUM(AE$6:AE94)=0,L94,IF($BB$1=$BE$1,AJ94,AW94)) -> 0 | BD94: 0 | BE94: =+IF(SUM(AE$6:AE94)=0,0,IF($BB$1=$BE$1,AD94,AS94)) -> 0 | BF94: =+IF(SUM(AE$6:AE94)=0,J94,IF($BB$1=$BE$1,AH94,AU94)) ->  | BG94: =+IF(SUM(AE$6:AE94)=0,K94,IF($BB$1=$BE$1,AI94,AV94)) ->  | BI94: =+SIMULADOR!K133 -> 0 | BJ94: 0 | BM94: 0 | BO94: 0 | BP94: 1 | BQ94: 43 | BR94: 89 | BU94: 2030-10-23
A95: 2030-11-23 | B95: =+IF(AND(SIMULADOR!$D$18=31,DAY(EOMONTH(A95,1))<>31),DATE(YEAR(A95),MONTH(A95)+1,DAY(EOMONTH(A95,1))),IF(MONTH(EDATE(A95,1))=2,EDATE(A95,1),DATE(YEAR(EDATE(A95,1)),MONTH(EDATE(A95,1)),SIMULADOR!$D$18))) -> 2030-12-23 | D95: 90 | E95: 2741 | F95: 0.2465475295 | G95: 31 | H95: =IF(D95<=SIMULADOR!$D$17,ROUND($H$6,2),"") ->  | I95: =IF(D95<=SIMULADOR!$D$17+1,I94-J94,"") ->  | J95: =IF(D95<=SIMULADOR!$D$17,H95-L95-K95-M95,"") ->  | L95: =IF(D95>SIMULADOR!$D$17,0,IF(AND(D95<=SIMULADOR!$D$17,I95<=SIMULADOR!$D$13),ROUND(I95*$F$1,2),IF(I95>SIMULADOR!$D$13,SIMULADOR!$D$13*Calculos!$F$1,""))) -> 0 | M95: =IF(Calculos!D95<=SIMULADOR!$D$17,Calculos!$M$4,"") ->  | N95: =IF(D95<=SIMULADOR!$D$17,ROUND(I95*((1+$E$3)^G95-1),2),"") ->  | P95: =+IF(D95<=SIMULADOR!$D$17,SIMULADOR!Q133,"") ->  | AA95: 31 | AB95: =+IF(OR(Calculos!B93-SIMULADOR!$H$28<0,SIMULADOR!$H$28=0),0,Calculos!B93-SIMULADOR!$H$28) -> 0 | AC95: 0 | AD95: =+IF(AND(AB96<>0,AB95=0),SIMULADOR!$H$29,0) -> 0 | AE95: 0 | AG95: 0 | AH95: 0 | AI95: 0 | AJ95: =IF($BA95=SIMULADOR!$H$28,0,IF(OR(BO94=1,AND(AD95<>0,BO95=0)),L95,IF(AND(AC95+AD95>0,ABS(AG94-AH94)>0.01),L95,0))) -> 0 | AK95: 0 | AM95: 0 | AN95: 0 | AP95: 0 | AQ95: 0 | AS95: 0 | AX95: 0 | AZ95: 90 | BA95: =+BA94+IF(SIMULADOR!$H$28<>"",AA95+AC95,G95) -> 2030-11-23 | BB95: =+IF(SUM(AE$6:AE95)=0,I95,IF($BB$1=$BE$1,AG95,AT95)) ->  | BC95: =+IF(SUM(AE$6:AE95)=0,L95,IF($BB$1=$BE$1,AJ95,AW95)) -> 0 | BD95: 0 | BE95: =+IF(SUM(AE$6:AE95)=0,0,IF($BB$1=$BE$1,AD95,AS95)) -> 0 | BF95: =+IF(SUM(AE$6:AE95)=0,J95,IF($BB$1=$BE$1,AH95,AU95)) ->  | BG95: =+IF(SUM(AE$6:AE95)=0,K95,IF($BB$1=$BE$1,AI95,AV95)) ->  | BI95: =+SIMULADOR!K134 -> 0 | BJ95: 0 | BM95: 0 | BO95: 0 | BP95: 1 | BQ95: 44 | BR95: 90 | BU95: 2030-11-23
A96: 2030-12-23 | B96: =+IF(AND(SIMULADOR!$D$18=31,DAY(EOMONTH(A96,1))<>31),DATE(YEAR(A96),MONTH(A96)+1,DAY(EOMONTH(A96,1))),IF(MONTH(EDATE(A96,1))=2,EDATE(A96,1),DATE(YEAR(EDATE(A96,1)),MONTH(EDATE(A96,1)),SIMULADOR!$D$18))) -> 2031-01-23 | D96: 91 | E96: 2771 | F96: 0.2427979761 | G96: 30 | H96: =IF(D96<=SIMULADOR!$D$17,ROUND($H$6,2),"") ->  | I96: =IF(D96<=SIMULADOR!$D$17+1,I95-J95,"") ->  | J96: =IF(D96<=SIMULADOR!$D$17,H96-L96-K96-M96,"") ->  | L96: =IF(D96>SIMULADOR!$D$17,0,IF(AND(D96<=SIMULADOR!$D$17,I96<=SIMULADOR!$D$13),ROUND(I96*$F$1,2),IF(I96>SIMULADOR!$D$13,SIMULADOR!$D$13*Calculos!$F$1,""))) -> 0 | M96: =IF(Calculos!D96<=SIMULADOR!$D$17,Calculos!$M$4,"") ->  | N96: =IF(D96<=SIMULADOR!$D$17,ROUND(I96*((1+$E$3)^G96-1),2),"") ->  | P96: =+IF(D96<=SIMULADOR!$D$17,SIMULADOR!Q134,"") ->  | AA96: 30 | AB96: =+IF(OR(Calculos!B94-SIMULADOR!$H$28<0,SIMULADOR!$H$28=0),0,Calculos!B94-SIMULADOR!$H$28) -> 0 | AC96: 0 | AD96: =+IF(AND(AB97<>0,AB96=0),SIMULADOR!$H$29,0) -> 0 | AE96: 0 | AG96: 0 | AH96: 0 | AI96: 0 | AJ96: =IF($BA96=SIMULADOR!$H$28,0,IF(OR(BO95=1,AND(AD96<>0,BO96=0)),L96,IF(AND(AC96+AD96>0,ABS(AG95-AH95)>0.01),L96,0))) -> 0 | AK96: 0 | AM96: 0 | AN96: 0 | AP96: 0 | AQ96: 0 | AS96: 0 | AX96: 0 | AZ96: 91 | BA96: =+BA95+IF(SIMULADOR!$H$28<>"",AA96+AC96,G96) -> 2030-12-23 | BB96: =+IF(SUM(AE$6:AE96)=0,I96,IF($BB$1=$BE$1,AG96,AT96)) ->  | BC96: =+IF(SUM(AE$6:AE96)=0,L96,IF($BB$1=$BE$1,AJ96,AW96)) -> 0 | BD96: 0 | BE96: =+IF(SUM(AE$6:AE96)=0,0,IF($BB$1=$BE$1,AD96,AS96)) -> 0 | BF96: =+IF(SUM(AE$6:AE96)=0,J96,IF($BB$1=$BE$1,AH96,AU96)) ->  | BG96: =+IF(SUM(AE$6:AE96)=0,K96,IF($BB$1=$BE$1,AI96,AV96)) ->  | BI96: =+SIMULADOR!K135 -> 0 | BJ96: 0 | BM96: 0 | BO96: 0 | BP96: 1 | BQ96: 45 | BR96: 91 | BU96: 2030-12-23
A97: 2031-01-23 | B97: =+IF(AND(SIMULADOR!$D$18=31,DAY(EOMONTH(A97,1))<>31),DATE(YEAR(A97),MONTH(A97)+1,DAY(EOMONTH(A97,1))),IF(MONTH(EDATE(A97,1))=2,EDATE(A97,1),DATE(YEAR(EDATE(A97,1)),MONTH(EDATE(A97,1)),SIMULADOR!$D$18))) -> 2031-02-23 | D97: 92 | E97: 2802 | F97: 0.2389833343 | G97: 31 | H97: =IF(D97<=SIMULADOR!$D$17,ROUND($H$6,2),"") ->  | I97: =IF(D97<=SIMULADOR!$D$17+1,I96-J96,"") ->  | J97: =IF(D97<=SIMULADOR!$D$17,H97-L97-K97-M97,"") ->  | L97: =IF(D97>SIMULADOR!$D$17,0,IF(AND(D97<=SIMULADOR!$D$17,I97<=SIMULADOR!$D$13),ROUND(I97*$F$1,2),IF(I97>SIMULADOR!$D$13,SIMULADOR!$D$13*Calculos!$F$1,""))) -> 0 | M97: =IF(Calculos!D97<=SIMULADOR!$D$17,Calculos!$M$4,"") ->  | N97: =IF(D97<=SIMULADOR!$D$17,ROUND(I97*((1+$E$3)^G97-1),2),"") ->  | P97: =+IF(D97<=SIMULADOR!$D$17,SIMULADOR!Q135,"") ->  | AA97: 31 | AB97: =+IF(OR(Calculos!B95-SIMULADOR!$H$28<0,SIMULADOR!$H$28=0),0,Calculos!B95-SIMULADOR!$H$28) -> 0 | AC97: 0 | AD97: =+IF(AND(AB98<>0,AB97=0),SIMULADOR!$H$29,0) -> 0 | AE97: 0 | AG97: 0 | AH97: 0 | AI97: 0 | AJ97: =IF($BA97=SIMULADOR!$H$28,0,IF(OR(BO96=1,AND(AD97<>0,BO97=0)),L97,IF(AND(AC97+AD97>0,ABS(AG96-AH96)>0.01),L97,0))) -> 0 | AK97: 0 | AM97: 0 | AN97: 0 | AP97: 0 | AQ97: 0 | AS97: 0 | AX97: 0 | AZ97: 92 | BA97: =+BA96+IF(SIMULADOR!$H$28<>"",AA97+AC97,G97) -> 2031-01-23 | BB97: =+IF(SUM(AE$6:AE97)=0,I97,IF($BB$1=$BE$1,AG97,AT97)) ->  | BC97: =+IF(SUM(AE$6:AE97)=0,L97,IF($BB$1=$BE$1,AJ97,AW97)) -> 0 | BD97: 0 | BE97: =+IF(SUM(AE$6:AE97)=0,0,IF($BB$1=$BE$1,AD97,AS97)) -> 0 | BF97: =+IF(SUM(AE$6:AE97)=0,J97,IF($BB$1=$BE$1,AH97,AU97)) ->  | BG97: =+IF(SUM(AE$6:AE97)=0,K97,IF($BB$1=$BE$1,AI97,AV97)) ->  | BI97: =+SIMULADOR!K136 -> 0 | BJ97: 0 | BM97: 0 | BO97: 0 | BP97: 1 | BQ97: 46 | BR97: 92 | BU97: 2031-01-23
A98: 2031-02-23 | B98: =+IF(AND(SIMULADOR!$D$18=31,DAY(EOMONTH(A98,1))<>31),DATE(YEAR(A98),MONTH(A98)+1,DAY(EOMONTH(A98,1))),IF(MONTH(EDATE(A98,1))=2,EDATE(A98,1),DATE(YEAR(EDATE(A98,1)),MONTH(EDATE(A98,1)),SIMULADOR!$D$18))) -> 2031-03-23 | D98: 93 | E98: 2833 | F98: 0.235228625 | G98: 31 | H98: =IF(D98<=SIMULADOR!$D$17,ROUND($H$6,2),"") ->  | I98: =IF(D98<=SIMULADOR!$D$17+1,I97-J97,"") ->  | J98: =IF(D98<=SIMULADOR!$D$17,H98-L98-K98-M98,"") ->  | L98: =IF(D98>SIMULADOR!$D$17,0,IF(AND(D98<=SIMULADOR!$D$17,I98<=SIMULADOR!$D$13),ROUND(I98*$F$1,2),IF(I98>SIMULADOR!$D$13,SIMULADOR!$D$13*Calculos!$F$1,""))) -> 0 | M98: =IF(Calculos!D98<=SIMULADOR!$D$17,Calculos!$M$4,"") ->  | N98: =IF(D98<=SIMULADOR!$D$17,ROUND(I98*((1+$E$3)^G98-1),2),"") ->  | P98: =+IF(D98<=SIMULADOR!$D$17,SIMULADOR!Q136,"") ->  | AA98: 31 | AB98: =+IF(OR(Calculos!B96-SIMULADOR!$H$28<0,SIMULADOR!$H$28=0),0,Calculos!B96-SIMULADOR!$H$28) -> 0 | AC98: 0 | AD98: =+IF(AND(AB99<>0,AB98=0),SIMULADOR!$H$29,0) -> 0 | AE98: 0 | AG98: 0 | AH98: 0 | AI98: 0 | AJ98: =IF($BA98=SIMULADOR!$H$28,0,IF(OR(BO97=1,AND(AD98<>0,BO98=0)),L98,IF(AND(AC98+AD98>0,ABS(AG97-AH97)>0.01),L98,0))) -> 0 | AK98: 0 | AM98: 0 | AN98: 0 | AP98: 0 | AQ98: 0 | AS98: 0 | AX98: 0 | AZ98: 93 | BA98: =+BA97+IF(SIMULADOR!$H$28<>"",AA98+AC98,G98) -> 2031-02-23 | BB98: =+IF(SUM(AE$6:AE98)=0,I98,IF($BB$1=$BE$1,AG98,AT98)) ->  | BC98: =+IF(SUM(AE$6:AE98)=0,L98,IF($BB$1=$BE$1,AJ98,AW98)) -> 0 | BD98: 0 | BE98: =+IF(SUM(AE$6:AE98)=0,0,IF($BB$1=$BE$1,AD98,AS98)) -> 0 | BF98: =+IF(SUM(AE$6:AE98)=0,J98,IF($BB$1=$BE$1,AH98,AU98)) ->  | BG98: =+IF(SUM(AE$6:AE98)=0,K98,IF($BB$1=$BE$1,AI98,AV98)) ->  | BI98: =+SIMULADOR!K137 -> 0 | BJ98: 0 | BM98: 0 | BO98: 0 | BP98: 1 | BQ98: 47 | BR98: 93 | BU98: 2031-02-23
A99: 2031-03-23 | B99: =+IF(AND(SIMULADOR!$D$18=31,DAY(EOMONTH(A99,1))<>31),DATE(YEAR(A99),MONTH(A99)+1,DAY(EOMONTH(A99,1))),IF(MONTH(EDATE(A99,1))=2,EDATE(A99,1),DATE(YEAR(EDATE(A99,1)),MONTH(EDATE(A99,1)),SIMULADOR!$D$18))) -> 2031-04-23 | D99: 94 | E99: 2861 | F99: 0.2318880045 | G99: 28 | H99: =IF(D99<=SIMULADOR!$D$17,ROUND($H$6,2),"") ->  | I99: =IF(D99<=SIMULADOR!$D$17+1,I98-J98,"") ->  | J99: =IF(D99<=SIMULADOR!$D$17,H99-L99-K99-M99,"") ->  | L99: =IF(D99>SIMULADOR!$D$17,0,IF(AND(D99<=SIMULADOR!$D$17,I99<=SIMULADOR!$D$13),ROUND(I99*$F$1,2),IF(I99>SIMULADOR!$D$13,SIMULADOR!$D$13*Calculos!$F$1,""))) -> 0 | M99: =IF(Calculos!D99<=SIMULADOR!$D$17,Calculos!$M$4,"") ->  | N99: =IF(D99<=SIMULADOR!$D$17,ROUND(I99*((1+$E$3)^G99-1),2),"") ->  | P99: =+IF(D99<=SIMULADOR!$D$17,SIMULADOR!Q137,"") ->  | AA99: 28 | AB99: =+IF(OR(Calculos!B97-SIMULADOR!$H$28<0,SIMULADOR!$H$28=0),0,Calculos!B97-SIMULADOR!$H$28) -> 0 | AC99: 0 | AD99: =+IF(AND(AB100<>0,AB99=0),SIMULADOR!$H$29,0) -> 0 | AE99: 0 | AG99: 0 | AH99: 0 | AI99: 0 | AJ99: =IF($BA99=SIMULADOR!$H$28,0,IF(OR(BO98=1,AND(AD99<>0,BO99=0)),L99,IF(AND(AC99+AD99>0,ABS(AG98-AH98)>0.01),L99,0))) -> 0 | AK99: 0 | AM99: 0 | AN99: 0 | AP99: 0 | AQ99: 0 | AS99: 0 | AX99: 0 | AZ99: 94 | BA99: =+BA98+IF(SIMULADOR!$H$28<>"",AA99+AC99,G99) -> 2031-03-23 | BB99: =+IF(SUM(AE$6:AE99)=0,I99,IF($BB$1=$BE$1,AG99,AT99)) ->  | BC99: =+IF(SUM(AE$6:AE99)=0,L99,IF($BB$1=$BE$1,AJ99,AW99)) -> 0 | BD99: 0 | BE99: =+IF(SUM(AE$6:AE99)=0,0,IF($BB$1=$BE$1,AD99,AS99)) -> 0 | BF99: =+IF(SUM(AE$6:AE99)=0,J99,IF($BB$1=$BE$1,AH99,AU99)) ->  | BG99: =+IF(SUM(AE$6:AE99)=0,K99,IF($BB$1=$BE$1,AI99,AV99)) ->  | BI99: =+SIMULADOR!K138 -> 0 | BJ99: 0 | BM99: 0 | BO99: 0 | BP99: 1 | BQ99: 48 | BR99: 94 | BU99: 2031-03-23
A100: 2031-04-23 | B100: =+IF(AND(SIMULADOR!$D$18=31,DAY(EOMONTH(A100,1))<>31),DATE(YEAR(A100),MONTH(A100)+1,DAY(EOMONTH(A100,1))),IF(MONTH(EDATE(A100,1))=2,EDATE(A100,1),DATE(YEAR(EDATE(A100,1)),MONTH(EDATE(A100,1)),SIMULADOR!$D$18))) -> 2031-05-23 | D100: 95 | E100: 2892 | F100: 0.2282447712 | G100: 31 | H100: =IF(D100<=SIMULADOR!$D$17,ROUND($H$6,2),"") ->  | I100: =IF(D100<=SIMULADOR!$D$17+1,I99-J99,"") ->  | J100: =IF(D100<=SIMULADOR!$D$17,H100-L100-K100-M100,"") ->  | L100: =IF(D100>SIMULADOR!$D$17,0,IF(AND(D100<=SIMULADOR!$D$17,I100<=SIMULADOR!$D$13),ROUND(I100*$F$1,2),IF(I100>SIMULADOR!$D$13,SIMULADOR!$D$13*Calculos!$F$1,""))) -> 0 | M100: =IF(Calculos!D100<=SIMULADOR!$D$17,Calculos!$M$4,"") ->  | N100: =IF(D100<=SIMULADOR!$D$17,ROUND(I100*((1+$E$3)^G100-1),2),"") ->  | P100: =+IF(D100<=SIMULADOR!$D$17,SIMULADOR!Q138,"") ->  | AA100: 31 | AB100: =+IF(OR(Calculos!B98-SIMULADOR!$H$28<0,SIMULADOR!$H$28=0),0,Calculos!B98-SIMULADOR!$H$28) -> 0 | AC100: 0 | AD100: =+IF(AND(AB101<>0,AB100=0),SIMULADOR!$H$29,0) -> 0 | AE100: 0 | AG100: 0 | AH100: 0 | AI100: 0 | AJ100: =IF($BA100=SIMULADOR!$H$28,0,IF(OR(BO99=1,AND(AD100<>0,BO100=0)),L100,IF(AND(AC100+AD100>0,ABS(AG99-AH99)>0.01),L100,0))) -> 0 | AK100: 0 | AM100: 0 | AN100: 0 | AP100: 0 | AQ100: 0 | AS100: 0 | AX100: 0 | AZ100: 95 | BA100: =+BA99+IF(SIMULADOR!$H$28<>"",AA100+AC100,G100) -> 2031-04-23 | BB100: =+IF(SUM(AE$6:AE100)=0,I100,IF($BB$1=$BE$1,AG100,AT100)) ->  | BC100: =+IF(SUM(AE$6:AE100)=0,L100,IF($BB$1=$BE$1,AJ100,AW100)) -> 0 | BD100: 0 | BE100: =+IF(SUM(AE$6:AE100)=0,0,IF($BB$1=$BE$1,AD100,AS100)) -> 0 | BF100: =+IF(SUM(AE$6:AE100)=0,J100,IF($BB$1=$BE$1,AH100,AU100)) ->  | BG100: =+IF(SUM(AE$6:AE100)=0,K100,IF($BB$1=$BE$1,AI100,AV100)) ->  | BI100: =+SIMULADOR!K139 -> 0 | BJ100: 0 | BM100: 0 | BO100: 0 | BP100: 1 | BQ100: 49 | BR100: 95 | BU100: 2031-04-23
A101: 2031-05-23 | B101: =+IF(AND(SIMULADOR!$D$18=31,DAY(EOMONTH(A101,1))<>31),DATE(YEAR(A101),MONTH(A101)+1,DAY(EOMONTH(A101,1))),IF(MONTH(EDATE(A101,1))=2,EDATE(A101,1),DATE(YEAR(EDATE(A101,1)),MONTH(EDATE(A101,1)),SIMULADOR!$D$18))) -> 2031-06-23 | D101: 96 | E101: 2922 | F101: 0.2247735704 | G101: 30 | H101: =IF(D101<=SIMULADOR!$D$17,ROUND($H$6,2),"") ->  | I101: =IF(D101<=SIMULADOR!$D$17+1,I100-J100,"") ->  | J101: =IF(D101<=SIMULADOR!$D$17,H101-L101-K101-M101,"") ->  | L101: =IF(D101>SIMULADOR!$D$17,0,IF(AND(D101<=SIMULADOR!$D$17,I101<=SIMULADOR!$D$13),ROUND(I101*$F$1,2),IF(I101>SIMULADOR!$D$13,SIMULADOR!$D$13*Calculos!$F$1,""))) -> 0 | M101: =IF(Calculos!D101<=SIMULADOR!$D$17,Calculos!$M$4,"") ->  | N101: =IF(D101<=SIMULADOR!$D$17,ROUND(I101*((1+$E$3)^G101-1),2),"") ->  | P101: =+IF(D101<=SIMULADOR!$D$17,SIMULADOR!Q139,"") ->  | AA101: 30 | AB101: =+IF(OR(Calculos!B99-SIMULADOR!$H$28<0,SIMULADOR!$H$28=0),0,Calculos!B99-SIMULADOR!$H$28) -> 0 | AC101: 0 | AD101: =+IF(AND(AB102<>0,AB101=0),SIMULADOR!$H$29,0) -> 0 | AE101: 0 | AG101: 0 | AH101: 0 | AI101: 0 | AJ101: =IF($BA101=SIMULADOR!$H$28,0,IF(OR(BO100=1,AND(AD101<>0,BO101=0)),L101,IF(AND(AC101+AD101>0,ABS(AG100-AH100)>0.01),L101,0))) -> 0 | AK101: 0 | AM101: 0 | AN101: 0 | AP101: 0 | AQ101: 0 | AS101: 0 | AX101: 0 | AZ101: 96 | BA101: =+BA100+IF(SIMULADOR!$H$28<>"",AA101+AC101,G101) -> 2031-05-23 | BB101: =+IF(SUM(AE$6:AE101)=0,I101,IF($BB$1=$BE$1,AG101,AT101)) ->  | BC101: =+IF(SUM(AE$6:AE101)=0,L101,IF($BB$1=$BE$1,AJ101,AW101)) -> 0 | BD101: 0 | BE101: =+IF(SUM(AE$6:AE101)=0,0,IF($BB$1=$BE$1,AD101,AS101)) -> 0 | BF101: =+IF(SUM(AE$6:AE101)=0,J101,IF($BB$1=$BE$1,AH101,AU101)) ->  | BG101: =+IF(SUM(AE$6:AE101)=0,K101,IF($BB$1=$BE$1,AI101,AV101)) ->  | BI101: =+SIMULADOR!K140 -> 0 | BJ101: 0 | BM101: 0 | BO101: 0 | BP101: 1 | BQ101: 50 | BR101: 96 | BU101: 2031-05-23
A102: =+B101 -> 2031-06-23 | B102: =+IF(AND(SIMULADOR!$D$18=31,DAY(EOMONTH(A102,1))<>31),DATE(YEAR(A102),MONTH(A102)+1,DAY(EOMONTH(A102,1))),IF(MONTH(EDATE(A102,1))=2,EDATE(A102,1),DATE(YEAR(EDATE(A102,1)),MONTH(EDATE(A102,1)),SIMULADOR!$D$18))) -> 2031-07-23 | D102: 97 | E102: =+B101-$A$5 -> 2953 | F102: =1/((1+$E$3)^E102*(1+$F$3)^E102) -> 0.2212421133 | G102: 31 | H102: =IF(D102<=SIMULADOR!$D$17,ROUND($H$6,2),"") ->  | I102: =IF(D102<=SIMULADOR!$D$17+1,I101-J101,"") ->  | J102: =IF(D102<=SIMULADOR!$D$17,H102-L102-K102-M102,"") ->  | L102: =IF(D102>SIMULADOR!$D$17,0,IF(AND(D102<=SIMULADOR!$D$17,I102<=SIMULADOR!$D$13),ROUND(I102*$F$1,2),IF(I102>SIMULADOR!$D$13,SIMULADOR!$D$13*Calculos!$F$1,""))) -> 0 | M102: =IF(Calculos!D102<=SIMULADOR!$D$17,Calculos!$M$4,"") ->  | N102: =IF(D102<=SIMULADOR!$D$17,ROUND(I102*((1+$E$3)^G102-1),2),"") ->  | P102: =+IF(D102<=SIMULADOR!$D$17,SIMULADOR!Q140,"") ->  | Q102: =IF(P102<>"",E102,"") ->  | AA102: 31 | AB102: =+IF(OR(Calculos!B100-SIMULADOR!$H$28<0,SIMULADOR!$H$28=0),0,Calculos!B100-SIMULADOR!$H$28) -> 0 | AC102: 0 | AD102: =+IF(AND(AB103<>0,AB102=0),SIMULADOR!$H$29,0) -> 0 | AE102: 0 | AG102: 0 | AH102: 0 | AI102: 0 | AJ102: =IF($BA102=SIMULADOR!$H$28,0,IF(OR(BO101=1,AND(AD102<>0,BO102=0)),L102,IF(AND(AC102+AD102>0,ABS(AG101-AH101)>0.01),L102,0))) -> 0 | AK102: 0 | AM102: 0 | AN102: 0 | AP102: 0 | AQ102: 0 | AS102: 0 | AX102: 0 | AZ102: 97 | BA102: =+BA101+IF(SIMULADOR!$H$28<>"",AA102+AC102,G102) -> 2031-06-23 | BB102: =+IF(SUM(AE$6:AE102)=0,I102,IF($BB$1=$BE$1,AG102,AT102)) ->  | BC102: =+IF(SUM(AE$6:AE102)=0,L102,IF($BB$1=$BE$1,AJ102,AW102)) -> 0 | BD102: 0 | BE102: =+IF(SUM(AE$6:AE102)=0,0,IF($BB$1=$BE$1,AD102,AS102)) -> 0 | BF102: =+IF(SUM(AE$6:AE102)=0,J102,IF($BB$1=$BE$1,AH102,AU102)) ->  | BG102: =+IF(SUM(AE$6:AE102)=0,K102,IF($BB$1=$BE$1,AI102,AV102)) ->  | BI102: =+SIMULADOR!K141 -> 0 | BJ102: 0 | BM102: 0 | BO102: 0 | BP102: 1 | BQ102: 51 | BR102: 97 | BU102: 2031-06-23
A103: 2031-07-23 | B103: =+IF(AND(SIMULADOR!$D$18=31,DAY(EOMONTH(A103,1))<>31),DATE(YEAR(A103),MONTH(A103)+1,DAY(EOMONTH(A103,1))),IF(MONTH(EDATE(A103,1))=2,EDATE(A103,1),DATE(YEAR(EDATE(A103,1)),MONTH(EDATE(A103,1)),SIMULADOR!$D$18))) -> 2031-08-23 | D103: 98 | E103: 2983 | F103: 0.2178774106 | G103: =+E103-E102 -> 30 | H103: =IF(D103<=SIMULADOR!$D$17,ROUND($H$6,2),"") ->  | I103: =IF(D103<=SIMULADOR!$D$17+1,I102-J102,"") ->  | J103: =IF(D103<=SIMULADOR!$D$17,H103-L103-K103-M103,"") ->  | L103: =IF(D103>SIMULADOR!$D$17,0,IF(AND(D103<=SIMULADOR!$D$17,I103<=SIMULADOR!$D$13),ROUND(I103*$F$1,2),IF(I103>SIMULADOR!$D$13,SIMULADOR!$D$13*Calculos!$F$1,""))) -> 0 | M103: =IF(Calculos!D103<=SIMULADOR!$D$17,Calculos!$M$4,"") ->  | N103: =IF(D103<=SIMULADOR!$D$17,ROUND(I103*((1+$E$3)^G103-1),2),"") ->  | P103: =+IF(D103<=SIMULADOR!$D$17,SIMULADOR!Q141,"") ->  | AA103: 30 | AB103: =+IF(OR(Calculos!B101-SIMULADOR!$H$28<0,SIMULADOR!$H$28=0),0,Calculos!B101-SIMULADOR!$H$28) -> 0 | AC103: 0 | AD103: =+IF(AND(AB104<>0,AB103=0),SIMULADOR!$H$29,0) -> 0 | AE103: 0 | AG103: 0 | AH103: 0 | AI103: 0 | AJ103: =IF($BA103=SIMULADOR!$H$28,0,IF(OR(BO102=1,AND(AD103<>0,BO103=0)),L103,IF(AND(AC103+AD103>0,ABS(AG102-AH102)>0.01),L103,0))) -> 0 | AK103: 0 | AM103: 0 | AN103: 0 | AP103: 0 | AQ103: 0 | AS103: 0 | AX103: 0 | AZ103: 98 | BA103: =+BA102+IF(SIMULADOR!$H$28<>"",AA103+AC103,G103) -> 2031-07-23 | BB103: =+IF(SUM(AE$6:AE103)=0,I103,IF($BB$1=$BE$1,AG103,AT103)) ->  | BC103: =+IF(SUM(AE$6:AE103)=0,L103,IF($BB$1=$BE$1,AJ103,AW103)) -> 0 | BD103: 0 | BE103: =+IF(SUM(AE$6:AE103)=0,0,IF($BB$1=$BE$1,AD103,AS103)) -> 0 | BF103: =+IF(SUM(AE$6:AE103)=0,J103,IF($BB$1=$BE$1,AH103,AU103)) ->  | BG103: =+IF(SUM(AE$6:AE103)=0,K103,IF($BB$1=$BE$1,AI103,AV103)) ->  | BI103: =+SIMULADOR!K142 -> 0 | BJ103: 0 | BM103: 0 | BO103: 0 | BP103: 1 | BQ103: 52 | BR103: 98 | BU103: 2031-07-23
A104: 2031-08-23 | B104: =+IF(AND(SIMULADOR!$D$18=31,DAY(EOMONTH(A104,1))<>31),DATE(YEAR(A104),MONTH(A104)+1,DAY(EOMONTH(A104,1))),IF(MONTH(EDATE(A104,1))=2,EDATE(A104,1),DATE(YEAR(EDATE(A104,1)),MONTH(EDATE(A104,1)),SIMULADOR!$D$18))) -> 2031-09-23 | D104: 99 | E104: 3014 | F104: 0.2144543002 | G104: 31 | H104: =IF(D104<=SIMULADOR!$D$17,ROUND($H$6,2),"") ->  | I104: =IF(D104<=SIMULADOR!$D$17+1,I103-J103,"") ->  | J104: =IF(D104<=SIMULADOR!$D$17,H104-L104-K104-M104,"") ->  | L104: =IF(D104>SIMULADOR!$D$17,0,IF(AND(D104<=SIMULADOR!$D$17,I104<=SIMULADOR!$D$13),ROUND(I104*$F$1,2),IF(I104>SIMULADOR!$D$13,SIMULADOR!$D$13*Calculos!$F$1,""))) -> 0 | M104: =IF(Calculos!D104<=SIMULADOR!$D$17,Calculos!$M$4,"") ->  | N104: =IF(D104<=SIMULADOR!$D$17,ROUND(I104*((1+$E$3)^G104-1),2),"") ->  | P104: =+IF(D104<=SIMULADOR!$D$17,SIMULADOR!Q142,"") ->  | AA104: 31 | AB104: =+IF(OR(Calculos!B102-SIMULADOR!$H$28<0,SIMULADOR!$H$28=0),0,Calculos!B102-SIMULADOR!$H$28) -> 0 | AC104: 0 | AD104: =+IF(AND(AB105<>0,AB104=0),SIMULADOR!$H$29,0) -> 0 | AE104: 0 | AG104: 0 | AH104: 0 | AI104: 0 | AJ104: =IF($BA104=SIMULADOR!$H$28,0,IF(OR(BO103=1,AND(AD104<>0,BO104=0)),L104,IF(AND(AC104+AD104>0,ABS(AG103-AH103)>0.01),L104,0))) -> 0 | AK104: 0 | AM104: 0 | AN104: 0 | AP104: 0 | AQ104: 0 | AS104: 0 | AX104: 0 | AZ104: 99 | BA104: =+BA103+IF(SIMULADOR!$H$28<>"",AA104+AC104,G104) -> 2031-08-23 | BB104: =+IF(SUM(AE$6:AE104)=0,I104,IF($BB$1=$BE$1,AG104,AT104)) ->  | BC104: =+IF(SUM(AE$6:AE104)=0,L104,IF($BB$1=$BE$1,AJ104,AW104)) -> 0 | BD104: 0 | BE104: =+IF(SUM(AE$6:AE104)=0,0,IF($BB$1=$BE$1,AD104,AS104)) -> 0 | BF104: =+IF(SUM(AE$6:AE104)=0,J104,IF($BB$1=$BE$1,AH104,AU104)) ->  | BG104: =+IF(SUM(AE$6:AE104)=0,K104,IF($BB$1=$BE$1,AI104,AV104)) ->  | BI104: =+SIMULADOR!K143 -> 0 | BJ104: 0 | BM104: 0 | BO104: 0 | BP104: 1 | BQ104: 53 | BR104: 99 | BU104: 2031-08-23
A105: 2031-09-23 | B105: =+IF(AND(SIMULADOR!$D$18=31,DAY(EOMONTH(A105,1))<>31),DATE(YEAR(A105),MONTH(A105)+1,DAY(EOMONTH(A105,1))),IF(MONTH(EDATE(A105,1))=2,EDATE(A105,1),DATE(YEAR(EDATE(A105,1)),MONTH(EDATE(A105,1)),SIMULADOR!$D$18))) -> 2031-10-23 | D105: 100 | E105: 3045 | F105: 0.2110849709 | G105: 31 | H105: =IF(D105<=SIMULADOR!$D$17,ROUND($H$6,2),"") ->  | I105: =IF(D105<=SIMULADOR!$D$17+1,I104-J104,"") ->  | J105: =IF(D105<=SIMULADOR!$D$17,H105-L105-K105-M105,"") ->  | L105: =IF(D105>SIMULADOR!$D$17,0,IF(AND(D105<=SIMULADOR!$D$17,I105<=SIMULADOR!$D$13),ROUND(I105*$F$1,2),IF(I105>SIMULADOR!$D$13,SIMULADOR!$D$13*Calculos!$F$1,""))) -> 0 | M105: =IF(Calculos!D105<=SIMULADOR!$D$17,Calculos!$M$4,"") ->  | N105: =IF(D105<=SIMULADOR!$D$17,ROUND(I105*((1+$E$3)^G105-1),2),"") ->  | P105: =+IF(D105<=SIMULADOR!$D$17,SIMULADOR!Q143,"") ->  | AA105: 31 | AB105: =+IF(OR(Calculos!B103-SIMULADOR!$H$28<0,SIMULADOR!$H$28=0),0,Calculos!B103-SIMULADOR!$H$28) -> 0 | AC105: 0 | AD105: =+IF(AND(AB106<>0,AB105=0),SIMULADOR!$H$29,0) -> 0 | AE105: 0 | AG105: 0 | AH105: 0 | AI105: 0 | AJ105: =IF($BA105=SIMULADOR!$H$28,0,IF(OR(BO104=1,AND(AD105<>0,BO105=0)),L105,IF(AND(AC105+AD105>0,ABS(AG104-AH104)>0.01),L105,0))) -> 0 | AK105: 0 | AM105: 0 | AN105: 0 | AP105: 0 | AQ105: 0 | AS105: 0 | AX105: 0 | AZ105: 100 | BA105: =+BA104+IF(SIMULADOR!$H$28<>"",AA105+AC105,G105) -> 2031-09-23 | BB105: =+IF(SUM(AE$6:AE105)=0,I105,IF($BB$1=$BE$1,AG105,AT105)) ->  | BC105: =+IF(SUM(AE$6:AE105)=0,L105,IF($BB$1=$BE$1,AJ105,AW105)) -> 0 | BD105: 0 | BE105: =+IF(SUM(AE$6:AE105)=0,0,IF($BB$1=$BE$1,AD105,AS105)) -> 0 | BF105: =+IF(SUM(AE$6:AE105)=0,J105,IF($BB$1=$BE$1,AH105,AU105)) ->  | BG105: =+IF(SUM(AE$6:AE105)=0,K105,IF($BB$1=$BE$1,AI105,AV105)) ->  | BI105: =+SIMULADOR!K144 -> 0 | BJ105: 0 | BM105: 0 | BO105: 0 | BP105: 1 | BQ105: 54 | BR105: 100 | BU105: 2031-09-23
A106: 2031-10-23 | B106: =+IF(AND(SIMULADOR!$D$18=31,DAY(EOMONTH(A106,1))<>31),DATE(YEAR(A106),MONTH(A106)+1,DAY(EOMONTH(A106,1))),IF(MONTH(EDATE(A106,1))=2,EDATE(A106,1),DATE(YEAR(EDATE(A106,1)),MONTH(EDATE(A106,1)),SIMULADOR!$D$18))) -> 2031-11-23 | D106: 101 | E106: 3075 | F106: 0.2078747405 | G106: 30 | H106: =IF(D106<=SIMULADOR!$D$17,ROUND($H$6,2),"") ->  | I106: =IF(D106<=SIMULADOR!$D$17+1,I105-J105,"") ->  | J106: =IF(D106<=SIMULADOR!$D$17,H106-L106-K106-M106,"") ->  | L106: =IF(D106>SIMULADOR!$D$17,0,IF(AND(D106<=SIMULADOR!$D$17,I106<=SIMULADOR!$D$13),ROUND(I106*$F$1,2),IF(I106>SIMULADOR!$D$13,SIMULADOR!$D$13*Calculos!$F$1,""))) -> 0 | M106: =IF(Calculos!D106<=SIMULADOR!$D$17,Calculos!$M$4,"") ->  | N106: =IF(D106<=SIMULADOR!$D$17,ROUND(I106*((1+$E$3)^G106-1),2),"") ->  | P106: =+IF(D106<=SIMULADOR!$D$17,SIMULADOR!Q144,"") ->  | AA106: 30 | AB106: =+IF(OR(Calculos!B104-SIMULADOR!$H$28<0,SIMULADOR!$H$28=0),0,Calculos!B104-SIMULADOR!$H$28) -> 0 | AC106: 0 | AD106: =+IF(AND(AB107<>0,AB106=0),SIMULADOR!$H$29,0) -> 0 | AE106: 0 | AG106: 0 | AH106: 0 | AI106: 0 | AJ106: =IF($BA106=SIMULADOR!$H$28,0,IF(OR(BO105=1,AND(AD106<>0,BO106=0)),L106,IF(AND(AC106+AD106>0,ABS(AG105-AH105)>0.01),L106,0))) -> 0 | AK106: 0 | AM106: 0 | AN106: 0 | AP106: 0 | AQ106: 0 | AS106: 0 | AX106: 0 | AZ106: 101 | BA106: =+BA105+IF(SIMULADOR!$H$28<>"",AA106+AC106,G106) -> 2031-10-23 | BB106: =+IF(SUM(AE$6:AE106)=0,I106,IF($BB$1=$BE$1,AG106,AT106)) ->  | BC106: =+IF(SUM(AE$6:AE106)=0,L106,IF($BB$1=$BE$1,AJ106,AW106)) -> 0 | BD106: 0 | BE106: =+IF(SUM(AE$6:AE106)=0,0,IF($BB$1=$BE$1,AD106,AS106)) -> 0 | BF106: =+IF(SUM(AE$6:AE106)=0,J106,IF($BB$1=$BE$1,AH106,AU106)) ->  | BG106: =+IF(SUM(AE$6:AE106)=0,K106,IF($BB$1=$BE$1,AI106,AV106)) ->  | BI106: =+SIMULADOR!K145 -> 0 | BJ106: 0 | BM106: 0 | BO106: 0 | BP106: 1 | BQ106: 55 | BR106: 101 | BU106: 2031-10-23
A107: 2031-11-23 | B107: =+IF(AND(SIMULADOR!$D$18=31,DAY(EOMONTH(A107,1))<>31),DATE(YEAR(A107),MONTH(A107)+1,DAY(EOMONTH(A107,1))),IF(MONTH(EDATE(A107,1))=2,EDATE(A107,1),DATE(YEAR(EDATE(A107,1)),MONTH(EDATE(A107,1)),SIMULADOR!$D$18))) -> 2031-12-23 | D107: 102 | E107: 3106 | F107: 0.2046087838 | G107: 31 | H107: =IF(D107<=SIMULADOR!$D$17,ROUND($H$6,2),"") ->  | I107: =IF(D107<=SIMULADOR!$D$17+1,I106-J106,"") ->  | J107: =IF(D107<=SIMULADOR!$D$17,H107-L107-K107-M107,"") ->  | L107: =IF(D107>SIMULADOR!$D$17,0,IF(AND(D107<=SIMULADOR!$D$17,I107<=SIMULADOR!$D$13),ROUND(I107*$F$1,2),IF(I107>SIMULADOR!$D$13,SIMULADOR!$D$13*Calculos!$F$1,""))) -> 0 | M107: =IF(Calculos!D107<=SIMULADOR!$D$17,Calculos!$M$4,"") ->  | N107: =IF(D107<=SIMULADOR!$D$17,ROUND(I107*((1+$E$3)^G107-1),2),"") ->  | P107: =+IF(D107<=SIMULADOR!$D$17,SIMULADOR!Q145,"") ->  | AA107: 31 | AB107: =+IF(OR(Calculos!B105-SIMULADOR!$H$28<0,SIMULADOR!$H$28=0),0,Calculos!B105-SIMULADOR!$H$28) -> 0 | AC107: 0 | AD107: =+IF(AND(AB108<>0,AB107=0),SIMULADOR!$H$29,0) -> 0 | AE107: 0 | AG107: 0 | AH107: 0 | AI107: 0 | AJ107: =IF($BA107=SIMULADOR!$H$28,0,IF(OR(BO106=1,AND(AD107<>0,BO107=0)),L107,IF(AND(AC107+AD107>0,ABS(AG106-AH106)>0.01),L107,0))) -> 0 | AK107: 0 | AM107: 0 | AN107: 0 | AP107: 0 | AQ107: 0 | AS107: 0 | AX107: 0 | AZ107: 102 | BA107: =+BA106+IF(SIMULADOR!$H$28<>"",AA107+AC107,G107) -> 2031-11-23 | BB107: =+IF(SUM(AE$6:AE107)=0,I107,IF($BB$1=$BE$1,AG107,AT107)) ->  | BC107: =+IF(SUM(AE$6:AE107)=0,L107,IF($BB$1=$BE$1,AJ107,AW107)) -> 0 | BD107: 0 | BE107: =+IF(SUM(AE$6:AE107)=0,0,IF($BB$1=$BE$1,AD107,AS107)) -> 0 | BF107: =+IF(SUM(AE$6:AE107)=0,J107,IF($BB$1=$BE$1,AH107,AU107)) ->  | BG107: =+IF(SUM(AE$6:AE107)=0,K107,IF($BB$1=$BE$1,AI107,AV107)) ->  | BI107: =+SIMULADOR!K146 -> 0 | BJ107: 0 | BM107: 0 | BO107: 0 | BP107: 1 | BQ107: 56 | BR107: 102 | BU107: 2031-11-23
A108: 2031-12-23 | B108: =+IF(AND(SIMULADOR!$D$18=31,DAY(EOMONTH(A108,1))<>31),DATE(YEAR(A108),MONTH(A108)+1,DAY(EOMONTH(A108,1))),IF(MONTH(EDATE(A108,1))=2,EDATE(A108,1),DATE(YEAR(EDATE(A108,1)),MONTH(EDATE(A108,1)),SIMULADOR!$D$18))) -> 2032-01-23 | D108: =+D107+1 -> 103 | E108: 3136 | F108: 0.2014970448 | G108: 30 | H108: =IF(D108<=SIMULADOR!$D$17,ROUND($H$6,2),"") ->  | I108: =IF(D108<=SIMULADOR!$D$17+1,I107-J107,"") ->  | J108: =IF(D108<=SIMULADOR!$D$17,H108-L108-K108-M108,"") ->  | L108: =IF(D108>SIMULADOR!$D$17,0,IF(AND(D108<=SIMULADOR!$D$17,I108<=SIMULADOR!$D$13),ROUND(I108*$F$1,2),IF(I108>SIMULADOR!$D$13,SIMULADOR!$D$13*Calculos!$F$1,""))) -> 0 | M108: =IF(Calculos!D108<=SIMULADOR!$D$17,Calculos!$M$4,"") ->  | N108: =IF(D108<=SIMULADOR!$D$17,ROUND(I108*((1+$E$3)^G108-1),2),"") ->  | P108: =+IF(D108<=SIMULADOR!$D$17,SIMULADOR!Q146,"") ->  | AA108: 30 | AB108: =+IF(OR(Calculos!B106-SIMULADOR!$H$28<0,SIMULADOR!$H$28=0),0,Calculos!B106-SIMULADOR!$H$28) -> 0 | AC108: 0 | AD108: =+IF(AND(AB109<>0,AB108=0),SIMULADOR!$H$29,0) -> 0 | AE108: 0 | AG108: 0 | AH108: 0 | AI108: 0 | AJ108: =IF($BA108=SIMULADOR!$H$28,0,IF(OR(BO107=1,AND(AD108<>0,BO108=0)),L108,IF(AND(AC108+AD108>0,ABS(AG107-AH107)>0.01),L108,0))) -> 0 | AK108: 0 | AM108: 0 | AN108: 0 | AP108: 0 | AQ108: 0 | AS108: 0 | AX108: 0 | AZ108: 103 | BA108: =+BA107+IF(SIMULADOR!$H$28<>"",AA108+AC108,G108) -> 2031-12-23 | BB108: =+IF(SUM(AE$6:AE108)=0,I108,IF($BB$1=$BE$1,AG108,AT108)) ->  | BC108: =+IF(SUM(AE$6:AE108)=0,L108,IF($BB$1=$BE$1,AJ108,AW108)) -> 0 | BD108: 0 | BE108: =+IF(SUM(AE$6:AE108)=0,0,IF($BB$1=$BE$1,AD108,AS108)) -> 0 | BF108: =+IF(SUM(AE$6:AE108)=0,J108,IF($BB$1=$BE$1,AH108,AU108)) ->  | BG108: =+IF(SUM(AE$6:AE108)=0,K108,IF($BB$1=$BE$1,AI108,AV108)) ->  | BI108: =+SIMULADOR!K147 -> 0 | BJ108: 0 | BM108: 0 | BO108: 0 | BP108: 1 | BQ108: 57 | BR108: 103 | BU108: 2031-12-23
A109: 2032-01-23 | B109: =+IF(AND(SIMULADOR!$D$18=31,DAY(EOMONTH(A109,1))<>31),DATE(YEAR(A109),MONTH(A109)+1,DAY(EOMONTH(A109,1))),IF(MONTH(EDATE(A109,1))=2,EDATE(A109,1),DATE(YEAR(EDATE(A109,1)),MONTH(EDATE(A109,1)),SIMULADOR!$D$18))) -> 2032-02-23 | D109: 104 | E109: 3167 | F109: 0.1983312892 | G109: 31 | H109: =IF(D109<=SIMULADOR!$D$17,ROUND($H$6,2),"") ->  | I109: =IF(D109<=SIMULADOR!$D$17+1,I108-J108,"") ->  | J109: =IF(D109<=SIMULADOR!$D$17,H109-L109-K109-M109,"") ->  | L109: =IF(D109>SIMULADOR!$D$17,0,IF(AND(D109<=SIMULADOR!$D$17,I109<=SIMULADOR!$D$13),ROUND(I109*$F$1,2),IF(I109>SIMULADOR!$D$13,SIMULADOR!$D$13*Calculos!$F$1,""))) -> 0 | M109: =IF(Calculos!D109<=SIMULADOR!$D$17,Calculos!$M$4,"") ->  | N109: =IF(D109<=SIMULADOR!$D$17,ROUND(I109*((1+$E$3)^G109-1),2),"") ->  | P109: =+IF(D109<=SIMULADOR!$D$17,SIMULADOR!Q147,"") ->  | AA109: 31 | AB109: =+IF(OR(Calculos!B107-SIMULADOR!$H$28<0,SIMULADOR!$H$28=0),0,Calculos!B107-SIMULADOR!$H$28) -> 0 | AC109: 0 | AD109: =+IF(AND(AB110<>0,AB109=0),SIMULADOR!$H$29,0) -> 0 | AE109: 0 | AG109: 0 | AH109: 0 | AI109: 0 | AJ109: =IF($BA109=SIMULADOR!$H$28,0,IF(OR(BO108=1,AND(AD109<>0,BO109=0)),L109,IF(AND(AC109+AD109>0,ABS(AG108-AH108)>0.01),L109,0))) -> 0 | AK109: 0 | AM109: 0 | AN109: 0 | AP109: 0 | AQ109: 0 | AS109: 0 | AX109: 0 | AZ109: 104 | BA109: =+BA108+IF(SIMULADOR!$H$28<>"",AA109+AC109,G109) -> 2032-01-23 | BB109: =+IF(SUM(AE$6:AE109)=0,I109,IF($BB$1=$BE$1,AG109,AT109)) ->  | BC109: =+IF(SUM(AE$6:AE109)=0,L109,IF($BB$1=$BE$1,AJ109,AW109)) -> 0 | BD109: 0 | BE109: =+IF(SUM(AE$6:AE109)=0,0,IF($BB$1=$BE$1,AD109,AS109)) -> 0 | BF109: =+IF(SUM(AE$6:AE109)=0,J109,IF($BB$1=$BE$1,AH109,AU109)) ->  | BG109: =+IF(SUM(AE$6:AE109)=0,K109,IF($BB$1=$BE$1,AI109,AV109)) ->  | BI109: =+SIMULADOR!K148 -> 0 | BJ109: 0 | BM109: 0 | BO109: 0 | BP109: 1 | BQ109: 58 | BR109: 104 | BU109: 2032-01-23
A110: 2032-02-23 | B110: =+IF(AND(SIMULADOR!$D$18=31,DAY(EOMONTH(A110,1))<>31),DATE(YEAR(A110),MONTH(A110)+1,DAY(EOMONTH(A110,1))),IF(MONTH(EDATE(A110,1))=2,EDATE(A110,1),DATE(YEAR(EDATE(A110,1)),MONTH(EDATE(A110,1)),SIMULADOR!$D$18))) -> 2032-03-23 | D110: 105 | E110: 3198 | F110: 0.1952152714 | G110: 31 | H110: =IF(D110<=SIMULADOR!$D$17,ROUND($H$6,2),"") ->  | I110: =IF(D110<=SIMULADOR!$D$17+1,I109-J109,"") ->  | J110: =IF(D110<=SIMULADOR!$D$17,H110-L110-K110-M110,"") ->  | L110: =IF(D110>SIMULADOR!$D$17,0,IF(AND(D110<=SIMULADOR!$D$17,I110<=SIMULADOR!$D$13),ROUND(I110*$F$1,2),IF(I110>SIMULADOR!$D$13,SIMULADOR!$D$13*Calculos!$F$1,""))) -> 0 | M110: =IF(Calculos!D110<=SIMULADOR!$D$17,Calculos!$M$4,"") ->  | N110: =IF(D110<=SIMULADOR!$D$17,ROUND(I110*((1+$E$3)^G110-1),2),"") ->  | P110: =+IF(D110<=SIMULADOR!$D$17,SIMULADOR!Q148,"") ->  | AA110: 31 | AB110: =+IF(OR(Calculos!B108-SIMULADOR!$H$28<0,SIMULADOR!$H$28=0),0,Calculos!B108-SIMULADOR!$H$28) -> 0 | AC110: 0 | AD110: =+IF(AND(AB111<>0,AB110=0),SIMULADOR!$H$29,0) -> 0 | AE110: 0 | AG110: 0 | AH110: 0 | AI110: 0 | AJ110: =IF($BA110=SIMULADOR!$H$28,0,IF(OR(BO109=1,AND(AD110<>0,BO110=0)),L110,IF(AND(AC110+AD110>0,ABS(AG109-AH109)>0.01),L110,0))) -> 0 | AK110: 0 | AM110: 0 | AN110: 0 | AP110: 0 | AQ110: 0 | AS110: 0 | AX110: 0 | AZ110: 105 | BA110: =+BA109+IF(SIMULADOR!$H$28<>"",AA110+AC110,G110) -> 2032-02-23 | BB110: =+IF(SUM(AE$6:AE110)=0,I110,IF($BB$1=$BE$1,AG110,AT110)) ->  | BC110: =+IF(SUM(AE$6:AE110)=0,L110,IF($BB$1=$BE$1,AJ110,AW110)) -> 0 | BD110: 0 | BE110: =+IF(SUM(AE$6:AE110)=0,0,IF($BB$1=$BE$1,AD110,AS110)) -> 0 | BF110: =+IF(SUM(AE$6:AE110)=0,J110,IF($BB$1=$BE$1,AH110,AU110)) ->  | BG110: =+IF(SUM(AE$6:AE110)=0,K110,IF($BB$1=$BE$1,AI110,AV110)) ->  | BI110: =+SIMULADOR!K149 -> 0 | BJ110: 0 | BM110: 0 | BO110: 0 | BP110: 1 | BQ110: 59 | BR110: 105 | BU110: 2032-02-23
